Workbook

Sheet Formulario 2- Planta
A1: MINISTERIO DE HACIENDA Y CRÉDITO PÚBLICO
A2: Dirección General del Presupuesto Público Nacional
A3: Formulario 2. Anteproyecto Planta de personal
A5: CÓDIGO UEJ | B5: 370800
A6: UNIDAD EJECUTORA | B6: =+IFERROR(VLOOKUP(B5,DESPLEGABLES!$A$2:$C$229,2,0),"") -> UNIDAD NACIONAL DE PROTECCIÓN - UNP
A7: SECTOR PRESUPUESTAL | B7: =+IFERROR(VLOOKUP(B5,DESPLEGABLES!$A$2:$C$229,3,0),"") -> INTERIOR
B9: 0.1088 | D9: ANTEPROYECTO PLANTA DE PERSONAL - VIGENCIA | L9: 2025 | O9: (diligenciar en pesos)
A11: DENOMINACIÓN DE CARGOS | B11: Grado | C11: No. Cargos | D11: Salario | X11: Remuneraciones no constitutivas de Factor Salarial | AL11: Contribuciones Inherentes a la Nómina | AW11: Prestaciones sociales relacionadas con el empleo | AZ11: Total Gastos de personal
D12: Factores Salariales comunes | R12: Factores Salariales Especiales | W12: Total | X12: Prestaciones sociales según definición legal | AB12: Otras remuneraciones no constitutivas de Factor Salarial | AK12: Total | AL12: Pensiones | AM12: Salud | AN12: Aportes de Cesantías | AO12: Cajas de Compensación Familiar | AP12: Aportes Generales al Sistema de Riesgos Laborales | AQ12: Aportes al ICBF | AR12: Aportes al SENA | AS12: Aportes a la ESAP | AT12: Aportes a escuelas industriales e institutos técnicos | AU12: Subsidio de vivienda Fuerzas Militares y Policía | AV12: Total | AW12: Incapacidades (No de pensiones) | AX12: Licencias de maternidad y paternidad (No de pensiones) | AY12: Total Transferencia
D13: Sueldo básico | F13: Gastos de representación | G13: Prima técnica salarial | H13: Subsidio de alimentación | I13: Auxilio de transporte | J13: Prima de servicio | K13: Bonificación por servicios prestados | L13: Horas extras, dominicales, festivos y recargos | M13: Prima de navidad | N13: Prima de vacaciones | O13: Viáticos de los funcionarios en comisión | P13: Auxilio de conectividad digital | Q13: Subtotal 1 | R13: Bonificación por Compensación | S13: Factor Salarial Especial 2 | T13: Factor Salarial Especial 3 | U13: Factor Salarial Especial 4 | V13: Subtotal 2 | X13: Sueldo de vacaciones | Y13: Indemnización por vacaciones | Z13: Bonificación especial de recreación | AA13: Subtotal 1 | AB13: Prima Técnica No Salarial | AC13: Prima de Coordinación | AD13: Prima de Instalación | AE13: Prima de Clima | AF13: Prima de Orden Público | AG13: Bonificación de expresidentes | AH13: Bonificación de Dirección | AI13: Compensación en Caso de Muerte | AJ13: Subtotal 2 | AT13: Institutos | AU13: Institutos | AV13: Institutos
D14: Mes | E14: Anual | AT14: Técnicos | AU14: Técnicos | AV14: Técnicos
A15: 1 | B15: 2 | C15: 3 | E15: 4.1 | F15: 4.2 | G15: 4.3 | H15: 4.4 | I15: 4.5 | J15: 4.6 | K15: 4.7 | L15: 4.8 | M15: 4.9 | N15: 4.1 | O15: 4.11 | P15: 4.12 | Q15: 4 | R15: 5.1 | S15: 5.2 | T15: 5.3 | U15: 5.4 | V15: 5 | W15: 4+5= 6 | X15: 7.1 | Y15: 7.2 | Z15: 7.3 | AA15: 7 | AB15: 8.1 | AC15: 8.2 | AD15: 8.3 | AE15: 8.4 | AF15: 8.5 | AG15: 8.6 | AH15: 8.7 | AI15: 8.8 | AJ15: 8 | AK15: 7+8=9 | AL15: 10.1 | AM15: 10.2 | AN15: 10.3 | AO15: 10.4 | AP15: 10.5 | AQ15: 10.6 | AR15: 10.7 | AS15: 10.8 | AT15: 10.9 | AU15: 10.1 | AV15: 10 | AW15: 11.1 | AX15: 11.2 | AY15: 11.1+11.2 | AZ15: 6+9+10=12
A16: EMPLEADOS PÚBLICOS
A17: NIVEL DIRECTIVO | B17: =SUM(B18:B25) -> 88 | C17: =SUM(C18:C25) -> 7 | D17: =SUM(D18:D25) -> 49905744 | E17: =SUM(E18:E25) -> 996935904 | F17: 0 | G17: 135719477.8 | H17: 0 | I17: 0 | J17: 48570465.16 | K17: 33035781.97 | L17: 0 | M17: 105404655.3 | N17: 50594234.54 | O17: 0 | P17: 0 | Q17: 1370260519 | R17: 0 | S17: 0 | T17: 0 | U17: 0 | V17: 0 | W17: 1370260519 | X17: 0 | Y17: 52057823.38 | Z17: 5538532.8 | AA17: 57596356.18 | AB17: 366675360 | AC17: 0 | AD17: 0 | AE17: 0 | AF17: 0 | AG17: 0 | AH17: 58005572 | AI17: 0 | AJ17: 424680932 | AK17: 482277288.2 | AL17: 139882939.6 | AM17: 99083748.92 | AN17: 114188376.6 | AO17: 50594234.54 | AP17: 81237017.2 | AQ17: 37945675.9 | AR17: 25297117.27 | AS17: 0 | AT17: 0 | AU17: 0 | AV17: 548229110 | AW17: 0 | AX17: 0 | AY17: 0 | AZ17: 2400766917
A18: Director General | B18: 24 | C18: 1 | D18: 14501393 | E18: 174016716 | G18: 0 | J18: 7462175.148 | K18: 5075487.55 | M18: 16193956.48 | N18: 7773099.112 | Q18: =SUM(E18:P18) -> 210521434.3 | V18: =SUM(R18:U18) -> 0 | W18: =Q18+V18 -> 210521434.3 | Y18: 12994255 | Z18: =D18/30*2*C18 -> 966759.5333 | AA18: =SUM(X18:Z18) -> 13961014.53 | AB18: =E18*0.5 -> 87008358 | AH18: =(D18+G18/12)*4 -> 58005572 | AJ18: =SUM(AB18:AI18) -> 145013930 | AK18: =AA18+AJ18 -> 158974944.5 | AL18: =(D18+(L18/12/C18)+(G18/12/C18)+(K18/12/C18)+(R18/12/C18))*0.12*12*C18 -> 21491064.43 | AM18: =(D18+(L18/12/C18)+(G18/12/C18)+(K18/12/C18)+(R18/12/C18))*0.085*12*C18 -> 15222837.3 | AN18: =(D18+(G18/12/C18)+(H18/12/C18)+(I18/12/C18)+(J18/12/C18)+(K18/12/C18)+(M18/12/C18)+(L18/12/C18)+(N18/12/C18)+(R18/12/C18))*C18 -> 17543452.86 | AO18: =(D18+(G18/12/C18)+(H18/12/C18)+(I18/12/C18)+(K18/12/C18)+(L18/12/C18)+(J18/12/C18)+(N18/12/C18)+(R18/12/C18))*C18*0.04*12 -> 7773099.112 | AP18: =(D18+(L18/12/C18)+(G18/12/C18)+(K18/12/C18)+(R18/12/C18))*6.969%*12*C18 -> 12480935.67 | AQ18: =(D18+(G18/12/C18)+(H18/12/C18)+(I18/12/C18)+(K18/12/C18)+(L18/12/C18)+(J18/12/C18)+(N18/12/C18)+(R18/12/C18))*C18*0.03*12 -> 5829824.334 | AR18: =(D18+(G18/12/C18)+(H18/12/C18)+(I18/12/C18)+(K18/12/C18)+(L18/12/C18)+(J18/12/C18)+(N18/12/C18)+(R18/12/C18))*C18*0.02*12 -> 3886549.556 | AV18: =SUM(AL18:AU18) -> 84227763.25 | AY18: =SUM(AW18:AX18) -> 0 | AZ18: =W18+AK18+AV18 -> 453724142.1
A19: Secretario general | B19: 23 | C19: 1 | D19: 13438919 | E19: 161267028 | G19: 0 | J19: 6915443.735 | K19: 4703621.65 | M19: 15007473.38 | N19: 7203587.224 | Q19: =SUM(E19:P19) -> 195097154 | V19: 0 | W19: =Q19+V19 -> 195097154 | Y19: 12994255 | Z19: =D19/30*2*C19 -> 895927.9333 | AA19: =SUM(X19:Z19) -> 13890182.93 | AB19: =E19*0.5 -> 80633514 | AJ19: =SUM(AB19:AI19) -> 80633514 | AK19: =AA19+AJ19 -> 94523696.93 | AL19: =(D19+(L19/12/C19)+(G19/12/C19)+(K19/12/C19)+(R19/12/C19))*0.12*12*C19 -> 19916477.96 | AM19: =(D19+(L19/12/C19)+(G19/12/C19)+(K19/12/C19)+(R19/12/C19))*0.085*12*C19 -> 14107505.22 | AN19: =(D19+(G19/12/C19)+(H19/12/C19)+(I19/12/C19)+(J19/12/C19)+(K19/12/C19)+(M19/12/C19)+(L19/12/C19)+(N19/12/C19)+(R19/12/C19))*C19 -> 16258096.17 | AO19: =(D19+(G19/12/C19)+(H19/12/C19)+(I19/12/C19)+(K19/12/C19)+(L19/12/C19)+(J19/12/C19)+(N19/12/C19)+(R19/12/C19))*C19*0.04*12 -> 7203587.224 | AP19: =(D19+(L19/12/C19)+(G19/12/C19)+(K19/12/C19)+(R19/12/C19))*6.969%*12*C19 -> 11566494.57 | AQ19: =(D19+(G19/12/C19)+(H19/12/C19)+(I19/12/C19)+(K19/12/C19)+(L19/12/C19)+(J19/12/C19)+(N19/12/C19)+(R19/12/C19))*C19*0.03*12 -> 5402690.418 | AR19: =(D19+(G19/12/C19)+(H19/12/C19)+(I19/12/C19)+(K19/12/C19)+(L19/12/C19)+(J19/12/C19)+(N19/12/C19)+(R19/12/C19))*C19*0.02*12 -> 3601793.612 | AV19: 78056645.17 | AY19: =SUM(AW19:AX19) -> 0 | AZ19: 367677496.1
A20: Subdirector general | B20: 21 | C20: 4 | D20: 11057416 | E20: 530755968 | G20: 66344496 | J20: 25604828.93 | K20: 17415430.2 | M20: 55566034.99 | N20: 26671696.8 | Q20: =SUM(E20:P20) -> 722358454.9 | V20: 0 | W20: =Q20+V20 -> 722358454.9 | Y20: 12994255 | Z20: =D20/30*2*C20 -> 2948644.267 | AA20: =SUM(X20:Z20) -> 15942899.27 | AB20: =+D20*0.5*36 -> 199033488 | AJ20: =SUM(AB20:AI20) -> 199033488 | AK20: 214976387.3 | AL20: =(D20+(L20/12/C20)+(G20/12/C20)+(K20/12/C20)+(R20/12/C20))*0.12*12*C20 -> 73741907.3 | AM20: 52233851.01 | AN20: =(D20+(G20/12/C20)+(H20/12/C20)+(I20/12/C20)+(J20/12/C20)+(K20/12/C20)+(M20/12/C20)+(L20/12/C20)+(N20/12/C20)+(R20/12/C20))*C20 -> 60196537.91 | AO20: =(D20+(G20/12/C20)+(H20/12/C20)+(I20/12/C20)+(K20/12/C20)+(L20/12/C20)+(J20/12/C20)+(N20/12/C20)+(R20/12/C20))*C20*0.04*12 -> 26671696.8 | AP20: =(D20+(L20/12/C20)+(G20/12/C20)+(K20/12/C20)+(R20/12/C20))*6.969%*12*C20 -> 42825612.67 | AQ20: =(D20+(G20/12/C20)+(H20/12/C20)+(I20/12/C20)+(K20/12/C20)+(L20/12/C20)+(J20/12/C20)+(N20/12/C20)+(R20/12/C20))*C20*0.03*12 -> 20003772.6 | AR20: 13335848.4 | AV20: =SUM(AL20:AU20) -> 289009226.7 | AY20: =SUM(AW20:AX20) -> 0 | AZ20: =W20+AK20+AV20 -> 1226344069
A21: Jefe de Oficina | B21: 20 | C21: 1 | D21: 10908016 | E21: 130896192 | G21: 69374981.76 | J21: 8588017.347 | K21: 5841242.568 | M21: 18637190.42 | N21: 8945851.403 | Q21: 242283475.5 | V21: 0 | W21: =Q21+V21 -> 242283475.5 | Y21: 13075058.38 | Z21: =D21/30*2*C21 -> 727201.0667 | AA21: =SUM(X21:Z21) -> 13802259.45 | AB21: 0 | AJ21: =SUM(AB21:AI21) -> 0 | AK21: 13802259.45 | AL21: =(D21+(L21/12/C21)+(G21/12/C21)+(K21/12/C21)+(R21/12/C21))*0.12*12*C21 -> 24733489.96 | AM21: 17519555.39 | AN21: =(D21+(G21/12/C21)+(H21/12/C21)+(I21/12/C21)+(J21/12/C21)+(K21/12/C21)+(M21/12/C21)+(L21/12/C21)+(N21/12/C21)+(R21/12/C21))*C21 -> 20190289.63 | AO21: =(D21+(G21/12/C21)+(H21/12/C21)+(I21/12/C21)+(K21/12/C21)+(L21/12/C21)+(J21/12/C21)+(N21/12/C21)+(R21/12/C21))*C21*0.04*12 -> 8945851.403 | AP21: =(D21+(L21/12/C21)+(G21/12/C21)+(K21/12/C21)+(R21/12/C21))*6.969%*12*C21 -> 14363974.29 | AQ21: =(D21+(G21/12/C21)+(H21/12/C21)+(I21/12/C21)+(K21/12/C21)+(L21/12/C21)+(J21/12/C21)+(N21/12/C21)+(R21/12/C21))*C21*0.03*12 -> 6709388.552 | AR21: 4472925.702 | AV21: 96935474.92 | AY21: 0 | AZ21: 353021209.9
Q22: 0 | V22: 0 | W22: 0 | AA22: =SUM(X22:Z22) -> 0 | AJ22: =SUM(AB22:AI22) -> 0 | AK22: 0 | AV22: 0 | AY22: 0 | AZ22: 0
Q23: 0 | V23: 0 | W23: 0 | AA23: 0 | AJ23: =SUM(AB23:AI23) -> 0 | AK23: 0 | AV23: 0 | AY23: 0 | AZ23: 0
Q24: 0 | V24: 0 | W24: 0 | AA24: 0 | AJ24: 0 | AK24: 0 | AV24: 0 | AY24: 0 | AZ24: 0
Q25: 0 | V25: 0 | W25: 0 | AA25: 0 | AJ25: 0 | AK25: 0 | AV25: 0 | AY25: 0 | AZ25: 0
A26: NIVEL ASESOR | B26: =SUM(B27:B44) -> 37 | C26: 6 | D26: 29106019 | E26: 703924284 | F26: 0 | G26: 183471072 | H26: 0 | I26: 0 | J26: 38053238.36 | K26: 25882364.55 | L26: 0 | M26: 82580812.41 | N26: 39638789.95 | O26: 0 | P26: 0 | Q26: 1073550561 | R26: 0 | S26: 0 | T26: 0 | U26: 0 | V26: 0 | W26: 1073550561 | X26: 0 | Y26: 22753356.97 | Z26: 3910690.467 | AA26: 26664047.44 | AB26: 390455916 | AC26: 0 | AD26: 0 | AI26: 0 | AJ26: 390455916 | AK26: 417119963.4 | AL26: 109593326.5 | AM26: 77628606.25 | AN26: 89462546.77 | AO26: 39638789.95 | AP26: 30643417.72 | AQ26: 29729092.47 | AR26: 19819394.98 | AS26: 0 | AT26: 0 | AU26: 0 | AV26: 396515174.6 | AW26: 0 | AX26: 0 | AY26: 0 | AZ26: 1887185699
A27: Jefe de Oficina Asesora | B27: 14 | C27: 2 | D27: 10833108 | E27: 259994592 | G27: 129997296 | J27: 16723610.47 | K27: 11374763.4 | M27: 36292557.45 | N27: 17420427.58 | Q27: =SUM(E27:P27) -> 471803246.9 | V27: =SUM(R27:U27) -> 0 | W27: =Q27+V27 -> 471803246.9 | Y27: 7707500.79 | Z27: =D27/30*2*C27 -> 1444414.4 | AA27: =SUM(X27:Z27) -> 9151915.19 | AB27: 0 | AJ27: =SUM(AB27:AI27) -> 0 | AK27: =AA27+AJ27 -> 9151915.19 | AL27: =(D27+(L27/12/C27)+(G27/12/C27)+(K27/12/C27)+(R27/12/C27))*0.12*12*C27 -> 48163998.17 | AM27: =(D27+(L27/12/C27)+(G27/12/C27)+(K27/12/C27)+(R27/12/C27))*0.085*12*C27 -> 34116165.37 | AN27: =(D27+(G27/12/C27)+(H27/12/C27)+(I27/12/C27)+(J27/12/C27)+(K27/12/C27)+(M27/12/C27)+(L27/12/C27)+(N27/12/C27)+(R27/12/C27))*C27 -> 39316937.24 | AO27: =(D27+(G27/12/C27)+(H27/12/C27)+(I27/12/C27)+(K27/12/C27)+(L27/12/C27)+(J27/12/C27)+(N27/12/C27)+(R27/12/C27))*C27*0.04*12 -> 17420427.58 | AP27: =(D27+(L27/12/C27)+(G27/12/C27)+(K27/12/C27)+(R27/12/C27))*6.969%*12*C27 -> 27971241.94 | AQ27: =(D27+(G27/12/C27)+(H27/12/C27)+(I27/12/C27)+(K27/12/C27)+(L27/12/C27)+(J27/12/C27)+(N27/12/C27)+(R27/12/C27))*C27*0.03*12 -> 13065320.68 | AR27: =(D27+(G27/12/C27)+(H27/12/C27)+(I27/12/C27)+(K27/12/C27)+(L27/12/C27)+(J27/12/C27)+(N27/12/C27)+(R27/12/C27))*C27*0.02*12 -> 8710213.789 | AV27: =SUM(AL27:AU27) -> 188764304.8 | AY27: =SUM(AW27:AX27) -> 0 | AZ27: =W27+AK27+AV27 -> 669719466.9
A28: Asesor | B28: 12 | C28: 3 | D28: 9360615 | E28: 336982140 | G28: 0 | J28: 14450449.41 | K28: 9828645.75 | M28: 31359482.22 | N28: 15052551.46 | Q28: =SUM(E28:P28) -> 407673268.8 | V28: =SUM(R28:U28) -> 0 | W28: =Q28+V28 -> 407673268.8 | Y28: 7707500.79 | Z28: 1872123 | AA28: =SUM(X28:Z28) -> 9579623.79 | AB28: =(D28*0.5*12*C28*2) -> 336982140 | AJ28: =SUM(AB28:AI28) -> 336982140 | AK28: 346561763.8 | AL28: 41617294.29 | AM28: 29478916.79 | AN28: =(D28+(G28/12/C28)+(H28/12/C28)+(I28/12/C28)+(J28/12/C28)+(K28/12/C28)+(M28/12/C28)+(L28/12/C28)+(N28/12/C28)+(R28/12/C28))*C28 -> 33972772.4 | AO28: =(D28+(G28/12/C28)+(H28/12/C28)+(I28/12/C28)+(K28/12/C28)+(L28/12/C28)+(J28/12/C28)+(N28/12/C28)+(R28/12/C28))*C28*0.04*12 -> 15052551.46 | AP28: =(D28+(L28/12/C28)+(G28/12/C28)+(K28/12/C28)+(R28/12/C28))*0.522%*12*C28 -> 1810352.302 | AQ28: =(D28+(G28/12/C28)+(H28/12/C28)+(I28/12/C28)+(K28/12/C28)+(L28/12/C28)+(J28/12/C28)+(N28/12/C28)+(R28/12/C28))*C28*0.03*12 -> 11289413.6 | AR28: 7526275.732 | AV28: =SUM(AL28:AU28) -> 140747576.6 | AY28: =SUM(AW28:AX28) -> 0 | AZ28: =W28+AK28+AV28 -> 894982609.2
A29: Asesor | B29: 11 | C29: 1 | D29: 8912296 | E29: 106947552 | G29: 53473776 | J29: 6879178.475 | K29: 4678955.4 | M29: 14928772.73 | N29: 7165810.911 | Q29: 194074045.5 | V29: 0 | W29: 194074045.5 | Y29: 7338355.389 | Z29: 594153.0667 | AA29: 7932508.455 | AB29: =(D29*0.5*12*C29) -> 53473776 | AJ29: 53473776 | AK29: 61406284.46 | AL29: 19812034.01 | AM29: 14033524.09 | AN29: =(D29+(G29/12/C29)+(H29/12/C29)+(I29/12/C29)+(J29/12/C29)+(K29/12/C29)+(M29/12/C29)+(L29/12/C29)+(N29/12/C29)+(R29/12/C29))*C29 -> 16172837.13 | AO29: =(D29+(G29/12/C29)+(H29/12/C29)+(I29/12/C29)+(K29/12/C29)+(L29/12/C29)+(J29/12/C29)+(N29/12/C29)+(R29/12/C29))*C29*0.04*12 -> 7165810.911 | AP29: =(D29+(L29/12/C29)+(G29/12/C29)+(K29/12/C29)+(R29/12/C29))*0.522%*12*C29 -> 861823.4793 | AQ29: =(D29+(G29/12/C29)+(H29/12/C29)+(I29/12/C29)+(K29/12/C29)+(L29/12/C29)+(J29/12/C29)+(N29/12/C29)+(R29/12/C29))*C29*0.03*12 -> 5374358.184 | AR29: 3582905.456 | AV29: 67003293.25 | AY29: 0 | AZ29: 322483623.2
Q30: 0 | V30: 0 | W30: 0 | AA30: 0 | AJ30: 0 | AK30: 0 | AV30: 0 | AY30: 0 | AZ30: 0
Q31: 0 | V31: 0 | W31: 0 | AA31: 0 | AJ31: 0 | AK31: 0 | AV31: 0 | AY31: 0 | AZ31: 0
Q32: 0 | V32: 0 | W32: 0 | AA32: 0 | AJ32: 0 | AK32: 0 | AV32: 0 | AY32: 0 | AZ32: 0
Q33: 0 | V33: 0 | W33: 0 | AA33: 0 | AJ33: 0 | AK33: 0 | AV33: 0 | AY33: 0 | AZ33: 0
Q34: 0 | V34: 0 | W34: 0 | AA34: 0 | AJ34: 0 | AK34: 0 | AV34: 0 | AY34: 0 | AZ34: 0
Q35: 0 | V35: 0 | W35: 0 | AA35: 0 | AJ35: 0 | AK35: 0 | AV35: 0 | AY35: 0 | AZ35: 0
Q36: 0 | V36: 0 | W36: 0 | AA36: 0 | AJ36: 0 | AK36: 0 | AV36: 0 | AY36: 0 | AZ36: 0
Q37: 0 | V37: 0 | W37: 0 | AA37: 0 | AJ37: 0 | AK37: 0 | AV37: 0 | AY37: 0 | AZ37: 0
Q38: 0 | V38: 0 | W38: 0 | AA38: 0 | AJ38: 0 | AK38: 0 | AV38: 0 | AY38: 0 | AZ38: 0
Q39: 0 | V39: 0 | W39: 0 | AA39: 0 | AJ39: 0 | AK39: 0 | AV39: 0 | AY39: 0 | AZ39: 0
Q40: =SUM(E40:P40) -> 0 | V40: =SUM(R40:U40) -> 0 | W40: =Q40+V40 -> 0 | AA40: =SUM(X40:Z40) -> 0 | AJ40: =SUM(AB40:AI40) -> 0 | AK40: 0 | AV40: =SUM(AL40:AU40) -> 0 | AY40: =SUM(AW40:AX40) -> 0 | AZ40: =W40+AK40+AV40 -> 0
Q41: 0 | V41: 0 | W41: 0 | AA41: =SUM(X41:Z41) -> 0 | AJ41: 0 | AK41: 0 | AV41: 0 | AY41: =SUM(AW41:AX41) -> 0 | AZ41: 0
Q42: 0 | V42: 0 | W42: 0 | AA42: =SUM(X42:Z42) -> 0 | AJ42: =SUM(AB42:AI42) -> 0 | AK42: 0 | AV42: 0 | AY42: 0 | AZ42: 0
Q43: 0 | V43: 0 | W43: 0 | AA43: =SUM(X43:Z43) -> 0 | AJ43: 0 | AK43: 0 | AV43: 0 | AY43: 0 | AZ43: 0
Q44: =SUM(E44:P44) -> 0 | V44: 0 | W44: 0 | AA44: 0 | AJ44: =SUM(AB44:AI44) -> 0 | AK44: 0 | AV44: 0 | AY44: 0 | AZ44: 0
A45: NIVEL EJECUTIVO | B45: =SUM(B46:B52) -> 0 | C45: =SUM(C46:C52) -> 0 | D45: =SUM(D46:D52) -> 0 | E45: =SUM(E46:E52) -> 0 | F45: 0 | G45: 0 | H45: 0 | I45: 0 | J45: 0 | K45: 0 | L45: 0 | M45: 0 | N45: 0 | O45: 0 | P45: 0 | Q45: 0 | R45: 0 | S45: 0 | T45: 0 | U45: 0 | V45: 0 | W45: 0 | X45: 0 | Y45: 0 | Z45: 0 | AA45: 0 | AB45: 0 | AC45: 0 | AD45: 0 | AE45: 0 | AF45: 0 | AG45: 0 | AH45: 0 | AI45: 0 | AJ45: 0 | AK45: 0 | AL45: 0 | AM45: 0 | AN45: 0 | AO45: 0 | AP45: 0 | AQ45: 0 | AR45: 0 | AS45: 0 | AT45: 0 | AU45: 0 | AV45: 0 | AW45: 0 | AX45: 0 | AY45: 0 | AZ45: 0
Q46: =SUM(E46:P46) -> 0 | V46: =SUM(R46:U46) -> 0 | W46: =Q46+V46 -> 0 | AA46: =SUM(X46:Z46) -> 0 | AJ46: =SUM(AB46:AI46) -> 0 | AK46: =AA46+AJ46 -> 0 | AV46: =SUM(AL46:AU46) -> 0 | AY46: =SUM(AW46:AX46) -> 0 | AZ46: =W46+AK46+AV46 -> 0
Q47: =SUM(E47:P47) -> 0 | V47: =SUM(R47:U47) -> 0 | W47: =Q47+V47 -> 0 | AA47: =SUM(X47:Z47) -> 0 | AJ47: =SUM(AB47:AI47) -> 0 | AK47: 0 | AV47: =SUM(AL47:AU47) -> 0 | AY47: =SUM(AW47:AX47) -> 0 | AZ47: =W47+AK47+AV47 -> 0
Q48: 0 | V48: 0 | W48: 0 | AA48: 0 | AJ48: 0 | AK48: 0 | AV48: 0 | AY48: 0 | AZ48: 0
Q49: 0 | V49: 0 | W49: 0 | AA49: 0 | AJ49: 0 | AK49: 0 | AV49: 0 | AY49: 0 | AZ49: 0
Q50: 0 | V50: 0 | W50: 0 | AA50: 0 | AJ50: 0 | AK50: 0 | AV50: 0 | AY50: 0 | AZ50: 0
Q51: 0 | V51: 0 | W51: 0 | AA51: 0 | AJ51: 0 | AK51: 0 | AV51: 0 | AY51: 0 | AZ51: 0
Q52: 0 | V52: 0 | W52: 0 | AA52: 0 | AJ52: 0 | AK52: 0 | AV52: 0 | AY52: 0 | AZ52: 0
A53: NIVEL PROFESIONAL | B53: =SUM(B54:B77) -> 82 | C53: =SUM(C54:C77) -> 128 | D53: =SUM(D54:D77) -> 38047154.75 | E53: =SUM(E54:E77) -> 8004238708 | F53: 0 | G53: 0 | H53: 0 | I53: 0 | J53: 363523143.6 | K53: 240670786.4 | L53: 0 | M53: 755127627.7 | N53: =SUM(N54:N77) -> 368162623.4 | O53: 0 | P53: 0 | Q53: =SUM(Q54:Q77) -> 9731722890 | R53: 84936270.99 | S53: 0 | T53: 0 | U53: 0 | V53: 84936270.99 | W53: 9816659161 | X53: 0 | Y53: 32912019.54 | Z53: 44467992.82 | AA53: 77380012.36 | AB53: 0 | AC53: 439878130.4 | AD53: 0 | AE53: 0 | AF53: 0 | AG53: 0 | AH53: 0 | AI53: 0 | AJ53: 439878130.4 | AK53: 517258142.8 | AL53: 999581491.9 | AM53: 708036890.1 | AN53: 818054930 | AO53: 362461261.3 | AP53: 43481794.9 | AQ53: 271845946 | AR53: 181230630.7 | AS53: 0 | AT53: 0 | AU53: 0 | AV53: 3384692945 | AW53: 41354861.05 | AX53: 49280763.47 | AY53: 90635624.52 | AZ53: 1.371861025e+10
A54: Profesional Especializado | B54: 22 | C54: 6 | D54: =8932407*(1+B9) -> 9904252.882 | E54: =D54*C54*12 -> 713106207.5 | J54: =((D54+(G54/12/C54)+(K54/12/C54))/2)*C54 -> 30579380.77 | K54: =(D54+(G54/12/C54))*0.35*C54 -> 20798931.05 | M54: =(D54+(G54/12/C54)+(H54/12/C54)+(I54/12/C54)+(J54/12/C54)+(K54/12/C54)+(N54/12/C54)+(R54/12/C54))*C54 -> 66361503.41 | N54: =((D54+(G54/12/C54)+H54+I54+(K54/12/C54)+(J54/12/C54))*15/30)*C54 -> 31853521.64 | Q54: =SUM(E54:P54) -> 862699544.3 | V54: =SUM(R54:U54) -> 0 | W54: =Q54+V54 -> 862699544.3 | Y54: 7354914.611 | Z54: =D54/30*2*C54 -> 3961701.153 | AA54: =SUM(X54:Z54) -> 11316615.76 | AC54: 47540413.83 | AJ54: =SUM(AB54:AI54) -> 47540413.83 | AK54: =AA54+AJ54 -> 58857029.6 | AL54: =(D54+(L54/12/C54)+(G54/12/C54)+(K54/12/C54)+(R54/12/C54))*0.12*12*C54 -> 88068616.62 | AM54: =(D54+(L54/12/C54)+(G54/12/C54)+(K54/12/C54)+(R54/12/C54))*0.085*12*C54 -> 62381936.77 | AN54: =(D54+(G54/12/C54)+(H54/12/C54)+(I54/12/C54)+(J54/12/C54)+(K54/12/C54)+(M54/12/C54)+(L54/12/C54)+(N54/12/C54)+(R54/12/C54))*C54 -> 71891628.7 | AO54: =(D54+(G54/12/C54)+(H54/12/C54)+(I54/12/C54)+(K54/12/C54)+(L54/12/C54)+(J54/12/C54)+(N54/12/C54)+(R54/12/C54))*C54*0.04*12 -> 31853521.64 | AP54: =(D54+(L54/12/C54)+(G54/12/C54)+(K54/12/C54)+(R54/12/C54))*0.522%*12*C54 -> 3830984.823 | AQ54: =(D54+(G54/12/C54)+(H54/12/C54)+(I54/12/C54)+(K54/12/C54)+(L54/12/C54)+(J54/12/C54)+(N54/12/C54)+(R54/12/C54))*C54*0.03*12 -> 23890141.23 | AR54: =(D54+(G54/12/C54)+(H54/12/C54)+(I54/12/C54)+(K54/12/C54)+(L54/12/C54)+(J54/12/C54)+(N54/12/C54)+(R54/12/C54))*C54*0.02*12 -> 15926760.82 | AV54: =SUM(AL54:AU54) -> 297843590.6 | AY54: =SUM(AW54:AX54) -> 0 | AZ54: =W54+AK54+AV54 -> 1219400165
A55: Profesional Especializado | B55: 18 | C55: 23 | D55: =6729433*(1+B9) -> 7461595.31 | E55: =D55*C55*12 -> 2059400306 | J55: =((D55+(G55/12/C55)+(K55/12/C55))/2)*C55 -> 88311089.5 | K55: =(D55+(G55/12/C55))*0.35*C55 -> 60065842.25 | M55: 191647329.6 | N55: =((D55+(G55/12/C55)+H55+I55+(K55/12/C55)+(J55/12/C55))*15/30)*C55 -> 91990718.23 | Q55: =SUM(E55:P55) -> 2491415285 | V55: =SUM(R55:U55) -> 0 | W55: =Q55+V55 -> 2491415285 | Y55: 5540993.112 | Z55: 11441112.81 | AA55: =SUM(X55:Z55) -> 16982105.92 | AC55: 196986086.9 | AJ55: =SUM(AB55:AI55) -> 196986086.9 | AK55: =AA55+AJ55 -> 213968192.8 | AL55: 254335937.8 | AM55: 180154622.6 | AN55: 207617940.4 | AO55: 91990718.23 | AP55: 11063613.29 | AQ55: 68993038.67 | AR55: 45995359.11 | AV55: =SUM(AL55:AU55) -> 860151230.1 | AW55: 24217734.93 | AY55: =SUM(AW55:AX55) -> 24217734.93 | AZ55: =W55+AK55+AV55 -> 3565534708
A56: Profesional Especializado | B56: 14 | C56: 11 | D56: =4983856*(1+B9) -> 5526099.533 | E56: 729445138.3 | J56: =((D56+(G56/12/C56)+(K56/12/C56))/2)*C56 -> 31280025.9 | K56: 21275483.2 | M56: 67882000.64 | N56: =((D56+(G56/12/C56)+H56+I56+(K56/12/C56)+(J56/12/C56))*15/30)*C56 -> 32583360.31 | Q56: 882466008.4 | V56: 0 | W56: 882466008.4 | Y56: 10008055.91 | Z56: 4052472.991 | AA56: 14060528.9 | AC56: 26525277.76 | AJ56: 26525277.76 | AK56: 40585806.66 | AL56: 90086474.58 | AM56: 63811252.83 | AN56: 73538834.03 | AO56: 32583360.31 | AP56: 3918761.644 | AQ56: 24437520.23 | AR56: 16291680.15 | AV56: 304667883.8 | AY56: 0 | AZ56: 1227719699
A57: Profesional Universitario | B57: 11 | C57: 72 | D57: =4051533*(1+B9) -> 4492339.79 | E57: 3881381579 | J57: =((D57+(G57/12/C57)+(K57/12/C57))/2)*C57 -> 166441189.2 | K57: 113206962.7 | M57: 361200497.5 | N57: =((D57+(G57/12/C57)+H57+I57+(K57/12/C57)+(J57/12/C57))*15/30)*C57 -> 173376238.8 | Q57: 4695606467 | V57: 0 | W57: 4695606467 | Y57: 10008055.91 | Z57: 21563230.99 | AA57: 31571286.9 | AC57: 129379386 | AJ57: 129379386 | AK57: 160950672.9 | AL57: 479350625 | AM57: 339540026 | AN57: 391300538.9 | AO57: 173376238.8 | AP57: 20851752.19 | AQ57: 130032179.1 | AR57: 86688119.39 | AV57: 1621139479 | AW57: 17137126.12 | AX57: 49280763.47 | AY57: 66417889.59 | AZ57: 6477696619
A58: Profesional Universitario | B58: 1 | C58: 10 | D58: =2457014*(1+B9) -> 2724337.123 | E58: =D58*C58*12 -> 326920454.8 | J58: =((D58+(G58/12/C58)+(K58/12/C58))/2)*C58 -> 14018984.78 | K58: 9535179.931 | M58: 30423144.05 | N58: =((D58+(G58/12/C58)+H58+I58+(K58/12/C58)+(J58/12/C58))*15/30)*C58 -> 14603109.15 | Q58: 395500872.7 | V58: 0 | W58: 395500872.7 | Z58: 1816224.749 | AA58: 1816224.749 | AC58: 26153625.74 | AJ58: 26153625.74 | AK58: 27969850.49 | AL58: 40374676.17 | AM58: 28598728.95 | AN58: 32958406.06 | AO58: 14603109.15 | AP58: 1756298.413 | AQ58: 10952331.86 | AR58: 7301554.573 | AV58: 136545105.2 | AY58: 0 | AZ58: 560015828.3
A59: Profesional de proteccion | B59: 6 | C59: 2 | D59: =3271721*(1+B9) -> 3627684.245 | E59: 87064421.88 | J59: =((D59+(G59/12/C59)+(K59/12/C59)+(R59/12/C59))*C59) -> 9813757.8 | K59: =(D59+(R59/12/C59)+(G59/12/C59))*0.5*C59 -> 4710603.744 | M59: 11222213.78 | N59: =((D59+(G59/12/C59)+H59+I59+(K59/12/C59)+(J59/12/C59)+(R59/12/C59))*(20/30)*C59) -> 7087713.967 | Q59: 119898711.2 | R59: =976659*C59*12*(1+$B$9) -> 25990067.98 | V59: 25990067.98 | W59: 145888779.1 | Z59: 483691.2326 | AA59: 483691.2326 | AJ59: 0 | AK59: 483691.2326 | AL59: 14131811.23 | AM59: 10010032.96 | AN59: 12157398.26 | AO59: 5386662.615 | AP59: 614733.7886 | AQ59: 4039996.961 | AR59: 2693331.307 | AV59: 49033967.12 | AY59: 0 | AZ59: 195406437.5
A60: Profesional de proteccion | B60: 10 | C60: 4 | D60: =3887848*(1+B9) -> 4310845.862 | E60: =D60*C60*12 -> 206920601.4 | J60: =((D60+(G60/12/C60)+(K60/12/C60)+(R60/12/C60))*C60) -> 23078715.66 | K60: =(D60+(R60/12/C60)+(G60/12/C60))*0.5*C60 -> 11077783.52 | M60: 26390938.74 | N60: =((D60+(G60/12/C60)+H60+I60+(K60/12/C60)+(J60/12/C60)+(R60/12/C60))*(20/30)*C60) -> 16667961.31 | Q60: 284136000.6 | R60: =1107545*C60*12*(1+$B$9) -> 58946203.01 | V60: 58946203.01 | W60: 343082203.6 | Z60: 1149558.897 | AA60: 1149558.897 | AC60: 13293340.22 | AJ60: 13293340.22 | AK60: 14442899.12 | AL60: 33233350.55 | AM60: 23540289.97 | AN60: 28590183.64 | AO60: 12667650.6 | AP60: 1445650.749 | AQ60: 9500737.947 | AR60: 6333825.298 | AV60: 115311688.7 | AY60: 0 | AZ60: 472836791.5
Q61: 0 | V61: 0 | W61: 0 | Z61: 0 | AA61: 0 | AJ61: 0 | AK61: 0 | AV61: 0 | AY61: 0 | AZ61: 0
Q62: 0 | V62: 0 | W62: 0 | AA62: 0 | AJ62: 0 | AK62: 0 | AV62: 0 | AY62: 0 | AZ62: 0
Q63: 0 | V63: 0 | W63: 0 | AA63: 0 | AJ63: 0 | AK63: 0 | AV63: 0 | AY63: 0 | AZ63: 0
Q64: 0 | V64: 0 | W64: 0 | AA64: 0 | AJ64: 0 | AK64: 0 | AV64: 0 | AY64: 0 | AZ64: 0
Q65: 0 | V65: 0 | W65: 0 | AA65: 0 | AJ65: 0 | AK65: 0 | AV65: 0 | AY65: 0 | AZ65: 0
Q66: 0 | V66: 0 | W66: 0 | AA66: 0 | AJ66: 0 | AK66: 0 | AV66: 0 | AY66: 0 | AZ66: 0
Q67: 0 | V67: 0 | W67: 0 | AA67: 0 | AJ67: 0 | AK67: 0 | AV67: 0 | AY67: 0 | AZ67: 0
Q68: 0 | V68: 0 | W68: 0 | AA68: 0 | AJ68: 0 | AK68: 0 | AV68: 0 | AY68: 0 | AZ68: 0
Q69: 0 | V69: 0 | W69: 0 | AA69: 0 | AJ69: 0 | AK69: 0 | AV69: 0 | AY69: 0 | AZ69: 0
Q70: 0 | V70: 0 | W70: 0 | AA70: 0 | AJ70: 0 | AK70: 0 | AV70: 0 | AY70: 0 | AZ70: 0
Q71: 0 | V71: 0 | W71: 0 | AA71: 0 | AJ71: 0 | AK71: 0 | AV71: 0 | AY71: 0 | AZ71: 0
Q72: 0 | V72: 0 | W72: 0 | AA72: 0 | AJ72: 0 | AK72: 0 | AV72: 0 | AY72: 0 | AZ72: 0
Q73: 0 | V73: 0 | W73: 0 | AA73: 0 | AJ73: 0 | AK73: 0 | AV73: 0 | AY73: 0 | AZ73: 0
Q74: 0 | V74: 0 | W74: 0 | AA74: 0 | AJ74: 0 | AK74: 0 | AV74: 0 | AY74: 0 | AZ74: 0
Q75: 0 | V75: 0 | W75: 0 | AA75: 0 | AJ75: 0 | AK75: 0 | AV75: 0 | AY75: 0 | AZ75: 0
Q76: 0 | V76: 0 | W76: 0 | AA76: 0 | AJ76: 0 | AK76: 0 | AV76: 0 | AY76: 0 | AZ76: 0
Q77: 0 | V77: 0 | W77: 0 | AA77: 0 | AJ77: 0 | AK77: 0 | AV77: 0 | AY77: 0 | AZ77: 0
A78: NIVEL TÉCNICO | B78: =SUM(B79:B102) -> 651 | C78: =SUM(C79:C101) -> 352 | D78: 65238974.54 | E78: 1.17648773e+10 | F78: 0 | G78: 0 | H78: 47906208 | I78: 42768000 | J78: 1016475618 | K78: 484874095.1 | L78: 0 | M78: 1336453620 | N78: 798414097.4 | O78: 0 | P78: 0 | Q78: 1.549176894e+10 | R78: 2272455481 | S78: 0 | T78: 0 | U78: 0 | V78: 2272455481 | W78: 1.776422442e+10 | X78: 0 | Y78: 56253634.14 | Z78: 65360429.46 | AA78: 121614063.6 | AB78: 0 | AC78: 98034362.17 | AD78: 7310951.525 | AE78: 76048795.47 | AF78: =SUM(AF79:AF101) -> 8185370.941 | AG78: 663967445.1 | AH78: 0 | AI78: =SUM(AI79:AI101) -> 106623468 | AJ78: 960170393.2 | AK78: 1081784457 | AL78: 1742664825 | AM78: 1234387585 | AN78: 1480352035 | AO78: 657110832.1 | AP78: 911676437.4 | AQ78: 492833124.1 | AR78: 328555416 | AS78: 0 | AT78: 0 | AU78: 0 | AV78: 6847580255 | AW78: 40216855.22 | AX78: 24800410 | AY78: 65017265.22 | AZ78: 2.569358913e+10
A79: Técnico Administrativo | B79: 16 | C79: 10 | D79: =3207074*(1+B9) -> 3556003.651 | E79: =D79*C79*12 -> 426720438.1 | H79: 0 | I79: 0 | J79: =((D79+(G79/12/C79)+(K79/12/C79))/2)*C79 -> 18298602.12 | K79: =(D79+(G79/12/C79))*0.35*C79 -> 12446012.78 | M79: =(D79+(G79/12/C79)+(H79/12/C79)+(I79/12/C79)+(J79/12/C79)+(K79/12/C79)+(N79/12/C79)+(R79/12/C79))*C79 -> 39710508.08 | N79: =((D79+(G79/12/C79)+H79+I79+(K79/12/C79)+(J79/12/C79))*15/30)*C79 -> 19061043.88 | Q79: =SUM(E79:P79) -> 516236605 | V79: =SUM(R79:U79) -> 0 | W79: =Q79+V79 -> 516236605 | Z79: =D79/30*2*C79 -> 2370669.101 | AA79: =SUM(X79:Z79) -> 2370669.101 | AC79: 8534408.763 | AJ79: =SUM(AB79:AI79) -> 8534408.763 | AK79: =AA79+AJ79 -> 10905077.86 | AL79: =(D79+(L79/12/C79)+(G79/12/C79)+(K79/12/C79)+(R79/12/C79))*0.12*12*C79 -> 52699974.11 | AM79: =(D79+(L79/12/C79)+(G79/12/C79)+(K79/12/C79)+(R79/12/C79))*0.085*12*C79 -> 37329148.33 | AN79: =(D79+(G79/12/C79)+(H79/12/C79)+(I79/12/C79)+(J79/12/C79)+(K79/12/C79)+(M79/12/C79)+(L79/12/C79)+(N79/12/C79)+(R79/12/C79))*C79 -> 43019717.08 | AO79: =(D79+(G79/12/C79)+(H79/12/C79)+(I79/12/C79)+(K79/12/C79)+(L79/12/C79)+(J79/12/C79)+(N79/12/C79)+(R79/12/C79))*C79*0.04*12 -> 19061043.88 | AP79: =(D79+(L79/12/C79)+(G79/12/C79)+(K79/12/C79)+(R79/12/C79))*0.522%*12*C79 -> 2292448.874 | AQ79: =(D79+(G79/12/C79)+(H79/12/C79)+(I79/12/C79)+(K79/12/C79)+(L79/12/C79)+(J79/12/C79)+(N79/12/C79)+(R79/12/C79))*C79*0.03*12 -> 14295782.91 | AR79: =(D79+(G79/12/C79)+(H79/12/C79)+(I79/12/C79)+(K79/12/C79)+(L79/12/C79)+(J79/12/C79)+(N79/12/C79)+(R79/12/C79))*C79*0.02*12 -> 9530521.938 | AV79: =SUM(AL79:AU79) -> 178228637.1 | AY79: =SUM(AW79:AX79) -> 0 | AZ79: =W79+AK79+AV79 -> 705370320
A80: Técnico Administrativo | B80: 15 | C80: 5 | D80: =2838462*(1+B9) -> 3147286.666 | E80: 188837199.9 | H80: 0 | I80: 0 | J80: =((D80+(G80/12/C80)+(K80/12/C80))/2)*C80 -> 8097706.317 | K80: 5507751.665 | M80: 17573147.39 | N80: =((D80+(G80/12/C80)+H80+I80+(K80/12/C80)+(J80/12/C80))*15/30)*C80 -> 8435110.747 | Q80: =SUM(E80:P80) -> 228450916.1 | V80: =SUM(R80:U80) -> 0 | W80: =Q80+V80 -> 228450916.1 | Z80: 1049095.555 | AA80: =SUM(X80:Z80) -> 1049095.555 | AJ80: =SUM(AB80:AI80) -> 0 | AK80: 1049095.555 | AL80: 23321394.19 | AM80: 16519320.89 | AN80: 19037576.34 | AO80: 8435110.747 | AP80: 1014480.647 | AQ80: 6326333.06 | AR80: 4217555.373 | AV80: =SUM(AL80:AU80) -> 78871771.24 | AY80: =SUM(AW80:AX80) -> 0 | AZ80: =W80+AK80+AV80 -> 308371782.9
A81: Técnico Administrativo | B81: 13 | C81: 7 | D81: =2620206*(1+B9) -> 2905284.413 | E81: 244043890.7 | H81: 0 | I81: 0 | J81: =((D81+(G81/12/C81)+(K81/12/C81))/2)*C81 -> 10465076.56 | K81: 7117946.811 | M81: 22710669.62 | N81: =((D81+(G81/12/C81)+H81+I81+(K81/12/C81)+(J81/12/C81))*15/30)*C81 -> 10901121.42 | Q81: 295238705.1 | V81: 0 | W81: 295238705.1 | Z81: 1355799.393 | AA81: 1355799.393 | AJ81: 0 | AK81: 1355799.393 | AL81: 30139420.5 | AM81: 21348756.19 | AN81: 24603225.42 | AO81: 10901121.42 | AP81: 1311064.792 | AQ81: 8175841.064 | AR81: 5450560.709 | AV81: 101929990.1 | AY81: 0 | AZ81: 398524494.6
A82: Técnico Administrativo | B82: 12 | C82: 15 | D82: =2457014*(1+B9) -> 2724337.123 | E82: 490380682.2 | H82: 0 | I82: 0 | J82: =((D82+(G82/12/C82)+(K82/12/C82))/2)*C82 -> 21028477.17 | K82: 14302769.9 | M82: 45634716.08 | N82: =((D82+(G82/12/C82)+(H82/12/C82)+(I82/12/C82)+(K82/12/C82)+(J82/12/C82))*15/30)*C82 -> 21904663.72 | Q82: 593251309 | V82: 0 | W82: 593251309 | Z82: 2724337.123 | AA82: 2724337.123 | AC82: 6538406.435 | AJ82: 6538406.435 | AK82: 9262743.558 | AL82: 60562014.25 | AM82: 42898093.43 | AN82: 49437609.09 | AO82: 21904663.72 | AP82: 2634447.62 | AQ82: 16428497.79 | AR82: 10952331.86 | AV82: 204817657.7 | AX82: 16122915.33 | AY82: 16122915.33 | AZ82: 807331710.3
A83: Tecnico Administrativo | B83: 11 | C83: 1 | D83: =2317039*(1+B9) -> 2569132.843 | E83: 30829594.12 | H83: 0 | I83: 0 | J83: =((D83+(G83/12/C83)+(K83/12/C83)+(R83/12/C83))*C83) -> 2990038.992 | K83: =(D83+(R83/12/C83)+(G83/12/C83))*0.35*C83 -> 1016855.366 | M83: 3419164.958 | N83: =((D83+(G83/12/C83)+H83+I83+(K83/12/C83)+(J83/12/C83)+(R83/12/C83))*(20/30)*C83) -> 2159472.605 | Q83: 40415126.04 | R83: =303182*12*C83*(1+$B$9) -> 4034018.419 | V83: 4034018.419 | W83: 44449144.46 | Z83: 171275.5229 | AA83: 171275.5229 | AJ83: 0 | AK83: 171275.5229 | AL83: 4305656.148 | AM83: 3049839.772 | AN83: 3704095.372 | AO83: 1641199.18 | AP83: 187296.0425 | AQ83: 1230899.385 | AR83: 820599.59 | AV83: 14939585.49 | AY83: 0 | AZ83: 59560005.47
A84: Tecnico Administrativo | B84: 10 | C84: 2 | D84: =2197857*(1+B9) -> 2436983.842 | E84: 58487612.2 | H84: 0 | I84: 0 | J84: =((D84+(G84/12/C84)+(K84/12/C84)+(R84/12/C84))*C84) -> 5828099.97 | K84: =(D84+(R84/12/C84)+(G84/12/C84))*0.5*C84 -> 2797487.986 | M84: 6664540.243 | N84: =((D84+(G84/12/C84)+H84+I84+(K84/12/C84)+(J84/12/C84)+(R84/12/C84))*(20/30)*C84) -> 4209183.312 | Q84: 77986923.71 | R84: =325130*12*C84*(1+$B$9) -> 8652099.456 | V84: 8652099.456 | W84: 86639023.17 | Z84: 324931.1789 | AA84: 324931.1789 | AJ84: 0 | AK84: 324931.1789 | AL84: 8392463.957 | AM84: 5944661.969 | AN84: 7219918.597 | AO84: 3198979.317 | AP84: 365072.1821 | AQ84: 2399234.488 | AR84: 1599489.658 | AV84: 29119820.17 | AY84: 0 | AZ84: 116083774.5
A85: Tecnico Administrativo | B85: 9 | C85: 1 | D85: =2100305*(1+B9) -> 2328818.184 | E85: 27945818.21 | H85: 0 | I85: 0 | J85: =((D85+(G85/12/C85)+(K85/12/C85)+(R85/12/C85))*C85) -> 2721592.335 | K85: =(D85+(R85/12/C85)+(G85/12/C85))*0.5*C85 -> 1306364.321 | M85: 3112191.235 | N85: =((D85+(G85/12/C85)+(H85/12/C85)+(I85/12/C85)+(K85/12/C85)+(J85/12/C85)+(R85/12/C85))*(20/30)*C85) -> 1965594.464 | Q85: 37051560.56 | R85: =256052*12*C85*(1+$B$9) -> 3406925.491 | V85: 3406925.491 | W85: 40458486.05 | Z85: 155254.5456 | AA85: 155254.5456 | AJ85: 0 | AK85: 155254.5456 | AL85: 3919092.962 | AM85: 2776024.182 | AN85: 3371540.505 | AO85: 1493851.793 | AP85: 170480.5439 | AQ85: 1120388.845 | AR85: 746925.8964 | AV85: 13598304.73 | AY85: 0 | AZ85: 54212045.33
A86: Tecnico Administrativo | B86: 9 | C86: 1 | D86: =2100305*(1+B9) -> 2328818.184 | E86: 27945818.21 | H86: =(142578*12) -> 1710936 | I86: =(162000*12) -> 1944000 | J86: =((D86+(H86/12/C86)+(I86/12/C86)+(G86/12/C86)+(K86/12/C86))/2)*C86 -> 1365215.137 | K86: =(D86+(G86/12/C86))*0.5*C86 -> 1164409.092 | M86: 2962706.462 | N86: =((D86+(G86/12/C86)+(H86/12/C86)+(I86/12/C86)+(K86/12/C86)+(J86/12/C86))*15/30)*C86 -> 1422099.102 | Q86: 38515184 | V86: 0 | W86: 38515184 | Y86: 1920905.837 | Z86: 155254.5456 | AA86: 2076160.383 | AJ86: 0 | AK86: 2076160.383 | AL86: 3493227.276 | AM86: 2474369.32 | AN86: 3209598.667 | AO86: 1422099.102 | AP86: 151955.3865 | AQ86: 1066574.326 | AR86: 711049.5508 | AV86: 12528873.63 | AY86: 0 | AZ86: 53120218.01
A87: Oficial de Proteccion | B87: 10 | C87: 40 | D87: =2197857*(1+B9) -> 2436983.842 | E87: =D87*C87*12 -> 1169752244 | H87: 0 | I87: 0 | J87: =((D87+(G87/12/C87)+(K87/12/C87)+(R87/12/C87))*C87) -> 136833496.8 | K87: =(D87+(R87/12/C87)+(G87/12/C87))*0.5*C87 -> 65680078.46 | M87: =(D87+(G87/12/C87)+(H87/12/C87)+(I87/12/C87)+(J87/12/C87)+(K87/12/C87)+(N87/12/C87)+(R87/12/C87))*C87 -> 156471637.5 | N87: =((D87+(G87/12/C87)+H87+I87+(K87/12/C87)+(J87/12/C87)+(R87/12/C87))*(20/30)*C87) -> 98824192.13 | Q87: 1627561649 | R87: =763907*12*C87*(1+$B$9) -> 406569639.2 | V87: 406569639.2 | W87: 2034131288 | Y87: 7701178.504 | Z87: 6498623.578 | AA87: 14199802.08 | AC87: 31526427.02 | AD87: =D87*3 -> 7310951.525 | AE87: 7881609.416 | AG87: =+(888529*(1+$B$9)+D87)*0.3*12*7 -> 86239056.88 | AI87: 106623468 | AJ87: 239581512.8 | AK87: 253781314.9 | AL87: 197040235.4 | AM87: 139570166.7 | AN87: 169510940.7 | AO87: 75106386.02 | AP87: =(D87+(L87/12/C87)+(G87/12/C87)+(K87/12/C87)+(R87/12/C87))*6.969%*12*C87 -> 114431116.7 | AQ87: 56329789.52 | AR87: 37553193.01 | AV87: 789541828.1 | AX87: 8677494.672 | AY87: 8677494.672 | AZ87: 3077454431
A88: Oficial de Proteccion | B88: 10 | C88: 21 | D88: =2197857*(1+B9) -> 2436983.842 | E88: 614119928.1 | H88: =(142578*12*C88) -> 35929656 | I88: =(162000*12*C88) -> 40824000 | J88: =((D88+(H88/12/C88)+(I88/12/C88)+(G88/12/C88)+(K88/12/C88))/2)*C88 -> 29852579.77 | K88: =(D88+(G88/12/C88))*0.5*C88 -> 25588330.34 | M88: =(D88+(G88/12/C88)+(H88/12/C88)+(I88/12/C88)+(J88/12/C88)+(K88/12/C88)+(N88/12/C88)+(R88/12/C88))*C88 -> 64784244.29 | N88: =((D88+(G88/12/C88)+(H88/12/C88)+(I88/12/C88)+(K88/12/C88)+(J88/12/C88))*15/30)*C88 -> 31096437.26 | Q88: 842195175.7 | V88: 0 | W88: 842195175.7 | Y88: 2002207.503 | Z88: 3411777.378 | AA88: 5413984.881 | AJ88: 0 | AK88: 5413984.881 | AL88: 76764991.01 | AM88: 54375201.97 | AN88: 70182931.31 | AO88: 31096437.26 | AP88: 44581268.53 | AQ88: 23322327.94 | AR88: 15548218.63 | AV88: 315871376.6 | AY88: 0 | AZ88: 1163480537
A89: Oficial de Proteccion | B89: 11 | C89: 98 | D89: =2317039*(1+B9) -> 2569132.843 | E89: 3021300224 | H89: 0 | I89: 0 | J89: =((D89+(G89/12/C89)+(K89/12/C89)+(R89/12/C89))*C89) -> 343984529.5 | K89: =(D89+(R89/12/C89)+(G89/12/C89))*0.35*C89 -> 116982593 | M89: =(D89+(G89/12/C89)+(H89/12/C89)+(I89/12/C89)+(J89/12/C89)+(K89/12/C89)+(N89/12/C89)+(R89/12/C89))*C89 -> 393352679.6 | N89: =((D89+(G89/12/C89)+H89+I89+(K89/12/C89)+(J89/12/C89)+(R89/12/C89))*(20/30)*C89) -> 248433271.3 | Q89: 4124053297 | R89: =758873*12*C89*(1+$B$9) -> 989531537.7 | V89: 989531537.7 | W89: 5113584835 | Y89: 27171525.08 | Z89: 16785001.24 | AA89: 43956526.32 | AC89: 24556112.82 | AE89: 59207517.01 | AF89: 8185370.941 | AG89: =+(758873*(1+$B$9)+D89)*0.3*12*16 -> 196448902.6 | AJ89: 288397903.4 | AK89: 332354429.7 | AL89: 495337722.5 | AM89: 350864220.1 | AN89: 426132069.6 | AO89: 188809286.2 | AP89: 287667382.4 | AQ89: 141606964.7 | AR89: 94404643.1 | AV89: 1984822289 | AW89: 40216855.22 | AY89: 40216855.22 | AZ89: 7430761553
A90: Oficial de Proteccion | B90: 11 | C90: 6 | D90: =2317039*(1+B9) -> 2569132.843 | E90: 184977564.7 | H90: =(142578*12*C90) -> 10265616 | I90: 0 | J90: =((D90+(H90/12/C90)+(I90/12/C90)+(G90/12/C90)+(K90/12/C90))/2)*C90 -> 8359931.653 | K90: =(D90+(G90/12/C90))*0.35*C90 -> 5395178.971 | M90: =(D90+(G90/12/C90)+(H90/12/C90)+(I90/12/C90)+(J90/12/C90)+(K90/12/C90)+(N90/12/C90)+(R90/12/C90))*C90 -> 18142212.79 | N90: =((D90+(G90/12/C90)+(H90/12/C90)+(I90/12/C90)+(K90/12/C90)+(J90/12/C90))*15/30)*C90 -> 8708262.139 | Q90: 235848766.3 | V90: 0 | W90: 235848766.3 | Y90: 1997725.798 | Z90: 1027653.137 | AA90: 3025378.935 | AJ90: 0 | AK90: 3025378.935 | AL90: 22844729.24 | AM90: 16181683.21 | AN90: 19654063.86 | AO90: 8708262.139 | AP90: 13267076.51 | AQ90: 6531196.604 | AR90: 4354131.069 | AV90: 91541142.63 | AY90: 0 | AZ90: 330415287.8
A91: Oficial de Proteccion | B91: 13 | C91: 52 | D91: =2620206*(1+B9) -> 2905284.413 | E91: 1812897474 | H91: 0 | I91: 0 | J91: =((D91+(G91/12/C91)+(K91/12/C91)+(R91/12/C91))*C91) -> 202214812.8 | K91: =(D91+(R91/12/C91)+(G91/12/C91))*0.5*C91 -> 97063110.14 | M91: =(D91+(G91/12/C91)+(H91/12/C91)+(I91/12/C91)+(J91/12/C91)+(K91/12/C91)+(N91/12/C91)+(R91/12/C91))*C91 -> 231236383.2 | N91: =((D91+(G91/12/C91)+H91+I91+(K91/12/C91)+(J91/12/C91)+(R91/12/C91))*(20/30)*C91) -> 146044031.5 | Q91: 2489455811 | R91: =746674*12*C91*(1+$B$9) -> 516617169.9 | V91: 516617169.9 | W91: 3006072981 | Y91: 0 | Z91: 10071652.63 | AA91: 10071652.63 | AC91: 26879007.13 | AE91: 8959669.044 | AG91: =+(1010063*(1+$B$9)+D91)*0.3*12*12 -> 173890465.9 | AJ91: 209729142.1 | AK91: 219800794.8 | AL91: 291189330.4 | AM91: 206259109.1 | AN91: 250506081.8 | AO91: 110993463.9 | AP91: 169108203.6 | AQ91: 83245097.94 | AR91: 55496731.96 | AV91: 1166798019 | AY91: 0 | AZ91: 4392671794
A92: Oficial de Proteccion | B92: 13 | C92: 18 | D92: =2620205*(1+B9) -> 2905283.304 | E92: 627541193.7 | H92: 0 | I92: 0 | J92: =((D92+(G92/12/C92)+(K92/12/C92))/2)*C92 -> 26910186.6 | K92: =(D92+(G92/12/C92))*0.35*C92 -> 18303284.82 | M92: 47420944.64 | N92: =((D92+(G92/12/C92)+(H92/12/C92)+(I92/12/C92)+(K92/12/C92)+(J92/12/C92))*15/30)*C92 -> 28031444.38 | Q92: 748207054.1 | V92: 0 | W92: 748207054.1 | Y92: 2157466.687 | Z92: 3486339.965 | AA92: 5643806.652 | AJ92: 0 | AK92: 5643806.652 | AL92: 77501337.42 | AM92: 54896780.67 | AN92: 62350587.84 | AO92: 28031444.38 | AP92: 45008901.71 | AQ92: 21023583.28 | AR92: 14015722.19 | AV92: 302828357.5 | AY92: 0 | AZ92: 1056679218
A93: Oficial de Proteccion | B93: 14 | C93: 16 | D93: =2715911*(1+B9) -> 3011402.117 | E93: 578189206.4 | H93: 0 | I93: 0 | J93: =((D93+(G93/12/C93)+(K93/12/C93)+(R93/12/C93))*C93) -> 66103920.96 | K93: =(D93+(R93/12/C93)+(G93/12/C93))*0.5*C93 -> 31729882.06 | M93: 54041675.08 | N93: =((D93+(G93/12/C93)+H93+I93+(K93/12/C93)+(J93/12/C93)+(R93/12/C93))*(20/30)*C93) -> 47741720.69 | Q93: 777806405.2 | R93: =861141*12*C93*(1+$B$9) -> 183327963 | V93: 183327963 | W93: 961134368.3 | Y93: 0 | Z93: 3212162.258 | AA93: 3212162.258 | AG93: =+(1073115*(1+$B$9)+D93)*0.3*12*7 -> 105872055.1 | AJ93: 105872055.1 | AK93: 109084217.4 | AL93: 95189646.18 | AM93: 67425999.38 | AN93: 80094530.69 | AO93: 36283707.73 | AP93: 55281387.02 | AQ93: 27212780.8 | AR93: 18141853.86 | AV93: 379629905.7 | AY93: 0 | AZ93: 1449848491
A94: Oficial de Proteccion | B94: 14 | C94: 26 | D94: =2715911*(1+B9) -> 3011402.117 | E94: 939557460.4 | H94: 0 | I94: 0 | J94: =((D94+(G94/12/C94)+(K94/12/C94))/2)*C94 -> 40290050.82 | K94: =(D94+(G94/12/C94))*0.35*C94 -> 27403759.26 | M94: =(D94+(G94/12/C94)+(H94/12/C94)+(I94/12/C94)+(J94/12/C94)+(K94/12/C94)+(N94/12/C94)+(R94/12/C94))*C94 -> 87435006.12 | N94: =((D94+(G94/12/C94)+(H94/12/C94)+(I94/12/C94)+(K94/12/C94)+(J94/12/C94))*15/30)*C94 -> 41968802.94 | Q94: 1136655080 | V94: 0 | W94: 1136655080 | Y94: 3573435.453 | Z94: 5219763.669 | AA94: 8793199.122 | AJ94: 0 | AK94: 8793199.122 | AL94: 116035346.4 | AM94: 82191703.67 | AN94: 94721256.63 | AO94: 41968802.94 | AP94: 67387527.4 | AQ94: 31476602.2 | AR94: 20984401.47 | AV94: 454765640.7 | AY94: 0 | AZ94: 1600213919
A95: Oficial de Proteccion | B95: 15 | C95: 9 | D95: =2838462*(1+B9) -> 3147286.666 | E95: 339906959.9 | H95: 0 | I95: 0 | J95: =((D95+(G95/12/C95)+(K95/12/C95)+(R95/12/C95))*C95) -> 39670272.18 | K95: =(D95+(R95/12/C95)+(G95/12/C95))*0.5*C95 -> 19041730.65 | M95: 45363690.87 | N95: =((D95+(G95/12/C95)+H95+I95+(K95/12/C95)+(J95/12/C95)+(R95/12/C95))*(20/30)*C95) -> 28650752.13 | Q95: 472633405.7 | R95: =977822*12*C95*(1+$B$9) -> 117094575.6 | V95: 117094575.6 | W95: 589727981.3 | Y95: 0 | Z95: 1888371.999 | AA95: 1888371.999 | AG95: =+(1144885*(1+$B$9)+D95)*0.3*12*3 -> 47700739.66 | AJ95: 47700739.66 | AK95: 49589111.66 | AL95: 57125191.94 | AM95: 40463677.62 | AN95: 49143998.45 | AO95: 21774571.62 | AP95: 33175455.22 | AQ95: 16330928.71 | AR95: 10887285.81 | AV95: 228901109.4 | AY95: 0 | AZ95: 868218202.4
A96: Oficial de Proteccion | B96: 15 | C96: 13 | D96: =2838462*(1+B9) -> 3147286.666 | E96: 490976719.8 | H96: 0 | I96: 0 | J96: =((D96+(G96/12/C96)+(K96/12/C96))/2)*C96 -> 21054036.42 | K96: =(D96+(G96/12/C96))*0.35*C96 -> 14320154.33 | M96: 45690183.21 | N96: =((D96+(G96/12/C96)+(H96/12/C96)+(I96/12/C96)+(K96/12/C96)+(J96/12/C96))*15/30)*C96 -> 21931287.94 | Q96: 593972381.7 | V96: 0 | W96: 593972381.7 | Y96: 2337179.232 | Z96: 2727648.444 | AA96: 5064827.675 | AJ96: 0 | AK96: 5064827.675 | AL96: 60635624.9 | AM96: 42950234.3 | AN96: 49497698.48 | AO96: 21931287.94 | AP96: 35214139.16 | AQ96: 16448465.96 | AR96: 10965643.97 | AV96: 237643094.7 | AY96: 0 | AZ96: 836680304.1
A97: Oficial de Proteccion | B97: 16 | C97: 3 | D97: =3207074*(1+B9) -> 3556003.651 | E97: 128016131.4 | H97: 0 | I97: 0 | J97: =((D97+(G97/12/C97)+(K97/12/C97)+(R97/12/C97))*C97) -> 14864382.23 | K97: =(D97+(R97/12/C97)+(G97/12/C97))*0.5*C97 -> 7134903.468 | M97: 16997696.34 | N97: =((D97+(G97/12/C97)+H97+I97+(K97/12/C97)+(J97/12/C97)+(R97/12/C97))*(20/30)*C97) -> 10735387.16 | Q97: 177748500.6 | R97: =1082791*12*C97*(1+$B$9) -> 43221551.79 | V97: 43221551.79 | W97: 220970052.4 | Y97: 0 | Z97: 711200.7302 | AA97: 711200.7302 | AG97: =+(1286959*(1+$B$9)+D97)*0.3*12*3 -> 53816224.94 | AJ97: 53816224.94 | AK97: 54527425.67 | AL97: 21404710.4 | AM97: 15161669.87 | AN97: 18414171.04 | AO97: 8158894.243 | AP97: 12430785.57 | AQ97: 6119170.683 | AR97: 4079447.122 | AV97: 85768848.92 | AY97: 0 | AZ97: 361266327
A98: Oficial de Proteccion | B98: 16 | C98: 4 | D98: =3207074*(1+B9) -> 3556003.651 | E98: =D98*C98*12 -> 170688175.3 | H98: 0 | I98: 0 | J98: =((D98+(G98/12/C98)+(K98/12/C98))/2)*C98 -> 7319440.849 | K98: =(D98+(G98/12/C98))*0.35*C98 -> 4978405.112 | M98: 15884203.23 | N98: =((D98+(G98/12/C98)+(H98/12/C98)+(I98/12/C98)+(K98/12/C98)+(J98/12/C98))*15/30)*C98 -> 7624417.551 | Q98: 206494642 | V98: 0 | W98: 206494642 | Y98: 4565085.202 | Z98: 948267.6403 | AA98: 5513352.843 | AJ98: 0 | AK98: 5513352.843 | AL98: 21079989.64 | AM98: 14931659.33 | AN98: 17207886.83 | AO98: 7624417.551 | AP98: 12242203.99 | AQ98: 5718313.163 | AR98: 3812208.775 | AV98: 82616679.28 | AY98: 0 | AZ98: 294624674.1
A99: Oficial de Proteccion | B99: 17 | C99: 2 | D99: =3433249*(1+B9) -> 3806786.491 | E99: 91362875.79 | H99: 0 | I99: 0 | J99: =((D99+(G99/12/C99)+(K99/12/C99))/2)*C99 -> 3917817.764 | K99: 2664750.544 | M99: 8502208.689 | N99: =((D99+(G99/12/C99)+(H99/12/C99)+(I99/12/C99)+(K99/12/C99)+(J99/12/C99))*15/30)*C99 -> 4081060.171 | Q99: 110528713 | V99: 0 | W99: 110528713 | Y99: 2826924.845 | Z99: 507571.5322 | AA99: 3334496.377 | AJ99: 0 | AK99: 3334496.377 | AL99: 11283315.16 | AM99: 7992348.238 | AN99: 9210726.08 | AO99: 4081060.171 | AP99: 6552785.279 | AQ99: 3060795.128 | AR99: 2040530.085 | AV99: 44221560.14 | AY99: 0 | AZ99: 158084769.5
A100: Oficial de Proteccion | B100: 18 | C100: 2 | D100: =3772851*(1+B9) -> 4183337.189 | E100: 100400092.5 | H100: 0 | I100: 0 | J100: =((D100+(G100/12/C100)+(K100/12/C100))/2)*C100 -> 4305351.19 | K100: 2928336.032 | M100: 9343210.048 | N100: =((D100+(G100/12/C100)+(H100/12/C100)+(I100/12/C100)+(K100/12/C100)+(J100/12/C100))*15/30)*C100 -> 4484740.823 | Q100: 121461730.6 | V100: 0 | W100: 121461730.6 | Z100: 557778.2918 | AA100: 557778.2918 | AJ100: 0 | AK100: 557778.2918 | AL100: 12399411.43 | AM100: 8782916.428 | AN100: 10121810.89 | AO100: 4484740.823 | AP100: 7200958.187 | AQ100: 3363555.617 | AR100: 2242370.412 | AV100: 48595763.78 | AY100: 0 | AZ100: 170615272.7
Q101: 0 | V101: 0 | W101: 0 | AA101: 0 | AJ101: 0 | AK101: 0 | AV101: 0 | AY101: 0 | AZ101: 0
A102: NIVEL ASISTENCIAL | B102: =SUM(B103:B124) -> 363 | C102: 1551 | D102: 53488335.61 | E102: 5.21796489e+10 | F102: 0 | G102: 0 | H102: 178963848 | I102: 192456000 | J102: 2727728043 | K102: 1634188696 | L102: 0 | M102: 4375219689 | N102: 2591795605 | O102: 0 | P102: 0 | Q102: 6.388000078e+10 | R102: 1941383093 | S102: 0 | T102: 0 | U102: 0 | V102: 1941383093 | W102: 6.582138387e+10 | X102: 0 | Y102: 87575790.54 | Z102: 289886938.3 | AA102: 377462728.9 | AB102: 0 | AC102: 16252000.05 | AD102: 6986454.552 | AE102: =SUM(AE103:AE124) -> 56707509.2 | AF102: 28353754.6 | AG102: 815257694.5 | AH102: 0 | AI102: =SUM(AI103:AI124) -> 95893380 | AJ102: 1019450793 | AK102: 1396913522 | AL102: 6690626483 | AM102: 4739193759 | AN102: 5485115323 | AO102: 2457846567 | AP102: 3769174356 | AQ102: 1843384926 | AR102: 1228923284 | AS102: 0 | AT102: 0 | AU102: 0 | AV102: 2.62142647e+10 | AW102: 109964006.4 | AX102: 2.369523356e+10 | AY102: 3186870017 | AZ102: 1.170192043e+10
A103: Agente de Protecion | B103: 16 | C103: 176 | D103: =2100305*(1+B9) -> 2328818.184 | E103: 4918464005 | H103: 0 | I103: 0 | J103: =((D103+(G103/12/C103)+(K103/12/C103)+(R103/12/C103))*C103) -> 536897029.5 | K103: =(D103+(G103/12/C103))*0.5*C103 -> 204936000.2 | M103: =(D103+(G103/12/C103)+(H103/12/C103)+(I103/12/C103)+(J103/12/C103)+(K103/12/C103)+(N103/12/C103)+(R103/12/C103))*C103 -> 613951695.7 | N103: =((D103+(G103/12/C103)+H103+I103+(K103/12/C103)+(J103/12/C103)+(R103/12/C103))*(20/30)*C103) -> 387758965.7 | Q103: =SUM(E103:P103) -> 6662007696 | R103: =563401*12*C103*(1+$B$9) -> 1319364349 | V103: =SUM(R103:U103) -> 1319364349 | W103: =Q103+V103 -> 7981372045 | Z103: =D103/30*2*C103 -> 27324800.03 | AA103: =SUM(X103:Z103) -> 27324800.03 | AC103: 7088438.65 | AD103: 6986454.552 | AE103: 56707509.2 | AF103: 28353754.6 | AG103: =+(799111*(1+$B$9)+D103)*0.3*12*23 -> 266191439.8 | AI103: 95893380 | AJ103: =SUM(AB103:AI103) -> 461220976.8 | AK103: =AA103+AJ103 -> 488545776.8 | AL103: =(D103+(L103/12/C103)+(G103/12/C103)+(K103/12/C103)+(R103/12/C103))*0.12*12*C103 -> 773131722.4 | AM103: =(D103+(L103/12/C103)+(G103/12/C103)+(K103/12/C103)+(R103/12/C103))*0.085*12*C103 -> 547634970.1 | AN103: =(D103+(G103/12/C103)+(H103/12/C103)+(I103/12/C103)+(J103/12/C103)+(K103/12/C103)+(M103/12/C103)+(L103/12/C103)+(N103/12/C103)+(R103/12/C103))*C103 -> 665114337 | AO103: =(D103+(G103/12/C103)+(H103/12/C103)+(I103/12/C103)+(K103/12/C103)+(L103/12/C103)+(J103/12/C103)+(N103/12/C103)+(R103/12/C103))*C103*0.04*12 -> 294696814 | AP103: =(D103+(L103/12/C103)+(G103/12/C103)+(K103/12/C103)+(R103/12/C103))*6.969%*12*C103 -> 448996247.8 | AQ103: 221022610.5 | AR103: 147348407 | AV103: =SUM(AL103:AU103) -> 3097945109 | AW103: 44462453.97 | AX103: 3142407563 | AY103: =SUM(AW103:AX103) -> 3186870017 | AZ103: =W103+AK103+AV103 -> 1.156786293e+10
A104: Agente de Protecion | B104: 16 | C104: 24 | D104: =2100305*(1+B9) -> 2328818.184 | E104: 670699637 | H104: =(142578*12*C104) -> 41062464 | I104: =(162000*12*C104) -> 46656000 | J104: =((D104+(H104/12/C104)+(I104/12/C104)+(G104/12/C104)+(K104/12/C104))/2)*C104 -> 32765163.3 | K104: =(D104+(G104/12/C104))*0.5*C104 -> 27945818.21 | M104: =(D104+(G104/12/C104)+(H104/12/C104)+(I104/12/C104)+(J104/12/C104)+(K104/12/C104)+(N104/12/C104)+(R104/12/C104))*C104 -> 71104955.08 | N104: =((D104+(G104/12/C104)+(H104/12/C104)+(I104/12/C104)+(K104/12/C104)+(J104/12/C104))*15/30)*C104 -> 34130378.44 | Q104: =SUM(E104:P104) -> 924364416 | R104: 0 | V104: =SUM(R104:U104) -> 0 | W104: =Q104+V104 -> 924364416 | Z104: =D104/30*2*C104 -> 3726109.094 | AA104: =SUM(X104:Z104) -> 3726109.094 | AJ104: =SUM(AB104:AI104) -> 0 | AK104: 3726109.094 | AL104: 83837454.62 | AM104: =(D104+(L104/12/C104)+(G104/12/C104)+(K104/12/C104)+(R104/12/C104))*0.085*12*C104 -> 59384863.69 | AN104: 77030368 | AO104: 34130378.44 | AP104: 48688601.77 | AQ104: 25597783.83 | AR104: 17065189.22 | AV104: =SUM(AL104:AU104) -> 345734639.6
A105: Agente de Protecion | B105: 20 | C105: 5 | D105: =2324600*(1+B9)+1 -> 2577517.48 | E105: 154651048.8 | H105: 0 | I105: 0 | J105: =((D105+(G105/12/C105)+(K105/12/C105)+(R105/12/C105))*C105) -> 16797182.16 | K105: =(D105+(G105/12/C105))*0.35*C105 -> 4510655.59 | M105: =(D105+(G105/12/C105)+(H105/12/C105)+(I105/12/C105)+(J105/12/C105)+(K105/12/C105)+(N105/12/C105)+(R105/12/C105))*C105 -> 19207888.86 | N105: =((D105+(G105/12/C105)+H105+I105+(K105/12/C105)+(J105/12/C105)+(R105/12/C105))*(20/30)*C105) -> 12131298.23 | Q105: 207298073.6 | R105: =637393*12*C105*(1+$B$9) -> 42404481.5 | V105: 42404481.5 | W105: 249702555.1 | Z105: 859172.4933 | AA105: 859172.4933 | AG105: =+(888598*(1+$B$9)+D105)*0.3*12*4 -> 51304247.17 | AJ105: 51304247.17 | AK105: 52163419.66 | AL105: 24187942.31 | AM105: 17133125.8 | AN105: 20808546.26 | AO105: 9219786.651 | AP105: 14047147.49 | AQ105: 6914839.988 | AR105: 4609893.326 | AV105: 96921281.83
A106: Agente de Protecion | B106: 20 | C106: 2 | D106: =2324600*(1+B9)+1 -> 2577517.48 | E106: 61860419.52 | H106: =(14257*12*C107) -> 1026504 | I106: 0 | J106: =((D106+(H106/12/C106)+(I106/12/C106)+(G106/12/C106)+(K106/12/C106))/2)*C106 -> 2695466.073 | K106: 1804262.236 | M106: =(D106+(G106/12/C106)+(H106/12/C106)+(I106/12/C106)+(J106/12/C106)+(K106/12/C106)+(N106/12/C106)+(R106/12/C106))*C106 -> 5849535.749 | N106: =((D106+(G106/12/C106)+(H106/12/C106)+(I106/12/C106)+(K106/12/C106)+(J106/12/C106))*15/30)*C106 -> 2807777.16 | Q106: 76043964.74 | R106: 0 | V106: 0 | W106: 76043964.74 | Z106: 343668.9973 | AA106: 343668.9973 | AJ106: 0 | AK106: 343668.9973 | AL106: 7639761.811 | AM106: 5411497.949 | AN106: 6336997.061 | AO106: 2807777.16 | AP106: 4436791.672 | AQ106: 2105832.87 | AR106: 1403888.58 | AV106: 30142547.1
A107: Agente de Protecion | B107: 23 | C107: 6 | D107: =2838462*(1+B9) -> 3147286.666 | E107: 226604639.9 | H107: 0 | I107: 0 | J107: =((D107+(G107/12/C107)+(K107/12/C107)+(R107/12/C107))*C107) -> 23466817.12 | K107: 6609301.998 | M107: =(D107+(G107/12/C107)+(H107/12/C107)+(I107/12/C107)+(J107/12/C107)+(K107/12/C107)+(N107/12/C107)+(R107/12/C107))*C107 -> 26834739.94 | N107: =((D107+(G107/12/C107)+H107+I107+(K107/12/C107)+(J107/12/C107)+(R107/12/C107))*(20/30)*C107) -> 16948256.81 | Q107: 300463755.8 | R107: =606109*12*C107*(1+$B$9) -> 48387863.46 | V107: 48387863.46 | W107: 348851619.2 | Z107: 1258914.666 | AA107: 1258914.666 | AG107: =+(1033371*(1+$B$9)+D107)*0.3*12*3 -> 46365355.05 | AJ107: 46365355.05 | AK107: 47624269.71 | AL107: 33792216.65 | AM107: 23936153.46 | AN107: 29070968.27 | AO107: 12880675.17 | AP107: 19624829.82 | AQ107: 9660506.379 | AR107: 6440337.586 | AV107: 135405687.3
A108: Agentes Escoltas | B108: - | C108: 1200 | D108: =2658981*(1+B9) -> 2948278.133 | E108: 4.245520511e+10 | H108: 0 | I108: 0 | J108: =((D108+(G108/12/C108)+(K108/12/C108))/2)*C108 -> 1820561747 | K108: 1238276816 | M108: 3208181413 | N108: =((D108+(G108/12/C108)+(H108/12/C108)+(I108/12/C108)+(K108/12/C108)+(J108/12/C108))*15/30)*C108 -> 1896418486 | Q108: 5.061864357e+10 | R108: 0 | V108: 0 | W108: 5.061864357e+10 | Y108: 87575790.54 | Z108: 235862250.6 | AA108: 323438041.2 | AG108: =+((1+$B$9)+D108)*0.3*12*1 -> 10613805.27 | AJ108: 10613805.27 | AK108: 334051846.4 | AL108: 5243217831 | AM108: 3713945964 | AN108: 4218220298 | AO108: 1896418486 | AP108: 3044998756 | AQ108: 1422313865 | AR108: 948209243.2 | AV108: 2.048732444e+10 | AW108: 65501552.44 | AX108: 2.0552826e+10
A109: Auxiliar Administrativo | B109: 11 | C109: 48 | D109: =1721750*(1+B9) -> 1909076.4 | E109: 1099628006 | H109: =(142578*12*C109) -> 82124928 | I109: =(162000*12*C109) -> 93312000 | J109: =((D109+(H109/12/C109)+(I109/12/C109)+(G109/12/C109)+(K109/12/C109))/2)*C109 -> 55036782 | K109: =(D109+(G109/12/C109))*0.5*C109 -> 45817833.6 | M109: =(D109+(G109/12/C109)+(H109/12/C109)+(I109/12/C109)+(J109/12/C109)+(K109/12/C109)+(N109/12/C109)+(R109/12/C109))*C109 -> 119437460.9 | N109: =((D109+(G109/12/C109)+(H109/12/C109)+(I109/12/C109)+(K109/12/C109)+(J109/12/C109))*15/30)*C109 -> 57329981.25 | Q109: 1552686992 | R109: 0 | V109: 0 | W109: 1552686992 | Z109: 6109044.48 | AA109: 6109044.48 | AC109: 9163561.398 | AJ109: 9163561.398 | AK109: 15272605.88 | AL109: 137453500.8 | AM109: 97362896.4 | AN109: 129390582.7 | AO109: 57329981.25 | AP109: =(D109+(L109/12/C109)+(G109/12/C109)+(K109/12/C109)+(R109/12/C109))*0.522%*12*C109 -> 5979227.285 | AQ109: 42997485.94 | AR109: 28664990.62 | AV109: 499178665
A110: Auxiliar Administrativo | B110: 15 | C110: 1 | D110: =2010894*(1+B9)+1 -> 2229680.267 | E110: 26756163.21 | H110: =(142578*12*C110) -> 1710936 | I110: 1944000 | J110: =((D110+(H110/12/C110)+(I110/12/C110)+(G110/12/C110)+(K110/12/C110))/2)*C110 -> 1313580.806 | K110: 1114840.134 | M110: =(D110+(G110/12/C110)+(H110/12/C110)+(I110/12/C110)+(J110/12/C110)+(K110/12/C110)+(N110/12/C110)+(R110/12/C110))*C110 -> 2850652.79 | N110: =((D110+(G110/12/C110)+(H110/12/C110)+(I110/12/C110)+(K110/12/C110)+(J110/12/C110))*15/30)*C110 -> 1368313.339 | Q110: 37058486.28 | R110: 0 | V110: 0 | W110: 37058486.28 | Z110: 148645.3511 | AA110: 148645.3511 | AJ110: 0 | AK110: 148645.3511 | AL110: 3344520.401 | AM110: 2369035.284 | AN110: 3088207.19 | AO110: 1368313.339 | AP110: =(D110+(L110/12/C110)+(G110/12/C110)+(K110/12/C110)+(R110/12/C110))*0.522%*12*C110 -> 145486.6374 | AQ110: 1026235.005 | AR110: 684156.6697 | AV110: 12025954.53
A111: Conductor Mecanico | B111: 16 | C111: 35 | D111: =2100304*(1+B9)+1 -> 2328818.075 | E111: 978103591.6 | H111: 0 | I111: 0 | J111: =((D111+(G111/12/C111)+(K111/12/C111)+(R111/12/C111))*C111) -> 110745093.7 | K111: 40754316.32 | M111: =(D111+(G111/12/C111)+(H111/12/C111)+(I111/12/C111)+(J111/12/C111)+(K111/12/C111)+(N111/12/C111)+(R111/12/C111))*C111 -> 126639065.4 | N111: =((D111+(G111/12/C111)+H111+I111+(K111/12/C111)+(J111/12/C111)+(R111/12/C111))*(20/30)*C111) -> 79982567.64 | Q111: 1336224635 | R111: =665849*12*C111*(1+$B$9) -> 310083215.9 | V111: 310083215.9 | W111: 1646307851 | Z111: 5433908.842 | AA111: 5433908.842 | AG111: =+(829845*(1+$B$9)+D111)*0.3*12*20 -> 233924415.2 | AJ111: 233924415.2 | AK111: 239358324 | AL111: 159472934.9 | AM111: 112959995.5 | AN111: 137192320.9 | AO111: 60786751.4 | AP111: =(D111+(L111/12/C111)+(G111/12/C111)+(K111/12/C111)+(R111/12/C111))*6.969%*12*C111 -> 92613906.92 | AQ111: 45590063.55 | AR111: 30393375.7 | AV111: 639009348.8
A112: Conductor Mecanico | B112: 16 | C112: 9 | D112: =2100304*(1+B9)+1 -> 2328818.075 | E112: 251512352.1 | H112: =(142578*12*C112) -> 15398424 | I112: 17496000 | J112: =((D112+(H112/12/C112)+(I112/12/C112)+(G112/12/C112)+(K112/12/C112))/2)*C112 -> 12286935.73 | K112: 10479681.34 | M112: =(D112+(G112/12/C112)+(H112/12/C112)+(I112/12/C112)+(J112/12/C112)+(K112/12/C112)+(N112/12/C112)+(R112/12/C112))*C112 -> 26664357.05 | N112: =((D112+(G112/12/C112)+(H112/12/C112)+(I112/12/C112)+(K112/12/C112)+(J112/12/C112))*15/30)*C112 -> 12798891.38 | Q112: 346636641.6 | R112: 0 | V112: 0 | W112: 346636641.6 | Z112: 1397290.845 | AA112: 1397290.845 | AG112: =+(630091*(1+$B$9)+D112)*0.3*12*2 -> 21797733.43 | AJ112: 21797733.43 | AK112: 23195024.27 | AL112: 31439044.02 | AM112: 22269322.84 | AN112: 28886386.8 | AO112: 12798891.38 | AP112: 18258224.81 | AQ112: 9599168.537 | AR112: 6399445.691 | AV112: 129650484.1
A113: Conductor Mecanico | B113: 18 | C113: 15 | D113: =2197857*(1+B9) -> 2436983.842 | E113: 438657091.5 | H113: 0 | I113: 0 | J113: =((D113+(G113/12/C113)+(K113/12/C113)+(R113/12/C113))*C113) -> 50783157.12 | K113: 18277378.81 | M113: =(D113+(G113/12/C113)+(H113/12/C113)+(I113/12/C113)+(J113/12/C113)+(K113/12/C113)+(N113/12/C113)+(R113/12/C113))*C113 -> 58071480.59 | N113: =((D113+(G113/12/C113)+H113+I113+(K113/12/C113)+(J113/12/C113)+(R113/12/C113))*(20/30)*C113) -> 36676724.58 | Q113: 602465832.6 | R113: =763906*12*C113*(1+$B$9) -> 152463415.1 | V113: 152463415.1 | W113: 754929247.7 | Z113: 2436983.842 | AA113: 2436983.842 | AG113: =+(888529*(1+$B$9)+D113)*0.3*12*12 -> 147838383.2 | AJ113: 147838383.2 | AK113: 150275367.1 | AL113: 73127746.25 | AM113: 51798820.26 | AN113: 62910770.64 | AO113: 27874310.68 | AP113: 42468938.63 | AQ113: 20905733.01 | AR113: 13937155.34 | AV113: 293023474.8
A114: Conductor Mecanico | B114: 18 | C114: 3 | D114: =2197857*(1+B9) -> 2436983.842 | E114: 87731418.3 | H114: =(142578*12*C114) -> 5132808 | I114: 5832000 | J114: =((D114+(H114/12/C114)+(I114/12/C114)+(G114/12/C114)+(K114/12/C114))/2)*C114 -> 4264654.252 | K114: 3655475.762 | M114: 7250404.335 | N114: =((D114+(G114/12/C114)+(H114/12/C114)+(I114/12/C114)+(K114/12/C114)+(J114/12/C114))*15/30)*C114 -> 4442348.18 | Q114: 118309108.8 | R114: 0 | V114: 0 | W114: 118309108.8 | Z114: 487396.7683 | AA114: 487396.7683 | AJ114: 0 | AK114: 487396.7683 | AL114: 10966427.29 | AM114: 7767885.995 | AN114: 9859092.402 | AO114: 4442348.18 | AP114: 6368752.647 | AQ114: 3331761.135 | AR114: 2221174.09 | AV114: 44957441.74
A115: Conductor Mecanico | B115: 20 | C115: 5 | D115: =2324600*(1+B9)+1 -> 2577517.48 | E115: 154651048.8 | H115: 0 | I115: 0 | J115: =((D115+(G115/12/C115)+(K115/12/C115)+(R115/12/C115))*C115) -> 17428771.27 | K115: 4510655.59 | M115: =(D115+(G115/12/C115)+(H115/12/C115)+(I115/12/C115)+(J115/12/C115)+(K115/12/C115)+(N115/12/C115)+(R115/12/C115))*C115 -> 19930122.7 | N115: =((D115+(G115/12/C115)+H115+I115+(K115/12/C115)+(J115/12/C115)+(R115/12/C115))*(20/30)*C115) -> 12587445.92 | Q115: 209108044.3 | R115: =751316*12*C115*(1+$B$9) -> 49983550.85 | V115: 49983550.85 | W115: 259091595.1 | Z115: 859172.4933 | AA115: 859172.4933 | AG115: =+(922774*(1+$B$9)+D115)*0.3*12*2 -> 25924962.9 | AJ115: 25924962.9 | AK115: 26784135.39 | AL115: 25097430.63 | AM115: 17777346.7 | AN115: 21590966.26 | AO115: 9566458.897 | AP115: 14575332.84 | AQ115: 7174844.173 | AR115: 4783229.448 | AV115: 100565608.9
A116: Conductor Mecanico | B116: 20 | C116: 1 | D116: =2324600*(1+B9)+1 -> 2577517.48 | E116: 30930209.76 | H116: =(142578*12*C116) -> 1710936 | I116: 0 | J116: =((D116+(H116/12/C116)+(I116/12/C116)+(G116/12/C116)+(K116/12/C116))/2)*C116 -> 1397636.537 | K116: 902131.118 | M116: 2433993.483 | N116: =((D116+(G116/12/C116)+(H116/12/C116)+(I116/12/C116)+(K116/12/C116)+(J116/12/C116))*15/30)*C116 -> 1455871.392 | Q116: 38830778.29 | R116: 0 | V116: 0 | W116: 38830778.29 | Z116: 171834.4987 | AA116: 171834.4987 | AJ116: 0 | AK116: 171834.4987 | AL116: 3819880.905 | AM116: 2705748.975 | AN116: 3235898.191 | AO116: 1455871.392 | AP116: 2218395.836 | AQ116: 1091903.544 | AR116: 727935.6961 | AV116: 15255634.54
A117: Conductor Mecanico | B117: 22 | C117: 1 | D117: =2570649*(1+B9) -> 2850335.611 | E117: 34204027.33 | I117: 0 | J117: =((D117+(G117/12/C117)+(K117/12/C117)+(R117/12/C117))*C117) -> 2933470.4 | K117: 997617.4639 | M117: =(D117+(G117/12/C117)+(H117/12/C117)+(I117/12/C117)+(J117/12/C117)+(K117/12/C117)+(N117/12/C117)+(R117/12/C117))*C117 -> 3354477.726 | N117: =((D117+(G117/12/C117)+(H117/12/C117)+(I117/12/C117)+(K117/12/C117)+(J117/12/C117)+(R117/12/C117))*(20/30)*C117) -> 2118617.511 | Q117: 43608210.43 | V117: 0 | W117: 43608210.43 | Z117: 190022.3741 | AA117: 190022.3741 | AG117: =+(259576*(1+$B$9)+D117)*0.3*12*1 -> 11297352.53 | AJ117: 11297352.53 | AK117: 11487374.9 | AL117: 4224197.376 | AM117: 2992139.808 | AN117: 3634017.536 | AO117: 1610149.308 | AP117: 2453202.626 | AQ117: 1207611.981 | AR117: 805074.6542 | AV117: 16926393.29
A118: Secretario Ejecutivo | B118: 15 | C118: 2 | D118: =2010894*(1+B9)+1 -> 2229680.267 | E118: 53512326.41 | H118: =(142578*12*C118) -> 3421872 | I118: =(162000*12*C118) -> 3888000 | J118: =((D118+(H118/12/C118)+(I118/12/C118)+(G118/12/C118)+(K118/12/C118)+(R118/12/C118))*C118) -> 5488510.654 | K118: =(D118+(G118/12/C118))*0.5*C118 -> 2229680.267 | M118: 6276213.572 | N118: =((D118+(G118/12/C118)+(H118/12/C118)+(I118/12/C118)+(K118/12/C118)+(J118/12/C118)+(R118/12/C118))*(20/30)*C118) -> 3963924.361 | Q118: 78780527.27 | R118: =105604*12*C118*(1+$B$9) -> 2810249.165 | V118: 2810249.165 | W118: 81590776.43 | Z118: 297290.7023 | AA118: 297290.7023 | AJ118: 0 | AK118: 297290.7023 | AL118: 7026270.701 | AM118: 4976941.747 | AN118: 6799231.369 | AO118: 3012582.514 | AP118: =(D118+(L118/12/C118)+(G118/12/C118)+(K118/12/C118)+(R118/12/C118))*0.522%*12*C118 -> 305642.7755 | AQ118: 2259436.886 | AR118: 1506291.257 | AV118: 25886397.25
A119: Secretario Ejecutivo | B119: 16 | C119: 4 | D119: =2100304*(1+B9)+1 -> 2328818.075 | E119: 111783267.6 | H119: =(142578*12*C119) -> 6843744 | I119: 0 | J119: =((D119+(G119/12/C119)+(K119/12/C119)+(R119/12/C119))*C119) -> 10839050.48 | K119: =(D119+(G119/12/C119))*0.5*C119 -> 4657636.15 | M119: 12996650.94 | N119: =((D119+(G119/12/C119)+(H119/12/C119)+(I119/12/C119)+(K119/12/C119)+(J119/12/C119)+(R119/12/C119))*(20/30)*C119) -> 8208411.122 | Q119: 155328760.3 | R119: =256052*12*C119*(1+$B$9) -> 13627701.96 | V119: 13627701.96 | W119: 168956462.3 | Z119: 621018.1534 | AA119: 621018.1534 | AJ119: 0 | AK119: 621018.1534 | AL119: 15608232.69 | AM119: 11055831.49 | AN119: 14079705.19 | AO119: 6238392.453 | AP119: 678958.1219 | AQ119: 4678794.34 | AR119: 3119196.226 | AV119: 55459110.5
A120: Secretario Ejecutivo | B120: 16 | C120: 4 | D120: =2100304*(1+B9)+1 -> 2328818.075 | E120: 111783267.6 | H120: =(142578*12*C120) -> 6843744 | I120: =(162000*12*C120) -> 7776000 | J120: =((D120+(H120/12/C120)+(I120/12/C120)+(G120/12/C120)+(K120/12/C120))/2)*C120 -> 5460860.323 | K120: =(D120+(G120/12/C120))*0.5*C120 -> 4657636.15 | M120: 11850825.35 | N120: =((D120+(G120/12/C120)+(H120/12/C120)+(I120/12/C120)+(K120/12/C120)+(J120/12/C120))*15/30)*C120 -> 5688396.17 | Q120: 154060729.6 | R120: 0 | V120: 0 | W120: 154060729.6 | Z120: 621018.1534 | AA120: 621018.1534 | AJ120: 0 | AK120: 621018.1534 | AL120: 13972908.45 | AM120: 9897476.82 | AN120: 12838394.13 | AO120: 5688396.17 | AP120: 607821.5176 | AQ120: 4266297.128 | AR120: 2844198.085 | AV120: 50115492.31
A121: Secretario Ejecutivo | B121: 18 | C121: 8 | D121: =2197857*(1+B9) -> 2436983.842 | E121: 233950448.8 | H121: =(142578*12*C121) -> 13687488 | I121: =(162000*12*C121) -> 15552000 | J121: =((D121+(H121/12/C121)+(I121/12/C121)+(G121/12/C121)+(K121/12/C121))/2)*C121 -> 11372411.34 | K121: =(D121+(G121/12/C121))*0.5*C121 -> 9747935.366 | M121: 24679712.11 | N121: =((D121+(G121/12/C121)+(H121/12/C121)+(I121/12/C121)+(K121/12/C121)+(J121/12/C121))*15/30)*C121 -> 11846261.81 | Q121: 320836257.4 | R121: 0 | V121: 0 | W121: 320836257.4 | Z121: 1299724.716 | AA121: 1299724.716 | AJ121: 0 | AK121: 1299724.716 | AL121: 29243806.1 | AM121: 20714362.65 | AN121: 26736354.79 | AO121: 11846261.81 | AP121: 1272105.565 | AQ121: 8884696.359 | AR121: 5923130.906 | AV121: 104620718.2
A122: Secretario Ejecutivo | B122: 23 | C122: 1 | D122: =2838462*(1+B9) -> 3147286.666 | E122: 37767439.99 | H122: 0 | I122: 0 | J122: =((D122+(G122/12/C122)+(K122/12/C122)+(R122/12/C122))*C122) -> 3427271.389 | K122: 1101550.333 | M122: 3864310.098 | N122: 1817193.113 | Q122: 47977764.92 | R122: =169723*12*C122*(1+$B$9) -> 2258266.349 | V122: 2258266.349 | W122: 50236031.27 | Z122: 209819.111 | AA122: 209819.111 | AJ122: 0 | AK122: 209819.111 | AL122: 4935270.8 | AM122: 3495816.817 | AN122: 4186335.939 | AO122: 1854868.847 | AP122: 214684.2798 | AQ122: 1391151.635 | AR122: 927434.4234 | AV122: 17005562.74 | AY122: =SUM(AW122:AX122) -> 0 | AZ122: =W122+AK122+AV122 -> 67451413.12
A123: Secretario Ejecutivo | B123: 24 | C123: 1 | D123: =3095942*(1+B9)+1 -> 3432781.49 | E123: 41193377.88 | H123: 0 | I123: 0 | J123: =((D123+(G123/12/C123)+(K123/12/C123))/2)*C123 -> 1766452.142 | K123: 1201473.521 | M123: 3789733.192 | N123: 1315494.77 | Q123: 49266531.5 | R123: 0 | V123: 0 | W123: 49266531.5 | Z123: 228852.0993 | AA123: 228852.0993 | AJ123: 0 | AK123: 228852.0993 | AL123: 5087382.168 | AM123: 3603562.369 | AN123: 4105544.292 | AO123: 1819071.932 | AP123: 221301.1243 | AQ123: 1364303.949 | AR123: 909535.9662 | AV123: 17110701.8 | AY123: 0 | AZ123: 66606085.4
Q124: 0 | V124: 0 | W124: 0 | Z124: 0 | AA124: 0 | AJ124: 0 | AK124: 0 | AV124: 0 | AY124: =SUM(AW124:AX124) -> 0 | AZ124: 0
A125: TOTAL EMPLEADOS PÚBLICOS | C125: =C102+C78+C53+C45+C26+C17 -> 2044 | D125: =D17+D26+D45+D53+D78+D102 -> 235786227.9 | E125: 7.36496251e+10 | F125: 0 | G125: 319190549.8 | H125: 226870056 | I125: 235224000 | J125: 4194350509 | K125: 2418651724 | L125: 0 | M125: 6654786404 | N125: 3848605351 | O125: 0 | Q125: =SUM(E125:P125) -> 9.154730369e+10 | R125: =R17+R26+R45+R53+R78+R102 -> 4298774845 | S125: =S17+S26+S45+S53+S78+S102 -> 0 | T125: =T17+T26+T45+T53+T78+T102 -> 0 | U125: =U17+U26+U45+U53+U78+U102 -> 0 | V125: =SUM(R125:U125) -> 4298774845 | W125: =Q125+V125 -> 9.584607854e+10 | X125: =X17+X26+X45+X53+X78+X102 -> 0 | Y125: =Y17+Y26+Y45+Y53+Y78+Y102 -> 251552624.6 | Z125: =Z17+Z26+Z45+Z53+Z78+Z102 -> 409164583.9 | AA125: =SUM(X125:Z125) -> 660717208.4 | AB125: =AB17+AB26+AB45+AB53+AB78+AB102 -> 757131276 | AC125: =AC17+AC26+AC45+AC53+AC78+AC102 -> 554164492.7 | AD125: =AD17+AD26+AD45+AD53+AD78+AD102 -> 14297406.08 | AE125: =AE17+AE26+AE45+AE53+AE78+AE102 -> 132756304.7 | AF125: 36539125.54 | AG125: 1479225140 | AH125: 58005572 | AI125: =AI17+AI26+AI45+AI53+AI78+AI102 -> 202516848 | AJ125: =SUM(AB125:AI125) -> 3234636165 | AK125: =AA125+AJ125 -> 3895353373 | AL125: =AL17+AL26+AL45+AL53+AL78+AL102 -> 9682349066 | AM125: 6858330588 | AN125: 7987173211 | AO125: 3567651685 | AP125: 4836213023 | AQ125: 2675738764 | AR125: 1783825843 | AS125: 0 | AT125: 0 | AU125: 0 | AV125: =SUM(AL125:AU125) -> 3.739128218e+10 | AW125: =AW17+AW26+AW45+AW53+AW78+AW102 -> 191535722.7 | AX125: =AX17+AX26+AX45+AX53+AX78+AX102 -> 2.376931473e+10 | AY125: =SUM(AW125:AX125) -> 2.396085045e+10 | AZ125: =W125+AK125+AV125 -> 1.371327141e+11
A126: TRABAJADORES OFICIALES
Q127: =SUM(E127:P127) -> 0 | V127: =SUM(R127:U127) -> 0 | W127: =Q127+V127 -> 0 | AA127: =SUM(X127:Z127) -> 0 | AJ127: =SUM(AB127:AI127) -> 0 | AK127: =AA127+AJ127 -> 0 | AV127: =SUM(AL127:AU127) -> 0 | AY127: =SUM(AW127:AX127) -> 0 | AZ127: =W127+AK127+AV127 -> 0
Q128: =SUM(E128:P128) -> 0 | V128: 0 | W128: =Q128+V128 -> 0 | AA128: =SUM(X128:Z128) -> 0 | AJ128: =SUM(AB128:AI128) -> 0 | AK128: 0 | AV128: =SUM(AL128:AU128) -> 0 | AY128: =SUM(AW128:AX128) -> 0 | AZ128: 0
Q129: 0 | V129: 0 | W129: 0 | AA129: 0 | AJ129: 0 | AK129: 0 | AV129: 0 | AY129: 0 | AZ129: 0
Q130: 0 | V130: 0 | W130: 0 | AA130: 0 | AJ130: 0 | AK130: 0 | AV130: 0 | AY130: 0 | AZ130: 0
Q131: 0 | V131: 0 | W131: 0 | AA131: 0 | AJ131: 0 | AK131: 0 | AV131: 0 | AY131: 0 | AZ131: 0
Q132: 0 | V132: 0 | W132: 0 | AA132: 0 | AJ132: 0 | AK132: 0 | AV132: 0 | AY132: 0 | AZ132: 0
Q133: 0 | V133: 0 | W133: 0 | AA133: 0 | AJ133: 0 | AK133: 0 | AV133: 0 | AY133: 0 | AZ133: 0
Q134: 0 | V134: 0 | W134: 0 | AA134: 0 | AJ134: 0 | AK134: 0 | AV134: 0 | AY134: 0 | AZ134: 0
Q135: 0 | V135: 0 | W135: 0 | AA135: 0 | AJ135: 0 | AK135: 0 | AV135: 0 | AY135: 0 | AZ135: 0
Q136: 0 | V136: 0 | W136: 0 | AA136: 0 | AJ136: 0 | AK136: 0 | AV136: 0 | AY136: 0 | AZ136: 0
Q137: 0 | V137: 0 | W137: 0 | AA137: 0 | AJ137: 0 | AK137: 0 | AV137: 0 | AY137: 0 | AZ137: 0
Q138: 0 | V138: 0 | W138: 0 | AA138: 0 | AJ138: 0 | AK138: 0 | AV138: 0 | AY138: 0 | AZ138: 0
Q139: 0 | V139: 0 | W139: =Q139+V139 -> 0 | AA139: 0 | AJ139: 0 | AK139: 0 | AV139: 0 | AY139: 0 | AZ139: 0
A140: TOTAL TRABAJADORES OFICIALES | C140: =SUM(C127:C139) -> 0 | D140: =SUM(D127:D139) -> 0 | E140: =SUM(E127:E139) -> 0 | F140: =SUM(F127:F139) -> 0 | G140: 0 | H140: 0 | I140: 0 | J140: 0 | K140: 0 | L140: 0 | M140: 0 | N140: 0 | O140: 0 | Q140: =SUM(Q127:Q139) -> 0 | R140: =SUM(R127:R139) -> 0 | S140: =SUM(S127:S139) -> 0 | T140: =SUM(T127:T139) -> 0 | U140: =SUM(U127:U139) -> 0 | V140: =SUM(V127:V139) -> 0 | W140: =SUM(W127:W139) -> 0 | X140: =SUM(X127:X139) -> 0 | Y140: =SUM(Y127:Y139) -> 0 | Z140: =SUM(Z127:Z139) -> 0 | AA140: =SUM(AA127:AA139) -> 0 | AB140: =SUM(AB127:AB139) -> 0 | AC140: =SUM(AC127:AC139) -> 0 | AD140: =SUM(AD127:AD139) -> 0 | AI140: =SUM(AI127:AI139) -> 0 | AJ140: =SUM(AJ127:AJ139) -> 0 | AK140: =SUM(AK127:AK139) -> 0 | AL140: =SUM(AL127:AL139) -> 0 | AM140: =SUM(AM127:AM139) -> 0 | AN140: =SUM(AN127:AN139) -> 0 | AO140: =SUM(AO127:AO139) -> 0 | AP140: =SUM(AP127:AP139) -> 0 | AQ140: =SUM(AQ127:AQ139) -> 0 | AR140: =SUM(AR127:AR139) -> 0 | AS140: =SUM(AS127:AS139) -> 0 | AT140: =SUM(AT127:AT139) -> 0 | AU140: =SUM(AU127:AU139) -> 0 | AV140: =SUM(AV127:AV139) -> 0 | AW140: =SUM(AW127:AW139) -> 0 | AX140: =SUM(AX127:AX139) -> 0 | AY140: =SUM(AY127:AY139) -> 0 | AZ140: =W140+AK140+AV140 -> 0
A141: TOTAL PLANTA DE PERSONAL | B141: =B125+B140 -> 0 | C141: =C125+C140 -> 2044 | D141: =D125+D140 -> 235786227.9 | E141: =E125+E140 -> 7.36496251e+10 | F141: =F125+F140 -> 0 | G141: 319190549.8 | H141: 226870056 | I141: 235224000 | J141: 4194350509 | K141: 2418651724 | L141: 0 | M141: 6654786404 | N141: 3848605351 | O141: 0 | Q141: =SUM(E141:O141) -> 9.154730369e+10 | R141: =R125+R140 -> 4298774845 | S141: =S125+S140 -> 0 | T141: =T125+T140 -> 0 | U141: =U125+U140 -> 0 | V141: =SUM(R141:U141) -> 4298774845 | W141: =Q141+V141 -> 9.584607854e+10 | X141: =X125+X140 -> 0 | Y141: =Y125+Y140 -> 251552624.6 | Z141: =Z125+Z140 -> 409164583.9 | AA141: =SUM(X141:Z141) -> 660717208.4 | AB141: =AB125+AB140 -> 757131276 | AC141: =AC125+AC140 -> 554164492.7 | AD141: =AD125+AD140 -> 14297406.08 | AE141: 132756304.7 | AF141: 36539125.54 | AG141: 1479225140 | AH141: 58005572 | AI141: =AI125+AI140 -> 202516848 | AJ141: =SUM(AB141:AI141) -> 3234636165 | AK141: =AA141+AJ141 -> 3895353373 | AL141: =AL125+AL140 -> 9682349066 | AM141: =AM125+AM140 -> 6858330588 | AN141: =AN125+AN140 -> 7987173211 | AO141: =AO125+AO140 -> 3567651685 | AP141: =AP125+AP140 -> 4836213023 | AQ141: =AQ125+AQ140 -> 2675738764 | AR141: =AR125+AR140 -> 1783825843 | AS141: =AS125+AS140 -> 0 | AT141: =AT125+AT140 -> 0 | AU141: =AU125+AU140 -> 0 | AV141: =SUM(AL141:AU141) -> 3.739128218e+10 | AW141: =AW125+AW140 -> 191535722.7 | AX141: =AX125+AX140 -> 2.376931473e+10 | AY141: =SUM(AW141:AX141) -> 2.396085045e+10 | AZ141: =W141+AK141+AV141 -> 1.371327141e+11
C170: RESUMEN - ANTEPROYECTO PLANTA DE PERSONAL
C172: CUENTA | G172: TOTAL | M172: TOTAL PLANTA DE PERSONAL
G173: ELPLEADOS PÚBLICOS | J173: TRABAJADORES OFICIALES
C175: GASTOS DE PERSONAL | G175: =G177+G183+G189 -> 1.371327141e+11 | J175: =J177+J183+J189 -> 0 | M175: =M177+M183+M189 -> 1.371327141e+11
C177: Salario | G177: =G179+G181 -> 9.584607854e+10 | J177: =J179+J181 -> 0 | M177: =SUM(M179:O182) -> 9.584607854e+10
C179: Factores salariales comunes | G179: =Q125 -> 9.154730369e+10 | J179: =Q140 -> 0 | M179: =G179+J179 -> 9.154730369e+10
C181: Factores salariales especiales | G181: =V125 -> 4298774845 | J181: =V140 -> 0 | M181: =G181+J181 -> 4298774845
C183: Remuneraciones no constitutivas de factor salarial | G183: =G185+G187 -> 3895353373 | J183: =J185+J187 -> 0 | M183: =SUM(M185:O188) -> 3895353373
C185: Prestaciones sociales según definición legal | G185: =AA125 -> 660717208.4 | J185: =AA140 -> 0 | M185: =G185+J185 -> 660717208.4
C187: Otras prestaciones no constitutivas de factor salarial | G187: =AJ125 -> 3234636165 | J187: =AJ140 -> 0 | M187: =G187+J187 -> 3234636165
C189: Contribuciones inherentes a la nómina | G189: =AV125 -> 3.739128218e+10 | J189: =AV140 -> 0 | M189: =G189+J189 -> 3.739128218e+10
C191: TRANSFERENCIAS CORRIENTES | G191: =G193 -> 2.396085045e+10 | J191: =J193 -> 0 | M191: =M193 -> 2.396085045e+10
C193: Prestaciones sociales relacionadas con el empleo | G193: =G195+G197 -> 2.396085045e+10 | J193: =J195+J197 -> 0 | M193: =G193+J193 -> 2.396085045e+10
C195: Incapacidades | G195: =AW125 -> 191535722.7 | J195: =AW140 -> 0 | M195: =G195+J195 -> 191535722.7
C197: Licencias de maternidad y paternidad | G197: =AX125 -> 2.376931473e+10 | J197: =AX140 -> 0 | M197: =G197+J197 -> 2.376931473e+10

Sheet Formulario 2A - Nómina
A1: MINISTERIO DE HACIENDA Y CRÉDITO PÚBLICO
A2: Dirección General del Presupuesto Público Nacional
A3: Formulario 2A Certificación de Nómina
B5: CÓDIGO UEJ | C5: =+'Formulario 2- Planta'!B5 -> 370800
B6: UNIDAD EJECUTORA | C6: =+IFERROR(VLOOKUP(C5,DESPLEGABLES!$A$2:$C$229,2,0),"") -> UNIDAD NACIONAL DE PROTECCIÓN - UNP
B7: SECTOR PRESUPUESTAL | C7: =+IFERROR(VLOOKUP(C5,DESPLEGABLES!$A$2:$C$229,3,0),"") -> INTERIOR
B9: ANTEPROYECTO COSTO DE NÓMINA - VIGENCIA | F9: 2025
B11: DENOMINACIÓN DE CARGO | C11: Grado | D11: Planta Actual | E11: Nómina Provista | H11: Total Cargos Provistos | I11: Cargos Vacantes
E12: Libre Nombramiento | F12: Carrera Administrativa
F13: Propiedad | G13: Provisionales
D14: 1 | E14: 2 | F14: 3 | G14: 4 | H14: 5=2+3+4 | I14: 6=1-5
B15: Empleados Públicos | JB15: 2
B16: Director General | C16: 24 | D16: 1 | E16: 1 | H16: =F16+E16+G16 -> 1 | I16: 0
B17: Secretario general | C17: 23 | D17: 1 | E17: 1 | H17: =F17+E17+G17 -> 1 | I17: 0
B18: Subdirector general | C18: 21 | D18: 4 | E18: 3 | H18: 3 | I18: 1
B19: Jefe de Oficina | C19: 20 | D19: 1 | E19: 0 | H19: 0 | I19: 1
B20: Jefe de Oficina Asesora | C20: 14 | D20: 2 | E20: 2 | H20: 2 | I20: 0
B21: Asesor | C21: 12 | D21: 3 | E21: 2 | H21: 2 | I21: 1
B22: Asesor | C22: 11 | D22: 1 | E22: 1 | H22: 1 | I22: 0
B23: Profesional Especializado | C23: 22 | D23: 6 | E23: 1 | G23: 1 | H23: 2 | I23: 4
B24: Profesional Especializado | C24: 18 | D24: 23 | E24: 6 | G24: 12 | H24: 18 | I24: 5
B25: Profesional Especializado | C25: 14 | D25: 11 | E25: 9 | G25: 1 | H25: 10 | I25: 1
B26: Profesional Universitario | C26: 11 | D26: 72 | E26: 5 | G26: 55 | H26: 60 | I26: 12
B27: Profesional Universitario | C27: 1 | D27: 10 | E27: 9 | H27: 9 | I27: 1
B28: Profesional de proteccion | C28: 6 | D28: 2 | G28: 2 | H28: 2 | I28: 0
B29: Profesional de proteccion | C29: 10 | D29: 4 | G29: 4 | H29: 4 | I29: 0
B30: Técnico Administrativo | C30: 16 | D30: 10 | F30: 0 | G30: 10 | H30: =F30+E30+G30 -> 10 | I30: 0
B31: Técnico Administrativo | C31: 15 | D31: 5 | E31: 1 | F31: 0 | G31: 3 | H31: =F31+E31+G31 -> 4 | I31: 1
B32: Técnico Administrativo | C32: 13 | D32: 7 | G32: 6 | H32: 6 | I32: 1
B33: Técnico Administrativo | C33: 12 | D33: 15 | E33: 11 | G33: 2 | H33: 13 | I33: 2
B34: Tecnico Administrativo | C34: 11 | D34: 1 | G34: 1 | H34: 1 | I34: 0
B35: Tecnico Administrativo | C35: 10 | D35: 2 | F35: 1 | G35: 1 | H35: 2 | I35: 0
B36: Tecnico Administrativo | C36: 9 | D36: 2 | G36: 2 | H36: 2 | I36: 0
B37: Oficial de Proteccion | C37: 10 | D37: 61 | E37: 3 | F37: 40 | G37: 7 | H37: 50 | I37: 11
B38: Oficial de Proteccion | C38: 11 | D38: 104 | F38: 94 | G38: 10 | H38: 104 | I38: 0
B39: Oficial de Proteccion | C39: 13 | D39: 70 | F39: 46 | G39: 23 | H39: 69 | I39: 1
B40: Oficial de Proteccion | C40: 14 | D40: 42 | F40: 15 | G40: 24 | H40: 39 | I40: 3
B41: Oficial de Proteccion | C41: 15 | D41: 22 | F41: 8 | G41: 13 | H41: 21 | I41: 1
B42: Oficial de Proteccion | C42: 16 | D42: 7 | F42: 3 | G42: 4 | H42: 7 | I42: 0
B43: Oficial de Proteccion | C43: 17 | D43: 2 | G43: 2 | H43: 2 | I43: 0
B44: Oficial de Proteccion | C44: 18 | D44: 2 | F44: 0 | G44: 2 | H44: 2 | I44: 0
B45: Auxiliar Administrativo | C45: 11 | D45: 48 | E45: 24 | G45: 18 | H45: 42 | I45: 6
B46: Auxiliar Administrativo | C46: 15 | D46: 1 | G46: 1 | H46: 1 | I46: 0
B47: Secretario Ejecutivo | C47: 24 | D47: 1 | E47: 1 | G47: 0 | H47: 1 | I47: 0
B48: Secretario Ejecutivo | C48: 18 | D48: 8 | G48: 8 | H48: 8 | I48: 0
B49: Agente de Proteccion | C49: 16 | D49: 200 | G49: 192 | H49: 192 | I49: 8
B50: Agente de Proteccion | C50: 20 | D50: 7 | G50: 6 | H50: 6 | I50: 1
B51: Agente de Proteccion | C51: 23 | D51: 6 | G51: 6 | H51: 6 | I51: 0
B52: Agente Escolta | C52: - | D52: 1200 | E52: 1165 | H52: 1165 | I52: 35
B53: Secretario Ejecutivo | C53: 15 | D53: 2 | F53: 2 | H53: 2 | I53: 0
B54: Secretario Ejecutivo | C54: 16 | D54: 8 | E54: 4 | F54: 3 | G54: 0 | H54: 7 | I54: 1
B55: Secretario Ejecutivo | C55: 23 | D55: 1 | G55: 1 | H55: =F55+E55+G55 -> 1 | I55: 0
B56: Conductor Mecanico | C56: 16 | D56: 44 | F56: 13 | G56: 29 | H56: 42 | I56: 2
B57: Conductor Mecanico | C57: 18 | D57: 18 | F57: 6 | G57: 12 | H57: 18 | I57: 0
B58: Conductor Mecanico | C58: 20 | D58: 6 | F58: 5 | G58: 1 | H58: 6 | I58: 0
B59: Conductor Mecanico | C59: 22 | D59: 1 | G59: 0 | H59: 0 | I59: 1
B60: Total Empleados Públicos | D60: =SUM(D16:D59) -> 2044 | E60: 1249 | F60: 236 | G60: 459 | H60: 1944 | I60: 100
B61: Trabajadores Oficiales
H62: =E62+F62+G62 -> 0 | I62: =D62-H62 -> 0
H63: =E63+F63+G63 -> 0 | I63: =D63-H63 -> 0
H64: =E64+F64+G64 -> 0 | I64: 0
H65: 0 | I65: 0
H66: 0 | I66: 0
H67: 0 | I67: =D67-H67 -> 0
H68: =E68+F68+G68 -> 0 | I68: =D68-H68 -> 0
H69: 0 | I69: 0
H70: 0 | I70: 0
H71: 0 | I71: 0
H72: 0 | I72: 0
H73: 0 | I73: 0
H74: 0 | I74: 0
B75: Total Trabajadores Oficiales | D75: =SUM(D62:D74) -> 0 | E75: =SUM(E62:E74) -> 0 | F75: 0 | G75: 0 | H75: =SUM(H62:H74) -> 0 | I75: =SUM(I62:I74) -> 0
B76: Total Personal | D76: =D60+D75 -> 2044 | E76: =E60+E75 -> 1249 | F76: =F60+F75 -> 236 | G76: 459 | H76: =H60+H75 -> 1944 | I76: =I60+I75 -> 100
B84: Ciudad y fecha | H84: Jefe de Personal

Sheet Formulario 2B- Programático
A1: MINISTERIO DE HACIENDA Y CRÉDITO PÚBLICO
A2: Dirección General del Presupuesto Público Nacional
A3: Formulario 2B. Anteproyecto Planta de personal - Clasificador Programatico
A5: CÓDIGO UEJ | B5: =+'Formulario 2- Planta'!B5 -> 370800
A6: UNIDAD EJECUTORA | B6: =+IFERROR(VLOOKUP(B5,DESPLEGABLES!$A$2:$C$229,2,0),"") -> UNIDAD NACIONAL DE PROTECCIÓN - UNP
A7: SECTOR PRESUPUESTAL | B7: =+IFERROR(VLOOKUP(B5,DESPLEGABLES!$A$2:$C$229,3,0),"") -> INTERIOR
A10: DENOMINACIÓN DE CARGOS | B10: Grado | C10: No. Cargos | D10: Total Salario | F10: Total Remuneraciones no constitutivas de Factor Salarial | H10: Total Contribuciones Inherentes a la Nómina | J10: Total Gastos de personal | K10: Dependencias con fines programaticos | S10: CHECK
E11: Porc. Unit. Salarios | G11: Porc. Unit. Remuneraciones | I11: Porc. Unit. Contribuciones | K11: Alta gerencia | L11: Secretaria general y dependencias de apoyo | M11: Oficinas asesoras | N11: Dependencia misional 1 SER | O11: Dependencia msional 2 SP | P11: Dependencia msional SESP | Q11: Dependencia msional 4 | R11: Dependencia msional 5
A12: EMPLEADOS PÚBLICOS
A13: NIVEL DIRECTIVO | B13: =+'Formulario 2- Planta'!B17 -> 88 | C13: =SUM(C14:C21) -> 7 | D13: =+'Formulario 2- Planta'!W17 -> 1370260519 | E13: =IFERROR((D13/C13)/($D$140),0) -> 0.002042352756 | F13: =+'Formulario 2- Planta'!AK17 -> 482277288.2 | G13: =IFERROR((F13/C13)/$F$140,0) -> 0.01768690767 | H13: =SUM(H14:H21) -> 548229110 | I13: =IFERROR((H13/C13)/$H$140,0) -> 0.002094564287 | J13: =SUM(J14:J21) -> 2400766917 | K13: =+SUM(K14:K21) -> 1 | L13: =+SUM(L14:L21) -> 2 | M13: =+SUM(M14:M21) -> 1 | N13: 1 | O13: 1 | P13: 1 | Q13: 0 | R13: 0 | S13: =+SUM(K13:R13) -> 7 | T13: =+S13=C13 -> TRUE
A14: =+'Formulario 2- Planta'!A18 -> Director General | B14: =+'Formulario 2- Planta'!B18 -> 24 | C14: 1 | D14: =+'Formulario 2- Planta'!W18 -> 210521434.3 | E14: 0.002196453287 | F14: =+'Formulario 2- Planta'!AK18 -> 158974944.5 | G14: 0.04081143078 | H14: =+'Formulario 2- Planta'!AV18 -> 84227763.25 | I14: 0.002252604306 | J14: =D14+F14+H14 -> 453724142.1 | K14: 1 | S14: =+SUM(K14:R14) -> 1 | T14: =+S14=C14 -> TRUE
A15: =+'Formulario 2- Planta'!A19 -> Secretario general | B15: =+'Formulario 2- Planta'!B19 -> 23 | C15: 1 | D15: =+'Formulario 2- Planta'!W19 -> 195097154 | E15: 0.002035525678 | F15: =+'Formulario 2- Planta'!AK19 -> 94523696.93 | G15: 0.02426575663 | H15: =+'Formulario 2- Planta'!AV19 -> 78056645.17 | I15: 0.002087562678 | J15: =D15+F15+H15 -> 367677496.1 | L15: 1 | S15: 1 | T15: TRUE
A16: =+'Formulario 2- Planta'!A20 -> Subdirector general | B16: =+'Formulario 2- Planta'!B20 -> 21 | C16: 4 | D16: =+'Formulario 2- Planta'!W20 -> 722358454.9 | E16: 0.001884162779 | F16: =+'Formulario 2- Planta'!AK20 -> 214976387.3 | G16: 0.01379697595 | H16: =+'Formulario 2- Planta'!AV20 -> 289009226.7 | I16: 0.001932330277 | J16: 1226344069 | L16: 1 | N16: 1 | O16: 1 | P16: 1 | S16: =+SUM(K16:R16) -> 4 | T16: TRUE
A17: =+'Formulario 2- Planta'!A21 -> Jefe de Oficina | B17: =+'Formulario 2- Planta'!B21 -> 20 | C17: 1 | D17: =+'Formulario 2- Planta'!W21 -> 242283475.5 | E17: 0.002527839211 | F17: =+'Formulario 2- Planta'!AK21 -> 13802259.45 | G17: 0.003543262478 | H17: =+'Formulario 2- Planta'!AV21 -> 96935474.92 | I17: 0.002592461913 | J17: 353021209.9 | M17: 1 | S17: 1 | T17: TRUE
A18: =+'Formulario 2- Planta'!A22 -> 0 | B18: =+'Formulario 2- Planta'!B22 -> 0 | D18: =+'Formulario 2- Planta'!W22 -> 0 | E18: 0 | F18: =+'Formulario 2- Planta'!AK22 -> 0 | G18: 0 | H18: =+'Formulario 2- Planta'!AV22 -> 0 | I18: 0 | J18: 0 | S18: 0 | T18: TRUE
A19: =+'Formulario 2- Planta'!A23 -> 0 | B19: =+'Formulario 2- Planta'!B23 -> 0 | D19: =+'Formulario 2- Planta'!W23 -> 0 | E19: 0 | F19: =+'Formulario 2- Planta'!AK23 -> 0 | G19: 0 | H19: =+'Formulario 2- Planta'!AV23 -> 0 | I19: 0 | J19: 0 | S19: 0 | T19: TRUE
A20: =+'Formulario 2- Planta'!A24 -> 0 | B20: =+'Formulario 2- Planta'!B24 -> 0 | D20: =+'Formulario 2- Planta'!W24 -> 0 | E20: 0 | F20: =+'Formulario 2- Planta'!AK24 -> 0 | G20: 0 | H20: =+'Formulario 2- Planta'!AV24 -> 0 | I20: 0 | J20: 0 | S20: 0 | T20: TRUE
A21: =+'Formulario 2- Planta'!A25 -> 0 | B21: =+'Formulario 2- Planta'!B25 -> 0 | D21: =+'Formulario 2- Planta'!W25 -> 0 | E21: 0 | F21: =+'Formulario 2- Planta'!AK25 -> 0 | G21: 0 | H21: =+'Formulario 2- Planta'!AV25 -> 0 | I21: 0 | J21: 0 | S21: 0 | T21: TRUE
A22: NIVEL ASESOR | B22: =+'Formulario 2- Planta'!B26 -> 37 | C22: =SUM(C23:C40) -> 6 | D22: =+'Formulario 2- Planta'!W26 -> 1073550561 | E22: 0.001866796183 | F22: =+'Formulario 2- Planta'!AK26 -> 417119963.4 | G22: 0.01784690303 | H22: =+'Formulario 2- Planta'!AV26 -> 396515174.6 | I22: 0.001767413648 | J22: 1887185699 | K22: =+SUM(K23:K40) -> 2 | L22: =+SUM(L23:L40) -> 1 | M22: =+SUM(M23:M40) -> 2 | N22: 0 | O22: 0 | P22: 1 | Q22: 0 | R22: 0 | S22: 6 | T22: TRUE
A23: =+'Formulario 2- Planta'!A27 -> Jefe de Oficina Asesora | B23: =+'Formulario 2- Planta'!B27 -> 14 | C23: 2 | D23: =+'Formulario 2- Planta'!W27 -> 471803246.9 | E23: 0.002461254827 | F23: =+'Formulario 2- Planta'!AK27 -> 9151915.19 | G23: 0.001174722074 | H23: =+'Formulario 2- Planta'!AV27 -> 188764304.8 | I23: 0.002524175339 | J23: 669719466.9 | M23: 2 | S23: 2 | T23: TRUE
A24: =+'Formulario 2- Planta'!A28 -> Asesor | B24: =+'Formulario 2- Planta'!B28 -> 12 | C24: 3 | D24: =+'Formulario 2- Planta'!W28 -> 407673268.8 | E24: 0.00141780542 | F24: =+'Formulario 2- Planta'!AK28 -> 346561763.8 | G24: 0.029655997 | H24: =+'Formulario 2- Planta'!AV28 -> 140747576.6 | I24: 0.001254727202 | J24: 894982609.2 | K24: 1 | L24: 1 | P24: 1 | S24: =+SUM(K24:R24) -> 3 | T24: =+S24=C24 -> TRUE
A25: =+'Formulario 2- Planta'!A29 -> Asesor | B25: =+'Formulario 2- Planta'!B29 -> 11 | C25: 1 | D25: =+'Formulario 2- Planta'!W29 -> 194074045.5 | E25: 0.002024851183 | F25: =+'Formulario 2- Planta'!AK29 -> 61406284.46 | G25: 0.01576398303 | H25: =+'Formulario 2- Planta'!AV29 -> 67003293.25 | I25: 0.001791949603 | J25: 322483623.2 | K25: 1 | S25: 1 | T25: TRUE
A26: =+'Formulario 2- Planta'!A30 -> 0 | B26: =+'Formulario 2- Planta'!B30 -> 0 | D26: =+'Formulario 2- Planta'!W30 -> 0 | E26: 0 | F26: =+'Formulario 2- Planta'!AK30 -> 0 | G26: 0 | H26: =+'Formulario 2- Planta'!AV30 -> 0 | I26: 0 | J26: 0 | S26: 0 | T26: TRUE
A27: =+'Formulario 2- Planta'!A31 -> 0 | B27: =+'Formulario 2- Planta'!B31 -> 0 | D27: =+'Formulario 2- Planta'!W31 -> 0 | E27: 0 | F27: =+'Formulario 2- Planta'!AK31 -> 0 | G27: 0 | H27: =+'Formulario 2- Planta'!AV31 -> 0 | I27: 0 | J27: 0 | S27: 0 | T27: TRUE
A28: =+'Formulario 2- Planta'!A32 -> 0 | B28: =+'Formulario 2- Planta'!B32 -> 0 | D28: =+'Formulario 2- Planta'!W32 -> 0 | E28: 0 | F28: =+'Formulario 2- Planta'!AK32 -> 0 | G28: 0 | H28: =+'Formulario 2- Planta'!AV32 -> 0 | I28: 0 | J28: 0 | S28: 0 | T28: TRUE
A29: =+'Formulario 2- Planta'!A33 -> 0 | B29: =+'Formulario 2- Planta'!B33 -> 0 | D29: =+'Formulario 2- Planta'!W33 -> 0 | E29: 0 | F29: =+'Formulario 2- Planta'!AK33 -> 0 | G29: 0 | H29: =+'Formulario 2- Planta'!AV33 -> 0 | I29: 0 | J29: 0 | S29: 0 | T29: TRUE
A30: =+'Formulario 2- Planta'!A34 -> 0 | B30: =+'Formulario 2- Planta'!B34 -> 0 | D30: =+'Formulario 2- Planta'!W34 -> 0 | E30: 0 | F30: =+'Formulario 2- Planta'!AK34 -> 0 | G30: 0 | H30: =+'Formulario 2- Planta'!AV34 -> 0 | I30: 0 | J30: 0 | S30: 0 | T30: TRUE
A31: =+'Formulario 2- Planta'!A35 -> 0 | B31: =+'Formulario 2- Planta'!B35 -> 0 | D31: =+'Formulario 2- Planta'!W35 -> 0 | E31: 0 | F31: =+'Formulario 2- Planta'!AK35 -> 0 | G31: 0 | H31: =+'Formulario 2- Planta'!AV35 -> 0 | I31: 0 | J31: 0 | S31: 0 | T31: TRUE
A32: =+'Formulario 2- Planta'!A36 -> 0 | B32: =+'Formulario 2- Planta'!B36 -> 0 | D32: =+'Formulario 2- Planta'!W36 -> 0 | E32: 0 | F32: =+'Formulario 2- Planta'!AK36 -> 0 | G32: 0 | H32: =+'Formulario 2- Planta'!AV36 -> 0 | I32: 0 | J32: 0 | S32: 0 | T32: TRUE
A33: =+'Formulario 2- Planta'!A37 -> 0 | B33: =+'Formulario 2- Planta'!B37 -> 0 | D33: =+'Formulario 2- Planta'!W37 -> 0 | E33: 0 | F33: =+'Formulario 2- Planta'!AK37 -> 0 | G33: 0 | H33: =+'Formulario 2- Planta'!AV37 -> 0 | I33: 0 | J33: 0 | S33: 0 | T33: TRUE
A34: =+'Formulario 2- Planta'!A38 -> 0 | B34: =+'Formulario 2- Planta'!B38 -> 0 | D34: =+'Formulario 2- Planta'!W38 -> 0 | E34: 0 | F34: =+'Formulario 2- Planta'!AK38 -> 0 | G34: 0 | H34: =+'Formulario 2- Planta'!AV38 -> 0 | I34: 0 | J34: 0 | S34: 0 | T34: TRUE
A35: =+'Formulario 2- Planta'!A39 -> 0 | B35: =+'Formulario 2- Planta'!B39 -> 0 | D35: =+'Formulario 2- Planta'!W39 -> 0 | E35: 0 | F35: =+'Formulario 2- Planta'!AK39 -> 0 | G35: 0 | H35: =+'Formulario 2- Planta'!AV39 -> 0 | I35: 0 | J35: 0 | S35: 0 | T35: TRUE
A36: =+'Formulario 2- Planta'!A40 -> 0 | B36: =+'Formulario 2- Planta'!B40 -> 0 | D36: =+'Formulario 2- Planta'!W40 -> 0 | E36: 0 | F36: =+'Formulario 2- Planta'!AK40 -> 0 | G36: 0 | H36: =+'Formulario 2- Planta'!AV40 -> 0 | I36: 0 | J36: 0 | S36: 0 | T36: TRUE
A37: =+'Formulario 2- Planta'!A41 -> 0 | B37: =+'Formulario 2- Planta'!B41 -> 0 | D37: =+'Formulario 2- Planta'!W41 -> 0 | E37: 0 | F37: =+'Formulario 2- Planta'!AK41 -> 0 | G37: 0 | H37: =+'Formulario 2- Planta'!AV41 -> 0 | I37: 0 | J37: 0 | S37: 0 | T37: TRUE
A38: =+'Formulario 2- Planta'!A42 -> 0 | B38: =+'Formulario 2- Planta'!B42 -> 0 | D38: =+'Formulario 2- Planta'!W42 -> 0 | E38: 0 | F38: =+'Formulario 2- Planta'!AK42 -> 0 | G38: 0 | H38: =+'Formulario 2- Planta'!AV42 -> 0 | I38: 0 | J38: 0 | S38: 0 | T38: TRUE
A39: =+'Formulario 2- Planta'!A43 -> 0 | B39: =+'Formulario 2- Planta'!B43 -> 0 | D39: =+'Formulario 2- Planta'!W43 -> 0 | E39: 0 | F39: =+'Formulario 2- Planta'!AK43 -> 0 | G39: 0 | H39: =+'Formulario 2- Planta'!AV43 -> 0 | I39: 0 | J39: 0 | S39: 0 | T39: TRUE
A40: =+'Formulario 2- Planta'!A44 -> 0 | B40: =+'Formulario 2- Planta'!B44 -> 0 | D40: =+'Formulario 2- Planta'!W44 -> 0 | E40: 0 | F40: =+'Formulario 2- Planta'!AK44 -> 0 | G40: 0 | H40: =+'Formulario 2- Planta'!AV44 -> 0 | I40: 0 | J40: 0 | S40: 0 | T40: TRUE
A41: NIVEL EJECUTIVO | B41: =+'Formulario 2- Planta'!B45 -> 0 | C41: =SUM(C42:C48) -> 0 | D41: =+'Formulario 2- Planta'!W45 -> 0 | E41: 0 | F41: =+'Formulario 2- Planta'!AK45 -> 0 | G41: 0 | H41: =+'Formulario 2- Planta'!AV45 -> 0 | I41: 0 | J41: 0 | K41: =+SUM(K42:K48) -> 0 | S41: 0 | T41: TRUE
A42: =+'Formulario 2- Planta'!A46 -> 0 | B42: =+'Formulario 2- Planta'!B46 -> 0 | D42: =+'Formulario 2- Planta'!W46 -> 0 | E42: 0 | F42: =+'Formulario 2- Planta'!AK46 -> 0 | G42: 0 | H42: =+'Formulario 2- Planta'!AV46 -> 0 | I42: 0 | J42: 0 | S42: =+SUM(K42:R42) -> 0 | T42: TRUE
A43: =+'Formulario 2- Planta'!A47 -> 0 | B43: =+'Formulario 2- Planta'!B47 -> 0 | D43: =+'Formulario 2- Planta'!W47 -> 0 | E43: 0 | F43: =+'Formulario 2- Planta'!AK47 -> 0 | G43: 0 | H43: =+'Formulario 2- Planta'!AV47 -> 0 | I43: 0 | J43: 0 | S43: 0 | T43: TRUE
A44: =+'Formulario 2- Planta'!A48 -> 0 | B44: =+'Formulario 2- Planta'!B48 -> 0 | D44: =+'Formulario 2- Planta'!W48 -> 0 | E44: 0 | F44: =+'Formulario 2- Planta'!AK48 -> 0 | G44: 0 | H44: =+'Formulario 2- Planta'!AV48 -> 0 | I44: 0 | J44: 0 | S44: 0 | T44: TRUE
A45: =+'Formulario 2- Planta'!A49 -> 0 | B45: =+'Formulario 2- Planta'!B49 -> 0 | D45: =+'Formulario 2- Planta'!W49 -> 0 | E45: =IFERROR((D45/C45)/($D$140),0) -> 0 | F45: =+'Formulario 2- Planta'!AK49 -> 0 | G45: =IFERROR((F45/C45)/$F$140,0) -> 0 | H45: =+'Formulario 2- Planta'!AV49 -> 0 | I45: =IFERROR((H45/C45)/$H$140,0) -> 0 | J45: 0 | S45: =+SUM(K45:R45) -> 0 | T45: TRUE
A46: =+'Formulario 2- Planta'!A50 -> 0 | B46: =+'Formulario 2- Planta'!B50 -> 0 | D46: =+'Formulario 2- Planta'!W50 -> 0 | E46: 0 | F46: =+'Formulario 2- Planta'!AK50 -> 0 | G46: 0 | H46: =+'Formulario 2- Planta'!AV50 -> 0 | I46: 0 | J46: 0 | S46: 0 | T46: TRUE
A47: =+'Formulario 2- Planta'!A51 -> 0 | B47: =+'Formulario 2- Planta'!B51 -> 0 | D47: =+'Formulario 2- Planta'!W51 -> 0 | E47: 0 | F47: =+'Formulario 2- Planta'!AK51 -> 0 | G47: 0 | H47: =+'Formulario 2- Planta'!AV51 -> 0 | I47: 0 | J47: 0 | S47: 0 | T47: TRUE
A48: =+'Formulario 2- Planta'!A52 -> 0 | B48: =+'Formulario 2- Planta'!B52 -> 0 | D48: =+'Formulario 2- Planta'!W52 -> 0 | E48: 0 | F48: =+'Formulario 2- Planta'!AK52 -> 0 | G48: 0 | H48: =+'Formulario 2- Planta'!AV52 -> 0 | I48: 0 | J48: 0 | S48: 0 | T48: TRUE
A49: NIVEL PROFESIONAL | B49: =+'Formulario 2- Planta'!B53 -> 82 | C49: =SUM(C50:C73) -> 128 | D49: =+'Formulario 2- Planta'!W53 -> 9816659161 | E49: 0.0008001647106 | F49: =+'Formulario 2- Planta'!AK53 -> 517258142.8 | G49: 0.001037410179 | H49: =+'Formulario 2- Planta'!AV53 -> 3384692945 | I49: 0.000707194621 | J49: 1.371861025e+10 | K49: =+SUM(K50:K73) -> 1 | L49: =+SUM(L50:L73) -> 35 | M49: =+SUM(M50:M73) -> 13 | N49: 10 | O49: 35 | P49: 34 | Q49: 0 | R49: 0 | S49: 128 | T49: TRUE
A50: =+'Formulario 2- Planta'!A54 -> Profesional Especializado | B50: =+'Formulario 2- Planta'!B54 -> 22 | C50: 6 | D50: =+'Formulario 2- Planta'!W54 -> 862699544.3 | E50: 0.001500147524 | F50: =+'Formulario 2- Planta'!AK54 -> 58857029.6 | G50: 0.002518258035 | H50: =+'Formulario 2- Planta'!AV54 -> 297843590.6 | I50: 0.001327598187 | J50: 1219400165 | L50: 3 | O50: 1 | P50: 2 | S50: 6 | T50: TRUE
A51: =+'Formulario 2- Planta'!A55 -> Profesional Especializado | B51: =+'Formulario 2- Planta'!B55 -> 18 | C51: 23 | D51: =+'Formulario 2- Planta'!W55 -> 2491415285 | E51: 0.001130170429 | F51: =+'Formulario 2- Planta'!AK55 -> 213968192.8 | G51: 0.002388221046 | H51: =+'Formulario 2- Planta'!AV55 -> 860151230.1 | I51: 0.001000176442 | J51: 3565534708 | K51: 1 | L51: 7 | M51: 2 | O51: 9 | P51: 4 | S51: =+SUM(K51:R51) -> 23 | T51: =+S51=C51 -> TRUE
A52: =+'Formulario 2- Planta'!A56 -> Profesional Especializado | B52: =+'Formulario 2- Planta'!B56 -> 14 | C52: 11 | D52: =+'Formulario 2- Planta'!W56 -> 882466008.4 | E52: 0.0008370105883 | F52: =+'Formulario 2- Planta'!AK56 -> 40585806.66 | G52: 0.0009471846155 | H52: =+'Formulario 2- Planta'!AV56 -> 304667883.8 | I52: 0.0007407363088 | J52: 1227719699 | L52: 1 | M52: 1 | P52: 9 | S52: 11 | T52: TRUE
A53: =+'Formulario 2- Planta'!A57 -> Profesional Universitario | B53: =+'Formulario 2- Planta'!B57 -> 11 | C53: 72 | D53: =+'Formulario 2- Planta'!W57 -> 4695606467 | E53: 0.0006804321834 | F53: =+'Formulario 2- Planta'!AK57 -> 160950672.9 | G53: 0.0005738698901 | H53: =+'Formulario 2- Planta'!AV57 -> 1621139479 | I53: 0.0006021677993 | J53: 6477696619 | L53: 22 | M53: 10 | N53: 10 | O53: 20 | P53: 10 | S53: 72 | T53: TRUE
A54: =+'Formulario 2- Planta'!A58 -> Profesional Universitario | B54: =+'Formulario 2- Planta'!B58 -> 1 | C54: 10 | D54: =+'Formulario 2- Planta'!W58 -> 395500872.7 | E54: 0.0004126416842 | F54: =+'Formulario 2- Planta'!AK58 -> 27969850.49 | G54: 0.0007180311466 | H54: =+'Formulario 2- Planta'!AV58 -> 136545105.2 | I54: 0.0003651789861 | J54: 560015828.3 | L54: 1 | P54: 9 | S54: 10 | T54: TRUE
A55: =+'Formulario 2- Planta'!A59 -> Profesional de proteccion | B55: =+'Formulario 2- Planta'!B59 -> 6 | C55: 2 | D55: =+'Formulario 2- Planta'!W59 -> 145888779.1 | E55: 0.0007610576321 | F55: =+'Formulario 2- Planta'!AK59 -> 483691.2326 | G55: 6.208566802e-05 | H55: =+'Formulario 2- Planta'!AV59 -> 49033967.12 | I55: 0.0006556871584 | J55: 195406437.5 | O55: 2 | S55: 2 | T55: TRUE
A56: =+'Formulario 2- Planta'!A60 -> Profesional de proteccion | B56: =+'Formulario 2- Planta'!B60 -> 10 | C56: 4 | D56: =+'Formulario 2- Planta'!W60 -> 343082203.6 | E56: 0.0008948780401 | F56: =+'Formulario 2- Planta'!AK60 -> 14442899.12 | G56: 0.000926931252 | H56: =+'Formulario 2- Planta'!AV60 -> 115311688.7 | I56: 0.0007709797714 | J56: 472836791.5 | L56: 1 | O56: 3 | S56: 4 | T56: TRUE
A57: =+'Formulario 2- Planta'!A61 -> 0 | B57: =+'Formulario 2- Planta'!B61 -> 0 | D57: =+'Formulario 2- Planta'!W61 -> 0 | E57: 0 | F57: =+'Formulario 2- Planta'!AK61 -> 0 | G57: 0 | H57: =+'Formulario 2- Planta'!AV61 -> 0 | I57: 0 | J57: 0 | S57: 0 | T57: TRUE
A58: =+'Formulario 2- Planta'!A62 -> 0 | B58: =+'Formulario 2- Planta'!B62 -> 0 | D58: =+'Formulario 2- Planta'!W62 -> 0 | E58: 0 | F58: =+'Formulario 2- Planta'!AK62 -> 0 | G58: 0 | H58: =+'Formulario 2- Planta'!AV62 -> 0 | I58: 0 | J58: 0 | S58: 0 | T58: TRUE
A59: =+'Formulario 2- Planta'!A63 -> 0 | B59: =+'Formulario 2- Planta'!B63 -> 0 | D59: =+'Formulario 2- Planta'!W63 -> 0 | E59: 0 | F59: =+'Formulario 2- Planta'!AK63 -> 0 | G59: 0 | H59: =+'Formulario 2- Planta'!AV63 -> 0 | I59: 0 | J59: 0 | S59: 0 | T59: TRUE
A60: =+'Formulario 2- Planta'!A64 -> 0 | B60: =+'Formulario 2- Planta'!B64 -> 0 | D60: =+'Formulario 2- Planta'!W64 -> 0 | E60: 0 | F60: =+'Formulario 2- Planta'!AK64 -> 0 | G60: 0 | H60: =+'Formulario 2- Planta'!AV64 -> 0 | I60: 0 | J60: 0 | S60: 0 | T60: TRUE
A61: =+'Formulario 2- Planta'!A65 -> 0 | B61: =+'Formulario 2- Planta'!B65 -> 0 | D61: =+'Formulario 2- Planta'!W65 -> 0 | E61: 0 | F61: =+'Formulario 2- Planta'!AK65 -> 0 | G61: 0 | H61: =+'Formulario 2- Planta'!AV65 -> 0 | I61: 0 | J61: 0 | S61: 0 | T61: TRUE
A62: =+'Formulario 2- Planta'!A66 -> 0 | B62: =+'Formulario 2- Planta'!B66 -> 0 | D62: =+'Formulario 2- Planta'!W66 -> 0 | E62: 0 | F62: =+'Formulario 2- Planta'!AK66 -> 0 | G62: 0 | H62: =+'Formulario 2- Planta'!AV66 -> 0 | I62: 0 | J62: 0 | S62: 0 | T62: TRUE
A63: =+'Formulario 2- Planta'!A67 -> 0 | B63: =+'Formulario 2- Planta'!B67 -> 0 | D63: =+'Formulario 2- Planta'!W67 -> 0 | E63: 0 | F63: =+'Formulario 2- Planta'!AK67 -> 0 | G63: 0 | H63: =+'Formulario 2- Planta'!AV67 -> 0 | I63: 0 | J63: 0 | S63: 0 | T63: TRUE
A64: =+'Formulario 2- Planta'!A68 -> 0 | B64: =+'Formulario 2- Planta'!B68 -> 0 | D64: =+'Formulario 2- Planta'!W68 -> 0 | E64: 0 | F64: =+'Formulario 2- Planta'!AK68 -> 0 | G64: 0 | H64: =+'Formulario 2- Planta'!AV68 -> 0 | I64: 0 | J64: 0 | S64: 0 | T64: TRUE
A65: =+'Formulario 2- Planta'!A69 -> 0 | B65: =+'Formulario 2- Planta'!B69 -> 0 | D65: =+'Formulario 2- Planta'!W69 -> 0 | E65: 0 | F65: =+'Formulario 2- Planta'!AK69 -> 0 | G65: 0 | H65: =+'Formulario 2- Planta'!AV69 -> 0 | I65: 0 | J65: 0 | S65: 0 | T65: TRUE
A66: =+'Formulario 2- Planta'!A70 -> 0 | B66: =+'Formulario 2- Planta'!B70 -> 0 | D66: =+'Formulario 2- Planta'!W70 -> 0 | E66: 0 | F66: =+'Formulario 2- Planta'!AK70 -> 0 | G66: 0 | H66: =+'Formulario 2- Planta'!AV70 -> 0 | I66: 0 | J66: 0 | S66: 0 | T66: TRUE
A67: =+'Formulario 2- Planta'!A71 -> 0 | B67: =+'Formulario 2- Planta'!B71 -> 0 | D67: =+'Formulario 2- Planta'!W71 -> 0 | E67: 0 | F67: =+'Formulario 2- Planta'!AK71 -> 0 | G67: 0 | H67: =+'Formulario 2- Planta'!AV71 -> 0 | I67: 0 | J67: 0 | S67: 0 | T67: TRUE
A68: =+'Formulario 2- Planta'!A72 -> 0 | B68: =+'Formulario 2- Planta'!B72 -> 0 | D68: =+'Formulario 2- Planta'!W72 -> 0 | E68: 0 | F68: =+'Formulario 2- Planta'!AK72 -> 0 | G68: 0 | H68: =+'Formulario 2- Planta'!AV72 -> 0 | I68: 0 | J68: 0 | S68: 0 | T68: TRUE
A69: =+'Formulario 2- Planta'!A73 -> 0 | B69: =+'Formulario 2- Planta'!B73 -> 0 | D69: =+'Formulario 2- Planta'!W73 -> 0 | E69: 0 | F69: =+'Formulario 2- Planta'!AK73 -> 0 | G69: 0 | H69: =+'Formulario 2- Planta'!AV73 -> 0 | I69: 0 | J69: 0 | S69: 0 | T69: TRUE
A70: =+'Formulario 2- Planta'!A74 -> 0 | B70: =+'Formulario 2- Planta'!B74 -> 0 | D70: =+'Formulario 2- Planta'!W74 -> 0 | E70: 0 | F70: =+'Formulario 2- Planta'!AK74 -> 0 | G70: 0 | H70: =+'Formulario 2- Planta'!AV74 -> 0 | I70: 0 | J70: 0 | S70: 0 | T70: TRUE
A71: =+'Formulario 2- Planta'!A75 -> 0 | B71: =+'Formulario 2- Planta'!B75 -> 0 | D71: =+'Formulario 2- Planta'!W75 -> 0 | E71: 0 | F71: =+'Formulario 2- Planta'!AK75 -> 0 | G71: 0 | H71: =+'Formulario 2- Planta'!AV75 -> 0 | I71: 0 | J71: 0 | S71: 0 | T71: TRUE
A72: =+'Formulario 2- Planta'!A76 -> 0 | B72: =+'Formulario 2- Planta'!B76 -> 0 | D72: =+'Formulario 2- Planta'!W76 -> 0 | E72: 0 | F72: =+'Formulario 2- Planta'!AK76 -> 0 | G72: 0 | H72: =+'Formulario 2- Planta'!AV76 -> 0 | I72: 0 | J72: 0 | S72: 0 | T72: TRUE
A73: =+'Formulario 2- Planta'!A77 -> 0 | B73: =+'Formulario 2- Planta'!B77 -> 0 | D73: =+'Formulario 2- Planta'!W77 -> 0 | E73: 0 | F73: =+'Formulario 2- Planta'!AK77 -> 0 | G73: 0 | H73: =+'Formulario 2- Planta'!AV77 -> 0 | I73: 0 | J73: 0 | S73: 0 | T73: TRUE
A74: NIVEL TÉCNICO | B74: =+'Formulario 2- Planta'!B78 -> 651 | C74: =SUM(C75:C98) -> 352 | D74: =+'Formulario 2- Planta'!W78 -> 1.776422442e+10 | E74: 0.0005265374173 | F74: =+'Formulario 2- Planta'!AK78 -> 1081784457 | G74: 0.0007889531459 | H74: =+'Formulario 2- Planta'!AV78 -> 6847580255 | I74: 0.0005202644002 | J74: 2.569358913e+10 | K74: =+SUM(K75:K98) -> 2 | L74: =+SUM(L75:L98) -> 24 | M74: 5 | N74: 45 | O74: 252 | P74: 24 | S74: =+SUM(K74:R74) -> 352 | T74: TRUE
A75: =+'Formulario 2- Planta'!A79 -> Técnico Administrativo | B75: =+'Formulario 2- Planta'!B79 -> 16 | C75: 10 | D75: =+'Formulario 2- Planta'!W79 -> 516236605 | E75: 0.0005386100432 | F75: =+'Formulario 2- Planta'!AK79 -> 10905077.86 | G75: 0.0002799509266 | H75: =+'Formulario 2- Planta'!AV79 -> 178228637.1 | I75: 0.0004766582656 | J75: 705370320 | L75: 8 | M75: 1 | O75: 1 | S75: =+SUM(K75:R75) -> 10 | T75: =+S75=C75 -> TRUE
A76: =+'Formulario 2- Planta'!A80 -> Técnico Administrativo | B76: =+'Formulario 2- Planta'!B80 -> 15 | C76: 5 | D76: =+'Formulario 2- Planta'!W80 -> 228450916.1 | E76: =IFERROR((D76/C76)/($D$140),0) -> 0.0004767037307 | F76: =+'Formulario 2- Planta'!AK80 -> 1049095.555 | G76: =IFERROR((F76/C76)/$F$140,0) -> 5.386394787e-05 | H76: =+'Formulario 2- Planta'!AV80 -> 78871771.24 | I76: =IFERROR((H76/C76)/$H$140,0) -> 0.0004218725149 | J76: 308371782.9 | K76: 1 | L76: 1 | O76: 3 | S76: 5 | T76: TRUE
A77: =+'Formulario 2- Planta'!A81 -> Técnico Administrativo | B77: =+'Formulario 2- Planta'!B81 -> 13 | C77: 7 | D77: =+'Formulario 2- Planta'!W81 -> 295238705.1 | E77: 0.0004400488629 | F77: =+'Formulario 2- Planta'!AK81 -> 1355799.393 | G77: 4.97222226e-05 | H77: =+'Formulario 2- Planta'!AV81 -> 101929990.1 | I77: 0.0003894337478 | J77: 398524494.6 | L77: 7 | S77: 7 | T77: TRUE
A78: =+'Formulario 2- Planta'!A82 -> Técnico Administrativo | B78: =+'Formulario 2- Planta'!B82 -> 12 | C78: 15 | D78: =+'Formulario 2- Planta'!W82 -> 593251309 | E78: 0.0004126416842 | F78: =+'Formulario 2- Planta'!AK82 -> 9262743.558 | G78: 0.0001585263718 | H78: =+'Formulario 2- Planta'!AV82 -> 204817657.7 | I78: 0.0003651789861 | J78: 807331710.3 | M78: 1 | N78: 1 | O78: 1 | P78: 12 | S78: 15 | T78: TRUE
A79: =+'Formulario 2- Planta'!A83 -> Tecnico Administrativo | B79: =+'Formulario 2- Planta'!B83 -> 11 | C79: 1 | D79: =+'Formulario 2- Planta'!W83 -> 44449144.46 | E79: 0.0004637554831 | F79: =+'Formulario 2- Planta'!AK83 -> 171275.5229 | G79: 4.396918751e-05 | H79: =+'Formulario 2- Planta'!AV83 -> 14939585.49 | I79: 0.0003995472907 | J79: 59560005.47 | O79: 1 | S79: 1 | T79: TRUE
A80: =+'Formulario 2- Planta'!A84 -> Tecnico Administrativo | B80: =+'Formulario 2- Planta'!B84 -> 10 | C80: 2 | D80: =+'Formulario 2- Planta'!W84 -> 86639023.17 | E80: 0.0004519695771 | F80: =+'Formulario 2- Planta'!AK84 -> 324931.1789 | G80: 4.170753559e-05 | H80: =+'Formulario 2- Planta'!AV84 -> 29119820.17 | I80: 0.000389393175 | J80: 116083774.5 | L80: 1 | O80: 1 | S80: 2 | T80: TRUE
A81: =+'Formulario 2- Planta'!A85 -> Tecnico Administrativo | B81: =+'Formulario 2- Planta'!B85 -> 9 | C81: 1 | D81: =+'Formulario 2- Planta'!W85 -> 40458486.05 | E81: 0.0004221193676 | F81: =+'Formulario 2- Planta'!AK85 -> 155254.5456 | G81: 3.98563444e-05 | H81: =+'Formulario 2- Planta'!AV85 -> 13598304.73 | I81: 0.0003636758071 | J81: 54212045.33 | O81: 1 | S81: 1 | T81: TRUE
A82: =+'Formulario 2- Planta'!A86 -> Tecnico Administrativo | B82: =+'Formulario 2- Planta'!B86 -> 9 | C82: 1 | D82: =+'Formulario 2- Planta'!W86 -> 38515184 | E82: 0.0004018441296 | F82: =+'Formulario 2- Planta'!AK86 -> 2076160.383 | G82: 0.0005329838359 | H82: =+'Formulario 2- Planta'!AV86 -> 12528873.63 | I82: 0.0003350747259 | J82: 53120218.01 | L82: 1 | S82: 1 | T82: TRUE
A83: =+'Formulario 2- Planta'!A87 -> Oficial de Proteccion | B83: =+'Formulario 2- Planta'!B87 -> 10 | C83: 40 | D83: =+'Formulario 2- Planta'!W87 -> 2034131288 | E83: 0.0005305723821 | F83: =+'Formulario 2- Planta'!AK87 -> 253781314.9 | G83: 0.001628743856 | H83: =+'Formulario 2- Planta'!AV87 -> 789541828.1 | I83: 0.0005278916515 | J83: 3077454431 | M83: 2 | N83: 8 | O83: 30 | S83: 40 | T83: TRUE
A84: =+'Formulario 2- Planta'!A88 -> Oficial de Proteccion | B84: =+'Formulario 2- Planta'!B88 -> 10 | C84: 21 | D84: =+'Formulario 2- Planta'!W88 -> 842195175.7 | E84: 0.0004184264269 | F84: =+'Formulario 2- Planta'!AK88 -> 5413984.881 | G84: 6.618367557e-05 | H84: =+'Formulario 2- Planta'!AV88 -> 315871376.6 | I84: 0.0004022727558 | J84: 1163480537 | L84: 2 | O84: 7 | P84: 12 | S84: 21 | T84: =+S84=C84 -> TRUE
A85: =+'Formulario 2- Planta'!A89 -> Oficial de Proteccion | B85: =+'Formulario 2- Planta'!B89 -> 11 | C85: 94 | D85: =+'Formulario 2- Planta'!W89 -> 5113584835 | E85: 0.0005675750067 | F85: =+'Formulario 2- Planta'!AK89 -> 332354429.7 | G85: 0.0009076674395 | H85: =+'Formulario 2- Planta'!AV89 -> 1984822289 | I85: 0.0005647073194 | J85: 7430761553 | L85: 1 | M85: 1 | N85: 26 | O85: 66 | S85: 94 | T85: TRUE
A86: =+'Formulario 2- Planta'!A90 -> Oficial de Proteccion | B86: =+'Formulario 2- Planta'!B90 -> 11 | C86: 10 | D86: =+'Formulario 2- Planta'!W90 -> 235848766.3 | E86: 0.0002460703347 | F86: =+'Formulario 2- Planta'!AK90 -> 3025378.935 | G86: 7.766635387e-05 | H86: =+'Formulario 2- Planta'!AV90 -> 91541142.63 | I86: 0.0002448194801 | J86: 330415287.8 | K86: 1 | L86: 1 | O86: 8 | S86: 10 | T86: TRUE
A87: =+'Formulario 2- Planta'!A91 -> Oficial de Proteccion | B87: =+'Formulario 2- Planta'!B91 -> 13 | C87: 48 | D87: =+'Formulario 2- Planta'!W91 -> 3006072981 | E87: 0.0006534072274 | F87: =+'Formulario 2- Planta'!AK91 -> 219800794.8 | G87: 0.001175550145 | H87: =+'Formulario 2- Planta'!AV91 -> 1166798019 | I87: 0.0006501058706 | J87: 4392671794 | L87: 2 | N87: 5 | O87: 41 | S87: 48 | T87: TRUE
A88: =+'Formulario 2- Planta'!A92 -> Oficial de Proteccion | B88: =+'Formulario 2- Planta'!B92 -> 13 | C88: 22 | D88: =+'Formulario 2- Planta'!W92 -> 748207054.1 | E88: 0.0003548336256 | F88: =+'Formulario 2- Planta'!AK92 -> 5643806.652 | G88: 6.585709727e-05 | H88: =+'Formulario 2- Planta'!AV92 -> 302828357.5 | I88: 0.0003681319425 | J88: 1056679218 | O88: 22 | S88: 22 | T88: TRUE
A89: =+'Formulario 2- Planta'!A93 -> Oficial de Proteccion | B89: =+'Formulario 2- Planta'!B93 -> 14 | C89: 15 | D89: =+'Formulario 2- Planta'!W93 -> 961134368.3 | E89: 0.0006685263031 | F89: =+'Formulario 2- Planta'!AK93 -> 109084217.4 | G89: 0.001866911795 | H89: =+'Formulario 2- Planta'!AV93 -> 379629905.7 | I89: 0.000676859923 | J89: 1449848491 | N89: 3 | O89: 12 | S89: 15 | T89: TRUE
A90: =+'Formulario 2- Planta'!A94 -> Oficial de Proteccion | B90: =+'Formulario 2- Planta'!B94 -> 14 | C90: 27 | D90: =+'Formulario 2- Planta'!W94 -> 1136655080 | E90: 0.0004392285728 | F90: =+'Formulario 2- Planta'!AK94 -> 8793199.122 | G90: 8.3605776e-05 | H90: =+'Formulario 2- Planta'!AV94 -> 454765640.7 | I90: 0.0004504571893 | J90: 1600213919 | O90: 27 | S90: 27 | T90: TRUE
A91: =+'Formulario 2- Planta'!A95 -> Oficial de Proteccion | B91: =+'Formulario 2- Planta'!B95 -> 15 | C91: 8 | D91: =+'Formulario 2- Planta'!W95 -> 589727981.3 | E91: 0.0007691081241 | F91: =+'Formulario 2- Planta'!AK95 -> 49589111.66 | G91: 0.001591290536 | H91: =+'Formulario 2- Planta'!AV95 -> 228901109.4 | I91: 0.0007652221856 | J91: 868218202.4 | N91: 2 | O91: 6 | S91: 8 | T91: TRUE
A92: =+'Formulario 2- Planta'!A96 -> Oficial de Proteccion | B92: =+'Formulario 2- Planta'!B96 -> 15 | C92: 14 | D92: =+'Formulario 2- Planta'!W96 -> 593972381.7 | E92: 0.0004426534642 | F92: =+'Formulario 2- Planta'!AK96 -> 5064827.675 | G92: 9.287306458e-05 | H92: =+'Formulario 2- Planta'!AV96 -> 237643094.7 | I92: 0.0004539696361 | J92: 836680304.1 | O92: 14 | S92: 14 | T92: TRUE
A93: =+'Formulario 2- Planta'!A97 -> Oficial de Proteccion | B93: =+'Formulario 2- Planta'!B97 -> 16 | C93: 3 | D93: =+'Formulario 2- Planta'!W97 -> 220970052.4 | E93: 0.0007684892827 | F93: =+'Formulario 2- Planta'!AK97 -> 54527425.67 | G93: 0.004666023032 | H93: =+'Formulario 2- Planta'!AV97 -> 85768848.92 | I93: 0.0007646064708 | J93: 361266327 | O93: 3 | S93: 3 | T93: TRUE
A94: =+'Formulario 2- Planta'!A98 -> Oficial de Proteccion | B94: =+'Formulario 2- Planta'!B98 -> 16 | C94: 4 | D94: =+'Formulario 2- Planta'!W98 -> 206494642 | E94: 0.0005386100432 | F94: =+'Formulario 2- Planta'!AK98 -> 5513352.843 | G94: 0.0003538416361 | H94: =+'Formulario 2- Planta'!AV98 -> 82616679.28 | I94: 0.0005523792878 | J94: 294624674.1 | O94: 4 | S94: 4 | T94: TRUE
A95: =+'Formulario 2- Planta'!A99 -> Oficial de Proteccion | B95: =+'Formulario 2- Planta'!B99 -> 17 | C95: 2 | D95: =+'Formulario 2- Planta'!W99 -> 110528713 | E95: 0.0005765948625 | F95: =+'Formulario 2- Planta'!AK99 -> 3334496.377 | G95: 0.0004280094844 | H95: =+'Formulario 2- Planta'!AV99 -> 44221560.14 | I95: 0.0005913351664 | J95: 158084769.5 | O95: 2 | S95: 2 | T95: TRUE
A96: =+'Formulario 2- Planta'!A100 -> Oficial de Proteccion | B96: =+'Formulario 2- Planta'!B100 -> 18 | C96: 2 | D96: =+'Formulario 2- Planta'!W100 -> 121461730.6 | E96: 0.0006336291087 | F96: =+'Formulario 2- Planta'!AK100 -> 557778.2918 | G96: 7.159533917e-05 | H96: =+'Formulario 2- Planta'!AV100 -> 48595763.78 | I96: 0.000649827459 | J96: 170615272.7 | O96: 2 | S96: 2 | T96: TRUE
E97: =IFERROR((D97/C97)/($D$140),0) -> 0 | G97: =IFERROR((F97/C97)/$F$140,0) -> 0 | I97: =IFERROR((H97/C97)/$H$140,0) -> 0 | J97: =D97+F97+H97 -> 0 | S97: 0 | T97: TRUE
E98: =IFERROR((D98/C98)/($D$140),0) -> 0 | G98: =IFERROR((F98/C98)/$F$140,0) -> 0 | I98: =IFERROR((H98/C98)/$H$140,0) -> 0 | J98: 0 | S98: 0 | T98: TRUE
A99: NIVEL ASISTENCIAL | B99: =+'Formulario 2- Planta'!B102 -> 363 | C99: =SUM(C100:C123) -> 1551 | D99: =+'Formulario 2- Planta'!W102 -> 6.582138387e+10 | E99: =IFERROR((D99/C99)/($D$140),0) -> 0.0004427727271 | F99: =+'Formulario 2- Planta'!AK102 -> 1396913522 | G99: =IFERROR((F99/C99)/$F$140,0) -> 0.0002312122617 | H99: =+'Formulario 2- Planta'!AV102 -> 2.62142647e+10 | I99: =IFERROR((H99/C99)/$H$140,0) -> 0.0004520177871 | J99: =D99+F99+H99 -> 9.343256209e+10 | K99: =+SUM(K100:K123) -> 3 | L99: =+SUM(L100:L123) -> 16 | M99: 8 | N99: 12 | O99: 300 | P99: 1212 | Q99: 0 | S99: 1551 | T99: TRUE
A100: =+'Formulario 2- Planta'!A103 -> Agente de Protecion | B100: =+'Formulario 2- Planta'!B103 -> 16 | C100: 171 | D100: =+'Formulario 2- Planta'!W103 -> 7981372045 | E100: =IFERROR((D100/C100)/($D$140),0) -> 0.0004869754823 | F100: =+'Formulario 2- Planta'!AK103 -> 488545776.8 | G100: =IFERROR((F100/C100)/$F$140,0) -> 0.0007334361156 | H100: =+'Formulario 2- Planta'!AV103 -> 3097945109 | I100: =IFERROR((H100/C100)/$H$140,0) -> 0.0004845150261 | J100: 1.156786293e+10 | L100: 4 | N100: 6 | O100: 161 | S100: =+SUM(K100:R100) -> 171 | T100: =+S100=C100 -> TRUE
A101: =+'Formulario 2- Planta'!A104 -> Agente de Protecion | B101: =+'Formulario 2- Planta'!B104 -> 16 | C101: 29 | D101: =+'Formulario 2- Planta'!W104 -> 924364416 | E101: =IFERROR((D101/C101)/($D$140),0) -> 0.0003325606589 | F101: =+'Formulario 2- Planta'!AK104 -> 3726109.094 | G101: =IFERROR((F101/C101)/$F$140,0) -> 3.298456088e-05 | H101: =+'Formulario 2- Planta'!AV104 -> 345734639.6 | I101: =IFERROR((H101/C101)/$H$140,0) -> 0.000318841276 | J101: 1273825165 | O101: 29 | S101: 29 | T101: TRUE
A102: =+'Formulario 2- Planta'!A105 -> Agente de Protecion | B102: =+'Formulario 2- Planta'!B105 -> 20 | C102: 4 | D102: =+'Formulario 2- Planta'!W105 -> 249702555.1 | E102: 0.0006513113498 | F102: =+'Formulario 2- Planta'!AK105 -> 52163419.66 | G102: 0.003347797662 | H102: =+'Formulario 2- Planta'!AV105 -> 96921281.83 | I102: 0.0006480205825 | J102: 398787256.6 | O102: 4 | S102: 4 | T102: TRUE
A103: =+'Formulario 2- Planta'!A106 -> Agente de Protecion | B103: =+'Formulario 2- Planta'!B106 -> 20 | C103: 3 | D103: =+'Formulario 2- Planta'!W106 -> 76043964.74 | E103: 0.0002644655747 | F103: =+'Formulario 2- Planta'!AK106 -> 343668.9973 | G103: 2.940845707e-05 | H103: =+'Formulario 2- Planta'!AV106 -> 30142547.1 | I103: 0.0002687127885 | J103: 106530180.8 | O103: 3 | S103: 3 | T103: TRUE
A104: =+'Formulario 2- Planta'!A107 -> Agente de Protecion | B104: =+'Formulario 2- Planta'!B107 -> 23 | C104: 6 | D104: =+'Formulario 2- Planta'!W107 -> 348851619.2 | E104: 0.0006066177921 | F104: =+'Formulario 2- Planta'!AK107 -> 47624269.71 | G104: 0.002037652948 | H104: =+'Formulario 2- Planta'!AV107 -> 135405687.3 | I104: 0.0006035528401 | J104: 531881576.3 | L104: 1 | O104: 5 | S104: 6 | T104: TRUE
A105: =+'Formulario 2- Planta'!A108 -> Agentes Escoltas | B105: =+'Formulario 2- Planta'!B108 -> - | C105: 1200 | D105: =+'Formulario 2- Planta'!W108 -> 5.061864357e+10 | E105: 0.0004401035872 | F105: =+'Formulario 2- Planta'!AK108 -> 334051846.4 | G105: 7.146374463e-05 | H105: =+'Formulario 2- Planta'!AV108 -> 2.048732444e+10 | I105: 0.0004565976178 | J105: 7.144001986e+10 | N105: 1 | O105: 18 | P105: 1181 | S105: 1200 | T105: TRUE
A106: =+'Formulario 2- Planta'!A109 -> Auxiliar Administrativo | B106: =+'Formulario 2- Planta'!B109 -> 11 | C106: 48 | D106: =+'Formulario 2- Planta'!W109 -> 1552686992 | E106: 0.0003374957658 | F106: =+'Formulario 2- Planta'!AK109 -> 15272605.88 | G106: 8.168175224e-05 | H106: =+'Formulario 2- Planta'!AV109 -> 499178665 | I106: 0.0002781278125 | J106: 2067138263 | K106: 1 | L106: 5 | M106: 4 | N106: 1 | O106: 9 | P106: 28 | S106: 48 | T106: TRUE
A107: =+'Formulario 2- Planta'!A110 -> Auxiliar Administrativo | B107: =+'Formulario 2- Planta'!B110 -> 15 | C107: 1 | D107: =+'Formulario 2- Planta'!W110 -> 37058486.28 | E107: 0.0003866458267 | F107: =+'Formulario 2- Planta'!AK110 -> 148645.3511 | G107: 3.815965765e-05 | H107: =+'Formulario 2- Planta'!AV110 -> 12025954.53 | I107: 0.0003216245559 | J107: 49233086.15 | O107: 1 | S107: 1 | T107: TRUE
A108: =+'Formulario 2- Planta'!A111 -> Conductor Mecanico | B108: =+'Formulario 2- Planta'!B111 -> 16 | C108: 32 | D108: =+'Formulario 2- Planta'!W111 -> 1646307851 | E108: 0.0005367681298 | F108: =+'Formulario 2- Planta'!AK111 -> 239358324 | G108: 0.001920223125 | H108: =+'Formulario 2- Planta'!AV111 -> 639009348.8 | I108: 0.0005340560951 | J108: 2524675523 | O108: 32 | S108: 32 | T108: TRUE
A109: =+'Formulario 2- Planta'!A112 -> Conductor Mecanico | B109: =+'Formulario 2- Planta'!B112 -> 16 | C109: 12 | D109: =+'Formulario 2- Planta'!W112 -> 346636641.6 | E109: 0.0003013830847 | F109: =+'Formulario 2- Planta'!AK112 -> 23195024.27 | G109: 0.0004962113842 | H109: =+'Formulario 2- Planta'!AV112 -> 129650484.1 | I109: 0.0002889498936 | J109: 499482150 | O109: 12 | S109: 12 | T109: TRUE
A110: =+'Formulario 2- Planta'!A113 -> Conductor Mecanico | B110: =+'Formulario 2- Planta'!B113 -> 18 | C110: 11 | D110: =+'Formulario 2- Planta'!W113 -> 754929247.7 | E110: 0.0007160431878 | F110: =+'Formulario 2- Planta'!AK113 -> 150275367.1 | G110: 0.003507100819 | H110: =+'Formulario 2- Planta'!AV113 -> 293023474.8 | I110: 0.0007124253611 | J110: 1198228090 | L110: 1 | O110: 10 | S110: 11 | T110: TRUE
A111: =+'Formulario 2- Planta'!A114 -> Conductor Mecanico | B111: =+'Formulario 2- Planta'!B114 -> 18 | C111: 7 | D111: =+'Formulario 2- Planta'!W114 -> 118309108.8 | E111: 0.0001763379527 | F111: =+'Formulario 2- Planta'!AK114 -> 487396.7683 | G111: 1.787465811e-05 | H111: =+'Formulario 2- Planta'!AV114 -> 44957441.74 | I111: 0.0001717644141 | J111: 163753947.3 | O111: 7 | S111: 7 | T111: TRUE
A112: =+'Formulario 2- Planta'!A115 -> Conductor Mecanico | B112: =+'Formulario 2- Planta'!B115 -> 20 | C112: 5 | D112: =+'Formulario 2- Planta'!W115 -> 259091595.1 | E112: 0.0005406409925 | F112: =+'Formulario 2- Planta'!AK115 -> 26784135.39 | G112: 0.001375183858 | H112: =+'Formulario 2- Planta'!AV115 -> 100565608.9 | I112: 0.00053790939 | J112: 386441339.5 | L112: 1 | O112: 4 | S112: 5 | T112: TRUE
A113: =+'Formulario 2- Planta'!A116 -> Conductor Mecanico | B113: =+'Formulario 2- Planta'!B116 -> 20 | C113: 1 | D113: =+'Formulario 2- Planta'!W116 -> 38830778.29 | E113: 0.0004051368494 | F113: =+'Formulario 2- Planta'!AK116 -> 171834.4987 | G113: 4.411268561e-05 | H113: =+'Formulario 2- Planta'!AV116 -> 15255634.54 | I113: 0.0004079997703 | J113: 54258247.33 | L113: 1 | S113: 1 | T113: TRUE
A114: =+'Formulario 2- Planta'!A117 -> Conductor Mecanico | B114: =+'Formulario 2- Planta'!B117 -> 22 | C114: 1 | D114: =+'Formulario 2- Planta'!W117 -> 43608210.43 | E114: 0.0004549816863 | F114: =+'Formulario 2- Planta'!AK117 -> 11487374.9 | G114: 0.002948994302 | H114: =+'Formulario 2- Planta'!AV117 -> 16926393.29 | I114: 0.0004526828796 | J114: 72021978.63 | O114: 1 | S114: 1 | T114: TRUE
A115: =+'Formulario 2- Planta'!A118 -> Secretario Ejecutivo | B115: =+'Formulario 2- Planta'!B118 -> 15 | C115: 2 | D115: =+'Formulario 2- Planta'!W118 -> 81590776.43 | E115: 0.0004256344009 | F115: =+'Formulario 2- Planta'!AK118 -> 297290.7023 | G115: 3.815965765e-05 | H115: =+'Formulario 2- Planta'!AV118 -> 25886397.25 | I115: 0.0003461555173 | J115: 107774464.4 | L115: 1 | N115: 1 | S115: 2 | T115: TRUE
A116: =+'Formulario 2- Planta'!A119 -> Secretario Ejecutivo | B116: =+'Formulario 2- Planta'!B119 -> 16 | C116: 3 | D116: =+'Formulario 2- Planta'!W119 -> 168956462.3 | E116: 0.0005875965049 | F116: =+'Formulario 2- Planta'!AK119 -> 621018.1534 | G116: 5.314179005e-05 | H116: =+'Formulario 2- Planta'!AV119 -> 55459110.5 | I116: 0.0004944032162 | J116: 225036590.9 | M116: 1 | N116: 2 | S116: 3 | T116: TRUE
A117: =+'Formulario 2- Planta'!A120 -> Secretario Ejecutivo | B117: =+'Formulario 2- Planta'!B120 -> 16 | C117: 5 | D117: =+'Formulario 2- Planta'!W120 -> 154060729.6 | E117: 0.0003214752903 | F117: =+'Formulario 2- Planta'!AK120 -> 621018.1534 | G117: 3.188507403e-05 | H117: =+'Formulario 2- Planta'!AV120 -> 50115492.31 | I117: 0.0002680597689 | J117: 204797240.1 | K117: 1 | O117: 2 | P117: 2 | S117: 5 | T117: TRUE
A118: =+'Formulario 2- Planta'!A121 -> Secretario Ejecutivo | B118: =+'Formulario 2- Planta'!B121 -> 18 | C118: 8 | D118: =+'Formulario 2- Planta'!W121 -> 320836257.4 | E118: 0.0004184264269 | F118: =+'Formulario 2- Planta'!AK121 -> 1299724.716 | G118: 4.170753559e-05 | H118: =+'Formulario 2- Planta'!AV121 -> 104620718.2 | I118: 0.0003497497013 | J118: 426756700.3 | L118: 2 | M118: 3 | N118: 1 | O118: 1 | P118: 1 | S118: 8 | T118: TRUE
A119: =+'Formulario 2- Planta'!A122 -> Secretario Ejecutivo | B119: =+'Formulario 2- Planta'!B122 -> 23 | C119: 1 | D119: =+'Formulario 2- Planta'!W122 -> 50236031.27 | E119: 0.0005241323593 | F119: =+'Formulario 2- Planta'!AK122 -> 209819.111 | G119: 5.386394787e-05 | H119: =+'Formulario 2- Planta'!AV122 -> 17005562.74 | I119: 0.0004548002034 | J119: 67451413.12 | O119: 1 | S119: 1 | T119: TRUE
A120: =+'Formulario 2- Planta'!A123 -> Secretario Ejecutivo | B120: =+'Formulario 2- Planta'!B123 -> 24 | C120: 1 | D120: =+'Formulario 2- Planta'!W123 -> 49266531.5 | E120: 0.0005140171852 | F120: =+'Formulario 2- Planta'!AK123 -> 228852.0993 | G120: 5.875002276e-05 | H120: =+'Formulario 2- Planta'!AV123 -> 17110701.8 | I120: 0.0004576120636 | J120: 66606085.4 | K120: 1 | S120: 1 | T120: TRUE
A121: =+'Formulario 2- Planta'!#REF! ->  | B121: =+'Formulario 2- Planta'!#REF! ->  | D121: =+'Formulario 2- Planta'!#REF! ->  | E121: =IFERROR((D121/C121)/($D$140),0) -> 0 | F121: =+'Formulario 2- Planta'!#REF! ->  | G121: =IFERROR((F121/C121)/$F$140,0) -> 0 | H121: =+'Formulario 2- Planta'!#REF! ->  | I121: =IFERROR((H121/C121)/$H$140,0) -> 0 | S121: 0 | T121: TRUE
A122: =+'Formulario 2- Planta'!#REF! ->  | B122: =+'Formulario 2- Planta'!#REF! ->  | D122: =+'Formulario 2- Planta'!#REF! ->  | E122: =IFERROR((D122/C122)/($D$140),0) -> 0 | F122: =+'Formulario 2- Planta'!#REF! ->  | G122: =IFERROR((F122/C122)/$F$140,0) -> 0 | H122: =+'Formulario 2- Planta'!#REF! ->  | I122: =IFERROR((H122/C122)/$H$140,0) -> 0 | S122: 0 | T122: TRUE
A123: =+'Formulario 2- Planta'!A124 -> 0 | B123: =+'Formulario 2- Planta'!B124 -> 0 | D123: =+'Formulario 2- Planta'!W124 -> 0 | E123: =IFERROR((D123/C123)/($D$140),0) -> 0 | F123: =+'Formulario 2- Planta'!AK124 -> 0 | G123: =IFERROR((F123/C123)/$F$140,0) -> 0 | H123: =+'Formulario 2- Planta'!AV124 -> 0 | I123: =IFERROR((H123/C123)/$H$140,0) -> 0 | J123: 0 | S123: 0 | T123: TRUE
A124: TOTAL PLANTA DE PERSONAL | B124: =B99+B74+B49+B41+B22+B13 -> 1221 | C124: =C99+C74+C49+C41+C22+C13 -> 2044 | D124: =+D13+D22+D41+D49+D74+D99 -> 9.584607854e+10 | E124: =IFERROR((D124/C124)/($D$140),0) -> 0.0004892367906 | F124: =+F13+F22+F41+F49+F74+F99 -> 3895353373 | G124: =IFERROR((F124/C124)/$F$140,0) -> 0.0004892367906 | H124: =+H13+H22+H41+H49+H74+H99 -> 3.739128218e+10 | I124: =IFERROR((H124/C124)/$H$140,0) -> 0.0004892367906 | J124: =+J13+J22+J41+J49+J74+J99 -> 1.371327141e+11 | K124: 9 | L124: 78 | M124: 29 | N124: 68 | O124: 588 | P124: 1272 | Q124: 0 | R124: 0 | S124: =+SUM(K124:R124) -> 2044 | T124: =+S124=C124 -> TRUE
A125: TRABAJADORES OFICIALES | C125: =SUM(C126:C138) -> 0 | E125: 0 | G125: 0 | I125: 0 | K125: 0
A126: =+'Formulario 2A - Nómina'!B62 -> 0 | E126: 0 | G126: 0 | I126: 0
A127: =+'Formulario 2A - Nómina'!B63 -> 0 | E127: 0 | G127: 0 | I127: 0
A128: =+'Formulario 2A - Nómina'!B64 -> 0 | E128: 0 | G128: 0 | I128: 0
A129: =+'Formulario 2A - Nómina'!B65 -> 0 | E129: 0 | G129: 0 | I129: 0
A130: =+'Formulario 2A - Nómina'!B66 -> 0 | E130: 0 | G130: 0 | I130: 0
A131: =+'Formulario 2A - Nómina'!B67 -> 0 | E131: 0 | G131: 0 | I131: 0
A132: =+'Formulario 2A - Nómina'!B68 -> 0 | E132: 0 | G132: 0 | I132: 0
A133: =+'Formulario 2A - Nómina'!B69 -> 0 | E133: 0 | G133: 0 | I133: 0
A134: =+'Formulario 2A - Nómina'!B70 -> 0 | E134: 0 | G134: 0 | I134: 0
A135: =+'Formulario 2A - Nómina'!B71 -> 0 | E135: 0 | G135: 0 | I135: 0
A136: =+'Formulario 2A - Nómina'!B72 -> 0 | E136: 0 | G136: 0 | I136: 0
A137: =+'Formulario 2A - Nómina'!B73 -> 0 | E137: 0 | G137: 0 | I137: 0
A138: =+'Formulario 2A - Nómina'!B74 -> 0 | E138: 0 | G138: 0 | I138: 0
A139: TOTAL TRABAJADORES OFICIALES | C139: =SUM(C126:C138) -> 0 | D139: =SUM(D126:D138) -> 0 | E139: 0 | F139: =SUM(F126:F138) -> 0 | G139: 0 | H139: =SUM(H126:H138) -> 0 | I139: 0 | J139: =D139+F139+H139 -> 0
A140: TOTAL PLANTA DE PERSONAL | C140: =+C124+C139 -> 2044 | D140: =+D124+D139 -> 9.584607854e+10 | E140: 0.0004892367906 | F140: =+F124+F139 -> 3895353373 | G140: 0.0004892367906 | H140: =+H124+H139 -> 3.739128218e+10 | I140: 0.0004892367906 | J140: =+J124+J139 -> 1.371327141e+11 | K140: 9 | L140: 78 | M140: 29 | N140: 68 | O140: 588 | P140: 1272 | Q140: 0 | R140: 0 | S140: =+SUM(K140:R140) -> 2044 | T140: =+S140=C140 -> TRUE
A143: % Partipicación dependencias | K143: =+K144/$S$144 -> 0.03970086636 | L143: 0.1862239166 | M143: 0.07796482266 | N143: 0.05205444762 | O143: 0.5136203351 | P143: 0.1304356117 | Q143: 0 | R143: 0 | S143: =SUM(K143:R143) -> 1
A144: COSTO DE PLANTA POR DEPENDENCIA | K144: =K145+K146+K147 -> 1229558550 | L144: =L145+L146+L147 -> 5767461262 | M144: 2414615173 | N144: 1612156031 | O144: 1.590711569e+10 | P144: 4039665535 | Q144: 0 | R144: 0 | S144: =+SUM(K144:R144) -> 3.097057224e+10 | T144: =+J140=S144 -> FALSE
A145: SALARIO | K145: =($E14*$D$140*K14)+($E15*$D$140*K15)+($E16*$D$140*K16)+($E17*$D$140*K17)+($E18*$D$140*K18)+($E19*$D$140*K19)+($E20*$D$140*K20)+($E21*$D$140*K21)+($E23*$D$140*K23)+($E24*$D$140*K24)+($E25*$D$140*K25)+($E26*$D$140*K26)+($E27*$D$140*K27)+($E28*$D$140*K28)+($E29*$D$140*K29)+($E30*$D$140*K30)+($E31*$D$140*K31)+($E32*$D$140*K32)+($E33*$D$140*K33)+($E34*$D$140*K34)+($E35*$D$140*K35)+($E36*$D$140*K36)+($E37*$D$140*K37)+($E38*$D$140*K38)+($E39*$D$140*K39)+($E40*$D$140*K40)+($E42*$D$140*K42)+($E43*$D$140*K43)+($E44*$D$140*K44)+($E45*$D$140*K45)+($E46*$D$140*K46)+($E47*$D$140*K47)+($E48*$D$140*K48)+($E50*$D$140*K50)+($E51*$D$140*K51)+($E52*$D$140*K52)+($E53*$D$140*K53)+($E54*$D$140*K54)+($E55*$D$140*K55)+($E56*$D$140*K56)+($E57*$D$140*K57)+($E58*$D$140*K58)+($E59*$D$140*K59)+($E60*$D$140*K60)+($E61*$D$140*K61)+($E62*$D$140*K62)+($E63*$D$140*K63)+($E64*$D$140*K64)+($E65*$D$140*K65)+($E66*$D$140*K66)+($E67*$D$140*K67)+($E68*$D$140*K68)+($E69*$D$140*K69)+($E70*$D$140*K70)+($E71*$D$140*K71)+($E72*$D$140*K72)+($E73*$D$140*K73)+($E75*$D$140*K75)+($E94*$D$140*K94)+($E95*$D$140*K95)+($E96*$D$140*K96)+($E97*$D$140*K97)+($E98*$D$140*K98)+($E100*$D$140*K100)+($E119*$D$140*K119)+($E121*$D$140*K121)+($E122*$D$140*K122)+($E123*$D$140*K123)+($E126*$D$140*K126)+($E127*$D$140*K127)+($E128*$D$140*K128)+($E129*$D$140*K129)+($E130*$D$140*K130)+($E131*$D$140*K131)+($E132*$D$140*K132)+($E133*$D$140*K133)+($E134*$D$140*K134)+($E135*$D$140*K135)+($E136*$D$140*K136)+($E137*$D$140*K137)+($E138*$D$140*K138) -> 648808973.1 | L145: 3941185964 | M145: 1714746938 | N145: 1112805321 | O145: 1.106177998e+10 | P145: 2767472826 | Q145: 0 | R145: 0 | S145: =+SUM(K145:R145) -> 2.124680001e+10 | T145: =+D140=S145 -> FALSE
A146: REMUNERACIONES NO CONSTITUTIVAS DE FACTOR SALARIAL | K146: =($G14*$F$140*K14)+($G15*$F$140*K15)+($G16*$F$140*K16)+($G17*$F$140*K17)+($G18*$F$140*K18)+($G19*$F$140*K19)+($G20*$F$140*K20)+($G21*$F$140*K21)+($G23*$F$140*K23)+($G24*$F$140*K24)+($G25*$F$140*K25)+($G26*$F$140*K26)+($G27*$F$140*K27)+($G28*$F$140*K28)+($G29*$F$140*K29)+($G30*$F$140*K30)+($G31*$F$140*K31)+($G32*$F$140*K32)+($G33*$F$140*K33)+($G34*$F$140*K34)+($G35*$F$140*K35)+($G36*$F$140*K36)+($G37*$F$140*K37)+($G38*$F$140*K38)+($G39*$F$140*K39)+($G40*$F$140*K40)+($G42*$F$140*K42)+($G43*$F$140*K43)+($G44*$F$140*K44)+($G45*$F$140*K45)+($G46*$F$140*K46)+($G47*$F$140*K47)+($G48*$F$140*K48)+($G50*$F$140*K50)+($G51*$F$140*K51)+($G52*$F$140*K52)+($G53*$F$140*K53)+($G54*$F$140*K54)+($G55*$F$140*K55)+($G56*$F$140*K56)+($G57*$F$140*K57)+($G58*$F$140*K58)+($G59*$F$140*K59)+($G60*$F$140*K60)+($G61*$F$140*K61)+($G62*$F$140*K62)+($G63*$F$140*K63)+($G64*$F$140*K64)+($G65*$F$140*K65)+($G66*$F$140*K66)+($G67*$F$140*K67)+($G68*$F$140*K68)+($G69*$F$140*K69)+($G70*$F$140*K70)+($G71*$F$140*K71)+($G72*$F$140*K72)+($G73*$F$140*K73)+($G75*$F$140*K75)+($G94*$F$140*K94)+($G95*$F$140*K95)+($G96*$F$140*K96)+($G97*$F$140*K97)+($G98*$F$140*K98)+($G100*$F$140*K100)+($G119*$F$140*K119)+($G121*$F$140*K121)+($G122*$F$140*K122)+($G123*$F$140*K123)+($G126*$F$140*K126)+($G127*$F$140*K127)+($G128*$F$140*K128)+($G129*$F$140*K129)+($G130*$F$140*K130)+($G131*$F$140*K131)+($G132*$F$140*K132)+($G133*$F$140*K133)+($G134*$F$140*K134)+($G135*$F$140*K135)+($G136*$F$140*K136)+($G137*$F$140*K137)+($G138*$F$140*K138) -> 345204781.8 | L146: 437766385.4 | M146: 68694491.14 | N146: 93240314.02 | O146: 673986474.4 | P146: 306829248.9 | Q146: 0 | R146: 0 | S146: =+SUM(K146:R146) -> 1925721696 | T146: =+F140=S146 -> FALSE
A147: CONTRIBUCIONES INHERENTES A LA NÓMINA | K147: =($I14*$H$140*K14)+($I15*$H$140*K15)+($I16*$H$140*K16)+($I17*$H$140*K17)+($I18*$H$140*K18)+($I19*$H$140*K19)+($I20*$H$140*K20)+($I21*$H$140*K21)+($I23*$H$140*K23)+($I24*$H$140*K24)+($I25*$H$140*K25)+($I26*$H$140*K26)+($I27*$H$140*K27)+($I28*$H$140*K28)+($I29*$H$140*K29)+($I30*$H$140*K30)+($I31*$H$140*K31)+($I32*$H$140*K32)+($I33*$H$140*K33)+($I34*$H$140*K34)+($I35*$H$140*K35)+($I36*$H$140*K36)+($I37*$H$140*K37)+($I38*$H$140*K38)+($I39*$H$140*K39)+($I40*$H$140*K40)+($I42*$H$140*K42)+($I43*$H$140*K43)+($I44*$H$140*K44)+($I45*$H$140*K45)+($I46*$H$140*K46)+($I47*$H$140*K47)+($I48*$H$140*K48)+($I50*$H$140*K50)+($I51*$H$140*K51)+($I52*$H$140*K52)+($I53*$H$140*K53)+($I54*$H$140*K54)+($I55*$H$140*K55)+($I56*$H$140*K56)+($I57*$H$140*K57)+($I58*$H$140*K58)+($I59*$H$140*K59)+($I60*$H$140*K60)+($I61*$H$140*K61)+($I62*$H$140*K62)+($I63*$H$140*K63)+($I64*$H$140*K64)+($I65*$H$140*K65)+($I66*$H$140*K66)+($I67*$H$140*K67)+($I68*$H$140*K68)+($I69*$H$140*K69)+($I70*$H$140*K70)+($I71*$H$140*K71)+($I72*$H$140*K72)+($I73*$H$140*K73)+($I75*$H$140*K75)+($I94*$H$140*K94)+($I95*$H$140*K95)+($I96*$H$140*K96)+($I97*$H$140*K97)+($I98*$H$140*K98)+($I100*$H$140*K100)+($I119*$H$140*K119)+($I121*$H$140*K121)+($I122*$H$140*K122)+($I123*$H$140*K123)+($I126*$H$140*K126)+($I127*$H$140*K127)+($I128*$H$140*K128)+($I129*$H$140*K129)+($I130*$H$140*K130)+($I131*$H$140*K131)+($I132*$H$140*K132)+($I133*$H$140*K133)+($I134*$H$140*K134)+($I135*$H$140*K135)+($I136*$H$140*K136)+($I137*$H$140*K137)+($I138*$H$140*K138) -> 235544794.9 | L147: 1388508912 | M147: 631173743.9 | N147: 406110396.1 | O147: 4171349235 | P147: 965363459.4 | Q147: 0 | R147: 0 | S147: =+SUM(K147:R147) -> 7798050541 | T147: =+H140=S147 -> FALSE
A150: RELACIÓN DEPENDENCIAS - PROGRAMAS PRESUPUESTALES
E152: CONCEPTOS RELACIÓN PROGRAMATICO | F152: =IF(VLOOKUP(B7,Programático!$T$3:$AG$32,14,FALSE)=2,_xlfn._xlws.FILTER(Programático!U2:V32,Programático!T2:T32=B7),IF(VLOOKUP(B7,Programático!$T$3:$AG$32,14,FALSE)=3,_xlfn._xlws.FILTER(Programático!U2:W32,Programático!T2:T32=B7),IF(VLOOKUP(B7,Programático!$T$3:$AG$32,14,FALSE)=4,_xlfn._xlws.FILTER(Programático!U2:X32,Programático!T2:T32=B7),IF(VLOOKUP(B7,Programático!$T$3:$AG$32,14,FALSE)=5,_xlfn._xlws.FILTER(Programático!U2:Y32,Programático!T2:T32=B7),IF(VLOOKUP(B7,Programático!$T$3:$AG$32,14,FALSE)=6,_xlfn._xlws.FILTER(Programático!U2:Z32,Programático!T2:T32=B7),IF(VLOOKUP(B7,Programático!$T$3:$AG$32,14,FALSE)=7,_xlfn._xlws.FILTER(Programático!U2:AA32,Programático!T2:T32=B7),IF(VLOOKUP(B7,Programático!$T$3:$AG$32,14,FALSE)=8,_xlfn._xlws.FILTER(Programático!U2:AB32,Programático!T2:T32=B7),IF(VLOOKUP(B7,Programático!$T$3:$AG$32,14,FALSE)=10,_xlfn._xlws.FILTER(Programático!U2:AD32,Programático!T2:T32=B7),IF(VLOOKUP(B7,Programático!$T$3:$AG$32,14,FALSE)=11,_xlfn._xlws.FILTER(Programático!U2:AE32,Programático!T2:T32=B7),_xlfn._xlws.FILTER(Programático!U2:AF32,Programático!T2:T32=B7)))))))))) -> 3701 Fortalecimiento institucional a los procesos organizativos de concertación; garantía, prevención y respeto de los derechos humanos como fundamentos para la paz | G152: 3702 Fortalecimiento a la gobernabilidad territorial para la seguridad, convivencia ciudadana, paz y postconflicto. | H152: 3704 Gobernabilidad y participación ciudadana | I152: 3705 Protección de personas, grupos y comunidades en riesgo extraordinario y extremo Unidad Nacional de Protección (UNP) | J152: 3706 Protección, promoción y difusión del derecho de autor y los derechos conexos | K152: 3707 Gestión del riesgo de desastres naturales y antrópicos en la zona de influencia del volcán Nevado del Huila. | L152: 3799 Fortalecimiento y apoyo a la gestión institucional del sector interior | M152: 3700 No asignable a programas | U152: CHECK
E153: =+$K$11 -> Alta gerencia | L153: 1 | U153: =+SUM(F153:T153) -> 1
E154: =+$L$11 -> Secretaria general y dependencias de apoyo | L154: 1 | U154: 1
E155: =+$M$11 -> Oficinas asesoras | L155: 1 | U155: 1
E156: =+$N$11 -> Dependencia misional 1 SER | I156: 1 | U156: 1
E157: =+$O$11 -> Dependencia msional 2 SP | I157: 1 | U157: 1
E158: =+$P$11 -> Dependencia msional SESP | I158: 1 | U158: 1
E159: =+$Q$11 -> Dependencia msional 4 | U159: 0
E160: =+$R$11 -> Dependencia msional 5 | U160: 0
E161: SALARIO | F161: =(F153*$K$145)+(F154*$L$145)+(F155*$M$145)+(F156*$N$145)+(F157*$O$145)+(F158*$P$145)+(F159*$Q$145)+(F160*$R$145) -> 0 | G161: =(G153*$K$145)+(G154*$L$145)+(G155*$M$145)+(G156*$N$145)+(G157*$O$145)+(G158*$P$145)+(G159*$Q$145)+(G160*$R$145) -> 0 | H161: =(H153*$K$145)+(H154*$L$145)+(H155*$M$145)+(H156*$N$145)+(H157*$O$145)+(H158*$P$145)+(H159*$Q$145)+(H160*$R$145) -> 0 | I161: =(I153*$K$145)+(I154*$L$145)+(I155*$M$145)+(I156*$N$145)+(I157*$O$145)+(I158*$P$145)+(I159*$Q$145)+(I160*$R$145) -> 1.494205813e+10 | J161: 0 | K161: 0 | L161: 6304741875 | M161: 0 | N161: 0 | O161: 0 | P161: 0 | Q161: 0 | R161: 0 | S161: 0 | T161: 0 | U161: =+SUM(F161:T161)=S145 -> TRUE
E162: REMUNERACIONES NO CONSTITUTIVAS DE FACTOR SALARIAL | F162: =(F153*$K$146)+(F154*$L$146)+(F155*$M$146)+(F156*$N$146)+(F157*$O$146)+(F158*$P$146)+(F159*$Q$146)+(F160*$R$146) -> 0 | G162: =(G153*$K$146)+(G154*$L$146)+(G155*$M$146)+(G156*$N$146)+(G157*$O$146)+(G158*$P$146)+(G159*$Q$146)+(G160*$R$146) -> 0 | H162: 0 | I162: 1074056037 | J162: 0 | K162: 0 | L162: 851665658.3 | M162: 0 | N162: 0 | O162: 0 | P162: 0 | Q162: 0 | R162: 0 | S162: 0 | T162: 0 | U162: =+SUM(F162:T162)=S146 -> TRUE
E163: CONTRIBUCIONES INHERENTES A LA NÓMINA | F163: =(F153*$K$147)+(F154*$L$147)+(F155*$M$147)+(F156*$N$147)+(F157*$O$147)+(F158*$P$147)+(F159*$Q$147)+(F160*$R$147) -> 0 | G163: =(G153*$K$147)+(G154*$L$147)+(G155*$M$147)+(G156*$N$147)+(G157*$O$147)+(G158*$P$147)+(G159*$Q$147)+(G160*$R$147) -> 0 | H163: 0 | I163: 5542823090 | J163: 0 | K163: 0 | L163: 2255227451 | M163: 0 | N163: 0 | O163: 0 | P163: 0 | Q163: 0 | R163: 0 | S163: 0 | T163: 0 | U163: =+SUM(F163:T163)=S147 -> TRUE
E164: TOTAL | F164: =+F161+F162+F163 -> 0 | G164: =+G161+G162+G163 -> 0 | H164: 0 | I164: 2.155893726e+10 | J164: 0 | K164: 0 | L164: 9411634985 | M164: 0 | N164: 0 | O164: 0 | P164: 0 | Q164: 0 | R164: 0 | S164: 0 | T164: 0 | U164: =+SUM(F164:T164)=S144 -> TRUE
E165: Porcentaje Prorrateo | F165: =IF(F164=0,0,F164/SUM($F$164:$T$164)) -> 0 | G165: =IF(G164=0,0,G164/SUM($F$164:$T$164)) -> 0 | H165: 0 | I165: 0.6961103944 | J165: 0 | K165: 0 | L165: 0.3038896056 | M165: 0 | N165: 0 | O165: 0 | P165: 0 | Q165: 0 | R165: 0 | S165: 0 | T165: 0
A168: DENOMINACIÓN DEPENDENCIAS MISIONALES (Especificación de las dependencias que hacen parte de cada agregación)
A170: Alta gerencia | B170: DIRECCIÓN GENERAL
A171: Secretaria general y dependencias de apoyo: | B171: SECRETARIA GENERAL - SUBDIRECCIÓN DE TALENTO HUMANO - OCI
A172: Oficinas asesoras: | B172: OAPI - OAJ
A173: Dependencia misional 1: | B173: SER
A174: Dependencia msional 2: | B174: SP
A175: Dependencia msional 3: | B175: SESP
A176: Dependencia msional 4:
A177: Dependencia msional 5:

Sheet DESPLEGABLES (hidden)
A1: CÓDIGO | B1: UNIDAD EJECUTORA | C1: SECTOR | E1: FONDOS ESPECIALES | F1: COD | H1: IMPUESTOS INDIRECTOS -FE | I1: CÓD | K1: CONTRIBUCIONES SOCIALES- EP | L1: CÓD | N1: CONTRIBUCIONES SOCIALES -FE | O1: CÓD | Q1: CONTRIBUCIONES DIVERSAS - FE | R1: CÓD | T1: CONTRIBUCIONES DIVERSAS - ESTAPÚBLICO | U1: CÓD | W1: TASAS Y DERECHOS ADMINISTRATIVOS - EP | X1: CÓD | Z1: DERECHOS ECONÓMICOS POR USO DE RECURSOS NATURALES- EP | AA1: CÓD | AC1: DERECHOS ECONÓMICOS POR USO DE RECURSOS NATURALES- FE | AD1: CÓD | AF1: TRANSFERENCIAS CORRIENTES- EP | AG1: CÓD | AI1: TRANSFERENCIAS CORRIENTES- FE | AJ1: CÓD | AL1: CPC
A2: 010101 | B2: SENADO DE LA REPUBLICA | C2: CONGRESO DE LA REPÚBLICA | E2: CONTRIBUCIÓN ENTIDADES VIGILADAS CONTRALORIA GENERAL NACION | F2: 602 | H2: Impuesto social a las armas y municiones | I2: 10 | K2: Salud | L2: 01 | N2: Salud | O2: 01 | Q2: Contribución - Comisión de Regulación de Comunicaciones (CRC) | R2: 01 | T2: Contribución - Superintendencia de Sociedades | U2: 04 | W2: Expedición de visas | X2: 01 | Z2: Derecho económico por uso del subsuelo | AA2: 01 | AC2: Autorización de uso de zonas de fondeo - DIMAR | AD2: 06 | AF2: Indemnizaciones relacionadas con seguros no de vida | AG2: 01 | AI2: Indemnizaciones relacionadas con seguros no de vida | AJ2: 01 | AL2: Agricultura, silvicultura y productos de la pesca
A3: 010102 | B3: CAMARA DE REPRESENTANTES | C3: CONGRESO DE LA REPÚBLICA | E3: CONTRIBUCIÓN ENTIDADES VIGILADAS SUPERINTENDENCIA SUBSIDIO FAMILIAR | F3: 603 | H3: Impuesto de remate y adjudicaciones | I3: 11 | K3: Pensión | L3: 02 | N3: Pensión | O3: 02 | Q3: Contribución - Comisión de Regulación de Energía y Gas (CREG) | R3: 02 | T3: Contribución - Superintendencia de Vigilancia y Seguridad Privada | U3: 05 | W3: Expedición de pasaportes | X3: 02 | Z3: Concesiones mineras | AA3: 02 | AF3: Sentencias y conciliaciones | AG3: 02 | AI3: Sentencias y conciliaciones | AJ3: 02 | AL3: Minerales; electricidad, gas y agua
A4: 020101 | B4: PRESIDENCIA DE LA REPUBLICA - GESTION GENERAL | C4: PRESIDENCIA DE LA REPÚBLICA | E4: FINANCIACION SECTOR JUSTICIA | F4: 609 | H4: Sobretasa nacional a la gasolina | I4: 12 | K4: Contribuciones asignaciones de retiro militares y policía | L4: 03 | Q4: Contribución - Comisión de Regulación de Agua Potable y Saneamiento Básico (CRA) | R4: 03 | T4: Contribución - Superintendencia de la Economía Solidaria | U4: 06 | W4: Apostilla o legalización | X4: 03 | Z4: Contraprestaciones portuarias | AA4: 03 | AF4: Devolución IVA - Instituciones de educación superior | AG4: 04 | AI4: Prescripción de depósitos judiciales | AJ4: 03 | AL4: Productos alimenticios, bebidas y tabaco; textiles, prendas de vestir y productos de cuero
A5: 020900 | B5: AGENCIA PRESIDENCIAL DE COOPERACION INTERNACIONAL DE COLOMBIA, APC - COLOMBIA | C5: PRESIDENCIA DE LA REPÚBLICA | E5: FONDO DE DEFENSA NACIONAL | F5: 6010 | H5: Sobretasa al ACPM | I5: 13 | Q5: Contribución - Superintendencia del Subsidio Familiar | R5: 07 | T5: Contribución de vigilancia - Superintendencia de Industria y Comercio | U5: 07 | W5: Protocolización de escrituras públicas | X5: 04 | Z5: Concesiones parques naturales | AA5: 05 | AF5: Transferencias de otras unidades de gobierno | AG5: 05 | AI5: Devolución IVA - Instituciones de educación superior | AJ5: 04 | AL5: Otros bienes transportables, (excepto productos metálicos, maquinaria y equipo)
A6: 021100 | B6: UNIDAD NACIONAL PARA LA GESTION DEL RIESGO DE DESASTRES | C6: PRESIDENCIA DE LA REPÚBLICA | E6: FONDO ESTUPEFACIENTES - MINSALUD | F6: 6013 | H6: Impuesto de salida | I6: 15 | K6: CONTRIBUCIONES ASOCIADAS A NÓMINA - EP | L6: CÓD | N6: CONTRIBUCIONES ASOCIADAS A NÓMINA -FE | O6: CÓD | Q6: Contribución - Fondo de Compensación Ambiental | R6: 13 | T6: Contribución de seguimiento - Superintendencia de Industria y Comercio | U6: 09 | W6: Expedición de certificaciones en el exterior | X6: 05 | AF6: Recursos por bienes mostrencos y vocaciones hereditarias | AG6: 07 | AI6: Transferencias de otras unidades de gobierno | AJ6: 05 | AL6: Productos metálicos, maquinaria y equipo
A7: 021200 | B7: AGENCIA PARA LA REINCORPORACION Y LA NORMALIZACION - ARN | C7: PRESIDENCIA DE LA REPÚBLICA | E7: FONDOS INTERNOS MINISTERIO DEFENSA | F7: 6014 | K7: ICBF | L7: 01 | N7: Escuelas industriales e institutos técnicos | O7: 04 | Q7: Contribución - Fondo Apoyo Financiero Zonas No Interconectadas (FAZNI) | R7: 14 | T7: Contribución - Superintendencia Financiera de Colombia | U7: 10 | W7: Certificación sobre la existencia legal de sociedades | X7: 06 | AF7: Compensación UPC – SSS | AG7: 09 | AI7: Recursos de terceros en consignación | AJ7: 06 | AL7: Construcción y servicios de la construcción
A8: 021300 | B8: AGENCIA NACIONAL INMOBILIARIA VIRGILIO BARCO VARGAS | C8: PRESIDENCIA DE LA REPÚBLICA | E8: FONDOS INTERNOS POLICIA NACIONAL | F8: 6015 | K8: SENA | L8: 02 | N8: Aportes de cesantías | O8: 05 | Q8: Contribución - Fondo Apoyo Financiero para la Energización de las Zonas Rurales Interconectadas (FAER) | R8: 15 | T8: Contribución - Superintendencia de Servicios Públicos Domiciliarios | U8: 11 | W8: Reconocimiento y autenticación de firmas ante cónsules colombianos | X8: 07 | Z8: CÁLCULO POR INGRESOS CORRIENTES | AF8: Mercancías Aprehendidas, Decomisadas o Abandonadas | AG8: 11 | AI8: Recursos por procesos de extinción de dominio | AJ8: 08 | AL8: Servicios de venta y de distribución; alojamiento; servicios de suministro de comidas y bebidas; servicios de transporte; y servicios de distribución de electricidad, gas y agua
A9: 021401 | B9: AGENCIA DE RENOVACION DEL TERRITORIO ART - GESTION GENERAL | C9: PRESIDENCIA DE LA REPÚBLICA | E9: FONDO ROTATORIO DE MINAS Y ENERGÍA | F9: 6017 | K9: ESAP | L9: 03 | Q9: Contribución - Fondo de Energías No Convencionales y Gestión Eficiente de la Energía (FENOGE) | R9: 16 | T9: Contribucción - Superintendencia de Puertos y Transporte | U9: 12 | W9: Expedición de tarjetas de registro consular | X9: 08 | AI9: Compensación UPC – SSS | AJ9: 09 | AL9: Servicios financieros y servicios conexos, servicios inmobiliarios y servicios de leasing
A10: 021402 | B10: DIRECCIÓN DE SUSTITUCIÓN DE CULTIVOS DE USO ILÍCITO | C10: PRESIDENCIA DE LA REPÚBLICA | E10: ESCUELAS INDUSTRIALES E INSTITUTOS TECNICOS | F10: 6019 | Q10: Contribución - Fondo Especial de Energía Social (FOES) | R10: 17 | T10: Contribucción pensionados militares y policia | U10: 23 | W10: Trámite de nacionalidad colombiana por adopción | X10: 09 | Z10: CONTRIBUCIONES SOCIALES- EP | AC10: TASAS Y DERECHOS ADMINISTRATIVOS - EP | AF10: IMPUESTOS INDIRECTOS -FE | AI10: Recursos FRISCO | AJ10: 10 | AL10: Servicios prestados a las empresas y servicios de producción
A11: 030101 | B11: DEPARTAMENTO NACIONAL DE PLANEACION - GESTION GENERAL | C11: PLANEACIÓN | E11: FONDO DE RECURSOS SOAT Y FONSAT (ANTES FOSYGA) | F11: 6021 | K11: CONTRIBUCIONES ESPECIALES - EP | L11: CÓD | Q11: Contribución - Fondo Especial Cuota de Fomento de Gas Natural | R11: 18 | T11: Derecho económico por precios altos | U11: 33 | W11: Trámite de renuncia a la nacionalidad colombiana | X11: 10 | Z11: 1.02.1.01.01. Salud | AC11: 1.02.2.01. Expedición de visas | AF11: 1.01.2.10. Impuesto social a las armas y municiones | AI11: Prescripción especial adquisitivo de dominio | AJ11: 12 | AL11: Servicios para la comunidad, sociales y personales
A12: 030300 | B12: UNIDAD ADMINISTRATIVA ESPECIAL - AGENCIA NACIONAL DE CONTRATACION PUBLICA - COLOMBIA COMPRA EFICIENTE | C12: PLANEACIÓN | E12: FONDO DE SOLIDARIDAD PENSIONAL | F12: 6022 | K12: Recaudo Ley 55 de 1985 Superintendencia de Notariado y Registro | L12: 03 | N12: CONTRIBUCIONES ESPECIALES -FE | O12: CÓD | Q12: Contribución - Fondo Especial para el programa de Normalización de Redes Eléctricas (Prone) | R12: 19 | T12: Derecho económico por participación en la producción | U12: 34 | W12: Expedición de certificados de antepasados de extranjeros nacionalizados como colombianos por adopción | X12: 11 | Z12: 1.02.1.01.02. Pensión | AC12: 1.02.2.02. Expedición de pasaportes | AF12: 1.01.2.11. Impuesto de remate y adjudicaciones | AI12: Recursos por acuerdos de compartición Ley 1743 de 2014 | AJ12: 13
A13: 032400 | B13: SUPERINTENDENCIA DE SERVICIOS PÚBLICOS DOMICILIARIOS | C13: PLANEACIÓN | E13: COMISION DE REGULACION DE TELECOMUNICACIONES | F13: 6023 | H13: MULTAS Y SANCIONES | I13: CÓD | N13: Cuota de fiscalización y auditaje | O13: 01 | Q13: Contribución - Fondo de Solidaridad para Subsidios y Redistribución de Ingresos | R13: 20 | T13: Contribución Nacional de Valorización | U13: 40 | W13: Expedición de certificados de no objeción a la permanencia en el exterior de estudiantes colombianos | X13: 12 | Z13: 1.02.1.01.03. Contribuciones asignaciones de retiro militares y policía | AC13: 1.02.2.03. Apostilla o legalización | AF13: 1.01.2.12. Sobretasa nacional a la gasolina | AI13: Del Fondo para la Modernización, Descongestión y Bienestar de la Administración de la Justicia | AJ13: 14
A14: 040101 | B14: DEPARTAMENTO ADMINISTRATIVO NACIONAL DE ESTADÍSTICA (DANE) - GESTIÓN GENERAL | C14: INFORMACIÓN ESTADÍSTICA | E14: COMISION DE REGULACION DE ENERGIA Y GAS | F14: 6024 | H14: Multas Superintendencias | I14: 01 | N14: Aporte a la administración de justicia | O14: 02 | Q14: Contribución - Fondo Emprender | R14: 21 | T14: Contribución Industria Militar – ICFE | U14: 45 | W14: Expedición de cédulas de ciudadanía | X14: 13 | AC14: 1.02.2.04. Protocolización de escrituras públicas | AF14: 1.01.2.13. Sobretasa al ACPM | AI14: Distribucción Ley 55 de 1985 Superintendencia de Notariado y Registro | AJ14: 15
A15: 040200 | B15: FONDO ROTATORIO DEL DANE | C15: INFORMACIÓN ESTADÍSTICA | E15: COMISION DE REGULACION DE AGUA POTABLE | F15: 6025 | H15: Sanciones aduaneras | I15: 02 | K15: CENSATÍAS | L15: CÓD | Q15: Contribución - Fondo Nacional de las Universidades Estatales de Colombia | R15: 22 | T15: Monetización cuota de aprendizaje | U15: 48 | W15: Expedición de tarjetas de identidad | X15: 14 | Z15: CONTRIBUCIONES ASOCIADAS A NÓMINA - EP | AC15: 1.02.2.05. Expedición de certificaciones en el exterior | AF15: 1.01.2.15. Impuesto de salida
A16: 040300 | B16: INSTITUTO GEOGRÁFICO AGUSTÍN CODAZZI - IGAC | C16: INFORMACIÓN ESTADÍSTICA | E16: INSTITUTO DE ESTUDIOS DEL MINISTERIO PUBLICO | F16: 6031 | H16: Sanciones disciplinarias | I16: 03 | K16: Cesantías definitivas | L16: 01 | Q16: Cuota de compensación militar - Fondo de Defensa Nacional | R16: 24 | T16: Contribucción servicios notariales | U16: 51 | W16: Expedición de certificaciones no sujetas a reserva legal | X16: 15 | Z16: 1.02.1.02.01. ICBF | AC16: 1.02.2.06. Certificación sobre la existencia legal de sociedades | AI16: TASAS Y DERECHOS ADMINISTRATIVOS - FE
A17: 050101 | B17: DEPARTAMENTO DE LA FUNCIÓN PÚBLICA - GESTIÓN GENERAL | C17: EMPLEO PÚBLICO | E17: FONDO SALUD FUERZAS MILITARES | F17: 6033 | H17: Sanciones contractuales | I17: 04 | K17: Cesantías parciales | L17: 02 | Q17: Aporte sobre pólizas de seguros - Fondo Nacional de Bomberos de Colombia | R17: 25 | W17: Expedición de bases de datos sujeta a reserva legal | X17: 16 | Z17: 1.02.1.02.02. SENA | AC17: 1.02.2.07. Reconocimiento y autenticación de firmas ante cónsules colombianos | AF17: CONTRIBUCIONES ESPECIALES -FE | AI17: 1.02.2.15. Certificaciones y constancias
A18: 050300 | B18: ESCUELA SUPERIOR DE ADMINISTRACIÓN PÚBLICA (ESAP) | C18: EMPLEO PÚBLICO | E18: FONDO DE SALUD POLICIA NACIONAL | F18: 6034 | H18: Sanciones administrativas | I18: 05 | K18: Deuda Cesantías soldados profesionales afiliados Caja Promotora de Vivienda Militar y de Policía - CPVMP | L18: 03 | Q18: Arancel judicial - Ley 1394 de 2010 | R18: 27 | W18: Expedición de certificaciones excepcionales de nacionalidad | X18: 17 | Z18: 1.02.1.02.03. ESAP | AC18: 1.02.2.08. Expedición de tarjetas de registro consular | AF18: 1.02.1.03.01. Cuota de fiscalización y auditaje | AI18: 1.02.2.39. Expedición de tarjetas profesionales
A19: 110101 | B19: MINIRELACIONES EXTERIORES - GESTIÓN GENERAL | C19: RELACIONES EXTERIORES | E19: FONDO COMPENSACION AMBIENTAL | F19: 6035 | H19: Sanciones fiscales | I19: 06 | K19: Deuda Cesantías Policía Nacional afiliados Caja Promotora de Vivienda Militar y de Policía - CPVMP | L19: 04 | Q19: Arancel judicial CSJ - Ley 1653 de 2013 | R19: 28 | W19: Expedición de certificados de Registro Civil | X19: 18 | AC19: 1.02.2.09. Trámite de nacionalidad colombiana por adopción | AF19: 1.02.1.03.02. Aporte a la administración de justicia | AI19: 1.02.2.40. Derechos de registro
A20: 110200 | B20: FONDO ROTATORIO DEL MINISTERIO DE RELACIONES EXTERIORES | C20: RELACIONES EXTERIORES | E20: PENSIONES EPSA-CVC | F20: 6036 | H20: Multas judiciales | I20: 07 | Q20: Arancel judicial - Ley 1743 de 2014 | R20: 29 | W20: Impresión de publicaciones de la Organización Electoral | X20: 19 | Z20: CONTRIBUCIONES DIVERSAS - ESTAPÚBLICO | AC20: 1.02.2.10. Trámite de renuncia a la nacionalidad colombiana | AI20: 1.02.2.41. Autorización para el manejo de sustancias químicas controladas
A21: 110400 | B21: UNIDAD ADMINISTRATIVA ESPECIAL MIGRACIÓN COLOMBIA | C21: RELACIONES EXTERIORES | E21: FONDO SOLIDARIDAD PARA SUBSIDIOS Y REDISTRIBUCION INGRESOS | F21: 6039 | H21: Sanciones por desestimiento | I21: 08 | Q21: Contribución especial arbitral | R21: 30 | W21: Venta de licencias de software | X21: 20 | Z21: 1.02.1.04.04. Contribución - Superintendencia de Sociedades | AC21: 1.02.2.11. Expedición de certificados de antepasados de extranjeros nacionalizados como colombianos por adopción | AI21: 1.02.2.43. Permiso por tenencia y porte de armas
A22: 120101 | B22: MINISTERIO DE JUSTICIA Y DEL DERECHO - GESTION GENERAL | C22: JUSTICIA Y DEL DERECHO | E22: FONDO SEGURIDAD Y CONVIVENCIA CIUDADANA | F22: 6040 | Q22: Contribución especial para laudos arbitrales de contenido económico | R22: 31 | W22: Expedición de cédula de extranjería | X22: 21 | Z22: 1.02.1.04.05. Contribución - Superintendencia de Vigilancia y Seguridad Privada | AC22: 1.02.2.12. Expedición de certificados de no objeción a la permanencia en el exterior de estudiantes colombianos | AF22: CONTRIBUCIONES DIVERSAS - FE | AI22: 1.02.2.50. Tasa para la sostenibilidad del RUNT
A23: 120400 | B23: SUPERINTENDENCIA DE NOTARIADO Y REGISTRO | C23: JUSTICIA Y DEL DERECHO | E23: FONDO SUBSIDIO SOBRETASA GASOLINA LEY 488/98 | F23: 6041 | Q23: Aporte afiliados al Sistema General de Pensiones - Subcuenta de Solidaridad | R23: 36 | W23: Certificación de movimientos migratorios | X23: 22 | Z23: 1.02.1.04.06. Contribución – Superintendencia de la Economía Solidaria | AC23: 1.02.2.13. Expedición de cédulas de ciudadanía | AF23: 1.02.1.04.01. Contribución - Comisión de Regulación de Comunicaciones (CRC) | AI23: 1.02.2.52. Fiscalización y seguimiento a títulos mineros
A24: 120800 | B24: INSTITUTO NACIONAL PENITENCIARIO Y CARCELARIO - INPEC | C24: JUSTICIA Y DEL DERECHO | E24: FONDO PENSIONES SUPERINTENDENCIAS, CARBOCOL Y CAMINOS VECINALES | F24: 6042 | Q24: Aporte afiliados al Sistema General de Pensiones - Subcuenta de Subsistencia | R24: 37 | W24: Permisos de ingreso y permanencia en el país | X24: 23 | Z24: 1.02.1.04.08. Contribución de vigilancia - Superintendencia de Industria y Comercio | AC24: 1.02.2.14. Expedición de tarjetas de identidad | AF24: 1.02.1.04.02. Contribución - Comisión de Regulación de Energía y Gas (CREG) | AI24: 1.02.2.59. Expedición de licencias de fabricación de derivados de cannabis
A25: 121000 | B25: UNIDAD ADMINISTRATIVA ESPECIAL AGENCIA NACIONAL DE DEFENSA JURÍDICA DEL ESTADO | C25: JUSTICIA Y DEL DERECHO | E25: UNIDAD ADMINISTRATIVA ESPECIAL DE COMERCIO EXTERIOR | F25: 6043 | Q25: Aportes diferenciales - Fondo de Solidaridad Pensional | R25: 38 | W25: Expedición de salvoconductos de permanencia y salida del país | X25: 24 | Z25: 1.02.1.04.09. Contribución de seguimiento - Superintendencia de Industria y Comercio | AC25: 1.02.2.15. Expedición de certificaciones no sujetas a reserva legal | AF25: 1.02.1.04.03. Contribución - Comisión de Regulación de Agua Potable y Saneamiento Básico (CRA) | AI25: 1.02.2.60. Seguimiento a las licencias de fabricación de derivados de cannabis
A26: 121100 | B26: UNIDAD DE SERVICIOS PENITENCIARIOS Y CARCELARIOS - USPEC | C26: JUSTICIA Y DEL DERECHO | E26: FONDO SOBRETASA AL ACPM (LEY 488/98) | F26: 6046 | Q26: Aporte pensionados - Fondo de Solidaridad Pensional | R26: 39 | W26: Expedición de información no sujeta a reserva legal | X26: 25 | Z26: 1.02.1.04.10. Contribución - Superintendencia Financiera de Colombia | AC26: 1.02.2.16. Expedición de bases de datos sujeta a reserva legal | AF26: 1.02.1.04.07. Contribución - Superintendencia del Subsidio Familiar | AI26: 1.02.2.68. Derechos marítimos
A27: 130101 | B27: MINISTERIO DE HACIENDA Y CRÉDITO PÚBLICO - GESTIÓN GENERAL | C27: HACIENDA | E27: FONDO PARA DEFENSA DE DERECHOS E INTERESES COLECTIVOS | F27: 6049 | Q27: Contribución cultural a la boletería de los espectáculos públicos | R27: 41 | W27: Expedición de la tarjeta de movilidad fronteriza | X27: 26 | Z27: 1.02.1.04.11. Contribución - Superintendencia de Servicios Públicos Domiciliarios | AC27: 1.02.2.17. Expedición de certificaciones excepcionales de nacionalidad | AF27: 1.02.1.04.13. Contribución - Fondo de Compensación Ambiental | AI27: 1.02.2.69. Tasas Servicio de seguridad marítima
A28: 130117 | B28: UNIDAD ADMINISTRATIVA ESPECIAL AGENCIA DEL INSPECTOR GENERAL DE TRIBUTOS, RENTAS Y CONTRIBUCIONES PARAFISCALES (ITRC) | C28: HACIENDA | E28: FONDO DE INVESTIGACION EN SALUD (Ley643/01) | F28: 6050 | Q28: Recursos por la explotación de juegos de suerte y azar – Fondo de Investigación en Salud | R28: 42 | W28: Inscripción al sistema de migración automática | X28: 27 | Z28: 1.02.1.04.12. Contribución - Superintendencia de Puertos y Transporte | AC28: 1.02.2.18. Expedición de certificados de Registro Civil | AF28: 1.02.1.04.14. Contribución - Fondo Apoyo Financiero Zonas No Interconectadas (FAZNI) | AI28: 1.02.2.70. Expedición de tarjetas de reservista y provisional
A29: 130118 | B29: UNIDAD ADMINISTRATIVA ESPECIAL UNIDAD DE PROYECCIÓN NORMATIVA Y ESTUDIOS DE REGULACIÓN FINANCIERA (URF) | C29: HACIENDA | E29: FONDO CONSERVACIÓN DE MUSEOS Y TEATROS | F29: 6051 | Q29: Contribución - Fondo Industria de la Construcción (FIC) | R29: 43 | W29: Verificación migratoria en el sistema PLATINUM | X29: 28 | Z29: 1.02.1.04.23. Contribución pensionados militares y policía | AC29: 1.02.2.19. Impresión de publicaciones de la Organización Electoral | AF29: 1.02.1.04.15. Contribución - Fondo Apoyo Financiero para la Energización de las Zonas Rurales Interconectadas (FAER) | AI29: 1.02.2.71. Expedición de cédulas militares y policiales
A30: 130800 | B30: UNIDAD ADMINISTRATIVA ESPECIAL CONTADURÍA GENERAL DE LA NACIÓN | C30: HACIENDA | E30: FONDO APOYO FINANCIERO ZONAS NO INTERCONECTADAS (FAZNI) | F30: 6052 | Q30: Contribución SOAT - Fondo Nacional de Seguridad Vial | R30: 44 | W30: Expedición de registros sanitarios | X30: 29 | Z30: 1.02.1.04.33. Derecho económico por precios altos | AC30: 1.02.2.20. Venta de licencias de software | AF30: 1.02.1.04.16. Contribución - Fondo de Energías No Convencionales y Gestión Eficiente de la Energía (FENOGE)
A31: 130900 | B31: SUPERINTENDENCIA DE LA ECONOMÍA SOLIDARIA | C31: HACIENDA | E31: FONDO APOYO FINANCIERO PARA LA ENERGIZACIÓN DE LAS ZONAS RURALES INTERCONECTADAS (FAER) | F31: 6053 | Q31: Contribución - Fondo de Seguridad y Convivencia | R31: 46 | W31: Renovación de la capacidad de laboratorios | X31: 30 | Z31: 1.02.1.04.34. Derecho económico por participación en la producción | AC31: 1.02.2.21. Expedición de cédulas de extranjería | AF31: 1.02.1.04.17. Contribución - Fondo Especial de Energía Social (FOES)
A32: 131000 | B32: UNIDAD ADMINISTRATIVA ESPECIAL DIRECCIÓN DE IMPUESTOS Y ADUANAS NACIONALES | C32: HACIENDA | E32: FONDO RECURSOS MONITOREO Y VIGILANCIA EDUCACION SUPERIOR | F32: 6055 | Q32: Contribucción - Fondo de Curadores Urbanos | R32: 49 | W32: Realización de exámenes de laboratorio | X32: 31 | Z32: 1.02.1.04.40. Contribución Nacional de Valorización | AC32: 1.02.2.22. Certificación de movimientos migratorios | AF32: 1.02.1.04.18. Contribución - Fondo Especial Cuota de Fomento de Gas Natural | AI32: TRANSFERENCIAS CORRIENTES- FE
A33: 131200 | B33: UNIDAD DE INFORMACIÓN Y ANÁLISIS FINANCIERO | C33: HACIENDA | E33: FONDO FONPET - MAGISTERIO | F33: 6056 | Q33: Contribución - Fondo Notarias Decreto 1672 de 1997 | R33: 50 | W33: Expedición de certificados de registro sanitario | X33: 32 | Z33: 1.02.1.04.45. Contribución Industria Militar - ICFE | AC33: 1.02.2.23. Permisos de ingreso y permanencia en el país | AF33: 1.02.1.04.19. Contribución - Fondo Especial para el programa de Normalización de Redes Eléctricas (Prone) | AI33: 1.02.6.01. Indemnizaciones relacionadas con seguros no de vida
A34: 131300 | B34: SUPERINTENDENCIA FINANCIERA DE COLOMBIA | C34: HACIENDA | E34: FONDO ESPECIAL DE ENERGÍA SOCIAL (FOES ART.118 DE LA LEY 812 DE 2003). | F34: 6057 | Q34: Contribución - Servicios notariales | R34: 51 | W34: Peajes | X34: 33 | Z34: 1.02.1.04.48. Monetización cuota de aprendizaje | AC34: 1.02.2.24. Expedición de salvoconductos de permanencia y salida del país | AF34: 1.02.1.04.20. Contribución – Fondo de Solidaridad para Subsidios y Redistribución de Ingresos | AI34: 1.02.6.03. Prescripción de depósitos judiciales
A35: 131401 | B35: UNIDAD ADMINISTRATIVA ESPECIAL DE GESTIÓN PENSIONAL Y CONTRIBUCIONES PARAFISCALES DE LA PROTECCIÓN SOCIAL (UGPPP) - GESTIÓN GENERAL | C35: HACIENDA | E35: FONDO CUENTA DE CAPACITACIÓN Y PUBLICACIONES DE LA CONTRALORIA GENERAL REPUBLICA | F35: 6059 | Q35: De Indumil | R35: 52 | W35: Permiso para transporte de carga | X35: 34 | Z35: 1.02.1.04.51. Contribucción servicios notariales | AC35: 1.02.2.25. Expedición de información no sujeta a reserva legal | AF35: 1.02.1.04.21. Contribución - Fondo Emprender | AI35: 1.02.6.04. Devolución IVA - Instituciones de educación superior
A36: 131500 | B36: FONDO ADAPTACIÓN | C36: HACIENDA | E36: FONDO DE PENSIONES FONDO ROTATORIO DE NOTARIADO Y REGISTRO | F36: 6060 | W36: Autorización para el uso de materiales radiactivos y nucleares | X36: 35 | AC36: 1.02.2.26. Expedición de la tarjeta de movilidad fronteriza | AF36: 1.02.1.04.22. Contribución – Fondo Nacional de las Universidades Estatales de Colombia | AI36: 1.02.6.05. Transferencias de otras unidades de gobierno
A37: 140100 | B37: SERVICIO DE LA DEUDA PÚBLICA NACIONAL | C37: SERVICIO DE LA DEUDA PÚBLICA NACIONAL | E37: FONDO ESPECIAL COMISION NACIONAL DE BUSQUEDA (ART 18 LEY 971/05) | F37: 6061 | W37: Evaluación de licencias y trámites ambientales | X37: 36 | AC37: 1.02.2.27. Inscripción al sistema de migración automática | AF37: 1.02.1.04.24. Cuota de compensación militar - Fondo de Defensa Nacional | AI37: 1.02.6.06. Recursos de terceros en consignación
A38: 150101 | B38: MINISTERIO DE DEFENSA NACIONAL - GESTIÓN GENERAL | C38: DEFENSA Y POLICÍA | E38: FONDO ESPECIAL CUOTA DE FOMENTO DE GAS NATURAL | F38: 6062 | W38: Seguimiento a licencias y trámites ambientales | X38: 37 | AC38: 1.02.2.28. Verificación migratoria en el sistema PLATINUM | AF38: 1.02.1.04.25. Aporte sobre pólizas de seguros - Fondo Nacional de Bomberos de Colombia | AI38: 1.02.6.08. Recursos por procesos de extinción de dominio
A39: 150102 | B39: MINISTERIO DE DEFENSA NACIONAL - COMANDO GENERAL | C39: DEFENSA Y POLICÍA | E39: FONDO ESPECIAL PARA PROGRAMA DE NORMALIZACIÓN DE REDES ELECTRICAS | F39: 6063 | W39: Tasa de inspección y vigilancia - Superintendencia Nacional de Salud | X39: 38 | AC39: 1.02.2.29. Expedición de registros sanitarios | AF39: 1.02.1.04.27. Arancel judicial - Ley 1394 de 2010 | AI39: 1.02.6.09. Compensación UPC – SSS
A40: 150103 | B40: MINISTERIO DE DEFENSA NACIONAL - EJÉRCITO | C40: DEFENSA Y POLICÍA | E40: FONDO ESPECIAL REGISTRO UNICO NACIONAL DE TRANSITO - RUNT | F40: 6066 | W40: Expedición de tarjetas profesionales | X40: 39 | Z40: MULTAS Y SANCIONES - ESTAPÚBLICO | AC40: 1.02.2.30. Renovación de la capacidad de laboratorios | AF40: 1.02.1.04.28. Arancel judicial CSJ - Ley 1653 de 2013 | AI40: 1.02.6.10.Recursos FRISCO
A41: 150104 | B41: MINISTERIO DE DEFENSA NACIONAL - ARMADA | C41: DEFENSA Y POLICÍA | E41: FONDO DE MODERNIZACIÓN, DESCONGESTIÓN Y BIENESTAR DE LA ADMINISTRACIÓN DE JUSTICIA | F41: 6067 | W41: Derechos de registro | X41: 40 | Z41: 1.02.3.01.01. Multas Superintendencias | AC41: 1.02.2.31. Realización de exámenes de laboratorio | AF41: 1.02.1.04.29. Arancel judicial - Ley 1743 de 2014 | AI41: 1.02.6.12.Prescripción especial adquisitivo de dominio
A42: 150105 | B42: MINISTERIO DE DEFENSA NACIONAL - FUERZA AÉREA | C42: DEFENSA Y POLICÍA | E42: FONDO RENTAS MONOPOLIO PARA EL SECTOR SALUD - LEY 643 DE 2001 | F42: 6068 | W42: Permiso para el uso del espectro radioeléctrico | X42: 42 | Z42: 1.02.3.01.02. Sanciones Aduaneras | AC42: 1.02.2.32. Expedición de certificados de registro sanitario | AF42: 1.02.1.04.30. Contribución especial arbitral | AI42: 1.02.6.13.Recursos por acuerdos de compartición Ley 1743 de 2014
A43: 150111 | B43: MINISTERIO DE DEFENSA NACIONAL - SALUD | C43: DEFENSA Y POLICÍA | E43: FONDO ESPECIAL IMPUESTO SOBRE LA RENTA PARA LA EQUIDAD - CREE | F43: 6069 | W43: Permiso por tenencia y porte de armas | X43: 43 | Z43: 1.02.3.01.03. Sanciones disciplinarias | AC43: 1.02.2.33. Peajes | AF43: 1.02.1.04.31. Contribución especial para laudos arbitrales de contenido económico | AI43: 1.02.6.14.Del Fondo para la Modernización, Descongestión y Bienestar de la Administración de la Justicia
A44: 150112 | B44: MINISTERIO DE DEFENSA NACIONAL - DIRECCIÓN GENERAL MARITIMA (DIMAR) | C44: DEFENSA Y POLICÍA | E44: FONDO NACIONAL DE BOMBEROS DE COLOMBIA | F44: 6070 | W44: Derecho de ingreso áreas protegidas | X44: 44 | Z44: 1.02.3.01.04. Sanciones contractuales | AC44: 1.02.2.34. Permiso para transporte de carga | AF44: 1.02.1.04.36. Aporte afiliados al Sistema General de Pensiones - Subcuenta de Solidaridad | AI44: 1.02.6.15.Distribucción Ley 55 de 1985 Superintendencia de Notariado y Registro
A45: 150113 | B45: MINISTERIO DE DEFENSA NACIONAL - DIRECCIÓN DE VETERANOS Y REHABILITACIÓN INCLUSIVA | C45: DEFENSA Y POLICÍA | E45: FONDOS MINISTERIO JUSTICIA | F45: 6071 | W45: Servicios de asistencia técnica en materia metrológica | X45: 45 | Z45: 1.02.3.01.05. Sanciones administrativas | AC45: 1.02.2.35. Autorización para el uso de materiales radiactivos y nucleares | AF45: 1.02.1.04.37. Aporte afiliados al Sistema General de Pensiones - Subcuenta de Subsistencia
A46: 150300 | B46: CAJA DE RETIRO DE LAS FUERZAS MILITARES | C46: DEFENSA Y POLICÍA | E46: FONDO DESARROLLO PEQUEÑA Y MEDIANA MINERÍA (ART. 151 LEY 1530 DE 2012) | F46: 6073 | W46: Capacitación en metrología | X46: 46 | Z46: 1.02.3.01.06. Sanciones fiscales | AC46: 1.02.2.36. Evaluación de licencias y trámites ambientales | AF46: 1.02.1.04.38. Aportes diferenciales - Fondo de Solidaridad Pensional
A47: 150700 | B47: INSTITUTO CASAS FISCALES DEL EJÉRCITO | C47: DEFENSA Y POLICÍA | E47: FONDO ESPECIAL DE PENSIONES TELECOM, INRAVISIÓN Y TELEASOCIADAS | F47: 6074 | W47: Calibración y medición metrológica | X47: 47 | Z47: 1.02.3.01.07. Multas judiciales | AC47: 1.02.2.37. Seguimiento a licencias y trámites ambientales | AF47: 1.02.1.04.39. Aporte pensionados - Fondo de Solidaridad Pensional
A48: 150800 | B48: DEFENSA CIVIL COLOMBIANA, GUILLERMO LEÓN VALENCIA | C48: DEFENSA Y POLICÍA | E48: FONDO NACIONAL DE LAS UNIVERSIDADES ESTATALES DE COLOMBIA | F48: 6075 | W48: Comparación interlaboratorios | X48: 48 | Z48: 1.02.3.01.08. Sanciones por desestimiento | AC48: 1.02.2.38. Tasa de inspección y vigilancia – Superintendencia Nacional de Salud | AF48: 1.02.1.04.41. Contribución cultural a la boletería de los espectáculos públicos
A49: 151000 | B49: CLUB MILITAR DE OFICIALES | C49: DEFENSA Y POLICÍA | E49: FONDO DE ENERGÍAS NO CONVENCIONALES Y GESTIÓN EFICIENTE DE LA ENERGÍA | F49: 6077 | W49: Comercialización de materiales de referencia | X49: 49 | AC49: 1.02.2.39. Expedición de tarjetas profesionales | AF49: 1.02.1.04.42. Recursos por la explotación de juegos de suerte y azar – Fondo de Investigación en Salud
A50: 151100 | B50: CAJA DE SUELDOS DE RETIRO DE LA POLICÍA NACIONAL | C50: DEFENSA Y POLICÍA | E50: FONDO DE RESTITUCION DE TIERRAS DESPOJADAS | F50: 6078 | W50: Explotación de las concesiones de televisión | X50: 51 | Z50: DERECHOS ECONÓMICOS POR USO DE RECURSOS NATURALES- EP | AC50: 1.02.2.40. Derechos de registro | AF50: 1.02.1.04.43. Contribución - Fondo Industria de la Construcción (FIC)
A51: 151201 | B51: FONPOLICÍA - GESTIÓN GENERAL | C51: DEFENSA Y POLICÍA | E51: FONDO DE LA DIRECCIÓN DE CONSULTA PREVIA | F51: 6079 | W51: Derechos de aeródromo | X51: 53 | Z51: 1.02.4.01. Derecho económico por uso del subsuelo | AC51: 1.02.2.42. Permiso para el uso del espectro radioeléctrico | AF51: 1.02.1.04.44. Contribución SOAT - Fondo Nacional de Seguridad Vial
A52: 151600 | B52: SUPERINTENDENCIA DE VIGILANCIA Y SEGURIDAD PRIVADA | C52: DEFENSA Y POLICÍA | E52: FONDO PARA EL FORTALECIMIENTO DE LA INSPECCIÓN, VIGILANCIA Y CONTROL DEL TRABAJO Y LA SEGURIDAD SOCIAL - FIVICOT | F52: 6080 | W52: Tasas aeroportuarias | X52: 54 | Z52: 1.02.4.02. Concesiones mineras | AC52: 1.02.2.43. Permiso por tenencia y porte de armas | AF52: 1.02.1.04.46. Contribución - Fondo de Seguridad y Convivencia
A53: 151900 | B53: HOSPITAL MILITAR | C53: DEFENSA Y POLICÍA | E53: FONDO DE MITIGACIÓN DE EMERGENCIAS - FOME | F53: 6081 | W53: Permiso para la toma de fotografías y videos en parque naturales | X53: 55 | Z53: 1.02.4.03. Contraprestaciones portuarias | AC53: 1.02.2.44. Derecho de ingreso áreas protegidas | AF53: 1.02.1.04.49 Contribución Fondo de Curadores Urbanos
A54: 152000 | B54: AGENCIA LOGÍSTICA DE LAS FUERZAS MILITARES | C54: DEFENSA Y POLICÍA | E54: FONDO DE ESTABILIZACIÓN DEL INGRESO FISCAL – FEIF | F54: 6082 | W54: Tasa por el uso de agua | X54: 56 | Z54: 1.02.4.05. Concesiones parques naturales | AC54: 1.02.2.45. Servicios de asistencia técnica en materia metrológica | AF54: 1.02.1.04.50 Contribución Fondo Notarias Decreto 1672 de 1997
A55: 152100 | B55: UNIDAD ADMINISTRATIVA ESPECIAL DE LA JUSTICIA PENAL MILITAR Y POLICIAL | C55: DEFENSA Y POLICÍA | E55: FONDO DE ESTABILIZACIÓN DE LOS PRECIOS DE LOS COMBUSTIBLES – FEPC | F55: 6083 | W55: Evaluación de calidad de las estadísticas | X55: 57 | AC55: 1.02.2.46. Capacitación en metrología | AF55: 1.02.1.04.51 Contribución Servicios Notariales
A56: 160101 | B56: POLICÍA NACIONAL - GESTIÓN GENERAL | C56: DEFENSA Y POLICÍA | E56: FONDO PARA LA PROMOCIÓN DEL PATRIMONIO, LA CULTURA, LAS ARTES Y LA CREATIVIDAD -FONCULTURA- LEY 2070 DE 2020 | F56: 6084 | W56: Acreditación de laboratorios ambientales | X56: 61 | AC56: 1.02.2.47. Calibración y medición metrológica | AF56: 1.02.1.04.52 De Indumil
A57: 160102 | B57: POLICÍA NACIONAL - SALUD | C57: DEFENSA Y POLICÍA | E57: FONDO DE REPARACIÓN DE VICTIMAS | F57: 321 | W57: Derecho por el registro de marcas | X57: 62 | Z57: TRANSFERENCIAS CORRIENTES- EP | AC57: 1.02.2.48. Comparación interlaboratorios
A58: 160103 | B58: POLICIA NACIONAL - EDUCACION | C58: DEFENSA Y POLICÍA | E58: FONDO EMPRENDER | F58: 322 | W58: Expedición de antecedentes disciplinarios profesionales | X58: 63 | Z58: 1.02.6.01. Indemnizaciones relacionadas con seguros no de vida | AC58: 1.02.2.49. Comercialización de materiales de referencia
A59: 170101 | B59: MINAGRICULTURA - GESTIÓN GENERAL | C59: AGRICULTURA Y DESARROLLO RURAL | E59: FONDO NACIONAL DE SEGURIDAD VIAL | F59: 323 | W59: Certificados catastrales | X59: 65 | Z59: 1.02.6.02. Sentencias y conciliaciones | AC59: 1.02.2.51. Explotación de las concesiones de televisión
A60: 170106 | B60: UNIDAD DE PLANIFICACION DE TIERRAS RURALES, ADECUACION DE TIERRAS Y USOS AGROPECUARIOS (UPRA) | C60: AGRICULTURA Y DESARROLLO RURAL | E60: FONDO FISCALIZACIÓN MINERA | F60: 324 | W60: Tasa por el uso de la insfraestructura de transporte | X60: 66 | Z60: 1.02.6.04 Devolución IVA - Instituciones de educación superior | AC60: 1.02.2.53. Derechos de aeródromo
A61: 170200 | B61: INSTITUTO COLOMBIANO AGROPECUARIO (ICA) | C61: AGRICULTURA Y DESARROLLO RURAL | E61: FONDO VIVIENDA - SENA | F61: 325 | W61: Por uso de laboratorios y espacioes físicos | X61: 67 | Z61: 1.02.6.05. Transferencias de otras unidades de gobierno | AC61: 1.02.2.54. Tasas aeroportuarias
A62: 171500 | B62: AUTORIDAD NACIONAL DE ACUICULTURA Y PESCA - AUNAP | C62: AGRICULTURA Y DESARROLLO RURAL | E62: FONDO VIVIENDA - SUPERINTENDENCIA NOTARIADO Y REGISTRO | F62: 326 | W62: Expedición de permisos para ejercer actividades pesqueras | X62: 72 | Z62: 1.02.6.07. Recursos por bienes mostrencos y vocaciones hereditarias | AC62: 1.02.2.55. Permiso para la toma de fotografías y videos en parque naturales
A63: 171600 | B63: UNIDAD ADMINISTRATIVA ESPECIAL DE GESTION DE RESTITUCION DE TIERRAS DESPOJADAS | C63: AGRICULTURA Y DESARROLLO RURAL | E63: FONDO INDUSTRIA DE LA CONSTRUCCION FIC | F63: 327 | W63: Expedición de patentes de pesca | X63: 73 | Z63: 1.02.6.09. Compensación UPC – SSS | AC63: 1.02.2.56. Tasa por el uso de agua
A64: 171700 | B64: AGENCIA NACIONAL DE TIERRAS - ANT | C64: AGRICULTURA Y DESARROLLO RURAL | E64: FONDO NOTARIAS DECRETO 1672 DE 1997 | F64: 328 | W64: Contraprestación para la provisión de redes y servicios | X64: 74 | Z64: 1.02.6.11. Mercancías Aprehendidas, Decomisadas o Abandonadas | AC64: 1.02.2.57. Evaluación de calidad de las estadísticas
A65: 171800 | B65: AGENCIA DE DESARROLLO RURAL - ADR | C65: AGRICULTURA Y DESARROLLO RURAL | E65: FONDOS INPEC | F65: 329 | AC65: 1.02.2.61. Acreditación de laboratorios ambientales
A66: 190101 | B66: MINISTERIO DE SALUD Y PROTECCION SOCIAL - GESTION GENERAL | C66: SALUD Y PROTECCIÓN SOCIAL | E66: FONDO CONTRA LA EXPLOTACIÓN SEXUAL DE MENORES | F66: 3210 | Z66: CONTRIBUCIONES SOCIALES -FE | AC66: 1.02.2.62. Derecho por el registro de marcas
A67: 190106 | B67: MINISTERIO DE SALUD Y PROTECCIÓN SOCIAL - UNIDAD ADMINISTRATIVA ESPECIAL FONDO NACIONAL DE ESTUPEFACIENTES | C67: SALUD Y PROTECCIÓN SOCIAL | E67: FONDO DE CURADORES URBANOS | F67: 3211 | W67: TASAS Y DERECHOS ADMINISTRATIVOS - FE | X67: CÓD | Z67: 1.02.1.01.01. Salud | AC67: 1.02.2.63. Expedición de antecedentes disciplinarios profesionales
A68: 190300 | B68: INSTITUTO NACIONAL DE SALUD (INS) | C68: SALUD Y PROTECCIÓN SOCIAL | E68: FONDO PARA LA ADMINISTRACIÓN DE BIENES DE LA FISCALIA | F68: 3212 | W68: Certificaciones y constancias | X68: 15 | Z68: 1.02.1.01.02. Pensión | AC68: 1.02.2.65. Certificados catastrales
A69: 191000 | B69: SUPERINTENDENCIA NACIONAL DE SALUD | C69: SALUD Y PROTECCIÓN SOCIAL | E69: FONDO DE PRESTACIONES SOCIALES DEL MAGISTERIO | F69: 501 | W69: Expedición de tarjetas profesionales | X69: 39 | AC69: 1.02.2.66. Tasa por el uso de la insfraestructura de transporte
A70: 191200 | B70: INSTITUTO NACIONAL DE VIGILANCIA DE MEDICAMENTOS Y ALIMENTOS - INVIMA | C70: SALUD Y PROTECCIÓN SOCIAL | E70: CONTRIBUCIÓN ESPECTÁCULOS PÚBLICOS (ART. 7 LEY 1493 DE 2011) | F70: 502 | W70: Derechos de registro | X70: 40 | AC70: 1.02.2.67. Por uso de laboratorios y espacioes físicos
A71: 191301 | B71: FONDO DE PREVISIÓN SOCIAL DEL CONGRESO - PENSIONES | C71: SALUD Y PROTECCIÓN SOCIAL | W71: Autorización para el manejo de sustancias químicas controladas | X71: 41 | Z71: CONTRIBUCIONES ASOCIADAS A NÓMINA -FE | AC71: 1.02.2.72. Expedición de permisos para ejercer actividades pesqueras
A72: 191302 | B72: FONDO DE PREVISIÓN SOCIAL DEL CONGRESO - CESANTÍAS Y VIVIENDA | C72: SALUD Y PROTECCIÓN SOCIAL | W72: Permiso por tenencia y porte de armas | X72: 43 | Z72: 1.02.1.02.04. Escuelas industriales e institutos técnicos | AC72: 1.02.2.73. Expedición de patentes de pesca
A73: 191401 | B73: FONDO PASIVO SOCIAL DE FERROCARRILES NACIONALES DE COLOMBIA - SALUD | C73: SALUD Y PROTECCIÓN SOCIAL | W73: Tasa para la sostenibilidad del RUNT | X73: 50 | Z73: 1.02.1.02.05. Aportes de cesantías | AC73: 1.02.2.74. Contraprestación para la provisión de redes y servicios
A74: 191402 | B74: FONDO PASIVO SOCIAL DE FERROCARRILES NACIONALES DE COLOMBIA - PENSIONES | C74: SALUD Y PROTECCIÓN SOCIAL | W74: Fiscalización y seguimiento a títulos mineros | X74: 52
A75: 210101 | B75: MINISTERIO DE MINAS Y ENERGIA - GESTION GENERAL | C75: MINAS Y ENERGÍA | W75: Expedición de licencias de fabricación de derivados de cannabis | X75: 59
A76: 210113 | B76: MINISTERIO DE MINAS Y ENERGIA - COMISION DE REGULACION DE ENERGIA Y GAS - CREG - | C76: MINAS Y ENERGÍA | W76: Seguimiento a las licencias de fabricación de derivados de cannabis | X76: 60
A77: 210300 | B77: SERVICIO GEOLOGICO COLOMBIANO | C77: MINAS Y ENERGÍA | W77: Derechos marítimos | X77: 68
A78: 210900 | B78: UNIDAD DE PLANEACION MINERO ENERGETICA - UPME | C78: MINAS Y ENERGÍA | W78: Tasas Servicio de seguridad marítima | X78: 69
A79: 211000 | B79: INSTITUTO DE PLANIFICACION Y PROMOCION DE SOLUCIONES ENERGETICAS PARA LAS ZONAS NO INTERCONECTADAS - IPSE | C79: MINAS Y ENERGÍA | W79: Expedición de tarjetas de reservista y provisional | X79: 70
A80: 211100 | B80: AGENCIA NACIONAL DE HIDROCARBUROS - ANH | C80: MINAS Y ENERGÍA | W80: Expedición de cédulas militares y policiales | X80: 71
A81: 211200 | B81: AGENCIA NACIONAL DE MINERIA - ANM | C81: MINAS Y ENERGÍA
A82: 220101 | B82: MINISTERIO EDUCACION NACIONAL - GESTION GENERAL | C82: EDUCACIÓN
A83: 223400 | B83: ESCUELA TECNOLOGICA INSTITUTO TECNICO CENTRAL | C83: EDUCACIÓN
A84: 223800 | B84: INSTITUTO NACIONAL DE FORMACION TECNICA PROFESIONAL DE SAN ANDRES Y PROVIDENCIA | C84: EDUCACIÓN
A85: 223900 | B85: INSTITUTO NACIONAL DE FORMACION TECNICA PROFESIONAL DE SAN JUAN DEL CESAR | C85: EDUCACIÓN
A86: 224100 | B86: INSTITUTO TOLIMENSE DE FORMACION TECNICA PROFESIONAL | C86: EDUCACIÓN
A87: 224200 | B87: INSTITUTO TECNICO NACIONAL DE COMERCIO SIMON RODRIGUEZ DE CALI | C87: EDUCACIÓN
A88: 224600 | B88: UNIDAD ADMINISTRATIVA ESPECIAL DE ALIMENTACION ESCOLAR | C88: EDUCACIÓN
A89: 225701 | B89: UNIVERSIDADES PUBLICAS - UNIVERSIDAD NACIONAL DE COLOMBIA | C89: EDUCACIÓN
A90: 225702 | B90: UNIVERSIDADES PÚBLICAS - UNIVERSIDAD DE ANTIOQUIA | C90: EDUCACIÓN
A91: 225703 | B91: UNIVERSIDADES PÚBLICAS - UNIVERSIDAD DEL VALLE | C91: EDUCACIÓN
A92: 225704 | B92: UNIVERSIDADES PÚBLICAS - UNIVERSIDAD INDUSTRIAL DE SANTANDER | C92: EDUCACIÓN
A93: 225705 | B93: UNIVERSIDADES PUBLICAS - UNIVERSIDAD PEDAGOGICA Y TECNOLOGICA DE COLOMBIA | C93: EDUCACIÓN
A94: 225706 | B94: UNIVERSIDADES PÚBLICAS - UNIVERSIDAD DISTRITAL FRANCISCO JOSE DE CALDAS | C94: EDUCACIÓN
A95: 225707 | B95: UNIVERSIDADES PÚBLICAS - UNIVERSIDAD DE CARTAGENA | C95: EDUCACIÓN
A96: 225708 | B96: UNIVERSIDADES PÚBLICAS - UNIVERSIDAD DE NARIÑO | C96: EDUCACIÓN
A97: 225709 | B97: UNIVERSIDADES PUBLICAS - UNIVERSIDAD NACIONAL ABIERTA Y A DISTANCIA UNAD | C97: EDUCACIÓN
A98: 225710 | B98: UNIVERSIDADES PÚBLICAS - UNIVERSIDAD DEL MAGDALENA | C98: EDUCACIÓN
A99: 225711 | B99: UNIVERSIDADES PUBLICAS - UNIVERSIDAD DEL CAUCA | C99: EDUCACIÓN
A100: 225712 | B100: UNIVERSIDADES PUBLICAS - UNIVERSIDAD TECNOLOGICA DE PEREIRA | C100: EDUCACIÓN
A101: 225713 | B101: UNIVERSIDADES PÚBLICAS - UNIVERSIDAD DE PAMPLONA | C101: EDUCACIÓN
A102: 225714 | B102: UNIVERSIDADES PUBLICAS - UNIVERSIDAD SURCOLOMBIANA | C102: EDUCACIÓN
A103: 225715 | B103: UNIVERSIDADES PUBLICAS - UNIVERSIDAD PEDAGOGICA NACIONAL | C103: EDUCACIÓN
A104: 225716 | B104: UNIVERSIDADES PUBLICAS - UNIVERSIDAD DE CALDAS | C104: EDUCACIÓN
A105: 225717 | B105: UNIVERSIDADES PÚBLICAS - UNIVERSIDAD MILITAR NUEVA GRANADA | C105: EDUCACIÓN
A106: 225718 | B106: UNIVERSIDADES PÚBLICAS - UNIVERSIDAD DEL ATLÁNTICO | C106: EDUCACIÓN
A107: 225719 | B107: UNIVERSIDADES PÚBLICAS - UNIVERSIDAD DEL TOLIMA | C107: EDUCACIÓN
A108: 225720 | B108: UNIVERSIDADES PUBLICAS - UNIVERSIDAD DE CORDOBA | C108: EDUCACIÓN
A109: 225721 | B109: UNIVERSIDADES PÚBLICAS - UNIVERSIDAD DEL QUINDÍO | C109: EDUCACIÓN
A110: 225722 | B110: UNIVERSIDADES PUBLICAS - UNIVERSIDAD POPULAR DEL CESAR | C110: EDUCACIÓN
A111: 225723 | B111: UNIVERSIDADES PUBLICAS - UNIVERSIDAD DE LOS LLANOS | C111: EDUCACIÓN
A112: 225724 | B112: UNIVERSIDADES PÚBLICAS - UNIVERSIDAD FRANCISCO DE PAULA SANTANDER | C112: EDUCACIÓN
A113: 225725 | B113: UNIVERSIDADES PÚBLICAS - UNIVERSIDAD FRANCISCO DE PAULA SANTANDER SECCIONAL OCAÑA | C113: EDUCACIÓN
A114: 225726 | B114: UNIVERSIDADES PUBLICAS - UNIVERSIDAD DE LA AMAZONIA | C114: EDUCACIÓN
A115: 225727 | B115: UNIVERSIDADES PUBLICAS - UNIVERSIDAD COLEGIO MAYOR DE CUNDINAMARCA | C115: EDUCACIÓN
A116: 225728 | B116: UNIVERSIDADES PÚBLICAS - UNIVERSIDAD DE CUNDINAMARCA | C116: EDUCACIÓN
A117: 225729 | B117: UNIVERSIDADES PUBLICAS - UNIVERSIDAD TECNOLOGICA DEL CHOCO DIEGO LUIS CORDOBA | C117: EDUCACIÓN
A118: 225730 | B118: UNIVERSIDADES PÚBLICAS - UNIVERSIDAD DE SUCRE | C118: EDUCACIÓN
A119: 225731 | B119: UNIVERSIDADES PÚBLICAS - UNIVERSIDAD DE LA GUAJIRA | C119: EDUCACIÓN
A120: 225732 | B120: UNIVERSIDADES PUBLICAS - UNIVERSIDAD DEL PACIFICO | C120: EDUCACIÓN
A121: 225733 | B121: UNIVERSIDADES PÚBLICAS - UNIVERSIDAD INTERNACIONAL DEL TRÓPICO AMERICANO | C121: EDUCACIÓN
A122: 225734 | B122: UNIVERSIDADES PÚBLICAS - UNIVERSIDAD AUTÓNOMA INDÍGENA INTERCULTURAL UAIIN CRIC | C122: EDUCACIÓN
A123: 230101 | B123: MINISTERIO DE TECNOLOGÍAS DE LA INFORMACIÓN Y LAS COMUNICACIONES - GESTIÓN GENERAL | C123: TECNOLOGÍAS DE LA INFORMACIÓN Y LAS COMUNICACIONES
A124: 230600 | B124: FONDO UNICO DE TECNOLOGIAS DE LA INFORMACION Y LAS COMUNICACIONES | C124: TECNOLOGÍAS DE LA INFORMACIÓN Y LAS COMUNICACIONES
A125: 230800 | B125: UNIDAD ADMINISTRATIVA ESPECIAL COMISION DE REGULACION DE COMUNICACIONES | C125: TECNOLOGÍAS DE LA INFORMACIÓN Y LAS COMUNICACIONES
A126: 230900 | B126: AGENCIA NACIONAL DEL ESPECTRO - ANE | C126: TECNOLOGÍAS DE LA INFORMACIÓN Y LAS COMUNICACIONES
A127: 231100 | B127: COMPUTADORES PARA EDUCAR (CPE) | C127: TECNOLOGÍAS DE LA INFORMACIÓN Y LAS COMUNICACIONES
A128: 231200 | B128: CORPORACIÓN AGENCIA NACIONAL DE GOBIERNO DIGITAL - AND | C128: TECNOLOGÍAS DE LA INFORMACIÓN Y LAS COMUNICACIONES
A129: 240101 | B129: MINISTERIO DE TRANSPORTE - GESTION GENERAL | C129: TRANSPORTE
A130: 240200 | B130: INSTITUTO NACIONAL DE VIAS | C130: TRANSPORTE
A131: 241200 | B131: UNIDAD ADMINISTRATIVA ESPECIAL DE LA AERONAUTICA CIVIL | C131: TRANSPORTE
A132: 241300 | B132: AGENCIA NACIONAL DE INFRAESTRUCTURA | C132: TRANSPORTE
A133: 241400 | B133: UNIDAD DE PLANEACION DEL SECTOR DE INFRAESTRUCTURA DE TRANSPORTE | C133: TRANSPORTE
A134: 241500 | B134: COMISIÓN DE REGULACIÓN DE INFRAESTRUCTURA Y TRANSPORTE | C134: TRANSPORTE
A135: 241600 | B135: AGENCIA NACIONAL DE SEGURIDAD VIAL | C135: TRANSPORTE
A136: 241700 | B136: SUPERINTENDENCIA DE PUERTOS Y TRANSPORTE | C136: TRANSPORTE
A137: 250101 | B137: PROCURADURIA GENERAL DE LA NACION - GESTION GENERAL | C137: ORGANISMOS DE CONTROL
A138: 250105 | B138: MINISTERIO PUBLICO - INSTITUTO DE ESTUDIOS DEL MINISTERIO PUBLICO | C138: ORGANISMOS DE CONTROL
A139: 250200 | B139: DEFENSORIA DEL PUEBLO | C139: ORGANISMOS DE CONTROL
A140: 260101 | B140: CONTRALORIA GENERAL DE LA REPUBLICA - GESTION GENERAL | C140: ORGANISMOS DE CONTROL
A141: 260200 | B141: FONDO DE BIENESTAR SOCIAL DE LA CONTRALORÍA GENERAL DE LA REPÚBLICA | C141: ORGANISMOS DE CONTROL
A142: 270102 | B142: RAMA JUDICIAL - CONSEJO SUPERIOR DE LA JUDICATURA | C142: RAMA JUDICIAL
A143: 270103 | B143: RAMA JUDICIAL - CORTE SUPREMA DE JUSTICIA | C143: RAMA JUDICIAL
A144: 270104 | B144: RAMA JUDICIAL - CONSEJO DE ESTADO | C144: RAMA JUDICIAL
A145: 270105 | B145: RAMA JUDICIAL - CORTE CONSTITUCIONAL | C145: RAMA JUDICIAL
A146: 270108 | B146: RAMA JUDICIAL - TRIBUNALES Y JUZGADOS | C146: RAMA JUDICIAL
A147: 270109 | B147: COMISIÓN NACIONAL DE DISCIPLINA JUDICIAL | C147: RAMA JUDICIAL
A148: 280101 | B148: REGISTRADURIA NACIONAL DEL ESTADO CIVIL - GESTION GENERAL | C148: REGISTRADURÍA
A149: 280102 | B149: REGISTRADURIA NACIONAL DEL ESTADO CIVIL - CONSEJO NACIONAL ELECTORAL | C149: REGISTRADURÍA
A150: 280200 | B150: FONDO ROTATORIO DE LA REGISTRADURIA | C150: REGISTRADURÍA
A151: 280300 | B151: FONDO SOCIAL DE VIVIENDA DE LA REGISTRADURÍA NACIONAL DEL ESTADO CIVIL | C151: REGISTRADURÍA
A152: 280400 | B152: CONSEJO NACIONAL ELECTORAL- CNE | C152: REGISTRADURÍA
A153: 290101 | B153: FISCALIA GENERAL DE LA NACION - GESTION GENERAL | C153: FISCALÍA
A154: 290200 | B154: INSTITUTO NACIONAL DE MEDICINA LEGAL Y CIENCIAS FORENSES | C154: FISCALÍA
A155: 290400 | B155: FONDO ESPECIAL PARA LA ADMINISTRACION DE BIENES DE LA FISCALIA GENERAL DE LA NACION | C155: FISCALÍA
A156: 320101 | B156: MINISTERIO DE AMBIENTE Y DESARROLLO SOSTENIBLE - GESTION GENERAL | C156: AMBIENTE Y DESARROLLO SOSTENIBLE
A157: 320102 | B157: PARQUES NACIONALES NATURALES DE COLOMBIA | C157: AMBIENTE Y DESARROLLO SOSTENIBLE
A158: 320104 | B158: AUTORIDAD NACIONAL DE LICENCIAS AMBIENTALES ANLA | C158: AMBIENTE Y DESARROLLO SOSTENIBLE
A159: 320200 | B159: INSTITUTO DE HIDROLOGIA, METEOROLOGIA Y ESTUDIOS AMBIENTALES - IDEAM | C159: AMBIENTE Y DESARROLLO SOSTENIBLE
A160: 320401 | B160: FONDO NACIONAL AMBIENTAL - GESTION GENERAL | C160: AMBIENTE Y DESARROLLO SOSTENIBLE
A161: 320800 | B161: CORPORACIÓN AUTÓNOMA REGIONAL DE LOS VALLES DEL SINÚ Y SAN JORGE (CVS) | C161: AMBIENTE Y DESARROLLO SOSTENIBLE
A162: 320900 | B162: CORPORACIÓN AUTÓNOMA REGIONAL DEL QUINDÍO (CRQ) | C162: AMBIENTE Y DESARROLLO SOSTENIBLE
A163: 321000 | B163: CORPORACIÓN PARA EL DESARROLLO SOSTENIBLE DEL URABÁ (CORPOURABÁ) | C163: AMBIENTE Y DESARROLLO SOSTENIBLE
A164: 321100 | B164: CORPORACIÓN AUTÓNOMA REGIONAL DE CALDAS (CORPOCALDAS) | C164: AMBIENTE Y DESARROLLO SOSTENIBLE
A165: 321200 | B165: CORPORACIÓN AUTÓNOMA REGIONAL PARA EL DESARROLLO SOSTENIBLE DEL CHOCO (CODECHOCO) | C165: AMBIENTE Y DESARROLLO SOSTENIBLE
A166: 321300 | B166: CORPORACIÓN AUTÓNOMA REGIONAL PARA LA DEFENSA DE LA MESETA DE BUCARAMANGA (CDMB) | C166: AMBIENTE Y DESARROLLO SOSTENIBLE
A167: 321400 | B167: CORPORACIÓN AUTÓNOMA REGIONAL DEL TOLIMA (CORTOLIMA) | C167: AMBIENTE Y DESARROLLO SOSTENIBLE
A168: 321500 | B168: CORPORACIÓN AUTÓNOMA REGIONAL DE RISARALDA (CARDER) | C168: AMBIENTE Y DESARROLLO SOSTENIBLE
A169: 321600 | B169: CORPORACIÓN AUTÓNOMA REGIONAL DE NARIÑO (CORPONARIÑO) | C169: AMBIENTE Y DESARROLLO SOSTENIBLE
A170: 321700 | B170: CORPORACIÓN AUTÓNOMA REGIONAL DE LA FRONTERA NORORIENTAL (CORPONOR) | C170: AMBIENTE Y DESARROLLO SOSTENIBLE
A171: 321800 | B171: CORPORACIÓN AUTÓNOMA REGIONAL DE LA GUAJIRA (CORPOGUAJIRA) | C171: AMBIENTE Y DESARROLLO SOSTENIBLE
A172: 321900 | B172: CORPORACIÓN AUTÓNOMA REGIONAL DEL CESAR (CORPOCESAR) | C172: AMBIENTE Y DESARROLLO SOSTENIBLE
A173: 322100 | B173: CORPORACIÓN AUTÓNOMA REGIONAL DEL CAUCA (CRC) | C173: AMBIENTE Y DESARROLLO SOSTENIBLE
A174: 322200 | B174: CORPORACIÓN AUTÓNOMA REGIONAL DEL MAGDALENA (CORPAMAG) | C174: AMBIENTE Y DESARROLLO SOSTENIBLE
A175: 322300 | B175: CORPORACIÓN PARA EL DESARROLLO SOSTENIBLE DEL SUR DE LA AMAZONIA (CORPOAMAZONIA) | C175: AMBIENTE Y DESARROLLO SOSTENIBLE
A176: 322400 | B176: CORPORACIÓN PARA EL DESARROLLO SOSTENIBLE DEL NORTE Y ORIENTE DE LA AMAZONIA (CDA) | C176: AMBIENTE Y DESARROLLO SOSTENIBLE
A177: 322600 | B177: CORPORACIÓN PARA EL DESARROLLO SOSTENIBLE DEL ARCHIPIÉLAGO DE SAN ANDRÉS, PROVIDENCIA Y SANTA CATALINA (CORALINA) | C177: AMBIENTE Y DESARROLLO SOSTENIBLE
A178: 322700 | B178: CORPORACIÓN PARA EL DESARROLLO SOSTENIBLE DEL ÁREA DE MANEJO ESPECIAL LA MACARENA (CORMACARENA) | C178: AMBIENTE Y DESARROLLO SOSTENIBLE
A179: 322800 | B179: CORPORACIÓN PARA EL DESARROLLO SOSTENIBLE DE LA MOJANA Y EL SAN JORGE (CORPOMOJANA) | C179: AMBIENTE Y DESARROLLO SOSTENIBLE
A180: 322900 | B180: CORPORACIÓN AUTÓNOMA REGIONAL DE LA ORINOQUIA (CORPORINOQUIA) | C180: AMBIENTE Y DESARROLLO SOSTENIBLE
A181: 323000 | B181: CORPORACIÓN AUTÓNOMA REGIONAL DE SUCRE (CARSUCRE) | C181: AMBIENTE Y DESARROLLO SOSTENIBLE
A182: 323100 | B182: CORPORACIÓN AUTÓNOMA REGIONAL DEL ALTO MAGDALENA (CAM) | C182: AMBIENTE Y DESARROLLO SOSTENIBLE
A183: 323200 | B183: CORPORACIÓN AUTÓNOMA REGIONAL DEL CENTRO DE ANTIOQUIA (CORANTIOQUIA) | C183: AMBIENTE Y DESARROLLO SOSTENIBLE
A184: 323300 | B184: CORPORACIÓN AUTÓNOMA REGIONAL DEL ATLÁNTICO (CRA) | C184: AMBIENTE Y DESARROLLO SOSTENIBLE
A185: 323400 | B185: CORPORACIÓN AUTÓNOMA REGIONAL DE SANTANDER (CAS) | C185: AMBIENTE Y DESARROLLO SOSTENIBLE
A186: 323500 | B186: CORPORACIÓN AUTÓNOMA REGIONAL DE BOYACÁ (CORPOBOYACÁ) | C186: AMBIENTE Y DESARROLLO SOSTENIBLE
A187: 323600 | B187: CORPORACIÓN AUTÓNOMA REGIONAL DE CHIVOR (CORPOCHIVOR) | C187: AMBIENTE Y DESARROLLO SOSTENIBLE
A188: 323700 | B188: CORPORACIÓN AUTÓNOMA REGIONAL DEL GUAVIO (CORPOGUAVIO) | C188: AMBIENTE Y DESARROLLO SOSTENIBLE
A189: 323800 | B189: CORPORACIÓN AUTÓNOMA REGIONAL DEL CANAL DEL DIQUE (CARDIQUE) | C189: AMBIENTE Y DESARROLLO SOSTENIBLE
A190: 323900 | B190: CORPORACIÓN AUTÓNOMA REGIONAL DEL SUR DE BOLIVAR (CSB) | C190: AMBIENTE Y DESARROLLO SOSTENIBLE
A191: 330101 | B191: MINISTERIO DE LAS CULTURAS, LAS ARTES Y LOS SABERES - GESTION GENERAL | C191: CULTURA
A192: 330400 | B192: ARCHIVO GENERAL DE LA NACION | C192: CULTURA
A193: 330500 | B193: INSTITUTO COLOMBIANO DE ANTROPOLOGIA E HISTORIA | C193: CULTURA
A194: 330700 | B194: INSTITUTO CARO Y CUERVO | C194: CULTURA
A195: 340101 | B195: AUDITORIA GENERAL DE LA REPUBLICA - GESTION GENERAL | C195: ORGANISMOS DE CONTROL
A196: 350101 | B196: MINCOMERCIO INDUSTRIA TURISMO - GESTION GENERAL | C196: COMERCIO, INDUSTRIA Y TURISMO
A197: 350102 | B197: MINCOMERCIO INDUSTRIA TURISMO - DIRECCION GENERAL DE COMERCIO EXTERIOR | C197: COMERCIO, INDUSTRIA Y TURISMO
A198: 350200 | B198: SUPERINTENDENCIA DE SOCIEDADES | C198: COMERCIO, INDUSTRIA Y TURISMO
A199: 350300 | B199: SUPERINTENDENCIA DE INDUSTRIA Y COMERCIO | C199: COMERCIO, INDUSTRIA Y TURISMO
A200: 350400 | B200: UNIDAD ADMINISTRATIVA ESPECIAL JUNTA CENTRAL CONTADORES | C200: COMERCIO, INDUSTRIA Y TURISMO
... 29 more rows

Sheet Programático (hidden)
A1: FUNCIONAMIENTO | L1: INVERSIÓN
A2: Código sector | B2: Sector | C2: Código programa | D2: Programa | E2: Código Subprograma | F2: Subprograma | G2: Código producto Final | H2: Producto Final | I2: Código operación de funcionamiento | J2: Operación de funcionamiento | L2: Código sector | M2: Sector | N2: Código programa | O2: Programa | P2: Código Subprograma | Q2: Subprograma | T2: Sector | U2: Programa 01 | V2: Programa 02 | W2: Programa 03 | X2: Programa 04 | Y2: Programa 05 | Z2: Programa 06 | AA2: Programa 07 | AB2: Programa 08 | AC2: Programa 09 | AD2: Programa 10 | AE2: Programa 11 | AF2: Programa 12 | AG2: Conteo
A3: 17 | B3: AGRICULTURA Y DESARROLLO RURAL | C3: 1702 | D3: Inclusión Productiva de pequeños productores rurales | E3: 1100 | F3: Intersubsectorial Agricultura | G3: 01 | H3: Servicio de fortalecimiento de las capacidades productivas de los pequeños agricultores | I3: 01 | J3: Direccionamiento estratégico del sector | L3: 17 | M3: AGRICULTURA Y DESARROLLO RURAL | N3: 1702 | O3: Inclusión Productiva de pequeños productores rurales | P3: 1100 | Q3: Intersubsectorial Agricultura | T3: AGRICULTURA Y DESARROLLO RURAL | U3: 1702 Inclusión Productiva de pequeños productores rurales | V3: 1703 Servicios financieros y gestión del riesgo para las actividades agropecuarias y rurales | W3: 1704 Fortalecimiento de la gestión y dirección del sector Agricultura y Desarrollo Rural | X3: 1705 Restitución de tierras a víctimas del conflicto armado | Y3: 1706 Aprovechamiento de mercados externos | Z3: 1707 Sanidad agropecuaria e inocuidad agroalimentaria | AA3: 1708 Ciencia, tecnología e innovación agropecuaria | AB3: 1709 Infraestructura productiva y comercialización | AC3: 1710 Acompañamiento a población rural y población rural vulnerable | AD3: 1799 fortalecimiento y apoyo a la gestión institucional del sector Agricultura y Desarrollo Rural | AE3: 1700 No asignable a programas | AG3: =COUNTA(U3:AF3) -> 11
A4: 17 | B4: AGRICULTURA Y DESARROLLO RURAL | C4: 1702 | D4: Inclusión Productiva de pequeños productores rurales | E4: 1100 | F4: Intersubsectorial Agricultura | G4: 01 | H4: Servicio de fortalecimiento de las capacidades productivas de los pequeños agricultores | I4: 02 | J4: Gestión de políticas de apoyo productivo a los pequeños productores rurales | L4: 17 | M4: AGRICULTURA Y DESARROLLO RURAL | N4: 1703 | O4: Servicios financieros y gestión del riesgo para las actividades agropecuarias y rurales | P4: 1100 | Q4: Intersubsectorial Agricultura | T4: AMBIENTE Y DESARROLLO SOSTENIBLE | U4: 3201 Fortalecimiento del desempeño ambiental de los sectores productivos | V4: 3202 Conservación de la biodiversidad y sus servicios ecosistémicos | W4: 3203 Gestión Integral del Recurso Hídrico | X4: 3204 Gestión de la información y el conocimiento ambiental | Y4: 3205 Ordenamiento ambiental territorial | Z4: 3206 Gestión del cambio climático para un desarrollo bajo en carbono y resiliente al clima | AA4: 3207 Gestión integral de mares, costas y recursos acuáticos | AB4: 3208 Educación Ambiental | AC4: 3299 Fortalecimiento y apoyo a la gestión institucional del sectorAmbiente y Desarrollo Sostenible | AD4: 3200 No asignable a programas | AG4: =COUNTA(U4:AF4) -> 10
A5: 17 | B5: AGRICULTURA Y DESARROLLO RURAL | C5: 1702 | D5: Inclusión Productiva de pequeños productores rurales | E5: 1100 | F5: Intersubsectorial Agricultura | G5: 01 | H5: Servicio de fortalecimiento de las capacidades productivas de los pequeños agricultores | I5: 03 | J5: Gestión de asitencia técnica | L5: 17 | M5: AGRICULTURA Y DESARROLLO RURAL | N5: 1704 | O5: Fortalecimiento de la gestión y dirección del sector Agricultura y Desarrollo Rural | P5: 1100 | Q5: Intersubsectorial Agricultura | T5: CIENCIA, TECNOLOGÍA E INNOVACIÓN | U5: 3999 Fortalecimiento y apoyo a la gestión institucional del sector Ciencia y Tecnología | V5: 3900 No asignable a programas | AG5: 2
A6: 17 | B6: AGRICULTURA Y DESARROLLO RURAL | C6: 1702 | D6: Inclusión Productiva de pequeños productores rurales | E6: 1100 | F6: Intersubsectorial Agricultura | G6: 01 | H6: Servicio de fortalecimiento de las capacidades productivas de los pequeños agricultores | I6: 04 | J6: Gestión de acceso a activos productivos | L6: 17 | M6: AGRICULTURA Y DESARROLLO RURAL | N6: 1705 | O6: Restitución de tierras a víctimas del conflicto armado | P6: 1100 | Q6: Intersubsectorial Agricultura | T6: COMERCIO, INDUSTRIA Y TURISMO | U6: 3501 Internacionalización de la economía | V6: 3502 Productividad y competitividad de las empresas colombianas | W6: 3503 Ambiente regulatorio y económico para la competencia y la actividad empresarial | X6: 3504 Competitividad, sostenibilidad y promoción del turismo colombiano | Y6: 3599 Fortalecimiento y apoyo a la gestión institucional del sector Comercio, Industria y Turismo | Z6: 3500 No asignable a programas | AG6: 6
A7: 17 | B7: AGRICULTURA Y DESARROLLO RURAL | C7: 1702 | D7: Inclusión Productiva de pequeños productores rurales | E7: 1100 | F7: Intersubsectorial Agricultura | G7: 01 | H7: Servicio de fortalecimiento de las capacidades productivas de los pequeños agricultores | I7: 05 | J7: Promoción y fomento de proyectos de pequeños productores | L7: 17 | M7: AGRICULTURA Y DESARROLLO RURAL | N7: 1706 | O7: Aprovechamiento de mercados externos | P7: 1100 | Q7: Intersubsectorial Agricultura | T7: CONGRESO DE LA REPÚBLICA | U7: 0101 Mejoramiento de la eficiencia y la transparencia legislativa | V7: 0199 Fortalecimiento y apoyo a la gestión institucional del sector Congreso de la República | W7: 0100 No asignable a programas | AG7: 3
A8: 17 | B8: AGRICULTURA Y DESARROLLO RURAL | C8: 1703 | D8: Servicios financieros y gestión del riesgo para las actividades agropecuarias y rurales | E8: 1100 | F8: Intersubsectorial Agricultura | G8: 01 | H8: servicio de inclusión financiera para los productores rurales | I8: 01 | J8: Direccionamiento estratégico del sector | L8: 17 | M8: AGRICULTURA Y DESARROLLO RURAL | N8: 1707 | O8: Sanidad agropecuaria e inocuidad agroalimentaria | P8: 1100 | Q8: Intersubsectorial Agricultura | T8: CULTURA | U8: 3301 Promoción y acceso efectivo a procesos culturales y artísticos | V8: 3302 Gestión, protección y salvaguardia del patrimonio cultural colombiano | W8: 3399 Fortalecimiento y apoyo a la gestión institucional del sector Cultura | X8: 3300 No asignable a programas | AG8: 4
A9: 17 | B9: AGRICULTURA Y DESARROLLO RURAL | C9: 1703 | D9: Servicios financieros y gestión del riesgo para las actividades agropecuarias y rurales | E9: 1100 | F9: Intersubsectorial Agricultura | G9: 01 | H9: servicio de inclusión financiera para los productores rurales | I9: 02 | J9: Gestión de la política de inclusión financiera para los productores rurales | L9: 17 | M9: AGRICULTURA Y DESARROLLO RURAL | N9: 1708 | O9: Ciencia, tecnología e innovación agropecuaria | P9: 1100 | Q9: Intersubsectorial Agricultura | T9: DEFENSA Y POLICÍA | U9: 1501 Capacidades de la Policía Nacional en seguridad pública, prevención, convivencia y seguridad ciudadana | V9: 1502 Capacidades de la Policía Nacional en seguridad pública, prevención, convivencia y seguridad ciudadana | W9: 1504 Desarrollo marítimo, fluvial y costero desde el sector defensa | X9: 1505 Generación de bienestar para la Fuerza Pública y sus familias | Y9: 1506 Gestión del riesgo de desastres desde el sector Defensa y Seguridad | Z9: 1508 Inspección, Vigilancia y Control de la prestación del servicio de vigilancia y seguridad privada | AA9: 1599 Fortalecimiento y apoyo a la gestión institucional del sector Defensa y Policía | AB9: 1500 No asignable a programas | AG9: 8
A10: 17 | B10: AGRICULTURA Y DESARROLLO RURAL | C10: 1703 | D10: Servicios financieros y gestión del riesgo para las actividades agropecuarias y rurales | E10: 1100 | F10: Intersubsectorial Agricultura | G10: 01 | H10: servicio de inclusión financiera para los productores rurales | I10: 03 | J10: Gestión de cofinanciación para proyectos productivos | L10: 17 | M10: AGRICULTURA Y DESARROLLO RURAL | N10: 1709 | O10: Infraestructura productiva y comercialización | P10: 1100 | Q10: Intersubsectorial Agricultura | T10: DEPORTE Y RECREACIÓN | U10: 4301 Fomento a la recreación, la actividad física y el deporte | V10: 4302 Formación y preparación de deportistas | W10: 4399 Fortalecimiento y apoyo a la gestión institucional del sector Recreación y Deporte | X10: 4300 No programático | AG10: 4
A11: 17 | B11: AGRICULTURA Y DESARROLLO RURAL | C11: 1703 | D11: Servicios financieros y gestión del riesgo para las actividades agropecuarias y rurales | E11: 1100 | F11: Intersubsectorial Agricultura | G11: 01 | H11: servicio de inclusión financiera para los productores rurales | I11: 04 | J11: Seguimiento y control | L11: 17 | M11: AGRICULTURA Y DESARROLLO RURAL | N11: 1710 | O11: Acompañamiento a población rural y población rural vulnerable | P11: 1100 | Q11: Intersubsectorial Agricultura | T11: EDUCACIÓN | U11: 2201 Calidad, cobertura y fortalecimiento de la educación inicial, prescolar, básica y media | V11: 2202 Calidad y fomento de la educación superior | W11: 2203 Cierre de brechas para el goce efectivo de derechos fundamentales de la población en condición de discapacidad | X11: 2299 Fortalecimiento y apoyo a la gestión institucional del sector Educación | Y11: 2200 No asignable a programas | AG11: 5
A12: 17 | B12: AGRICULTURA Y DESARROLLO RURAL | C12: 1704 | D12: Fortalecimiento de la gestión y dirección del sector Agricultura y Desarrollo Rural | E12: 1100 | F12: Intersubsectorial Agricultura | G12: 01 | H12: Servicio de ordenamiento social y productivo territorial | I12: 01 | J12: Direccionamiento estratégico del sector | L12: 17 | M12: AGRICULTURA Y DESARROLLO RURAL | N12: 1799 | O12: fortalecimiento y apoyo a la gestión institucional del sector Agricultura y Desarrollo Rural | P12: 1100 | Q12: Intersubsectorial Agricultura | T12: EMPLEO PÚBLICO | U12: 0503 Mejoramiento de la calidad educativa en la gestión pública | V12: 0504 Administración y vigilancia de las carreras administrativas de los servidores públicos | W12: 0505 Fortalecimiento de la gestión pública en las entidades nacionales y territoriales | X12: 0599 Fortalecimiento y apoyo a la gestión institucional del sector Empleo | Y12: 0500 No asignable a programas | AG12: 5
A13: 17 | B13: AGRICULTURA Y DESARROLLO RURAL | C13: 1704 | D13: Fortalecimiento de la gestión y dirección del sector Agricultura y Desarrollo Rural | E13: 1100 | F13: Intersubsectorial Agricultura | G13: 01 | H13: Servicio de ordenamiento social y productivo territorial | I13: 02 | J13: Diseño e implementación de instrumentos de ordenamiento territorial | L13: 17 | M13: AGRICULTURA Y DESARROLLO RURAL | N13: 1700 | O13: No asignable a programas | P13: 1100 | Q13: Intersubsectorial Agricultura | T13: FISCALÍA | U13: 2901 Efectividad de la investigación penal y técnico científica | V13: 2999 Fortalecimiento y apoyo a la gestión institucional del sector Fiscalía | W13: 2900 No asignable a programas | AG13: 3
A14: 17 | B14: AGRICULTURA Y DESARROLLO RURAL | C14: 1704 | D14: Fortalecimiento de la gestión y dirección del sector Agricultura y Desarrollo Rural | E14: 1100 | F14: Intersubsectorial Agricultura | G14: 01 | H14: Servicio de ordenamiento social y productivo territorial | I14: 03 | J14: Gestión del ordenamiento territorial | L14: 32 | M14: AMBIENTE Y DESARROLLO SOSTENIBLE | N14: 3201 | O14: Fortalecimiento del desempeño ambiental de los sectores productivos | P14: 900 | Q14: Intersubsectorial Ambiente | T14: HACIENDA | U14: 1301 Política macroeconómica fiscal | V14: 1302 Gestión de recursos públicos | W14: 1303 Reducción de la vulnerabilidad fiscal ante desastres y riesgos climáticos | X14: 1304 Inspección, control y vigilancia financiera, solidaria y de recursos públicos | Y14: 1305 Fortalecimiento de recaudo y tributación | Z14: 1399 Fortalecimiento y apoyo a la gestión institucional del sector Hacienda | AA14: 1300 No asignable a programas | AG14: 7
A15: 17 | B15: AGRICULTURA Y DESARROLLO RURAL | C15: 1704 | D15: Fortalecimiento de la gestión y dirección del sector Agricultura y Desarrollo Rural | E15: 1100 | F15: Intersubsectorial Agricultura | G15: 01 | H15: Servicio de ordenamiento social y productivo territorial | I15: 04 | J15: Gestión del uso eficiente del suelo y adecuación de tierras | L15: 32 | M15: AMBIENTE Y DESARROLLO SOSTENIBLE | N15: 3202 | O15: Conservación de la biodiversidad y sus servicios ecosistémicos | P15: 900 | Q15: Intersubsectorial Ambiente | T15: INCLUSIÓN SOCIAL Y RECONCILIACIÓN | U15: 4101 Atención, asistencia y reparación integral a las víctimas | V15: 4102 Desarrollo integral de la primera infancia a la juventud y fortalecimiento familiar | W15: 4103 Inclusión social y productiva para la población en situación de vulnerabilidad | X15: 410X Protección de derechos de niños, niñas, adolescentes y jóvenes | Y15: 4199 Fortalecimiento y apoyo a la gestión institucional del sector Inclusión social y Reconciliación | AG15: 5
A16: 17 | B16: AGRICULTURA Y DESARROLLO RURAL | C16: 1704 | D16: Fortalecimiento de la gestión y dirección del sector Agricultura y Desarrollo Rural | E16: 1100 | F16: Intersubsectorial Agricultura | G16: 01 | H16: Servicio de ordenamiento social y productivo territorial | I16: 05 | J16: Gestión de formalización de tierras | L16: 32 | M16: AMBIENTE Y DESARROLLO SOSTENIBLE | N16: 3203 | O16: Gestión Integral del Recurso Hídrico | P16: 900 | Q16: Intersubsectorial Ambiente | T16: INFORMACIÓN ESTADÍSTICA | U16: 0401 Levantamiento y actualización de información estadística de calidad | V16: 0406 Generación de la información geográfica del territorio nacional | W16: 0499 Fortalecimiento y apoyo a la gestión institucional del sector Información Estadística | X16: 0400 No asignable a programas | AG16: 4
A17: 17 | B17: AGRICULTURA Y DESARROLLO RURAL | C17: 1704 | D17: Fortalecimiento de la gestión y dirección del sector Agricultura y Desarrollo Rural | E17: 1100 | F17: Intersubsectorial Agricultura | G17: 01 | H17: Servicio de ordenamiento social y productivo territorial | I17: 06 | J17: Gestión de acceso y administración de tierras | L17: 32 | M17: AMBIENTE Y DESARROLLO SOSTENIBLE | N17: 3204 | O17: Gestión de la información y el conocimiento ambiental | P17: 900 | Q17: Intersubsectorial Ambiente | T17: INTELIGENCIA | U17: 4201 Desarrollo de inteligencia estratégica y contrainteligencia de Estado | V17: 4299 Fortalecimiento y apoyo a la gestión institucional del sector Inteligencia | W17: 4200 No asignable a programas | AG17: 3
A18: 17 | B18: AGRICULTURA Y DESARROLLO RURAL | C18: 1704 | D18: Fortalecimiento de la gestión y dirección del sector Agricultura y Desarrollo Rural | E18: 1100 | F18: Intersubsectorial Agricultura | G18: 01 | H18: Servicio de ordenamiento social y productivo territorial | I18: 07 | J18: Gestión de acceso y administración de tierras con enfoque étnico | L18: 32 | M18: AMBIENTE Y DESARROLLO SOSTENIBLE | N18: 3205 | O18: Ordenamiento ambiental territorial | P18: 900 | Q18: Intersubsectorial Ambiente | T18: INTERIOR | U18: 3701 Fortalecimiento institucional a los procesos organizativos de concertación; garantía, prevención y respeto de los derechos humanos como fundamentos para la paz | V18: 3702 Fortalecimiento a la gobernabilidad territorial para la seguridad, convivencia ciudadana, paz y postconflicto. | W18: 3704 Gobernabilidad y participación ciudadana | X18: 3705 Protección de personas, grupos y comunidades en riesgo extraordinario y extremo Unidad Nacional de Protección (UNP) | Y18: 3706 Protección, promoción y difusión del derecho de autor y los derechos conexos | Z18: 3707 Gestión del riesgo de desastres naturales y antrópicos en la zona de influencia del volcán Nevado del Huila. | AA18: 3799 Fortalecimiento y apoyo a la gestión institucional del sector interior | AB18: 3700 No asignable a programas | AG18: 8
A19: 17 | B19: AGRICULTURA Y DESARROLLO RURAL | C19: 1704 | D19: Fortalecimiento de la gestión y dirección del sector Agricultura y Desarrollo Rural | E19: 1100 | F19: Intersubsectorial Agricultura | G19: 01 | H19: Servicio de ordenamiento social y productivo territorial | I19: 08 | J19: Ejecución de la política de ordenamiento social y productivo territorial | L19: 32 | M19: AMBIENTE Y DESARROLLO SOSTENIBLE | N19: 3206 | O19: Gestión del cambio climático para un desarrollo bajo en carbono y resiliente al clima | P19: 900 | Q19: Intersubsectorial Ambiente | T19: SISTEMA INTEGRAL DE VERDAD, JUSTICIA, REPARACIÓN Y NO REPETICIÓN | U19: 4401 Jurisdicción Especial para la Paz | V19: 4403 Unidad de Búsqueda de Personas dadas por Desaparecidas en el contexto y en razón del Conflicto Armado (UBPD) | W19: 4499 Fortalecimiento y apoyo a la gestión institucional del sector Justicia Especial para la Paz | X19: 4400 No asignable a programas | AG19: 4
A20: 17 | B20: AGRICULTURA Y DESARROLLO RURAL | C20: 1705 | D20: Restitución de tierras a víctimas del conflicto armado | E20: 1100 | F20: Intersubsectorial Agricultura | G20: 01 | H20: Servicio de restitución de tierras y compensación a víctimas del conflicto armado | I20: 01 | J20: Direccionamiento estratégico del sector | L20: 32 | M20: AMBIENTE Y DESARROLLO SOSTENIBLE | N20: 3207 | O20: Gestión integral de mares, costas y recursos acuáticos | P20: 900 | Q20: Intersubsectorial Ambiente | T20: JUSTICIA Y DEL DERECHO | U20: 1201 Fortalecimiento del principio de seguridad jurídica, divulgación y depuración del ordenamiento jurídico | V20: 1202 Promoción al acceso a la justicia | W20: 1203 Promoción de los métodos de resolución de conflictos | X20: 1204 Justicia transicional | Y20: 1205 Defensa jurídica del Estado | Z20: 1206 Sistema penitenciario y carcelario en el marco de los derechos humanos | AA20: 1207 Fortalecimiento de la política criminal del Estado colombiano | AB20: 1208 Formulación y coordinación de la política integral frente a las drogas y actividades relacionadas | AC20: 1209 Modernización de la información inmobiliaria | AD20: 1299 Fortalecimiento y apoyo a la gestión institucional del sector Justicia y del Derecho | AE20: 1200 No asignable a programas | AG20: 11
A21: 17 | B21: AGRICULTURA Y DESARROLLO RURAL | C21: 1705 | D21: Restitución de tierras a víctimas del conflicto armado | E21: 1100 | F21: Intersubsectorial Agricultura | G21: 01 | H21: Servicio de restitución de tierras y compensación a víctimas del conflicto armado | I21: 02 | J21: Diseño e implementación de instrumentos de restitución de tierras despojadas | L21: 32 | M21: AMBIENTE Y DESARROLLO SOSTENIBLE | N21: 3208 | O21: Educación Ambiental | P21: 900 | Q21: Intersubsectorial Ambiente | T21: MINAS Y ENERGÍA | U21: 2101 Acceso al servicio público domiciliario de gas combustible | V21: 2102 Consolidación productiva del sector de energía eléctrica | W21: 2103 Consolidación productiva del sector de hidrocarburos | X21: 2104 Consolidación productiva del sector minero | Y21: 2105 Desarrollo ambiental sostenible del sector minero energético | Z21: 2106 Gestión de la información en el sector minero energético | AA21: 2199 Fortalecimiento y apoyo a la gestión institucional del sector Minas y Energía | AB21: 2100 No asignable a programas | AG21: 8
A22: 17 | B22: AGRICULTURA Y DESARROLLO RURAL | C22: 1705 | D22: Restitución de tierras a víctimas del conflicto armado | E22: 1100 | F22: Intersubsectorial Agricultura | G22: 01 | H22: Servicio de restitución de tierras y compensación a víctimas del conflicto armado | I22: 03 | J22: Acompañamiento psicosocial a víctimas | L22: 32 | M22: AMBIENTE Y DESARROLLO SOSTENIBLE | N22: 3299 | O22: Fortalecimiento y apoyo a la gestión institucional del sectorAmbiente y Desarrollo Sostenible | P22: 900 | Q22: Intersubsectorial Ambiente | T22: ORGANISMOS DE CONTROL | U22: 2502 Promoción, protección y defensa de los Derechos Humanos y el Derecho Internacional Humanitario | V22: 2504 Vigilancia de la gestión administrativa de los funcionarios del Estado | W22: 2599 Fortalecimiento y apoyo a la gestión institucional del sector organismos de control | X22: 2501 Fortalecimiento del control y la vigilancia de la gestión fiscal y resarcimiento al daño del patrimonio público | Y22: 2505 Bienestar de los servidores de la Contraloría General de la República | AG22: 5
A23: 17 | B23: AGRICULTURA Y DESARROLLO RURAL | C23: 1705 | D23: Restitución de tierras a víctimas del conflicto armado | E23: 1100 | F23: Intersubsectorial Agricultura | G23: 01 | H23: Servicio de restitución de tierras y compensación a víctimas del conflicto armado | I23: 04 | J23: Gestión jurídica | L23: 32 | M23: AMBIENTE Y DESARROLLO SOSTENIBLE | N23: 3200 | O23: No asignable a programas | P23: 900 | Q23: Intersubsectorial Ambiente | T23: PLANEACIÓN | U23: 0301 Mejoramiento de la planeación territorial, sectorial y de inversión pública | V23: 0303 Promoción de la prestación eficiente de los servicios públicos domiciliarios | W23: 0304 Fortalecimiento del Sistema de Compra Pública | X23: 0399 Fortalecimiento y apoyo a la gestión institucional del sector Planeación | Y23: 0300 No asignable a programas | AG23: 5
A24: 17 | B24: AGRICULTURA Y DESARROLLO RURAL | C24: 1705 | D24: Restitución de tierras a víctimas del conflicto armado | E24: 1100 | F24: Intersubsectorial Agricultura | G24: 01 | H24: Servicio de restitución de tierras y compensación a víctimas del conflicto armado | I24: 05 | J24: Identificación y caracterización de terrenos | L24: 39 | M24: CIENCIA, TECNOLOGÍA E INNOVACIÓN | N24: 3999 | O24: Fortalecimiento y apoyo a la gestión institucional del sector Ciencia y Tecnología | P24: 1000 | Q24: Intersubsectorial Gobierno | T24: PRESIDENCIA DE LA REPÚBLICA | U24: 0204 Impulsar la competitividad de las regiones y el desarrollo integral las poblaciones con enfoque diferencial desde el sector Presidencia. | V24: 0207 Prevención y mitigación del riesgo de desastres desde el sector Presidencia | W24: 0208 Gestión de la cooperación internacional del sector Presidencia | X24: 0209 Fortalecimiento de la infraestructura física de las entidades del Estado del nivel nacional desde el Sector Presidencia | Y24: 0210 Mecanismos de transición hacia la paz a nivel nacional y territorial desde el sector Presidencia | Z24: 0211 Reintegración de personas y grupos alzados en armas desde el Sector Presidencia | AA24: 0212 Renovación territorial para el desarrollo integral de las zonas rurales afectadas por el conflicto armado. | AB24: 0214 Fortalecimiento de las capacidades de articulación estratégica, modernización, eficiencia administrativa, transparencia y acceso a la información desde el sector Presidencia | AC24: 0299 Fortalecimiento y apoyo a la gestión institucional del sector Presidencia | AD24: 0200 No asignable a programas | AG24: 10
A25: 17 | B25: AGRICULTURA Y DESARROLLO RURAL | C25: 1705 | D25: Restitución de tierras a víctimas del conflicto armado | E25: 1100 | F25: Intersubsectorial Agricultura | G25: 01 | H25: Servicio de restitución de tierras y compensación a víctimas del conflicto armado | I25: 06 | J25: Acompañamiento a población víctima con enfoque étnico | L25: 39 | M25: CIENCIA, TECNOLOGÍA E INNOVACIÓN | N25: 3900 | O25: No asignable a programas | P25: 1000 | Q25: Intersubsectorial Gobierno | T25: RAMA JUDICIAL | U25: 2701 Mejoramiento y ejecución de las competencias de la administración de la justicia | V25: 2799 Fortalecimiento y apoyo a la gestión institucional del sector Rama Judicial | W25: 2700 No asignable a programas | AG25: 3
A26: 17 | B26: AGRICULTURA Y DESARROLLO RURAL | C26: 1705 | D26: Restitución de tierras a víctimas del conflicto armado | E26: 1100 | F26: Intersubsectorial Agricultura | G26: 01 | H26: Servicio de restitución de tierras y compensación a víctimas del conflicto armado | I26: 07 | J26: Ejecución de la política de restitución de tierras | L26: 35 | M26: COMERCIO, INDUSTRIA Y TURISMO | N26: 3501 | O26: Internacionalización de la economía | P26: 0200 | Q26: Intersubsectorial Industria y Comercio | T26: REGISTRADURÍA | U26: 2801 Procesos democráticos y asuntos electorales | V26: 2802 Identificación y registro del estado civil de la población | W26: 2899 Fortalecimiento y apoyo a la gestión institucional del sector Registraduría | X26: 2800 No asignable a programas | AG26: 4
A27: 17 | B27: AGRICULTURA Y DESARROLLO RURAL | C27: 1706 | D27: Aprovechamiento de mercados externos | E27: 1100 | F27: Intersubsectorial Agricultura | G27: 01 | H27: servicio de Inclusión del sector agricola en el mercado internacional | I27: 01 | J27: Direccionamiento estratégico del sector | L27: 35 | M27: COMERCIO, INDUSTRIA Y TURISMO | N27: 3502 | O27: Productividad y competitividad de las empresas colombianas | P27: 0200 | Q27: Intersubsectorial Industria y Comercio | T27: RELACIONES EXTERIORES | U27: 1101 Fortalecimiento y diversificación de relaciones bilaterales | V27: 1102 Posicionamiento en instancias globales, multilaterales, regionales y subregionales | W27: 1103 Política migratoria y servicio al ciudadano | X27: 1104 Soberanía territorial y desarrollo fronterizo | Y27: 1199 Fortalecimiento y apoyo a la gestión institucional del sector relaciones exteriores | Z27: 1100 No asignable a programas | AG27: 6
A28: 17 | B28: AGRICULTURA Y DESARROLLO RURAL | C28: 1706 | D28: Aprovechamiento de mercados externos | E28: 1100 | F28: Intersubsectorial Agricultura | G28: 01 | H28: servicio de Inclusión del sector agricola en el mercado internacional | I28: 02 | J28: Gestión de la política de comercio exterior para productos agropecuarios | L28: 35 | M28: COMERCIO, INDUSTRIA Y TURISMO | N28: 3503 | O28: Ambiente regulatorio y económico para la competencia y la actividad empresarial | P28: 0200 | Q28: Intersubsectorial Industria y Comercio | T28: SALUD Y PROTECCIÓN SOCIAL | U28: 1901 Salud Pública y prestación de servicios | V28: 1902 Aseguramiento y administración del Sistema General de la Seguridad Social en Salud - SGSSS | W28: 1903 Inspección, vigilancia y control del Sistema de Seguridad Social en Salud | X28: 1907 Administración de pensiones de entidades del sector salud | Y28: 1999 Fortalecimiento y apoyo a la gestión institucional del sector salud | Z28: 1900 No programático | AG28: 6
A29: 17 | B29: AGRICULTURA Y DESARROLLO RURAL | C29: 1707 | D29: Sanidad agropecuaria e inocuidad agroalimentaria | E29: 1100 | F29: Intersubsectorial Agricultura | G29: 01 | H29: Servicio de implementación y control de medidas sanitarias para el sector agro | I29: 01 | J29: Direccionamiento estratégico del sector | L29: 35 | M29: COMERCIO, INDUSTRIA Y TURISMO | N29: 3504 | O29: Competitividad, sostenibilidad y promoción del turismo colombiano | P29: 0200 | Q29: Intersubsectorial Industria y Comercio | T29: TECNOLOGÍAS DE LA INFORMACIÓN Y LAS COMUNICACIONES | U29: 2301 Facilitar el acceso y uso de las Tecnologías de la Información y las Comunicaciones en todo el territorio nacional | V29: 2302 Fomento del desarrollo de aplicaciones, software y contenidos para impulsar la apropiación de las Tecnologías de la Información y las Comunicaciones (TIC) | W29: 2399 Fortalecimiento y apoyo a la gestión institucional del sector Tecnologías de la Información y las Comunicaciones | X29: 2300 No asignable a programas | AG29: 4
A30: 17 | B30: AGRICULTURA Y DESARROLLO RURAL | C30: 1707 | D30: Sanidad agropecuaria e inocuidad agroalimentaria | E30: 1100 | F30: Intersubsectorial Agricultura | G30: 01 | H30: Servicio de implementación y control de medidas sanitarias para el sector agro | I30: 02 | J30: Control zoosanitario y fitosanitario para el comercio internacional | L30: 35 | M30: COMERCIO, INDUSTRIA Y TURISMO | N30: 3599 | O30: Fortalecimiento y apoyo a la gestión institucional del sector Comercio, Industria y Turismo | P30: 0200 | Q30: Intersubsectorial Industria y Comercio | T30: TRABAJO | U30: 3601 Protección Social | V30: 3602 Generación y formalización del empleo | W30: 3603 Formación para el Trabajo | X30: 3604 Derechos fundamentales del trabajo y fortalecimiento del diálogo social | Y30: 3605 Fomento de la investigación, desarrollo tecnológico e innovación del sector trabajo | Z30: 3699 Fortalecimiento y apoyo a la gestión institucional del sector Trabajo | AA30: 3600 No asignable a programas | AG30: 7
A31: 17 | B31: AGRICULTURA Y DESARROLLO RURAL | C31: 1707 | D31: Sanidad agropecuaria e inocuidad agroalimentaria | E31: 1100 | F31: Intersubsectorial Agricultura | G31: 01 | H31: Servicio de implementación y control de medidas sanitarias para el sector agro | I31: 03 | J31: Control y erradicación de enfermedades animales | L31: 35 | M31: COMERCIO, INDUSTRIA Y TURISMO | N31: 3500 | O31: No asignable a programas | P31: 0200 | Q31: Intersubsectorial Industria y Comercio | T31: TRANSPORTE | U31: 2401 Infraestructura red vial primaria | V31: 2402 Infraestructura red vial regional | W31: 2403 Infraestructura y servicios de transporte aéreo | X31: 2404 Infraestructura de transporte férreo | Y31: 2405 Infraestructura de transporte marítimo | Z31: 2406 Infraestructura de transporte fluvial | AA31: 2407 Infraestructura y servicios de logística de transporte | AB31: 2408 Prestación de servicios de transporte público de pasajeros | AC31: 2409 Seguridad de transporte | AD31: 2410 Política, regulación y supervisión de la infraestructura y servicios de transporte | AE31: 2499 Fortalecimiento y apoyo a la gestión institucional del sector Transporte | AF31: 2400 No asignable a programas | AG31: 12
A32: 17 | B32: AGRICULTURA Y DESARROLLO RURAL | C32: 1707 | D32: Sanidad agropecuaria e inocuidad agroalimentaria | E32: 1100 | F32: Intersubsectorial Agricultura | G32: 01 | H32: Servicio de implementación y control de medidas sanitarias para el sector agro | I32: 04 | J32: Gestión y protección del estatus sanitario | L32: 01 | M32: CONGRESO DE LA REPÚBLICA | N32: 0101 | O32: Mejoramiento de la eficiencia y la transparencia legislativa | P32: 1000 | Q32: Intersubsectorial gobierno | T32: VIVIENDA, CIUDAD Y TERRITORIO | U32: 4001 Acceso a soluciones de vivienda | V32: 4002 Ordenamiento territorial y desarrollo urbano | W32: 4003 Acceso de la población a los servicios de agua potable y saneamiento básico | X32: 4099 Fortalecimiento y apoyo a la gestión institucional del sector Vivienda, Ciudad y Territorio | Y32: 4000 No asignable a programas | AG32: 5
A33: 17 | B33: AGRICULTURA Y DESARROLLO RURAL | C33: 1707 | D33: Sanidad agropecuaria e inocuidad agroalimentaria | E33: 1100 | F33: Intersubsectorial Agricultura | G33: 01 | H33: Servicio de implementación y control de medidas sanitarias para el sector agro | I33: 05 | J33: Gestión de servicios de análisis e investigación sanitaria y fitosanitaria | L33: 01 | M33: CONGRESO DE LA REPÚBLICA | N33: 0199 | O33: Fortalecimiento y apoyo a la gestión institucional del sector Congreso de la República | P33: 1000 | Q33: Intersubsectorial gobierno
A34: 17 | B34: AGRICULTURA Y DESARROLLO RURAL | C34: 1707 | D34: Sanidad agropecuaria e inocuidad agroalimentaria | E34: 1100 | F34: Intersubsectorial Agricultura | G34: 01 | H34: Servicio de implementación y control de medidas sanitarias para el sector agro | I34: 06 | J34: Control y seguimiento a la actividad pesquera y acuícola | L34: 01 | M34: CONGRESO DE LA REPÚBLICA | N34: 0100 | O34: No asignable a programas | P34: 1000 | Q34: Intersubsectorial gobierno
A35: 17 | B35: AGRICULTURA Y DESARROLLO RURAL | C35: 1707 | D35: Sanidad agropecuaria e inocuidad agroalimentaria | E35: 1100 | F35: Intersubsectorial Agricultura | G35: 01 | H35: Servicio de implementación y control de medidas sanitarias para el sector agro | I35: 07 | J35: Gestión y control de la gestión sanitaria de la actividad pesquera y acuícola | L35: 33 | M35: CULTURA | N35: 3301 | O35: Promoción y acceso efectivo a procesos culturales y artísticos | P35: 1603 | Q35: Arte y cultura
A36: 17 | B36: AGRICULTURA Y DESARROLLO RURAL | C36: 1707 | D36: Sanidad agropecuaria e inocuidad agroalimentaria | E36: 1100 | F36: Intersubsectorial Agricultura | G36: 01 | H36: Servicio de implementación y control de medidas sanitarias para el sector agro | I36: 08 | J36: Inspección y vilancia | L36: 33 | M36: CULTURA | N36: 3302 | O36: Gestión, protección y salvaguardia del patrimonio cultural colombiano | P36: 1603 | Q36: Arte y cultura
A37: 17 | B37: AGRICULTURA Y DESARROLLO RURAL | C37: 1707 | D37: Sanidad agropecuaria e inocuidad agroalimentaria | E37: 1100 | F37: Intersubsectorial Agricultura | G37: 02 | H37: Servicio de fomento y fotalecimiento de la actividad acuicola y pesquera | I37: 01 | J37: Gestión de la política de fomento a la producción acuicola y pesquera | L37: 33 | M37: CULTURA | N37: 3399 | O37: Fortalecimiento y apoyo a la gestión institucional del sector Cultura | P37: 1603 | Q37: Arte y cultura
A38: 17 | B38: AGRICULTURA Y DESARROLLO RURAL | C38: 1707 | D38: Sanidad agropecuaria e inocuidad agroalimentaria | E38: 1100 | F38: Intersubsectorial Agricultura | G38: 02 | H38: Servicio de fomento y fotalecimiento de la actividad acuicola y pesquera | I38: 02 | J38: Regulación y control a la actividad acuícola y pesquera | L38: 33 | M38: CULTURA | N38: 3300 | O38: No asignable a programas | P38: 1603 | Q38: Arte y cultura
A39: 17 | B39: AGRICULTURA Y DESARROLLO RURAL | C39: 1707 | D39: Sanidad agropecuaria e inocuidad agroalimentaria | E39: 1100 | F39: Intersubsectorial Agricultura | G39: 02 | H39: Servicio de fomento y fotalecimiento de la actividad acuicola y pesquera | I39: 03 | J39: Inspección y vilancia | L39: 15 | M39: DEFENSA Y POLICÍA | N39: 1501 | O39: Capacidades de la Policía Nacional en seguridad pública, prevención, convivencia y seguridad ciudadana | P39: 0100 | Q39: Intersubsectorial Defensa y Seguridad
A40: 17 | B40: AGRICULTURA Y DESARROLLO RURAL | C40: 1707 | D40: Sanidad agropecuaria e inocuidad agroalimentaria | E40: 1100 | F40: Intersubsectorial Agricultura | G40: 03 | H40: Servicio de definición de política de sanidad agropecuaria e inocuidad agroalimentaria | I40: 01 | J40: Diseño y desarrollo de medidas sanitarias y fitosanitarias | L40: 15 | M40: DEFENSA Y POLICÍA | N40: 1502 | O40: Capacidades de la Policía Nacional en seguridad pública, prevención, convivencia y seguridad ciudadana | P40: 0100 | Q40: Intersubsectorial Defensa y Seguridad
A41: 17 | B41: AGRICULTURA Y DESARROLLO RURAL | C41: 1708 | D41: Ciencia, tecnología e innovación agropecuaria | E41: 1100 | F41: Intersubsectorial Agricultura | G41: 01 | H41: Servicio de gestión y promoción del fotalecimiento en tecnología e innovación | I41: 01 | J41: Direccionamiento estratégico del sector | L41: 15 | M41: DEFENSA Y POLICÍA | N41: 1504 | O41: Desarrollo marítimo, fluvial y costero desde el sector defensa | P41: 0100 | Q41: Intersubsectorial Defensa y Seguridad
A42: 17 | B42: AGRICULTURA Y DESARROLLO RURAL | C42: 1708 | D42: Ciencia, tecnología e innovación agropecuaria | E42: 1100 | F42: Intersubsectorial Agricultura | G42: 01 | H42: Servicio de gestión y promoción del fotalecimiento en tecnología e innovación | I42: 02 | J42: Gestión de la política para el desarrollo tecnólogico e innovación productiva rural | L42: 15 | M42: DEFENSA Y POLICÍA | N42: 1505 | O42: Generación de bienestar para la Fuerza Pública y sus familias | P42: 0100 | Q42: Intersubsectorial Defensa y Seguridad
A43: 17 | B43: AGRICULTURA Y DESARROLLO RURAL | C43: 1709 | D43: Infraestructura productiva y comercialización | E43: 1100 | F43: Intersubsectorial Agricultura | G43: 01 | H43: Servicio de fortalecimiento de la gestión productiva y comercialización del sector Agropecuario | I43: 01 | J43: Direccionamiento estratégico del sector | L43: 15 | M43: DEFENSA Y POLICÍA | N43: 1506 | O43: Gestión del riesgo de desastres desde el sector Defensa y Seguridad | P43: 0100 | Q43: Intersubsectorial Defensa y Seguridad
A44: 17 | B44: AGRICULTURA Y DESARROLLO RURAL | C44: 1709 | D44: Infraestructura productiva y comercialización | E44: 1100 | F44: Intersubsectorial Agricultura | G44: 01 | H44: Servicio de fortalecimiento de la gestión productiva y comercialización del sector Agropecuario | I44: 02 | J44: Gestión de la política de fortalecimiento productivo y comercialización del sector agropecuario | L44: 15 | M44: DEFENSA Y POLICÍA | N44: 1508 | O44: Inspección, Vigilancia y Control de la prestación del servicio de vigilancia y seguridad privada | P44: 0100 | Q44: Intersubsectorial Defensa y Seguridad
A45: 17 | B45: AGRICULTURA Y DESARROLLO RURAL | C45: 1709 | D45: Infraestructura productiva y comercialización | E45: 1100 | F45: Intersubsectorial Agricultura | G45: 01 | H45: Servicio de fortalecimiento de la gestión productiva y comercialización del sector Agropecuario | I45: 03 | J45: Gestión de investigación y desarrollo para el sector | L45: 15 | M45: DEFENSA Y POLICÍA | N45: 1599 | O45: Fortalecimiento y apoyo a la gestión institucional del sector Defensa y Policía | P45: 0100 | Q45: Intersubsectorial Defensa y Seguridad
A46: 17 | B46: AGRICULTURA Y DESARROLLO RURAL | C46: 1709 | D46: Infraestructura productiva y comercialización | E46: 1100 | F46: Intersubsectorial Agricultura | G46: 01 | H46: Servicio de fortalecimiento de la gestión productiva y comercialización del sector Agropecuario | I46: 04 | J46: Gestión y administración de los esquemas de adecuación de tierras | L46: 15 | M46: DEFENSA Y POLICÍA | N46: 1500 | O46: No asignable a programas | P46: 0100 | Q46: Intersubsectorial Defensa y Seguridad
A47: 17 | B47: AGRICULTURA Y DESARROLLO RURAL | C47: 1709 | D47: Infraestructura productiva y comercialización | E47: 1100 | F47: Intersubsectorial Agricultura | G47: 01 | H47: Servicio de fortalecimiento de la gestión productiva y comercialización del sector Agropecuario | I47: 05 | J47: Fortalecimiento de las capacidades comerciales del sector | L47: 43 | M47: DEPORTE Y RECREACIÓN | N47: 4301 | O47: Fomento a la recreación, la actividad física y el deporte | P47: 1604 | Q47: Recreación y deporte
A48: 17 | B48: AGRICULTURA Y DESARROLLO RURAL | C48: 1710 | D48: Acompañamiento a población rural y población rural vulnerable | E48: 1100 | F48: Intersubsectorial Agricultura | G48: 01 | H48: servicio de gestión para garantizar la provision de bienes y servicios públicos a poblaciones rurales | I48: 01 | J48: Direccionamiento estratégico del sector | L48: 43 | M48: DEPORTE Y RECREACIÓN | N48: 4302 | O48: Formación y preparación de deportistas | P48: 1604 | Q48: Recreación y deporte
A49: 17 | B49: AGRICULTURA Y DESARROLLO RURAL | C49: 1710 | D49: Acompañamiento a población rural y población rural vulnerable | E49: 1100 | F49: Intersubsectorial Agricultura | G49: 01 | H49: servicio de gestión para garantizar la provision de bienes y servicios públicos a poblaciones rurales | I49: 02 | J49: Gestión de políticas para atender a la población rural | L49: 43 | M49: DEPORTE Y RECREACIÓN | N49: 4399 | O49: Fortalecimiento y apoyo a la gestión institucional del sector Recreación y Deporte | P49: 1604 | Q49: Recreación y deporte
A50: 17 | B50: AGRICULTURA Y DESARROLLO RURAL | C50: 1799 | D50: fortalecimiento y apoyo a la gestión institucional del sector Agricultura y Desarrollo Rural | E50: 1100 | F50: Intersubsectorial Agricultura | G50: 01 | H50: Servicio de fortalecimiento y apoyo a la gestión institucional del sector Agricultura y Desarrollo Rural | I50: 01 | J50: Direccionamiento estratégico del sector | L50: 43 | M50: DEPORTE Y RECREACIÓN | N50: 4300 | O50: No programático | P50: 1604 | Q50: Recreación y deporte
A51: 17 | B51: AGRICULTURA Y DESARROLLO RURAL | C51: 1799 | D51: fortalecimiento y apoyo a la gestión institucional del sector Agricultura y Desarrollo Rural | E51: 1100 | F51: Intersubsectorial Agricultura | G51: 01 | H51: Servicio de fortalecimiento y apoyo a la gestión institucional del sector Agricultura y Desarrollo Rural | I51: 02 | J51: Gestión jurídica | L51: 22 | M51: EDUCACIÓN | N51: 2201 | O51: Calidad, cobertura y fortalecimiento de la educación inicial, prescolar, básica y media | P51: 0700 | Q51: Intersubsectorial Educación
A52: 17 | B52: AGRICULTURA Y DESARROLLO RURAL | C52: 1799 | D52: fortalecimiento y apoyo a la gestión institucional del sector Agricultura y Desarrollo Rural | E52: 1100 | F52: Intersubsectorial Agricultura | G52: 01 | H52: Servicio de fortalecimiento y apoyo a la gestión institucional del sector Agricultura y Desarrollo Rural | I52: 03 | J52: Seguimiento y control | L52: 22 | M52: EDUCACIÓN | N52: 2202 | O52: Calidad y fomento de la educación superior | P52: 0700 | Q52: Intersubsectorial Educación
A53: 17 | B53: AGRICULTURA Y DESARROLLO RURAL | C53: 1799 | D53: fortalecimiento y apoyo a la gestión institucional del sector Agricultura y Desarrollo Rural | E53: 1100 | F53: Intersubsectorial Agricultura | G53: 01 | H53: Servicio de fortalecimiento y apoyo a la gestión institucional del sector Agricultura y Desarrollo Rural | I53: 04 | J53: Gestión de las TIC | L53: 22 | M53: EDUCACIÓN | N53: 2203 | O53: Cierre de brechas para el goce efectivo de derechos fundamentales de la población en condición de discapacidad | P53: 0700 | Q53: Intersubsectorial Educación
A54: 17 | B54: AGRICULTURA Y DESARROLLO RURAL | C54: 1799 | D54: fortalecimiento y apoyo a la gestión institucional del sector Agricultura y Desarrollo Rural | E54: 1100 | F54: Intersubsectorial Agricultura | G54: 01 | H54: Servicio de fortalecimiento y apoyo a la gestión institucional del sector Agricultura y Desarrollo Rural | I54: 05 | J54: Gestión administrativa | L54: 22 | M54: EDUCACIÓN | N54: 2299 | O54: Fortalecimiento y apoyo a la gestión institucional del sector Educación | P54: 0700 | Q54: Intersubsectorial Educación
A55: 17 | B55: AGRICULTURA Y DESARROLLO RURAL | C55: 1799 | D55: fortalecimiento y apoyo a la gestión institucional del sector Agricultura y Desarrollo Rural | E55: 1100 | F55: Intersubsectorial Agricultura | G55: 01 | H55: Servicio de fortalecimiento y apoyo a la gestión institucional del sector Agricultura y Desarrollo Rural | I55: 06 | J55: Gestión financiera | L55: 22 | M55: EDUCACIÓN | N55: 2200 | O55: No asignable a programas | P55: 0700 | Q55: Intersubsectorial Educación
A56: 17 | B56: AGRICULTURA Y DESARROLLO RURAL | C56: 1799 | D56: fortalecimiento y apoyo a la gestión institucional del sector Agricultura y Desarrollo Rural | E56: 1100 | F56: Intersubsectorial Agricultura | G56: 01 | H56: Servicio de fortalecimiento y apoyo a la gestión institucional del sector Agricultura y Desarrollo Rural | I56: 07 | J56: Gestión administrativa y financiera | L56: 05 | M56: EMPLEO PÚBLICO | N56: 0503 | O56: Mejoramiento de la calidad educativa en la gestión pública | P56: 1000 | Q56: Intersubsectorial Gobierno
A57: 17 | B57: AGRICULTURA Y DESARROLLO RURAL | C57: 1799 | D57: fortalecimiento y apoyo a la gestión institucional del sector Agricultura y Desarrollo Rural | E57: 1100 | F57: Intersubsectorial Agricultura | G57: 01 | H57: Servicio de fortalecimiento y apoyo a la gestión institucional del sector Agricultura y Desarrollo Rural | I57: 08 | J57: Gestión de comunicaciones | L57: 05 | M57: EMPLEO PÚBLICO | N57: 0504 | O57: Administración y vigilancia de las carreras administrativas de los servidores públicos | P57: 1000 | Q57: Intersubsectorial Gobierno
A58: 17 | B58: AGRICULTURA Y DESARROLLO RURAL | C58: 1799 | D58: fortalecimiento y apoyo a la gestión institucional del sector Agricultura y Desarrollo Rural | E58: 1100 | F58: Intersubsectorial Agricultura | G58: 01 | H58: Servicio de fortalecimiento y apoyo a la gestión institucional del sector Agricultura y Desarrollo Rural | I58: 09 | J58: Gestión jurídica | L58: 05 | M58: EMPLEO PÚBLICO | N58: 0505 | O58: Fortalecimiento de la gestión pública en las entidades nacionales y territoriales | P58: 1000 | Q58: Intersubsectorial Gobierno
A59: 17 | B59: AGRICULTURA Y DESARROLLO RURAL | C59: 1799 | D59: fortalecimiento y apoyo a la gestión institucional del sector Agricultura y Desarrollo Rural | E59: 1100 | F59: Intersubsectorial Agricultura | G59: 01 | H59: Servicio de fortalecimiento y apoyo a la gestión institucional del sector Agricultura y Desarrollo Rural | I59: 10 | J59: Ejecución de la política de desarrollo rural | L59: 05 | M59: EMPLEO PÚBLICO | N59: 0599 | O59: Fortalecimiento y apoyo a la gestión institucional del sector Empleo | P59: 1000 | Q59: Intersubsectorial Gobierno
A60: 17 | B60: AGRICULTURA Y DESARROLLO RURAL | C60: 1799 | D60: fortalecimiento y apoyo a la gestión institucional del sector Agricultura y Desarrollo Rural | E60: 1100 | F60: Intersubsectorial Agricultura | G60: 01 | H60: Servicio de fortalecimiento y apoyo a la gestión institucional del sector Agricultura y Desarrollo Rural | I60: 11 | J60: Gestión y desarrollo del talento humano | L60: 05 | M60: EMPLEO PÚBLICO | N60: 0500 | O60: No asignable a programas | P60: 1000 | Q60: Intersubsectorial Gobierno
A61: 17 | B61: AGRICULTURA Y DESARROLLO RURAL | C61: 1700 | D61: No asignable a programas | E61: 1100 | F61: Intersubsectorial Agricultura | G61: 01 | H61: Sin producto | I61: 01 | J61: Transferiencias corrientes | L61: 29 | M61: FISCALÍA | N61: 2901 | O61: Efectividad de la investigación penal y técnico científica | P61: 1000 | Q61: Intersubsectorial Gobierno
A62: 32 | B62: AMBIENTE Y DESARROLLO SOSTENIBLE | C62: 3201 | D62: Fortalecimiento del desempeño ambiental de los sectores productivos | E62: 900 | F62: Intersubsectorial Ambiente | G62: 01 | H62: Servicio de promoción de la gestión sectorial sostenible | I62: 01 | J62: Fomento de negocios verdes y producción limpia | L62: 29 | M62: FISCALÍA | N62: 2999 | O62: Fortalecimiento y apoyo a la gestión institucional del sector Fiscalía | P62: 1000 | Q62: Intersubsectorial Gobierno
A63: 32 | B63: AMBIENTE Y DESARROLLO SOSTENIBLE | C63: 3201 | D63: Fortalecimiento del desempeño ambiental de los sectores productivos | E63: 900 | F63: Intersubsectorial Ambiente | G63: 01 | H63: Servicio de promoción de la gestión sectorial sostenible | I63: 02 | J63: Gestión de normas y regulación ambiental sectorial | L63: 29 | M63: FISCALÍA | N63: 2900 | O63: No asignable a programas | P63: 1000 | Q63: Intersubsectorial Gobierno
A64: 32 | B64: AMBIENTE Y DESARROLLO SOSTENIBLE | C64: 3201 | D64: Fortalecimiento del desempeño ambiental de los sectores productivos | E64: 900 | F64: Intersubsectorial Ambiente | G64: 01 | H64: Servicio de promoción de la gestión sectorial sostenible | I64: 03 | J64: Financiación de inversión ambiental sectorial | L64: 13 | M64: HACIENDA | N64: 1301 | O64: Política macroeconómica fiscal | P64: 1000 | Q64: Intersubsectorial Gobierno
A65: 32 | B65: AMBIENTE Y DESARROLLO SOSTENIBLE | C65: 3201 | D65: Fortalecimiento del desempeño ambiental de los sectores productivos | E65: 900 | F65: Intersubsectorial Ambiente | G65: 01 | H65: Servicio de promoción de la gestión sectorial sostenible | I65: 04 | J65: Gestión integral de residuos y sustancias químicas | L65: 13 | M65: HACIENDA | N65: 1302 | O65: Gestión de recursos públicos | P65: 1000 | Q65: Intersubsectorial Gobierno
A66: 32 | B66: AMBIENTE Y DESARROLLO SOSTENIBLE | C66: 3201 | D66: Fortalecimiento del desempeño ambiental de los sectores productivos | E66: 900 | F66: Intersubsectorial Ambiente | G66: 01 | H66: Servicio de promoción de la gestión sectorial sostenible | I66: 05 | J66: Gestión ambiental urbana | L66: 13 | M66: HACIENDA | N66: 1303 | O66: Reducción de la vulnerabilidad fiscal ante desastres y riesgos climáticos | P66: 1000 | Q66: Intersubsectorial Gobierno
A67: 32 | B67: AMBIENTE Y DESARROLLO SOSTENIBLE | C67: 3201 | D67: Fortalecimiento del desempeño ambiental de los sectores productivos | E67: 900 | F67: Intersubsectorial Ambiente | G67: 01 | H67: Servicio de promoción de la gestión sectorial sostenible | I67: 06 | J67: Licenciamiento y control ambiental | L67: 13 | M67: HACIENDA | N67: 1304 | O67: Inspección, control y vigilancia financiera, solidaria y de recursos públicos | P67: 1000 | Q67: Intersubsectorial Gobierno
A68: 32 | B68: AMBIENTE Y DESARROLLO SOSTENIBLE | C68: 3202 | D68: Conservación de la biodiversidad y sus servicios ecosistémicos | E68: 900 | F68: Intersubsectorial Ambiente | G68: 01 | H68: Servicio de promoción del uso sostenible y conservación de la biodiversidad | I68: 01 | J68: Financiación de inversión Sistema de Parques Nacionales | L68: 13 | M68: HACIENDA | N68: 1305 | O68: Fortalecimiento de recaudo y tributación | P68: 1000 | Q68: Intersubsectorial Gobierno
A69: 32 | B69: AMBIENTE Y DESARROLLO SOSTENIBLE | C69: 3202 | D69: Conservación de la biodiversidad y sus servicios ecosistémicos | E69: 900 | F69: Intersubsectorial Ambiente | G69: 01 | H69: Servicio de promoción del uso sostenible y conservación de la biodiversidad | I69: 02 | J69: Gestión de biotecnología y bioprospección | L69: 13 | M69: HACIENDA | N69: 1399 | O69: Fortalecimiento y apoyo a la gestión institucional del sector Hacienda | P69: 1000 | Q69: Intersubsectorial Gobierno
A70: 32 | B70: AMBIENTE Y DESARROLLO SOSTENIBLE | C70: 3202 | D70: Conservación de la biodiversidad y sus servicios ecosistémicos | E70: 900 | F70: Intersubsectorial Ambiente | G70: 01 | H70: Servicio de promoción del uso sostenible y conservación de la biodiversidad | I70: 03 | J70: Gestión integral y regulación de bosques, reservas forestales y zonas amortiguadoras del SPNN | L70: 13 | M70: HACIENDA | N70: 1300 | O70: No asignable a programas | P70: 1000 | Q70: Intersubsectorial Gobierno
A71: 32 | B71: AMBIENTE Y DESARROLLO SOSTENIBLE | C71: 3202 | D71: Conservación de la biodiversidad y sus servicios ecosistémicos | E71: 900 | F71: Intersubsectorial Ambiente | G71: 01 | H71: Servicio de promoción del uso sostenible y conservación de la biodiversidad | I71: 04 | J71: Gestión y manejo de áreas protegidas | L71: 41 | M71: INCLUSIÓN SOCIAL Y RECONCILIACIÓN | N71: 4101 | O71: Atención, asistencia y reparación integral a las víctimas | P71: 1500 | Q71: Intersubsectorial Desarrollo Social
A72: 32 | B72: AMBIENTE Y DESARROLLO SOSTENIBLE | C72: 3203 | D72: Gestión Integral del Recurso Hídrico | E72: 900 | F72: Intersubsectorial Ambiente | G72: 01 | H72: Servicio de planificación y administración del recurso hídrico | I72: 01 | J72: Financiación de inversión GIRH | L72: 41 | M72: INCLUSIÓN SOCIAL Y RECONCILIACIÓN | N72: 4102 | O72: Desarrollo integral de la primera infancia a la juventud y fortalecimiento familiar | P72: 1500 | Q72: Intersubsectorial Desarrollo Social
A73: 32 | B73: AMBIENTE Y DESARROLLO SOSTENIBLE | C73: 3203 | D73: Gestión Integral del Recurso Hídrico | E73: 900 | F73: Intersubsectorial Ambiente | G73: 01 | H73: Servicio de planificación y administración del recurso hídrico | I73: 02 | J73: Planificación de cuencas hidrográficas y acuíferos | L73: 41 | M73: INCLUSIÓN SOCIAL Y RECONCILIACIÓN | N73: 4103 | O73: Inclusión social y productiva para la población en situación de vulnerabilidad | P73: 1500 | Q73: Intersubsectorial Desarrollo Social
A74: 32 | B74: AMBIENTE Y DESARROLLO SOSTENIBLE | C74: 3203 | D74: Gestión Integral del Recurso Hídrico | E74: 900 | F74: Intersubsectorial Ambiente | G74: 01 | H74: Servicio de planificación y administración del recurso hídrico | I74: 03 | J74: Promoción de la gobernanza del agua | L74: 41 | M74: INCLUSIÓN SOCIAL Y RECONCILIACIÓN | N74: 410X | O74: Protección de derechos de niños, niñas, adolescentes y jóvenes | P74: 1500 | Q74: Intersubsectorial Desarrollo Social
A75: 32 | B75: AMBIENTE Y DESARROLLO SOSTENIBLE | C75: 3203 | D75: Gestión Integral del Recurso Hídrico | E75: 900 | F75: Intersubsectorial Ambiente | G75: 01 | H75: Servicio de planificación y administración del recurso hídrico | I75: 04 | J75: Regulación, manejo y control del recurso hídrico | L75: 41 | M75: INCLUSIÓN SOCIAL Y RECONCILIACIÓN | N75: 4199 | O75: Fortalecimiento y apoyo a la gestión institucional del sector Inclusión social y Reconciliación | P75: 1500 | Q75: Intersubsectorial Desarrollo Social
A76: 32 | B76: AMBIENTE Y DESARROLLO SOSTENIBLE | C76: 3204 | D76: Gestión de la información y el conocimiento ambiental | E76: 900 | F76: Intersubsectorial Ambiente | G76: 01 | H76: Servicio de sistematización de información y conocimiento ambiental para la toma de decisiones | I76: 01 | J76: Orientación estratégica del Sistema de Información Ambiental de Colombia | L76: 04 | M76: INFORMACIÓN ESTADÍSTICA | N76: 0401 | O76: Levantamiento y actualización de información estadística de calidad | P76: 1003 | Q76: Planificación Estadística
A77: 32 | B77: AMBIENTE Y DESARROLLO SOSTENIBLE | C77: 3204 | D77: Gestión de la información y el conocimiento ambiental | E77: 900 | F77: Intersubsectorial Ambiente | G77: 01 | H77: Servicio de sistematización de información y conocimiento ambiental para la toma de decisiones | I77: 02 | J77: Gestión de información y conocimiento meteorológico | L77: 04 | M77: INFORMACIÓN ESTADÍSTICA | N77: 0406 | O77: Generación de la información geográfica del territorio nacional | P77: 1003 | Q77: Planificación Estadística
A78: 32 | B78: AMBIENTE Y DESARROLLO SOSTENIBLE | C78: 3204 | D78: Gestión de la información y el conocimiento ambiental | E78: 900 | F78: Intersubsectorial Ambiente | G78: 01 | H78: Servicio de sistematización de información y conocimiento ambiental para la toma de decisiones | I78: 03 | J78: Gestión de información y conocimiento hidrológico | L78: 04 | M78: INFORMACIÓN ESTADÍSTICA | N78: 0499 | O78: Fortalecimiento y apoyo a la gestión institucional del sector Información Estadística | P78: 1003 | Q78: Planificación Estadística
A79: 32 | B79: AMBIENTE Y DESARROLLO SOSTENIBLE | C79: 3204 | D79: Gestión de la información y el conocimiento ambiental | E79: 900 | F79: Intersubsectorial Ambiente | G79: 01 | H79: Servicio de sistematización de información y conocimiento ambiental para la toma de decisiones | I79: 04 | J79: Gestión de información de ecosistemas | L79: 04 | M79: INFORMACIÓN ESTADÍSTICA | N79: 0400 | O79: No asignable a programas | P79: 1003 | Q79: Planificación Estadística
A80: 32 | B80: AMBIENTE Y DESARROLLO SOSTENIBLE | C80: 3204 | D80: Gestión de la información y el conocimiento ambiental | E80: 900 | F80: Intersubsectorial Ambiente | G80: 01 | H80: Servicio de sistematización de información y conocimiento ambiental para la toma de decisiones | I80: 05 | J80: Estudios ambientales | L80: 42 | M80: INTELIGENCIA | N80: 4201 | O80: Desarrollo de inteligencia estratégica y contrainteligencia de Estado | P80: 0100 | Q80: Intersubsectorial Defensa y Seguridad
A81: 32 | B81: AMBIENTE Y DESARROLLO SOSTENIBLE | C81: 3205 | D81: Ordenamiento ambiental territorial | E81: 900 | F81: Intersubsectorial Ambiente | G81: 01 | H81: Servicio de ordenamiento ambiental en la planificación del territorio | I81: 01 | J81: Coordinación del SINA e inspección y vigilancia a las CAR en cumplimiento de la política ambiental en el territorio | L81: 42 | M81: INTELIGENCIA | N81: 4299 | O81: Fortalecimiento y apoyo a la gestión institucional del sector Inteligencia | P81: 0100 | Q81: Intersubsectorial Defensa y Seguridad
A82: 32 | B82: AMBIENTE Y DESARROLLO SOSTENIBLE | C82: 3205 | D82: Ordenamiento ambiental territorial | E82: 900 | F82: Intersubsectorial Ambiente | G82: 01 | H82: Servicio de ordenamiento ambiental en la planificación del territorio | I82: 02 | J82: Gestión de información ambiental geográfica para apoyar el ordenamiento ambiental | L82: 42 | M82: INTELIGENCIA | N82: 4200 | O82: No asignable a programas | P82: 0100 | Q82: Intersubsectorial Defensa y Seguridad
A83: 32 | B83: AMBIENTE Y DESARROLLO SOSTENIBLE | C83: 3205 | D83: Ordenamiento ambiental territorial | E83: 900 | F83: Intersubsectorial Ambiente | G83: 01 | H83: Servicio de ordenamiento ambiental en la planificación del territorio | I83: 03 | J83: Orientación y asistencia técnica a ET en la inclusión de determinantes ambientales y gestión del riesgo en el ordenamiento del territorio | L83: 37 | M83: INTERIOR | N83: 3701 | O83: Fortalecimiento institucional a los procesos organizativos de concertación; garantía, prevención y respeto de los derechos humanos como fundamentos para la paz | P83: 1000 | Q83: Intersubsectorial Gobierno
A84: 32 | B84: AMBIENTE Y DESARROLLO SOSTENIBLE | C84: 3206 | D84: Gestión del cambio climático para un desarrollo bajo en carbono y resiliente al clima | E84: 900 | F84: Intersubsectorial Ambiente | G84: 01 | H84: Servicio de diseño e implementación de instrumentos de gestión del cambio climático | I84: 01 | J84: Gestión de instrumentos de política, lineamientos y asistencia técnica a ET y autoridades ambientales en adaptación al cambio climático | L84: 37 | M84: INTERIOR | N84: 3702 | O84: Fortalecimiento a la gobernabilidad territorial para la seguridad, convivencia ciudadana, paz y postconflicto. | P84: 1000 | Q84: Intersubsectorial Gobierno
A85: 32 | B85: AMBIENTE Y DESARROLLO SOSTENIBLE | C85: 3206 | D85: Gestión del cambio climático para un desarrollo bajo en carbono y resiliente al clima | E85: 900 | F85: Intersubsectorial Ambiente | G85: 01 | H85: Servicio de diseño e implementación de instrumentos de gestión del cambio climático | I85: 02 | J85: Gestión de instrumentos de política, lineamientos y asistencia técnica a ET y autoridades ambientales en mitigación del cambio climático | L85: 37 | M85: INTERIOR | N85: 3704 | O85: Gobernabilidad y participación ciudadana | P85: 1000 | Q85: Intersubsectorial Gobierno
A86: 32 | B86: AMBIENTE Y DESARROLLO SOSTENIBLE | C86: 3206 | D86: Gestión del cambio climático para un desarrollo bajo en carbono y resiliente al clima | E86: 900 | F86: Intersubsectorial Ambiente | G86: 01 | H86: Servicio de diseño e implementación de instrumentos de gestión del cambio climático | I86: 03 | J86: Gestión del riesgo para reducir la vulnerabilidad frente al cambio climático | L86: 37 | M86: INTERIOR | N86: 3705 | O86: Protección de personas, grupos y comunidades en riesgo extraordinario y extremo Unidad Nacional de Protección (UNP) | P86: 1000 | Q86: Intersubsectorial Gobierno
A87: 32 | B87: AMBIENTE Y DESARROLLO SOSTENIBLE | C87: 3206 | D87: Gestión del cambio climático para un desarrollo bajo en carbono y resiliente al clima | E87: 900 | F87: Intersubsectorial Ambiente | G87: 01 | H87: Servicio de diseño e implementación de instrumentos de gestión del cambio climático | I87: 04 | J87: Gestión territorial del cambio climático | L87: 37 | M87: INTERIOR | N87: 3706 | O87: Protección, promoción y difusión del derecho de autor y los derechos conexos | P87: 1000 | Q87: Intersubsectorial Gobierno
A88: 32 | B88: AMBIENTE Y DESARROLLO SOSTENIBLE | C88: 3207 | D88: Gestión integral de mares, costas y recursos acuáticos | E88: 900 | F88: Intersubsectorial Ambiente | G88: 01 | H88: Servicio de apoyo en la implementación de instrumentos para la gestión sostenible de las unidades ambientales costeras | I88: 01 | J88: Apoyo a la gestión del riesgo y mejoramiento de la calidad ambiental en las zonas marino-costeras | L88: 37 | M88: INTERIOR | N88: 3707 | O88: Gestión del riesgo de desastres naturales y antrópicos en la zona de influencia del volcán Nevado del Huila. | P88: 1000 | Q88: Intersubsectorial Gobierno
A89: 32 | B89: AMBIENTE Y DESARROLLO SOSTENIBLE | C89: 3207 | D89: Gestión integral de mares, costas y recursos acuáticos | E89: 900 | F89: Intersubsectorial Ambiente | G89: 01 | H89: Servicio de apoyo en la implementación de instrumentos para la gestión sostenible de las unidades ambientales costeras | I89: 02 | J89: Gestión técnica de apoyo a autoridades ambientales y territoriales en la adopción de los planes de ordenación y manejo integrado de las unidades ambientales costeras | L89: 37 | M89: INTERIOR | N89: 3799 | O89: Fortalecimiento y apoyo a la gestión institucional del sector interior | P89: 1000 | Q89: Intersubsectorial Gobierno
A90: 32 | B90: AMBIENTE Y DESARROLLO SOSTENIBLE | C90: 3208 | D90: Educación Ambiental | E90: 900 | F90: Intersubsectorial Ambiente | G90: 01 | H90: Servicio de promoción de la educación ambiental | I90: 01 | J90: Diseño y promoción de estrategias y mecanismos de sensibilización y cultura ambiental | L90: 37 | M90: INTERIOR | N90: 3700 | O90: No asignable a programas | P90: 1000 | Q90: Intersubsectorial Gobierno
A91: 32 | B91: AMBIENTE Y DESARROLLO SOSTENIBLE | C91: 3208 | D91: Educación Ambiental | E91: 900 | F91: Intersubsectorial Ambiente | G91: 01 | H91: Servicio de promoción de la educación ambiental | I91: 02 | J91: Desarrollo y promoción de planes y programas docentes y pensum nacional en educación ambiental | L91: 44 | M91: SISTEMA INTEGRAL DE VERDAD, JUSTICIA, REPARACIÓN Y NO REPETICIÓN | N91: 4401 | O91: Jurisdicción Especial para la Paz | P91: 1000 | Q91: Intersubsectorial Gobierno
A92: 32 | B92: AMBIENTE Y DESARROLLO SOSTENIBLE | C92: 3208 | D92: Educación Ambiental | E92: 900 | F92: Intersubsectorial Ambiente | G92: 01 | H92: Servicio de promoción de la educación ambiental | I92: 03 | J92: Desarrollo y promoción de mecanismos de participación, empoderamiento ambiental ciudadano y protección del conocimiento tradicional | L92: 44 | M92: SISTEMA INTEGRAL DE VERDAD, JUSTICIA, REPARACIÓN Y NO REPETICIÓN | N92: 4403 | O92: Unidad de Búsqueda de Personas dadas por Desaparecidas en el contexto y en razón del Conflicto Armado (UBPD) | P92: 1000 | Q92: Intersubsectorial Gobierno
A93: 32 | B93: AMBIENTE Y DESARROLLO SOSTENIBLE | C93: 3208 | D93: Educación Ambiental | E93: 900 | F93: Intersubsectorial Ambiente | G93: 01 | H93: Servicio de promoción de la educación ambiental | I93: 04 | J93: Gestión Territorial de la Educación Ambiental | L93: 44 | M93: SISTEMA INTEGRAL DE VERDAD, JUSTICIA, REPARACIÓN Y NO REPETICIÓN | N93: 4499 | O93: Fortalecimiento y apoyo a la gestión institucional del sector Justicia Especial para la Paz | P93: 1000 | Q93: Intersubsectorial Gobierno
A94: 32 | B94: AMBIENTE Y DESARROLLO SOSTENIBLE | C94: 3299 | D94: Fortalecimiento y apoyo a la gestión institucional del sectorAmbiente y Desarrollo Sostenible | E94: 900 | F94: Intersubsectorial Ambiente | G94: 01 | H94: Servicio de fortalecimiento y apoyo a la gestión institucional del sector Ambiente y Desarrollo Sostenible | I94: 01 | J94: Direccionamiento estratégico del Sector | L94: 44 | M94: SISTEMA INTEGRAL DE VERDAD, JUSTICIA, REPARACIÓN Y NO REPETICIÓN | N94: 4400 | O94: No asignable a programas | P94: 1000 | Q94: Intersubsectorial Gobierno
A95: 32 | B95: AMBIENTE Y DESARROLLO SOSTENIBLE | C95: 3299 | D95: Fortalecimiento y apoyo a la gestión institucional del sectorAmbiente y Desarrollo Sostenible | E95: 900 | F95: Intersubsectorial Ambiente | G95: 01 | H95: Servicio de fortalecimiento y apoyo a la gestión institucional del sector Ambiente y Desarrollo Sostenible | I95: 02 | J95: Gestión jurídica | L95: 12 | M95: JUSTICIA Y DEL DERECHO | N95: 1201 | O95: Fortalecimiento del principio de seguridad jurídica, divulgación y depuración del ordenamiento jurídico | P95: 0800 | Q95: Intersubsectorial Justicia
A96: 32 | B96: AMBIENTE Y DESARROLLO SOSTENIBLE | C96: 3299 | D96: Fortalecimiento y apoyo a la gestión institucional del sectorAmbiente y Desarrollo Sostenible | E96: 900 | F96: Intersubsectorial Ambiente | G96: 01 | H96: Servicio de fortalecimiento y apoyo a la gestión institucional del sector Ambiente y Desarrollo Sostenible | I96: 03 | J96: Gestión de comunicaciones | L96: 12 | M96: JUSTICIA Y DEL DERECHO | N96: 1202 | O96: Promoción al acceso a la justicia | P96: 0800 | Q96: Intersubsectorial Justicia
A97: 32 | B97: AMBIENTE Y DESARROLLO SOSTENIBLE | C97: 3299 | D97: Fortalecimiento y apoyo a la gestión institucional del sectorAmbiente y Desarrollo Sostenible | E97: 900 | F97: Intersubsectorial Ambiente | G97: 01 | H97: Servicio de fortalecimiento y apoyo a la gestión institucional del sector Ambiente y Desarrollo Sostenible | I97: 04 | J97: Seguimiento y evaluación | L97: 12 | M97: JUSTICIA Y DEL DERECHO | N97: 1203 | O97: Promoción de los métodos de resolución de conflictos | P97: 0800 | Q97: Intersubsectorial Justicia
A98: 32 | B98: AMBIENTE Y DESARROLLO SOSTENIBLE | C98: 3299 | D98: Fortalecimiento y apoyo a la gestión institucional del sectorAmbiente y Desarrollo Sostenible | E98: 900 | F98: Intersubsectorial Ambiente | G98: 01 | H98: Servicio de fortalecimiento y apoyo a la gestión institucional del sector Ambiente y Desarrollo Sostenible | I98: 05 | J98: Gestión y desarrollo del talento humano | L98: 12 | M98: JUSTICIA Y DEL DERECHO | N98: 1204 | O98: Justicia transicional | P98: 0800 | Q98: Intersubsectorial Justicia
A99: 32 | B99: AMBIENTE Y DESARROLLO SOSTENIBLE | C99: 3299 | D99: Fortalecimiento y apoyo a la gestión institucional del sectorAmbiente y Desarrollo Sostenible | E99: 900 | F99: Intersubsectorial Ambiente | G99: 01 | H99: Servicio de fortalecimiento y apoyo a la gestión institucional del sector Ambiente y Desarrollo Sostenible | I99: 06 | J99: Gestión Administrativa | L99: 12 | M99: JUSTICIA Y DEL DERECHO | N99: 1205 | O99: Defensa jurídica del Estado | P99: 0800 | Q99: Intersubsectorial Justicia
A100: 32 | B100: AMBIENTE Y DESARROLLO SOSTENIBLE | C100: 3299 | D100: Fortalecimiento y apoyo a la gestión institucional del sectorAmbiente y Desarrollo Sostenible | E100: 900 | F100: Intersubsectorial Ambiente | G100: 01 | H100: Servicio de fortalecimiento y apoyo a la gestión institucional del sector Ambiente y Desarrollo Sostenible | I100: 07 | J100: Gestión de TIC | L100: 12 | M100: JUSTICIA Y DEL DERECHO | N100: 1206 | O100: Sistema penitenciario y carcelario en el marco de los derechos humanos | P100: 0800 | Q100: Intersubsectorial Justicia
A101: 32 | B101: AMBIENTE Y DESARROLLO SOSTENIBLE | C101: 3299 | D101: Fortalecimiento y apoyo a la gestión institucional del sectorAmbiente y Desarrollo Sostenible | E101: 900 | F101: Intersubsectorial Ambiente | G101: 01 | H101: Servicio de fortalecimiento y apoyo a la gestión institucional del sector Ambiente y Desarrollo Sostenible | I101: 08 | J101: Gestión Contractual | L101: 12 | M101: JUSTICIA Y DEL DERECHO | N101: 1207 | O101: Fortalecimiento de la política criminal del Estado colombiano | P101: 0800 | Q101: Intersubsectorial Justicia
A102: 32 | B102: AMBIENTE Y DESARROLLO SOSTENIBLE | C102: 3299 | D102: Fortalecimiento y apoyo a la gestión institucional del sectorAmbiente y Desarrollo Sostenible | E102: 900 | F102: Intersubsectorial Ambiente | G102: 01 | H102: Servicio de fortalecimiento y apoyo a la gestión institucional del sector Ambiente y Desarrollo Sostenible | I102: 09 | J102: Gestión financiera | L102: 12 | M102: JUSTICIA Y DEL DERECHO | N102: 1208 | O102: Formulación y coordinación de la política integral frente a las drogas y actividades relacionadas | P102: 0800 | Q102: Intersubsectorial Justicia
A103: 32 | B103: AMBIENTE Y DESARROLLO SOSTENIBLE | C103: 3299 | D103: Fortalecimiento y apoyo a la gestión institucional del sectorAmbiente y Desarrollo Sostenible | E103: 900 | F103: Intersubsectorial Ambiente | G103: 01 | H103: Servicio de fortalecimiento y apoyo a la gestión institucional del sector Ambiente y Desarrollo Sostenible | I103: 10 | J103: Gestión documental | L103: 12 | M103: JUSTICIA Y DEL DERECHO | N103: 1209 | O103: Modernización de la información inmobiliaria | P103: 0800 | Q103: Intersubsectorial Justicia
A104: 32 | B104: AMBIENTE Y DESARROLLO SOSTENIBLE | C104: 3299 | D104: Fortalecimiento y apoyo a la gestión institucional del sectorAmbiente y Desarrollo Sostenible | E104: 900 | F104: Intersubsectorial Ambiente | G104: 01 | H104: Servicio de fortalecimiento y apoyo a la gestión institucional del sector Ambiente y Desarrollo Sostenible | I104: 11 | J104: Gestión de atención al ciudadano | L104: 12 | M104: JUSTICIA Y DEL DERECHO | N104: 1299 | O104: Fortalecimiento y apoyo a la gestión institucional del sector Justicia y del Derecho | P104: 0800 | Q104: Intersubsectorial Justicia
A105: 32 | B105: AMBIENTE Y DESARROLLO SOSTENIBLE | C105: 3299 | D105: Fortalecimiento y apoyo a la gestión institucional del sectorAmbiente y Desarrollo Sostenible | E105: 900 | F105: Intersubsectorial Ambiente | G105: 01 | H105: Servicio de fortalecimiento y apoyo a la gestión institucional del sector Ambiente y Desarrollo Sostenible | I105: 12 | J105: Gestión de Control Interno | L105: 12 | M105: JUSTICIA Y DEL DERECHO | N105: 1200 | O105: No asignable a programas | P105: 0800 | Q105: Intersubsectorial Justicia
A106: 32 | B106: AMBIENTE Y DESARROLLO SOSTENIBLE | C106: 3299 | D106: Fortalecimiento y apoyo a la gestión institucional del sectorAmbiente y Desarrollo Sostenible | E106: 900 | F106: Intersubsectorial Ambiente | G106: 01 | H106: Servicio de fortalecimiento y apoyo a la gestión institucional del sector Ambiente y Desarrollo Sostenible | I106: 13 | J106: Gestión de Control Interno Disciplinario | L106: 21 | M106: MINAS Y ENERGÍA | N106: 2101 | O106: Acceso al servicio público domiciliario de gas combustible | P106: 1900 | Q106: Intersubsectorial Minas y Energía
A107: 32 | B107: AMBIENTE Y DESARROLLO SOSTENIBLE | C107: 3200 | D107: No asignable a programas | E107: 900 | F107: Intersubsectorial Ambiente | G107: 01 | H107: Sin producto | I107: 01 | J107: Transferencias | L107: 21 | M107: MINAS Y ENERGÍA | N107: 2102 | O107: Consolidación productiva del sector de energía eléctrica | P107: 1900 | Q107: Intersubsectorial Minas y Energía
A108: 39 | B108: CIENCIA, TECNOLOGÍA E INNOVACIÓN | C108: 3999 | D108: Fortalecimiento y apoyo a la gestión institucional del sector Ciencia y Tecnología | E108: 1000 | F108: Intersubsectorial Gobierno | G108: 01 | H108: Servicio de fortalecimiento y apoyo a la gestión institucional del sector Ciencia y Tecnología | I108: 01 | J108: Desarrollo de vocación científica y formación de capital humano | L108: 21 | M108: MINAS Y ENERGÍA | N108: 2103 | O108: Consolidación productiva del sector de hidrocarburos | P108: 1900 | Q108: Intersubsectorial Minas y Energía
A109: 39 | B109: CIENCIA, TECNOLOGÍA E INNOVACIÓN | C109: 3999 | D109: Fortalecimiento y apoyo a la gestión institucional del sector Ciencia y Tecnología | E109: 1000 | F109: Intersubsectorial Gobierno | G109: 01 | H109: Servicio de fortalecimiento y apoyo a la gestión institucional del sector Ciencia y Tecnología | I109: 02 | J109: Desarrollo Tecnológico e Innovación | L109: 21 | M109: MINAS Y ENERGÍA | N109: 2104 | O109: Consolidación productiva del sector minero | P109: 1900 | Q109: Intersubsectorial Minas y Energía
A110: 39 | B110: CIENCIA, TECNOLOGÍA E INNOVACIÓN | C110: 3999 | D110: Fortalecimiento y apoyo a la gestión institucional del sector Ciencia y Tecnología | E110: 1000 | F110: Intersubsectorial Gobierno | G110: 01 | H110: Servicio de fortalecimiento y apoyo a la gestión institucional del sector Ciencia y Tecnología | I110: 03 | J110: Direccionamiento estratégico | L110: 21 | M110: MINAS Y ENERGÍA | N110: 2105 | O110: Desarrollo ambiental sostenible del sector minero energético | P110: 1900 | Q110: Intersubsectorial Minas y Energía
A111: 39 | B111: CIENCIA, TECNOLOGÍA E INNOVACIÓN | C111: 3999 | D111: Fortalecimiento y apoyo a la gestión institucional del sector Ciencia y Tecnología | E111: 1000 | F111: Intersubsectorial Gobierno | G111: 01 | H111: Servicio de fortalecimiento y apoyo a la gestión institucional del sector Ciencia y Tecnología | I111: 04 | J111: Fomento de la investigación | L111: 21 | M111: MINAS Y ENERGÍA | N111: 2106 | O111: Gestión de la información en el sector minero energético | P111: 1900 | Q111: Intersubsectorial Minas y Energía
A112: 39 | B112: CIENCIA, TECNOLOGÍA E INNOVACIÓN | C112: 3999 | D112: Fortalecimiento y apoyo a la gestión institucional del sector Ciencia y Tecnología | E112: 1000 | F112: Intersubsectorial Gobierno | G112: 01 | H112: Servicio de fortalecimiento y apoyo a la gestión institucional del sector Ciencia y Tecnología | I112: 05 | J112: Generación de capacidades regionales y transferencia de conocimiento | L112: 21 | M112: MINAS Y ENERGÍA | N112: 2199 | O112: Fortalecimiento y apoyo a la gestión institucional del sector Minas y Energía | P112: 1900 | Q112: Intersubsectorial Minas y Energía
A113: 39 | B113: CIENCIA, TECNOLOGÍA E INNOVACIÓN | C113: 3999 | D113: Fortalecimiento y apoyo a la gestión institucional del sector Ciencia y Tecnología | E113: 1000 | F113: Intersubsectorial Gobierno | G113: 01 | H113: Servicio de fortalecimiento y apoyo a la gestión institucional del sector Ciencia y Tecnología | I113: 06 | J113: Gestión de comunicaciones | L113: 21 | M113: MINAS Y ENERGÍA | N113: 2100 | O113: No asignable a programas | P113: 1900 | Q113: Intersubsectorial Minas y Energía
A114: 39 | B114: CIENCIA, TECNOLOGÍA E INNOVACIÓN | C114: 3999 | D114: Fortalecimiento y apoyo a la gestión institucional del sector Ciencia y Tecnología | E114: 1000 | F114: Intersubsectorial Gobierno | G114: 01 | H114: Servicio de fortalecimiento y apoyo a la gestión institucional del sector Ciencia y Tecnología | I114: 07 | J114: Gestión TICs | L114: 25 | M114: ORGANISMOS DE CONTROL | N114: 2502 | O114: Promoción, protección y defensa de los Derechos Humanos y el Derecho Internacional Humanitario | P114: 1000 | Q114: Intersubsectorial Gobierno
A115: 39 | B115: CIENCIA, TECNOLOGÍA E INNOVACIÓN | C115: 3999 | D115: Fortalecimiento y apoyo a la gestión institucional del sector Ciencia y Tecnología | E115: 1000 | F115: Intersubsectorial Gobierno | G115: 01 | H115: Servicio de fortalecimiento y apoyo a la gestión institucional del sector Ciencia y Tecnología | I115: 08 | J115: Gestión administrativa | L115: 25 | M115: ORGANISMOS DE CONTROL | N115: 2504 | O115: Vigilancia de la gestión administrativa de los funcionarios del Estado | P115: 1000 | Q115: Intersubsectorial Gobierno
A116: 39 | B116: CIENCIA, TECNOLOGÍA E INNOVACIÓN | C116: 3999 | D116: Fortalecimiento y apoyo a la gestión institucional del sector Ciencia y Tecnología | E116: 1000 | F116: Intersubsectorial Gobierno | G116: 01 | H116: Servicio de fortalecimiento y apoyo a la gestión institucional del sector Ciencia y Tecnología | I116: 09 | J116: Gestión contractual | L116: 25 | M116: ORGANISMOS DE CONTROL | N116: 2599 | O116: Fortalecimiento y apoyo a la gestión institucional del sector organismos de control | P116: 1000 | Q116: Intersubsectorial Gobierno
A117: 39 | B117: CIENCIA, TECNOLOGÍA E INNOVACIÓN | C117: 3999 | D117: Fortalecimiento y apoyo a la gestión institucional del sector Ciencia y Tecnología | E117: 1000 | F117: Intersubsectorial Gobierno | G117: 01 | H117: Servicio de fortalecimiento y apoyo a la gestión institucional del sector Ciencia y Tecnología | I117: 10 | J117: Gestión de recursos para la Ciencia, la Tecnología y la Innovación (CTel) | L117: 25 | M117: ORGANISMOS DE CONTROL | N117: 2501 | O117: Fortalecimiento del control y la vigilancia de la gestión fiscal y resarcimiento al daño del patrimonio público | P117: 1000 | Q117: Intersubsectorial Gobierno
A118: 39 | B118: CIENCIA, TECNOLOGÍA E INNOVACIÓN | C118: 3999 | D118: Fortalecimiento y apoyo a la gestión institucional del sector Ciencia y Tecnología | E118: 1000 | F118: Intersubsectorial Gobierno | G118: 01 | H118: Servicio de fortalecimiento y apoyo a la gestión institucional del sector Ciencia y Tecnología | I118: 11 | J118: Gestión financiera | L118: 25 | M118: ORGANISMOS DE CONTROL | N118: 2505 | O118: Bienestar de los servidores de la Contraloría General de la República | P118: 1000 | Q118: Intersubsectorial Gobierno
A119: 39 | B119: CIENCIA, TECNOLOGÍA E INNOVACIÓN | C119: 3999 | D119: Fortalecimiento y apoyo a la gestión institucional del sector Ciencia y Tecnología | E119: 1000 | F119: Intersubsectorial Gobierno | G119: 01 | H119: Servicio de fortalecimiento y apoyo a la gestión institucional del sector Ciencia y Tecnología | I119: 12 | J119: Gestión jurídica | L119: 03 | M119: PLANEACIÓN | N119: 0301 | O119: Mejoramiento de la planeación territorial, sectorial y de inversión pública | P119: 1000 | Q119: Intersubsectorial gobierno
A120: 39 | B120: CIENCIA, TECNOLOGÍA E INNOVACIÓN | C120: 3999 | D120: Fortalecimiento y apoyo a la gestión institucional del sector Ciencia y Tecnología | E120: 1000 | F120: Intersubsectorial Gobierno | G120: 01 | H120: Servicio de fortalecimiento y apoyo a la gestión institucional del sector Ciencia y Tecnología | I120: 13 | J120: Gestión y desarrollo del talento humano | L120: 03 | M120: PLANEACIÓN | N120: 0303 | O120: Promoción de la prestación eficiente de los servicios públicos domiciliarios | P120: 1000 | Q120: Intersubsectorial gobierno
A121: 39 | B121: CIENCIA, TECNOLOGÍA E INNOVACIÓN | C121: 3999 | D121: Fortalecimiento y apoyo a la gestión institucional del sector Ciencia y Tecnología | E121: 1000 | F121: Intersubsectorial Gobierno | G121: 01 | H121: Servicio de fortalecimiento y apoyo a la gestión institucional del sector Ciencia y Tecnología | I121: 14 | J121: Seguimiento y evaluación | L121: 03 | M121: PLANEACIÓN | N121: 0304 | O121: Fortalecimiento del Sistema de Compra Pública | P121: 1000 | Q121: Intersubsectorial gobierno
A122: 39 | B122: CIENCIA, TECNOLOGÍA E INNOVACIÓN | C122: 3900 | D122: No asignable a programas | E122: 1000 | F122: Intersubsectorial Gobierno | G122: 01 | H122: Sin producto | I122: 01 | J122: Transferencias corrientes | L122: 03 | M122: PLANEACIÓN | N122: 0399 | O122: Fortalecimiento y apoyo a la gestión institucional del sector Planeación | P122: 1000 | Q122: Intersubsectorial gobierno
A123: 35 | B123: COMERCIO, INDUSTRIA Y TURISMO | C123: 3501 | D123: Internacionalización de la economía | E123: 0200 | F123: Intersubsectorial Industria y Comercio | G123: 01 | H123: Servicio de gestión de la política de comercio exterior | I123: 01 | J123: Direccionamiento estratégico de la política de comercio exterior | L123: 03 | M123: PLANEACIÓN | N123: 0300 | O123: No asignable a programas | P123: 1000 | Q123: Intersubsectorial gobierno
A124: 35 | B124: COMERCIO, INDUSTRIA Y TURISMO | C124: 3501 | D124: Internacionalización de la economía | E124: 0200 | F124: Intersubsectorial Industria y Comercio | G124: 01 | H124: Servicio de gestión de la política de comercio exterior | I124: 02 | J124: Gestión de relaciones comerciales e inversión extranjera | L124: 02 | M124: PRESIDENCIA DE LA REPÚBLICA | N124: 0204 | O124: Impulsar la competitividad de las regiones y el desarrollo integral las poblaciones con enfoque diferencial desde el sector Presidencia. | P124: 1000 | Q124: Intersubsectorial gobierno
A125: 35 | B125: COMERCIO, INDUSTRIA Y TURISMO | C125: 3502 | D125: Productividad y competitividad de las empresas colombianas | E125: 0200 | F125: Intersubsectorial Industria y Comercio | G125: 01 | H125: Servicio de gestión de la política de competitividad empresarial | I125: 01 | J125: Direccionamiento estratégico de la política de desarrollo empresarial | L125: 02 | M125: PRESIDENCIA DE LA REPÚBLICA | N125: 0207 | O125: Prevención y mitigación del riesgo de desastres desde el sector Presidencia | P125: 1000 | Q125: Intersubsectorial gobierno
A126: 35 | B126: COMERCIO, INDUSTRIA Y TURISMO | C126: 3502 | D126: Productividad y competitividad de las empresas colombianas | E126: 0200 | F126: Intersubsectorial Industria y Comercio | G126: 01 | H126: Servicio de gestión de la política de competitividad empresarial | I126: 02 | J126: Gestión de la calidad de la metrología física a nivel nacional | L126: 02 | M126: PRESIDENCIA DE LA REPÚBLICA | N126: 0208 | O126: Gestión de la cooperación internacional del sector Presidencia | P126: 1000 | Q126: Intersubsectorial gobierno
A127: 35 | B127: COMERCIO, INDUSTRIA Y TURISMO | C127: 3502 | D127: Productividad y competitividad de las empresas colombianas | E127: 0200 | F127: Intersubsectorial Industria y Comercio | G127: 01 | H127: Servicio de gestión de la política de competitividad empresarial | I127: 03 | J127: Gestión de la calidad de la metrología química y biología a nivel nacional | L127: 02 | M127: PRESIDENCIA DE LA REPÚBLICA | N127: 0209 | O127: Fortalecimiento de la infraestructura física de las entidades del Estado del nivel nacional desde el Sector Presidencia | P127: 1000 | Q127: Intersubsectorial gobierno
A128: 35 | B128: COMERCIO, INDUSTRIA Y TURISMO | C128: 3502 | D128: Productividad y competitividad de las empresas colombianas | E128: 0200 | F128: Intersubsectorial Industria y Comercio | G128: 01 | H128: Servicio de gestión de la política de competitividad empresarial | I128: 04 | J128: Gestión de la prestación de servicios metrológicos | L128: 02 | M128: PRESIDENCIA DE LA REPÚBLICA | N128: 0210 | O128: Mecanismos de transición hacia la paz a nivel nacional y territorial desde el sector Presidencia | P128: 1000 | Q128: Intersubsectorial gobierno
A129: 35 | B129: COMERCIO, INDUSTRIA Y TURISMO | C129: 3502 | D129: Productividad y competitividad de las empresas colombianas | E129: 0200 | F129: Intersubsectorial Industria y Comercio | G129: 01 | H129: Servicio de gestión de la política de competitividad empresarial | I129: 05 | J129: Gestión del fortalecimiento de la competitividad empresarial | L129: 02 | M129: PRESIDENCIA DE LA REPÚBLICA | N129: 0211 | O129: Reintegración de personas y grupos alzados en armas desde el Sector Presidencia | P129: 1000 | Q129: Intersubsectorial gobierno
A130: 35 | B130: COMERCIO, INDUSTRIA Y TURISMO | C130: 3503 | D130: Ambiente regulatorio y económico para la competencia y la actividad empresarial | E130: 0200 | F130: Intersubsectorial Industria y Comercio | G130: 01 | H130: Servicio de Inspección, vigilancia y control de las sociedades | I130: 01 | J130: Conciliación y arbitraje | L130: 02 | M130: PRESIDENCIA DE LA REPÚBLICA | N130: 0212 | O130: Renovación territorial para el desarrollo integral de las zonas rurales afectadas por el conflicto armado. | P130: 1000 | Q130: Intersubsectorial gobierno
A131: 35 | B131: COMERCIO, INDUSTRIA Y TURISMO | C131: 3503 | D131: Ambiente regulatorio y económico para la competencia y la actividad empresarial | E131: 0200 | F131: Intersubsectorial Industria y Comercio | G131: 01 | H131: Servicio de Inspección, vigilancia y control de las sociedades | I131: 02 | J131: Direccionamiento estratégico | L131: 02 | M131: PRESIDENCIA DE LA REPÚBLICA | N131: 0214 | O131: Fortalecimiento de las capacidades de articulación estratégica, modernización, eficiencia administrativa, transparencia y acceso a la información desde el sector Presidencia | P131: 1000 | Q131: Intersubsectorial gobierno
A132: 35 | B132: COMERCIO, INDUSTRIA Y TURISMO | C132: 3503 | D132: Ambiente regulatorio y económico para la competencia y la actividad empresarial | E132: 0200 | F132: Intersubsectorial Industria y Comercio | G132: 01 | H132: Servicio de Inspección, vigilancia y control de las sociedades | I132: 03 | J132: Gestión de análisis económicos y de riesgos | L132: 02 | M132: PRESIDENCIA DE LA REPÚBLICA | N132: 0299 | O132: Fortalecimiento y apoyo a la gestión institucional del sector Presidencia | P132: 1000 | Q132: Intersubsectorial gobierno
A133: 35 | B133: COMERCIO, INDUSTRIA Y TURISMO | C133: 3503 | D133: Ambiente regulatorio y económico para la competencia y la actividad empresarial | E133: 0200 | F133: Intersubsectorial Industria y Comercio | G133: 01 | H133: Servicio de Inspección, vigilancia y control de las sociedades | I133: 04 | J133: Gestión de información empresarial | L133: 02 | M133: PRESIDENCIA DE LA REPÚBLICA | N133: 0200 | O133: No asignable a programas | P133: 1000 | Q133: Intersubsectorial gobierno
A134: 35 | B134: COMERCIO, INDUSTRIA Y TURISMO | C134: 3503 | D134: Ambiente regulatorio y económico para la competencia y la actividad empresarial | E134: 0200 | F134: Intersubsectorial Industria y Comercio | G134: 01 | H134: Servicio de Inspección, vigilancia y control de las sociedades | I134: 05 | J134: Gestión de investigaciones y sanciones administrativas | L134: 27 | M134: RAMA JUDICIAL | N134: 2701 | O134: Mejoramiento y ejecución de las competencias de la administración de la justicia | P134: 0800 | Q134: Intersubsectorial Justicia
A135: 35 | B135: COMERCIO, INDUSTRIA Y TURISMO | C135: 3503 | D135: Ambiente regulatorio y económico para la competencia y la actividad empresarial | E135: 0200 | F135: Intersubsectorial Industria y Comercio | G135: 01 | H135: Servicio de Inspección, vigilancia y control de las sociedades | I135: 06 | J135: Gestión de liquidación judicial | L135: 27 | M135: RAMA JUDICIAL | N135: 2799 | O135: Fortalecimiento y apoyo a la gestión institucional del sector Rama Judicial | P135: 0800 | Q135: Intersubsectorial Justicia
A136: 35 | B136: COMERCIO, INDUSTRIA Y TURISMO | C136: 3503 | D136: Ambiente regulatorio y económico para la competencia y la actividad empresarial | E136: 0200 | F136: Intersubsectorial Industria y Comercio | G136: 01 | H136: Servicio de Inspección, vigilancia y control de las sociedades | I136: 07 | J136: Gestión de recuperación empresarial | L136: 27 | M136: RAMA JUDICIAL | N136: 2700 | O136: No asignable a programas | P136: 0800 | Q136: Intersubsectorial Justicia
A137: 35 | B137: COMERCIO, INDUSTRIA Y TURISMO | C137: 3503 | D137: Ambiente regulatorio y económico para la competencia y la actividad empresarial | E137: 0200 | F137: Intersubsectorial Industria y Comercio | G137: 01 | H137: Servicio de Inspección, vigilancia y control de las sociedades | I137: 08 | J137: Supervisión, vigilancia a entes especiales | L137: 28 | M137: REGISTRADURÍA | N137: 2801 | O137: Procesos democráticos y asuntos electorales | P137: 1000 | Q137: Intersubsectorial Gobierno
A138: 35 | B138: COMERCIO, INDUSTRIA Y TURISMO | C138: 3503 | D138: Ambiente regulatorio y económico para la competencia y la actividad empresarial | E138: 0200 | F138: Intersubsectorial Industria y Comercio | G138: 01 | H138: Servicio de Inspección, vigilancia y control de las sociedades | I138: 09 | J138: Supervisión, vigilancia a las empresas | L138: 28 | M138: REGISTRADURÍA | N138: 2802 | O138: Identificación y registro del estado civil de la población | P138: 1000 | Q138: Intersubsectorial Gobierno
A139: 35 | B139: COMERCIO, INDUSTRIA Y TURISMO | C139: 3503 | D139: Ambiente regulatorio y económico para la competencia y la actividad empresarial | E139: 0200 | F139: Intersubsectorial Industria y Comercio | G139: 01 | H139: Servicio de Inspección, vigilancia y control de las sociedades | I139: 10 | J139: Supervisión, vigilancia y sanción a las cámaras de comercio | L139: 28 | M139: REGISTRADURÍA | N139: 2899 | O139: Fortalecimiento y apoyo a la gestión institucional del sector Registraduría | P139: 1000 | Q139: Intersubsectorial Gobierno
A140: 35 | B140: COMERCIO, INDUSTRIA Y TURISMO | C140: 3503 | D140: Ambiente regulatorio y económico para la competencia y la actividad empresarial | E140: 0200 | F140: Intersubsectorial Industria y Comercio | G140: 02 | H140: Servicio de Promoción y protección de la competencia | I140: 01 | J140: Direccionamiento estratégico | L140: 28 | M140: REGISTRADURÍA | N140: 2800 | O140: No asignable a programas | P140: 1000 | Q140: Intersubsectorial Gobierno
A141: 35 | B141: COMERCIO, INDUSTRIA Y TURISMO | C141: 3503 | D141: Ambiente regulatorio y económico para la competencia y la actividad empresarial | E141: 0200 | F141: Intersubsectorial Industria y Comercio | G141: 02 | H141: Servicio de Promoción y protección de la competencia | I141: 02 | J141: Gestión de inspección y vigilancia | L141: 11 | M141: RELACIONES EXTERIORES | N141: 1101 | O141: Fortalecimiento y diversificación de relaciones bilaterales | P141: 1002 | Q141: Relaciones exteriores
A142: 35 | B142: COMERCIO, INDUSTRIA Y TURISMO | C142: 3503 | D142: Ambiente regulatorio y económico para la competencia y la actividad empresarial | E142: 0200 | F142: Intersubsectorial Industria y Comercio | G142: 02 | H142: Servicio de Promoción y protección de la competencia | I142: 03 | J142: Gestión regulatoria del sector comercio, industria y turismo | L142: 11 | M142: RELACIONES EXTERIORES | N142: 1102 | O142: Posicionamiento en instancias globales, multilaterales, regionales y subregionales | P142: 1002 | Q142: Relaciones exteriores
A143: 35 | B143: COMERCIO, INDUSTRIA Y TURISMO | C143: 3503 | D143: Ambiente regulatorio y económico para la competencia y la actividad empresarial | E143: 0200 | F143: Intersubsectorial Industria y Comercio | G143: 03 | H143: Servicio de protección a la propiedad industrial | I143: 01 | J143: Direccionamiento estratégico | L143: 11 | M143: RELACIONES EXTERIORES | N143: 1103 | O143: Política migratoria y servicio al ciudadano | P143: 1002 | Q143: Relaciones exteriores
A144: 35 | B144: COMERCIO, INDUSTRIA Y TURISMO | C144: 3503 | D144: Ambiente regulatorio y económico para la competencia y la actividad empresarial | E144: 0200 | F144: Intersubsectorial Industria y Comercio | G144: 03 | H144: Servicio de protección a la propiedad industrial | I144: 02 | J144: Gestión de marcas y lemas comerciales | L144: 11 | M144: RELACIONES EXTERIORES | N144: 1104 | O144: Soberanía territorial y desarrollo fronterizo | P144: 1002 | Q144: Relaciones exteriores
A145: 35 | B145: COMERCIO, INDUSTRIA Y TURISMO | C145: 3503 | D145: Ambiente regulatorio y económico para la competencia y la actividad empresarial | E145: 0200 | F145: Intersubsectorial Industria y Comercio | G145: 03 | H145: Servicio de protección a la propiedad industrial | I145: 03 | J145: Gestión de patentes | L145: 11 | M145: RELACIONES EXTERIORES | N145: 1199 | O145: Fortalecimiento y apoyo a la gestión institucional del sector relaciones exteriores | P145: 1002 | Q145: Relaciones exteriores
A146: 35 | B146: COMERCIO, INDUSTRIA Y TURISMO | C146: 3503 | D146: Ambiente regulatorio y económico para la competencia y la actividad empresarial | E146: 0200 | F146: Intersubsectorial Industria y Comercio | G146: 04 | H146: Servicio de Protección al consumidor | I146: 01 | J146: Direccionamiento estratégico | L146: 11 | M146: RELACIONES EXTERIORES | N146: 1100 | O146: No asignable a programas | P146: 1002 | Q146: Relaciones exteriores
A147: 35 | B147: COMERCIO, INDUSTRIA Y TURISMO | C147: 3503 | D147: Ambiente regulatorio y económico para la competencia y la actividad empresarial | E147: 0200 | F147: Intersubsectorial Industria y Comercio | G147: 04 | H147: Servicio de Protección al consumidor | I147: 02 | J147: Gestión de investigaciones y sanciones administrativas | L147: 19 | M147: SALUD Y PROTECCIÓN SOCIAL | N147: 1901 | O147: Salud Pública y prestación de servicios | P147: 0300 | Q147: Intersubsectorial Salud
A148: 35 | B148: COMERCIO, INDUSTRIA Y TURISMO | C148: 3503 | D148: Ambiente regulatorio y económico para la competencia y la actividad empresarial | E148: 0200 | F148: Intersubsectorial Industria y Comercio | G148: 04 | H148: Servicio de Protección al consumidor | I148: 03 | J148: Gestión de la calidad de la prestación del servicio turístico y protección al consumidor | L148: 19 | M148: SALUD Y PROTECCIÓN SOCIAL | N148: 1902 | O148: Aseguramiento y administración del Sistema General de la Seguridad Social en Salud - SGSSS | P148: 0300 | Q148: Intersubsectorial Salud
A149: 35 | B149: COMERCIO, INDUSTRIA Y TURISMO | C149: 3503 | D149: Ambiente regulatorio y económico para la competencia y la actividad empresarial | E149: 0200 | F149: Intersubsectorial Industria y Comercio | G149: 05 | H149: Servicio de Protección de datos personales | I149: 01 | J149: Direccionamiento estratégico | L149: 19 | M149: SALUD Y PROTECCIÓN SOCIAL | N149: 1903 | O149: Inspección, vigilancia y control del Sistema de Seguridad Social en Salud | P149: 0300 | Q149: Intersubsectorial Salud
A150: 35 | B150: COMERCIO, INDUSTRIA Y TURISMO | C150: 3503 | D150: Ambiente regulatorio y económico para la competencia y la actividad empresarial | E150: 0200 | F150: Intersubsectorial Industria y Comercio | G150: 05 | H150: Servicio de Protección de datos personales | I150: 02 | J150: Gestión de investigaciones y sanciones administrativas | L150: 19 | M150: SALUD Y PROTECCIÓN SOCIAL | N150: 1907 | O150: Administración de pensiones de entidades del sector salud | P150: 0300 | Q150: Intersubsectorial Salud
A151: 35 | B151: COMERCIO, INDUSTRIA Y TURISMO | C151: 3503 | D151: Ambiente regulatorio y económico para la competencia y la actividad empresarial | E151: 0200 | F151: Intersubsectorial Industria y Comercio | G151: 05 | H151: Servicio de Protección de datos personales | I151: 03 | J151: Gestión del registro nacional de bases de datos | L151: 19 | M151: SALUD Y PROTECCIÓN SOCIAL | N151: 1999 | O151: Fortalecimiento y apoyo a la gestión institucional del sector salud | P151: 0300 | Q151: Intersubsectorial Salud
A152: 35 | B152: COMERCIO, INDUSTRIA Y TURISMO | C152: 3503 | D152: Ambiente regulatorio y económico para la competencia y la actividad empresarial | E152: 0200 | F152: Intersubsectorial Industria y Comercio | G152: 06 | H152: Servicio de vigilancia al cumplimiento de los reglamentos técnicos y del sistema metrológico | I152: 01 | J152: Direccionamiento estratégico | L152: 19 | M152: SALUD Y PROTECCIÓN SOCIAL | N152: 1900 | O152: No programático | P152: 0300 | Q152: Intersubsectorial Salud
A153: 35 | B153: COMERCIO, INDUSTRIA Y TURISMO | C153: 3503 | D153: Ambiente regulatorio y económico para la competencia y la actividad empresarial | E153: 0200 | F153: Intersubsectorial Industria y Comercio | G153: 06 | H153: Servicio de vigilancia al cumplimiento de los reglamentos técnicos y del sistema metrológico | I153: 02 | J153: Gestión de investigaciones y sanciones administrativas | L153: 23 | M153: TECNOLOGÍAS DE LA INFORMACIÓN Y LAS COMUNICACIONES | N153: 2301 | O153: Facilitar el acceso y uso de las Tecnologías de la Información y las Comunicaciones en todo el territorio nacional | P153: 0400 | Q153: Intersubsectorial Comunicaciones
A154: 35 | B154: COMERCIO, INDUSTRIA Y TURISMO | C154: 3503 | D154: Ambiente regulatorio y económico para la competencia y la actividad empresarial | E154: 0200 | F154: Intersubsectorial Industria y Comercio | G154: 07 | H154: Servicio de vigilancia y control al ejercicio de la contaduría pública | I154: 01 | J154: Direccionamiento estratégico | L154: 23 | M154: TECNOLOGÍAS DE LA INFORMACIÓN Y LAS COMUNICACIONES | N154: 2302 | O154: Fomento del desarrollo de aplicaciones, software y contenidos para impulsar la apropiación de las Tecnologías de la Información y las Comunicaciones (TIC) | P154: 0400 | Q154: Intersubsectorial Comunicaciones
A155: 35 | B155: COMERCIO, INDUSTRIA Y TURISMO | C155: 3503 | D155: Ambiente regulatorio y económico para la competencia y la actividad empresarial | E155: 0200 | F155: Intersubsectorial Industria y Comercio | G155: 07 | H155: Servicio de vigilancia y control al ejercicio de la contaduría pública | I155: 02 | J155: Gestión Administrativa | L155: 23 | M155: TECNOLOGÍAS DE LA INFORMACIÓN Y LAS COMUNICACIONES | N155: 2399 | O155: Fortalecimiento y apoyo a la gestión institucional del sector Tecnologías de la Información y las Comunicaciones | P155: 0400 | Q155: Intersubsectorial Comunicaciones
A156: 35 | B156: COMERCIO, INDUSTRIA Y TURISMO | C156: 3503 | D156: Ambiente regulatorio y económico para la competencia y la actividad empresarial | E156: 0200 | F156: Intersubsectorial Industria y Comercio | G156: 07 | H156: Servicio de vigilancia y control al ejercicio de la contaduría pública | I156: 03 | J156: Gestión de investigaciones y sanciones administrativas | L156: 23 | M156: TECNOLOGÍAS DE LA INFORMACIÓN Y LAS COMUNICACIONES | N156: 2300 | O156: No asignable a programas | P156: 0400 | Q156: Intersubsectorial Comunicaciones
A157: 35 | B157: COMERCIO, INDUSTRIA Y TURISMO | C157: 3503 | D157: Ambiente regulatorio y económico para la competencia y la actividad empresarial | E157: 0200 | F157: Intersubsectorial Industria y Comercio | G157: 07 | H157: Servicio de vigilancia y control al ejercicio de la contaduría pública | I157: 04 | J157: Seguimiento y evaluación | L157: 36 | M157: TRABAJO | N157: 3601 | O157: Protección Social | P157: 1300 | Q157: Intersubsectorial Trabajo y Bienestar Social
A158: 35 | B158: COMERCIO, INDUSTRIA Y TURISMO | C158: 3504 | D158: Competitividad, sostenibilidad y promoción del turismo colombiano | E158: 0200 | F158: Intersubsectorial Industria y Comercio | G158: 01 | H158: Servicio de gestión de la promoción y competitividad del sector turismo | I158: 01 | J158: Direccionamiento estratégico de la política turística | L158: 36 | M158: TRABAJO | N158: 3602 | O158: Generación y formalización del empleo | P158: 1300 | Q158: Intersubsectorial Trabajo y Bienestar Social
A159: 35 | B159: COMERCIO, INDUSTRIA Y TURISMO | C159: 3504 | D159: Competitividad, sostenibilidad y promoción del turismo colombiano | E159: 0200 | F159: Intersubsectorial Industria y Comercio | G159: 01 | H159: Servicio de gestión de la promoción y competitividad del sector turismo | I159: 02 | J159: Gestión de la competitividad y promoción del sector turismo | L159: 36 | M159: TRABAJO | N159: 3603 | O159: Formación para el Trabajo | P159: 1300 | Q159: Intersubsectorial Trabajo y Bienestar Social
A160: 35 | B160: COMERCIO, INDUSTRIA Y TURISMO | C160: 3599 | D160: Fortalecimiento y apoyo a la gestión institucional del sector Comercio, Industria y Turismo | E160: 0200 | F160: Intersubsectorial Industria y Comercio | G160: 01 | H160: Servicio de fortalecimiento y apoyo a la gestión institucional del sector Comercio, Industria y Turismo | I160: 01 | J160: Direccionamiento estratégico | L160: 36 | M160: TRABAJO | N160: 3604 | O160: Derechos fundamentales del trabajo y fortalecimiento del diálogo social | P160: 1300 | Q160: Intersubsectorial Trabajo y Bienestar Social
A161: 35 | B161: COMERCIO, INDUSTRIA Y TURISMO | C161: 3599 | D161: Fortalecimiento y apoyo a la gestión institucional del sector Comercio, Industria y Turismo | E161: 0200 | F161: Intersubsectorial Industria y Comercio | G161: 01 | H161: Servicio de fortalecimiento y apoyo a la gestión institucional del sector Comercio, Industria y Turismo | I161: 02 | J161: Direccionamiento estratégico del sector | L161: 36 | M161: TRABAJO | N161: 3605 | O161: Fomento de la investigación, desarrollo tecnológico e innovación del sector trabajo | P161: 1300 | Q161: Intersubsectorial Trabajo y Bienestar Social
A162: 35 | B162: COMERCIO, INDUSTRIA Y TURISMO | C162: 3599 | D162: Fortalecimiento y apoyo a la gestión institucional del sector Comercio, Industria y Turismo | E162: 0200 | F162: Intersubsectorial Industria y Comercio | G162: 01 | H162: Servicio de fortalecimiento y apoyo a la gestión institucional del sector Comercio, Industria y Turismo | I162: 03 | J162: Gestión Administrativa | L162: 36 | M162: TRABAJO | N162: 3699 | O162: Fortalecimiento y apoyo a la gestión institucional del sector Trabajo | P162: 1300 | Q162: Intersubsectorial Trabajo y Bienestar Social
A163: 35 | B163: COMERCIO, INDUSTRIA Y TURISMO | C163: 3599 | D163: Fortalecimiento y apoyo a la gestión institucional del sector Comercio, Industria y Turismo | E163: 0200 | F163: Intersubsectorial Industria y Comercio | G163: 01 | H163: Servicio de fortalecimiento y apoyo a la gestión institucional del sector Comercio, Industria y Turismo | I163: 04 | J163: Gestión de comunicaciones y atención al ciudadano | L163: 36 | M163: TRABAJO | N163: 3600 | O163: No asignable a programas | P163: 1300 | Q163: Intersubsectorial Trabajo y Bienestar Social
A164: 35 | B164: COMERCIO, INDUSTRIA Y TURISMO | C164: 3599 | D164: Fortalecimiento y apoyo a la gestión institucional del sector Comercio, Industria y Turismo | E164: 0200 | F164: Intersubsectorial Industria y Comercio | G164: 01 | H164: Servicio de fortalecimiento y apoyo a la gestión institucional del sector Comercio, Industria y Turismo | I164: 05 | J164: Gestión de TIC | L164: 24 | M164: TRANSPORTE | N164: 2401 | O164: Infraestructura red vial primaria | P164: 0600 | Q164: Intersubsectorial Transporte
A165: 35 | B165: COMERCIO, INDUSTRIA Y TURISMO | C165: 3599 | D165: Fortalecimiento y apoyo a la gestión institucional del sector Comercio, Industria y Turismo | E165: 0200 | F165: Intersubsectorial Industria y Comercio | G165: 01 | H165: Servicio de fortalecimiento y apoyo a la gestión institucional del sector Comercio, Industria y Turismo | I165: 06 | J165: Gestión financiera | L165: 24 | M165: TRANSPORTE | N165: 2402 | O165: Infraestructura red vial regional | P165: 0600 | Q165: Intersubsectorial Transporte
A166: 35 | B166: COMERCIO, INDUSTRIA Y TURISMO | C166: 3599 | D166: Fortalecimiento y apoyo a la gestión institucional del sector Comercio, Industria y Turismo | E166: 0200 | F166: Intersubsectorial Industria y Comercio | G166: 01 | H166: Servicio de fortalecimiento y apoyo a la gestión institucional del sector Comercio, Industria y Turismo | I166: 07 | J166: Gestión jurídica | L166: 24 | M166: TRANSPORTE | N166: 2403 | O166: Infraestructura y servicios de transporte aéreo | P166: 0600 | Q166: Intersubsectorial Transporte
A167: 35 | B167: COMERCIO, INDUSTRIA Y TURISMO | C167: 3599 | D167: Fortalecimiento y apoyo a la gestión institucional del sector Comercio, Industria y Turismo | E167: 0200 | F167: Intersubsectorial Industria y Comercio | G167: 01 | H167: Servicio de fortalecimiento y apoyo a la gestión institucional del sector Comercio, Industria y Turismo | I167: 08 | J167: Gestión y desarrollo del talento humano | L167: 24 | M167: TRANSPORTE | N167: 2404 | O167: Infraestructura de transporte férreo | P167: 0600 | Q167: Intersubsectorial Transporte
A168: 35 | B168: COMERCIO, INDUSTRIA Y TURISMO | C168: 3599 | D168: Fortalecimiento y apoyo a la gestión institucional del sector Comercio, Industria y Turismo | E168: 0200 | F168: Intersubsectorial Industria y Comercio | G168: 01 | H168: Servicio de fortalecimiento y apoyo a la gestión institucional del sector Comercio, Industria y Turismo | I168: 09 | J168: Seguimiento y evaluación | L168: 24 | M168: TRANSPORTE | N168: 2405 | O168: Infraestructura de transporte marítimo | P168: 0600 | Q168: Intersubsectorial Transporte
A169: 35 | B169: COMERCIO, INDUSTRIA Y TURISMO | C169: 3500 | D169: No asignable a programas | E169: 0200 | F169: Intersubsectorial Industria y Comercio | G169: 01 | H169: Sin producto | I169: 01 | J169: Transferencias corrientes | L169: 24 | M169: TRANSPORTE | N169: 2406 | O169: Infraestructura de transporte fluvial | P169: 0600 | Q169: Intersubsectorial Transporte
A170: 01 | B170: CONGRESO DE LA REPÚBLICA | C170: 0101 | D170: Mejoramiento de la eficiencia y la transparencia legislativa | E170: 1000 | F170: Intersubsectorial gobierno | G170: 01 | H170: Servicio de expedición, modificación y derogación de leyes nacionales | I170: 01 | J170: Gestión legislativa | L170: 24 | M170: TRANSPORTE | N170: 2407 | O170: Infraestructura y servicios de logística de transporte | P170: 0600 | Q170: Intersubsectorial Transporte
A171: 01 | B171: CONGRESO DE LA REPÚBLICA | C171: 0101 | D171: Mejoramiento de la eficiencia y la transparencia legislativa | E171: 1000 | F171: Intersubsectorial gobierno | G171: 01 | H171: Servicio de expedición, modificación y derogación de leyes nacionales | I171: 02 | J171: Soporte técnico para la gestión legislativa | L171: 24 | M171: TRANSPORTE | N171: 2408 | O171: Prestación de servicios de transporte público de pasajeros | P171: 0600 | Q171: Intersubsectorial Transporte
A172: 01 | B172: CONGRESO DE LA REPÚBLICA | C172: 0101 | D172: Mejoramiento de la eficiencia y la transparencia legislativa | E172: 1000 | F172: Intersubsectorial gobierno | G172: 01 | H172: Servicio de expedición, modificación y derogación de leyes nacionales | I172: 03 | J172: Gestión documental | L172: 24 | M172: TRANSPORTE | N172: 2409 | O172: Seguridad de transporte | P172: 0600 | Q172: Intersubsectorial Transporte
A173: 01 | B173: CONGRESO DE LA REPÚBLICA | C173: 0199 | D173: Fortalecimiento y apoyo a la gestión institucional del sector Congreso de la República | E173: 1000 | F173: Intersubsectorial gobierno | G173: 01 | H173: Servicio de fortalecimiento y apoyo a la gestión institucional del sector Congreso de la República | I173: 01 | J173: Direccionamiento estratégico | L173: 24 | M173: TRANSPORTE | N173: 2410 | O173: Política, regulación y supervisión de la infraestructura y servicios de transporte | P173: 0600 | Q173: Intersubsectorial Transporte
A174: 01 | B174: CONGRESO DE LA REPÚBLICA | C174: 0199 | D174: Fortalecimiento y apoyo a la gestión institucional del sector Congreso de la República | E174: 1000 | F174: Intersubsectorial gobierno | G174: 01 | H174: Servicio de fortalecimiento y apoyo a la gestión institucional del sector Congreso de la República | I174: 02 | J174: Gestión de comunicaciones | L174: 24 | M174: TRANSPORTE | N174: 2499 | O174: Fortalecimiento y apoyo a la gestión institucional del sector Transporte | P174: 0600 | Q174: Intersubsectorial Transporte
A175: 01 | B175: CONGRESO DE LA REPÚBLICA | C175: 0199 | D175: Fortalecimiento y apoyo a la gestión institucional del sector Congreso de la República | E175: 1000 | F175: Intersubsectorial gobierno | G175: 01 | H175: Servicio de fortalecimiento y apoyo a la gestión institucional del sector Congreso de la República | I175: 03 | J175: Gestión de protocolo | L175: 24 | M175: TRANSPORTE | N175: 2400 | O175: No asignable a programas | P175: 0600 | Q175: Intersubsectorial Transporte
A176: 01 | B176: CONGRESO DE LA REPÚBLICA | C176: 0199 | D176: Fortalecimiento y apoyo a la gestión institucional del sector Congreso de la República | E176: 1000 | F176: Intersubsectorial gobierno | G176: 01 | H176: Servicio de fortalecimiento y apoyo a la gestión institucional del sector Congreso de la República | I176: 04 | J176: Gestión administrativa | L176: 40 | M176: VIVIENDA, CIUDAD Y TERRITORIO | N176: 4001 | O176: Acceso a soluciones de vivienda | P176: 1400 | Q176: Intersubsectorial Vivienda y Desarrollo territorial
A177: 01 | B177: CONGRESO DE LA REPÚBLICA | C177: 0199 | D177: Fortalecimiento y apoyo a la gestión institucional del sector Congreso de la República | E177: 1000 | F177: Intersubsectorial gobierno | G177: 01 | H177: Servicio de fortalecimiento y apoyo a la gestión institucional del sector Congreso de la República | I177: 05 | J177: Gestión jurídica | L177: 40 | M177: VIVIENDA, CIUDAD Y TERRITORIO | N177: 4002 | O177: Ordenamiento territorial y desarrollo urbano | P177: 1400 | Q177: Intersubsectorial Vivienda y Desarrollo territorial
A178: 01 | B178: CONGRESO DE LA REPÚBLICA | C178: 0199 | D178: Fortalecimiento y apoyo a la gestión institucional del sector Congreso de la República | E178: 1000 | F178: Intersubsectorial gobierno | G178: 01 | H178: Servicio de fortalecimiento y apoyo a la gestión institucional del sector Congreso de la República | I178: 06 | J178: Direccionamiento estratégico y gestión de las TIC | L178: 40 | M178: VIVIENDA, CIUDAD Y TERRITORIO | N178: 4003 | O178: Acceso de la población a los servicios de agua potable y saneamiento básico | P178: 1400 | Q178: Intersubsectorial Vivienda y Desarrollo territorial
A179: 01 | B179: CONGRESO DE LA REPÚBLICA | C179: 0199 | D179: Fortalecimiento y apoyo a la gestión institucional del sector Congreso de la República | E179: 1000 | F179: Intersubsectorial gobierno | G179: 01 | H179: Servicio de fortalecimiento y apoyo a la gestión institucional del sector Congreso de la República | I179: 07 | J179: Gestión y desarrollo del recurso humano | L179: 40 | M179: VIVIENDA, CIUDAD Y TERRITORIO | N179: 4099 | O179: Fortalecimiento y apoyo a la gestión institucional del sector Vivienda, Ciudad y Territorio | P179: 1400 | Q179: Intersubsectorial Vivienda y Desarrollo territorial
A180: 01 | B180: CONGRESO DE LA REPÚBLICA | C180: 0199 | D180: Fortalecimiento y apoyo a la gestión institucional del sector Congreso de la República | E180: 1000 | F180: Intersubsectorial gobierno | G180: 01 | H180: Servicio de fortalecimiento y apoyo a la gestión institucional del sector Congreso de la República | I180: 08 | J180: Gestión financiera | L180: 40 | M180: VIVIENDA, CIUDAD Y TERRITORIO | N180: 4000 | O180: No asignable a programas | P180: 1400 | Q180: Intersubsectorial Vivienda y Desarrollo territorial
A181: 01 | B181: CONGRESO DE LA REPÚBLICA | C181: 0199 | D181: Fortalecimiento y apoyo a la gestión institucional del sector Congreso de la República | E181: 1000 | F181: Intersubsectorial gobierno | G181: 01 | H181: Servicio de fortalecimiento y apoyo a la gestión institucional del sector Congreso de la República | I181: 09 | J181: Gestión de bienes y servicios
A182: 01 | B182: CONGRESO DE LA REPÚBLICA | C182: 0100 | D182: No asignable a programas | E182: 1000 | F182: Intersubsectorial gobierno | G182: 01 | H182: Sin producto | I182: 01 | J182: Transferencias Corrientes
A183: 33 | B183: CULTURA | C183: 3301 | D183: Promoción y acceso efectivo a procesos culturales y artísticos | E183: 1603 | F183: Arte y cultura | G183: 01 | H183: Servicio de promoción y acceso a procesos culturales y artísticos | I183: 01 | J183: Desarrollar estrategias de desarrollo y emprendimiento cultural
A184: 33 | B184: CULTURA | C184: 3301 | D184: Promoción y acceso efectivo a procesos culturales y artísticos | E184: 1603 | F184: Arte y cultura | G184: 01 | H184: Servicio de promoción y acceso a procesos culturales y artísticos | I184: 02 | J184: Gestionar el desarrollo de la museología y la museografía
A185: 33 | B185: CULTURA | C185: 3301 | D185: Promoción y acceso efectivo a procesos culturales y artísticos | E185: 1603 | F185: Arte y cultura | G185: 01 | H185: Servicio de promoción y acceso a procesos culturales y artísticos | I185: 03 | J185: Promoción y acceso a las artes
A186: 33 | B186: CULTURA | C186: 3301 | D186: Promoción y acceso efectivo a procesos culturales y artísticos | E186: 1603 | F186: Arte y cultura | G186: 01 | H186: Servicio de promoción y acceso a procesos culturales y artísticos | I186: 04 | J186: Promoción y acceso a las audiovisuales, cine y medios interactivos
A187: 33 | B187: CULTURA | C187: 3301 | D187: Promoción y acceso efectivo a procesos culturales y artísticos | E187: 1603 | F187: Arte y cultura | G187: 01 | H187: Servicio de promoción y acceso a procesos culturales y artísticos | I187: 05 | J187: Promoción y acceso al patrimonio bibliográfico y documental
A188: 33 | B188: CULTURA | C188: 3301 | D188: Promoción y acceso efectivo a procesos culturales y artísticos | E188: 1603 | F188: Arte y cultura | G188: 01 | H188: Servicio de promoción y acceso a procesos culturales y artísticos | I188: 06 | J188: Promoción y accesos a la actividad artística y cultural
A189: 33 | B189: CULTURA | C189: 3302 | D189: Gestión, protección y salvaguardia del patrimonio cultural colombiano | E189: 1603 | F189: Arte y cultura | G189: 01 | H189: Servicio de protección y salvaguarda del patrimonio cultural | I189: 01 | J189: Gestión académica para la salvaguarda del patrimonio lingüístico
A190: 33 | B190: CULTURA | C190: 3302 | D190: Gestión, protección y salvaguardia del patrimonio cultural colombiano | E190: 1603 | F190: Arte y cultura | G190: 01 | H190: Servicio de protección y salvaguarda del patrimonio cultural | I190: 02 | J190: Gestión archivística
A191: 33 | B191: CULTURA | C191: 3302 | D191: Gestión, protección y salvaguardia del patrimonio cultural colombiano | E191: 1603 | F191: Arte y cultura | G191: 01 | H191: Servicio de protección y salvaguarda del patrimonio cultural | I191: 03 | J191: Gestión de patrimonio y memoria
A192: 33 | B192: CULTURA | C192: 3302 | D192: Gestión, protección y salvaguardia del patrimonio cultural colombiano | E192: 1603 | F192: Arte y cultura | G192: 01 | H192: Servicio de protección y salvaguarda del patrimonio cultural | I192: 04 | J192: Gestión del emprendimiento asociado al patrimonio cultural
A193: 33 | B193: CULTURA | C193: 3302 | D193: Gestión, protección y salvaguardia del patrimonio cultural colombiano | E193: 1603 | F193: Arte y cultura | G193: 01 | H193: Servicio de protección y salvaguarda del patrimonio cultural | I193: 05 | J193: Gestión del patrimonio documental
A194: 33 | B194: CULTURA | C194: 3302 | D194: Gestión, protección y salvaguardia del patrimonio cultural colombiano | E194: 1603 | F194: Arte y cultura | G194: 01 | H194: Servicio de protección y salvaguarda del patrimonio cultural | I194: 06 | J194: Inspección y vigilancia archivística
A195: 33 | B195: CULTURA | C195: 3302 | D195: Gestión, protección y salvaguardia del patrimonio cultural colombiano | E195: 1603 | F195: Arte y cultura | G195: 01 | H195: Servicio de protección y salvaguarda del patrimonio cultural | I195: 07 | J195: Investigación y producción científica en antropología e historia
A196: 33 | B196: CULTURA | C196: 3399 | D196: Fortalecimiento y apoyo a la gestión institucional del sector Cultura | E196: 1603 | F196: Arte y cultura | G196: 01 | H196: Servicio de fortalecimiento y apoyo a la gestión institucional del sector Cultura | I196: 01 | J196: Direccionamiento estratégico
A197: 33 | B197: CULTURA | C197: 3399 | D197: Fortalecimiento y apoyo a la gestión institucional del sector Cultura | E197: 1603 | F197: Arte y cultura | G197: 01 | H197: Servicio de fortalecimiento y apoyo a la gestión institucional del sector Cultura | I197: 02 | J197: Fomento de la cultura y el patrimonio en las regiones
A198: 33 | B198: CULTURA | C198: 3399 | D198: Fortalecimiento y apoyo a la gestión institucional del sector Cultura | E198: 1603 | F198: Arte y cultura | G198: 01 | H198: Servicio de fortalecimiento y apoyo a la gestión institucional del sector Cultura | I198: 03 | J198: Gestión administrativa
A199: 33 | B199: CULTURA | C199: 3399 | D199: Fortalecimiento y apoyo a la gestión institucional del sector Cultura | E199: 1603 | F199: Arte y cultura | G199: 01 | H199: Servicio de fortalecimiento y apoyo a la gestión institucional del sector Cultura | I199: 04 | J199: Gestión contractual
A200: 33 | B200: CULTURA | C200: 3399 | D200: Fortalecimiento y apoyo a la gestión institucional del sector Cultura | E200: 1603 | F200: Arte y cultura | G200: 01 | H200: Servicio de fortalecimiento y apoyo a la gestión institucional del sector Cultura | I200: 05 | J200: Gestión de almacén
... 821 more rows
